Workbook

Sheet about
A1: about!A1
B2: PRACTICAL HPLC SIMULATOR V1.0
B3: Software for practical simulation of HPLC separation
B4: Practical HPLC simulator is free to use and distribute
B5: Version 1.0 - October 2020
B6: All right reserved to Davy Guillarme - University of Geneva, Group of Analytical Sciences
B7: For in-depth discussion or information on the calculation used, please contact:
B8: davy.guillarme@unige.ch
B10: This calculator is provided as-is, without any expressed or implied warranty. In no event will the author be held liable for any consequences/damages arising from the use of this calculator.
B11: This program is FREEWARE. You can use it for personal, business, educational or any other need of yours, subject to the following restrictions:
C12: 1. You may re-distribute this program as part of any free software suite/package after informing the author. If you want to re-distribute this program as part of a commercial suite,
C13: you can do so only after getting the written consent of the author.
C14: 2. This notice may not be removed or altered from any distribution.
C15: 3. No form of decompilation / disassembling parts or whole of the calculator may be done.
C16: 4. You may not misrepresent the origin of the software. If you are distributing the package/portions of the package, the files must be clearly indicated as part of HPLC calculator.

Sheet HPLC simulator
B2: PRACTICAL HPLC SIMULATOR V1.0
L4: Viscosity (cP) | O4: =Calculation!C41 -> 0.8546025249
BC6: Uracil
H7: pH | I7: 7 | Q7: Acetonitrile
E8: =IF(I7=2.7,"0.1% formic acid",IF(I7=4.5,"20 mM acetate buffer",IF(I7=7,"20 mM phosphate buffer",IF(I7=9,"20 mM ammonium buffer",1)))) -> 20 mM phosphate buffer | BG8: λmax | BI8: =VLOOKUP(BC6,'1'!W57:X97,2,FALSE) -> 260
E13: UV cell volume | I13: 13
E14: Wavelength | I14: 220
E15: Time constant | I15: 1000
E16: Acquisition rate | I16: 2
BH17: pKa | BI17: =Calculation!DW12 -> 8.8
E20: L col | H20: 150 | L20: Temperature | O20: 30
E21: dc col | H21: 4.6
E22: dp col | H22: 5 | L22: Porosity | O22: 0.7
E23: Chemistry | H23: C18 | L23: t0 (min) | O23: =Calculation!C40 -> 1.744997639
Y25: OUTPUT DATA
T27: Outlet tubing | Y27: Compound | AB27: tr (min) | AE27: k | AH27: W50% (min) | AK27: N | AN27: Asymmetry | AQ27: Rs | AT27: Height (mAU) | AW27: Peak Area | AZ27: Noise | BC27: S/N
K28: Mix 3 - Lidocaine formulation | T28: Ltube | V28: 50 | Y28: =IF(calculation2!H27=1,calculation2!F27,calculation2!G27) -> Uracil | AB28: =calculation2!N14 -> 1.750992718 | AE28: =calculation2!V14 -> 0.003435579479 | AH28: =calculation2!O14 -> 0.07861456581 | AK28: =IF(Y28="","",calculation2!P14) -> 2748.352311 | AN28: =calculation2!U14 -> 1.38 | AQ28: - | AT28: =calculation2!Q14 -> 0 | AW28: =calculation2!R14 -> 0 | AZ28: =Calculation!C69 -> 0.1658324572 | BC28: =calculation2!T14 -> 0
I29: sample | K29: Mix 1 - parabens | T29: dtube | V29: 250 | Y29: =IF(AND(calculation2!H27=0,calculation2!H28=0),calculation2!G28,IF(AND(calculation2!H27=0,calculation2!H28=1),calculation2!F27,calculation2!F28)) -> Methylparaben | AB29: =calculation2!N15 -> 2.439693712 | AE29: =calculation2!V15 -> 0.3981071706 | AH29: =calculation2!O15 -> 0.08344345464 | AK29: =IF(Y29="","",calculation2!P15) -> 4735.826971 | AN29: =calculation2!U15 -> 1.07 | AQ29: =calculation2!Y15 -> 3.616781845 | AT29: =calculation2!Q15 -> 98.37430151 | AW29: =calculation2!R15 -> 720.5375116 | BC29: =calculation2!T15 -> 214.3969795
I30: sample diluent | L30: 20 | Y30: =IF(AND(calculation2!H27=0,calculation2!H28=0,calculation2!H29=0),calculation2!G29,IF(AND(calculation2!H27=0,calculation2!H28=0,calculation2!H29=1),calculation2!F27,IF(AND(calculation2!H27=0,calculation2!H28=1,calculation2!H29=1),calculation2!F28,calculation2!F29))) -> Ethylparaben | AB30: =calculation2!N16 -> 3.623426896 | AE30: =calculation2!V16 -> 1.076465214 | AH30: =calculation2!O16 -> 0.09849228224 | AK30: =IF(Y30="","",calculation2!P16) -> 7497.981599 | AN30: =calculation2!U16 -> 1.08 | AQ30: =calculation2!Y16 -> 5.537298577 | AT30: =calculation2!Q16 -> 92.25792141 | AW30: =calculation2!R16 -> 797.8070109 | BC30: =calculation2!T16 -> 201.066939
T31: Inlet tubing | Y31: =IF(AND(calculation2!H27=0,calculation2!H28=0,calculation2!H29=0,calculation2!H30=0),calculation2!G30,IF(AND(calculation2!H27=0,calculation2!H28=0,calculation2!H29=0,calculation2!H30=1),calculation2!F27,IF(AND(calculation2!H27=0,calculation2!H28=0,calculation2!H29=1,calculation2!H30=1),calculation2!F28,IF(AND(calculation2!H27=0,calculation2!H28=1,calculation2!H29=1,calculation2!H30=1),calculation2!F29,calculation2!F30)))) -> Propylparaben | AB31: =calculation2!N17 -> 6.230332213 | AE31: =calculation2!V17 -> 2.570395783 | AH31: =calculation2!O17 -> 0.1397754032 | AK31: =IF(Y31="","",calculation2!P17) -> 11007.04309 | AN31: =calculation2!U17 -> 1.05 | AQ31: =calculation2!Y17 -> 9.311555692 | AT31: =calculation2!Q17 -> 69.42663297 | AW31: =calculation2!R17 -> 848.6199018 | BC31: =calculation2!T17 -> 151.3084228
T32: Ltube | V32: 50 | Y32: =IF(AND(calculation2!H27=0,calculation2!H28=0,calculation2!H29=0,calculation2!H30=0,calculation2!H31=0),calculation2!G31,IF(AND(calculation2!H27=0,calculation2!H28=0,calculation2!H29=0,calculation2!H30=0,calculation2!H31=1),calculation2!F27,IF(AND(calculation2!H27=0,calculation2!H28=0,calculation2!H29=0,calculation2!H30=1,calculation2!H31=1),calculation2!F28,IF(AND(calculation2!H27=0,calculation2!H28=0,calculation2!H29=1,calculation2!H30=1,calculation2!H31=1),calculation2!F29,IF(AND(calculation2!H27=0,calculation2!H28=1,calculation2!H29=1,calculation2!H30=1,calculation2!H31=1),calculation2!F30,calculation2!F31))))) -> Butylparaben | AB32: =calculation2!N18 -> 11.60313451 | AE32: =calculation2!V18 -> 5.649369748 | AH32: =calculation2!O18 -> 0.2371570072 | AK32: =IF(Y32="","",calculation2!P18) -> 13261.37318 | AN32: =calculation2!U18 -> 1.03 | AQ32: =calculation2!Y18 -> 12.13108127 | AT32: =calculation2!Q18 -> 41.1440257 | AW32: =calculation2!R18 -> 851.8003743 | BC32: =calculation2!T18 -> 89.6693008
D33: Vinj | E33: 20 | T33: dtube | V33: 250 | Y33: =IF(AND(calculation2!H27=0,calculation2!H28=0,calculation2!H29=0,calculation2!H30=0,calculation2!H31=0,calculation2!H32=0),calculation2!G32,IF(AND(calculation2!H27=0,calculation2!H28=0,calculation2!H29=0,calculation2!H30=0,calculation2!H31=0,calculation2!H32=1),calculation2!F27,IF(AND(calculation2!H27=0,calculation2!H28=0,calculation2!H29=0,calculation2!H30=0,calculation2!H31=1,calculation2!H32=1),calculation2!F28,IF(AND(calculation2!H27=0,calculation2!H28=0,calculation2!H29=0,calculation2!H30=1,calculation2!H31=1,calculation2!H32=1),calculation2!F29,IF(AND(calculation2!H27=0,calculation2!H28=0,calculation2!H29=1,calculation2!H30=1,calculation2!H31=1,calculation2!H32=1),calculation2!F30,IF(AND(calculation2!H27=0,calculation2!H28=1,calculation2!H29=1,calculation2!H30=1,calculation2!H31=1,calculation2!H32=1),calculation2!F31,calculation2!F32)))))) ->  | AB33: =calculation2!N19 ->  | AE33: =calculation2!V19 ->  | AH33: =calculation2!O19 ->  | AK33: =IF(Y33="","",calculation2!P19) ->  | AN33: =calculation2!U19 ->  | AQ33: =calculation2!Y19 ->  | AT33: =calculation2!Q19 ->  | AW33: =calculation2!R19 ->  | BC33: =calculation2!T19 -> 
D34: [C] | E34: 0.1 | Y34: =IF(AND(calculation2!H27=0,calculation2!H28=0,calculation2!H29=0,calculation2!H30=0,calculation2!H31=0,calculation2!H32=0,calculation2!H33=0),calculation2!G33,IF(AND(calculation2!H27=0,calculation2!H28=0,calculation2!H29=0,calculation2!H30=0,calculation2!H31=0,calculation2!H32=0,calculation2!H33=1),calculation2!F27,IF(AND(calculation2!H27=0,calculation2!H28=0,calculation2!H29=0,calculation2!H30=0,calculation2!H31=0,calculation2!H32=1,calculation2!H33=1),calculation2!F28,IF(AND(calculation2!H27=0,calculation2!H28=0,calculation2!H29=0,calculation2!H30=0,calculation2!H31=1,calculation2!H32=1,calculation2!H33=1),calculation2!F29,IF(AND(calculation2!H27=0,calculation2!H28=0,calculation2!H29=0,calculation2!H30=1,calculation2!H31=1,calculation2!H32=1,calculation2!H33=1),calculation2!F30,IF(AND(calculation2!H27=0,calculation2!H28=0,calculation2!H29=1,calculation2!H30=1,calculation2!H31=1,calculation2!H32=1,calculation2!H33=1),calculation2!F31,IF(AND(calculation2!H27=0,calculation2!H28=1,calculation2!H29=1,calculation2!H30=1,calculation2!H31=1,calculation2!H32=1,calculation2!H33=1),calculation2!F32,calculation2!F33))))))) ->  | AB34: =calculation2!N20 ->  | AE34: =calculation2!V20 ->  | AH34: =calculation2!O20 ->  | AK34: =IF(Y34="","",calculation2!P20) ->  | AN34: =calculation2!U20 ->  | AQ34: =calculation2!Y20 ->  | AT34: =calculation2!Q20 ->  | AW34: =calculation2!R20 ->  | BC34: =calculation2!T20 -> 
F36: Gradient | O36: 1 | BI36: %N loss | BK36: =AI41 -> 0.4680925181
F37: Isocratic | M37: Flow rate | O37: 1
G38: 40 | M38: u (mm/s) | O38: =Calculation!C44 -> 1.432666694 | T38: PERFORMANCE | AV38: Reason?
F39: Time | H39: %A | J39: %B | M39: Pressure | O39: =(Calculation!C42*Calculation!C13/10*0.01*Calculation!C44*0.001*Calculation!C41*0.001/(Calculation!C15*0.000001)^2/100000)+(0.0000001*128*(Calculation!C41*Calculation!C18*Calculation!C3*1000/60)/(Calculation!C19/1000)^4/3.14)+(0.0000001*128*(Calculation!C41*Calculation!C20*Calculation!C3*1000/60)/(Calculation!C21/1000)^4/3.14) -> 56.58261734 | T39: Gradient | Y39: Peak capacity | AI39: =1+((SQRT(AI40)/4)*(1/(1+((7*((Calculation!C30-Calculation!C29)/100)*(PI()*H21*H21/4*H20*0.7/(O37*1000)))/Calculation!C28)))*LN(((((7*((Calculation!C30-Calculation!C29)/100)*(PI()*H21*H21/4*H20*0.7/(O37*1000)))/Calculation!C28)+1)/((7*((Calculation!C30-Calculation!C29)/100)*(PI()*H21*H21/4*H20*0.7/(O37*1000)))/Calculation!C28))*EXP(7*((Calculation!C30-Calculation!C29)/100))-(1/((7*((Calculation!C30-Calculation!C29)/100)*(PI()*H21*H21/4*H20*0.7/(O37*1000)))/Calculation!C28)))) -> 94.19664805 | AV39: =calculation2!K42 -> 
F40: 0 | H40: =100-J40 -> 95 | J40: 5 | O40: Vd | P40: 1500 | T40: Isocratic | Y40: Average column efficiency for all peaks | AI40: =Calculation!C60 -> 7850.11543 | AV40: =calculation2!K43 -> retention outside 1<k<10
F41: 30 | H41: =100-J41 -> 50 | J41: 50 | Y41: % efficiency loss (due to system) | AI41: =1-Calculation!C59/Calculation!C49 -> 0.4680925181 | AV41: =calculation2!K44 -> Resolution below 1.5
Y42: % efficiency loss (due to non optimal flow rate) | AI42: =1-Calculation!C49/Calculation!H1034 -> 0.08680691084 | AV42: =calculation2!K45 -> Loss in efficiency > 30%
B43: Developed by Davy GUILLARME [davy.guillarme@unige.ch], with contribution of Balazs BOBALY and Jean-Luc VEUTHEY
B44: Group of analytical sciences, School of Pharmaceutical Sciences, University of Geneva, Rue Michel Servet 1, 1211 Geneva 4, Switzerland

Sheet HELP
B2: Help about practical HPLC simulator
B5: General methodology - experimental data used in the calculator
C7: Raw retention data were obtained for 37 analytes belonging to 7 different mixtures of compounds.
C8: These analytes were analyzed on three different stationary phases ( BEH C18, BEH C4, and BEH Phenyl)
C9: These analytes were analyzed using methanol and acetonitrile as organic modifier
C10: These analytes were analyzed using four different pH conditions: pH 2.7 (0.1% Formic acid), 4.5 (20 mM acetate), 7.0 (20 mM phosphate) and 9.0 (20mM ammonia)
C11: These analytes were analyzed at two different mobile phase temperatures (30 and 60°C)
C12: These analytes were analyzed using two different grdient times to have retention model parameters (log kw and S)
C13: On the total, a huge number of experiments were performed with the 37 model analytes: 37*3*2*4*2*2= 3552 analyses !
C15: From these experiments, the retention vs. temperature models were assessed (van't Hoff plots) to simulate any other temperature
C16: From these experiments, the retention vs. %organic modifier models (LSS, log kw and S) were assessed to simulate any isocratic or gradient conditions
C17: From these experiments, peak asymmetry was also monitored and will be used by the calculator to simulate peak tailing/fronting
C19: In addition, the 3552 experiments were performed using UV-DAD detector to determine the peak height at any wavelength between 200 and 350 nm.
C21: A blank injection was also performed in each of the above mentioned conditions to determine the background noise and signal drift under any conditions
C23: The user should enter information in all the yellow cells
C24: The excel software will calculate all the values reported in blue cells
B26: Pumping system
F28: The user should indicate the mobile phase composition (organic modifier nature and pH conditions)
F29: Mobile phase viscosity was calculated using equations reported in doi: 10.1016/j.chroma.2004.08.052
F32: The user should select either isocratic or gradient conditions (if the user is selecting isocratic, the gradient part will be hidden)
F33: If the user is selecting isocratic, the user should indicate the %organic modifier in the mobile phase
F34: If the user is selecting gradient, the gradient time, initial %B and final %B have to be indicated
F35: The user should also select the mobile phase flow rate
F36: Finally, the user should also indicate the dwell volume (or gradient delay volume), also known as Vd
F37: The calculator will estimate the linear mobile pahse velocity (u) based on the working flow rate
F38: The calculator will estimate the system presure using the Darcy's law, including also the pressure generated by tubing
B45: Injector
F47: The user should select the mixture to be analyzed (user has the choice between seven different mixtures)
F48: The user should also indicate the sample diluent (it has a relatively strong impact on peak width, in particular when injecting large volume)
F49: The user should indicate the injection volume
F50: The user should indicate the sample concentration expressed in mg/mL (1mg/mL=1000ppm)
F51: The user should also indicate the tubing dimensions for the tube located between the injection valve and column inlet
F52: The user should also indicate the tubing dimensions for the tube located between column outlet and UV detection
F53: Tubing dimension has an impact on system pressure and peak width (in particular when the column has a small volume).
B55: Column oven
F57: The user should indicate the column dimensions (length, diameter, particle size and porosity)
F58: If porosity is unknown, it should be set to a value of 0.7
F59: The user can also indicate the stationary phase chemistry (C18, C4 and phenyl)
F60: The user should indicate the temperature (this corresponds to the column temperature as well as the mobile pahse temperature)
F61: Finally, the calculator will estimate the column dead time, based on column dead volume (equation below) and flow rate
B66: UV detection
F68: The user should indicate the UV cell volume which has a potential impact on peak width
F69: The user should also indicate the wavelength at which the chromatogram will be simulated
F70: The user should provide the UV time constant (electronic smoothing of the UV signal) which impacts background noise and peak width
F71: The user should finally provide the data acquisition rate (in Hz) which corresponds to the number of UV absorbance measurement per sec
B73: Simulated chromatogram
F75: The software shows the chromatogram (calculation of peaks made using a modified Gaussian function to account for peak asymmetry)
F76: The chromatogram reports the UV absorbance on the Y-axis, expressed in milli absorbance units (mAU)
F77: The chromatogram reports the time on the X-axis
F78: The second Y-axis defines the mobile pahse conditions used for the separation (isocratic or gradient)
B81: Compound properties
F83: The user can enter the name of an analyte within the mixture of compounds to obtain some specific properties
F84: The software will then provide the experimental UV spectra of the compound
F85: The user will have also access to the maximum absorbance wavelength (λmax)
F87: The software will also provide the ionization profile representing the %ionized form vs. pH
F88: The user will have also access to the pKa of the selected compound
B92: Output data
G95: Various data will be calculated by the software:
G96: Retention time of the different compounds (tr) will be provided
G97: Retention factor (k) will be calculated using the equation mentioned on the left
G98: Peak width at half height (W50%) will be provided by the calculator and calculated based on the experimental conditions
G99: Plate count has been calculated using a generic Van Deemter curve (A=1, B=4, C=0.05) and the van deemter equation
G100: Resolution was calculated based on peak widths and retention times between two consecutive peaks (equation on the left)
G101: Peak height and peak area were obtained thanks to the raw data experimentally obtained
G102: Background noise was also obtained from experimental measurements and account for time constant and data acquisition rate
G103: S/N ratio was calculated based on peak height and background noise
B106: Performance
G108: Depending on the selected mode of elution (isocatic or gradient), this section will not contain the same information
G109: In isocratic mode, the average column efficiency (plate count) for all peaks is calculated
G110: In isocratic mode, the N loss due to system (extra-column band broadening contribution) is calculated (see equation on the left)
G111: In isocratic mode, the N loss due to non optimal flow rate is calculated by drawing van Deemter curve and checking
G112: the position of the selected flow rate on the curve - calculated with (Nmax-Nobserved)/Nmax
G113: In gradient mode, the peak capacity will be provided to evaluate the separation quality (number of peaks possibly separated
G114: during the course of the gradient, with a resolution of 1.
B116: Separation quality
F118: The separation quality will be graphically evaluated using the representation on the left (worst, bad, average, good, best) - see table for scores
F119: To assess separation quality, various criteria are used and a score (between 0 and 100) is provided for the separation:
G120: Reduction of the score by 50% if at least one peak is not eluted
G121: Retention times between 1 and 10 contributes to 20% of the score
G122: Resolution beyond 1.5 contributes to 20% of the score
G123: Loss in efficiency > 30% of the maximal reachable value contributes to 10% of the score
B125: Extra-column band broadening
F127: The different contributions to band broadening were calculated using the equation below
F128: Diffusion coefficients were estimated using the Wilke-Chang equation (equation below)
F129: This histogram highlights the percentage of contribution from the different sources of band broadening
F130: The blue cell indicates the %N loss in the system due to extra-column band broadening (same informtion as in the performance table)
B137: Macro for HPLC or UHPLC system
F139: Two macros were created in this Excel spreadsheet. These buttons can be useful to reset the values to original values
F140: When user clicks on "HPLC system", the values of the system are changed to mimic the ones of a generic HPLC system
F141: When user clicks on "UHPLC system", the values of the system are changed to mimic the ones of a generic UHPLC system

Sheet Calculation
A1: CALCULATIONS
B2: INPUT
B3: Flow rate | C3: =calculation2!E61 -> 1 | D3: mL/min | G3: 30 | I3: Raw retention data at the selected pH | AJ3: Retention data - modeling of temperature
B4: pH | C4: =calculation2!E62 -> 7 | G4: 60 | I4: Methanol/eau | U4: ACN/eau | AJ4: Methanol/eau | AV4: ACN/eau
B5: Organic solvent | C5: =calculation2!E63 -> Acetonitrile | I5: C18 | K5: C18 | M5: Phenyl | O5: Phenyl | Q5: C4 | S5: C4 | U5: C18 | W5: C18 | Y5: Phenyl | AA5: Phenyl | AC5: C4 | AE5: C4 | AJ5: C18 | AL5: C18 | AN5: Phenyl | AP5: Phenyl | AR5: C4 | AT5: C4 | AV5: C18 | AX5: C18 | AZ5: Phenyl | BB5: Phenyl | BD5: C4 | BF5: C4 | BK5: log kw values at working temperature | BT5: S values at working temperature | CA5: Final S and log kw values at working temperature | CI5: UV detection | DF5: Asymmetry values at selected pH | DP5: Effect of pH
B6: Dwell volume | C6: =calculation2!E64 -> 1500 | D6: µl | I6: 30°C | J6: 60°C | K6: 30°C | L6: 60°C | M6: 30°C | N6: 60°C | O6: 30°C | P6: 60°C | Q6: 30°C | R6: 60°C | S6: 30°C | T6: 60°C | U6: 30°C | V6: 60°C | W6: 30°C | X6: 60°C | Y6: 30°C | Z6: 60°C | AA6: 30°C | AB6: 60°C | AC6: 30°C | AD6: 60°C | AE6: 30°C | AF6: 60°C | AJ6: slope | AK6: intercept | AL6: slope | AM6: intercept | AN6: slope | AO6: intercept | AP6: slope | AQ6: intercept | AR6: slope | AS6: intercept | AT6: slope | AU6: intercept | AV6: slope | AW6: intercept | AX6: slope | AY6: intercept | AZ6: slope | BA6: intercept | BB6: slope | BC6: intercept | BD6: slope | BE6: intercept | BF6: slope | BG6: intercept | BK6: log kw | BL6: log kw | BM6: log kw | BN6: log kw | BO6: log kw | BP6: log kw | BT6: S | BU6: S | BV6: S | BW6: S | BX6: S | BY6: S | CK6: Peak height (AU)
B7: Dwell time | C7: =C6/('HPLC simulator'!O37*1000) -> 1.5 | D7: min | I7: log kw | J7: log kw | K7: S | L7: S | M7: log kw | N7: log kw | O7: S | P7: S | Q7: log kw | R7: log kw | S7: S | T7: S | U7: log kw | V7: log kw | W7: S | X7: S | Y7: log kw | Z7: log kw | AA7: S | AB7: S | AC7: log kw | AD7: log kw | AE7: S | AF7: S | AJ7: log kw | AK7: log kw | AL7: S | AM7: S | AN7: log kw | AO7: log kw | AP7: S | AQ7: S | AR7: log kw | AS7: log kw | AT7: S | AU7: S | AV7: log kw | AW7: log kw | AX7: S | AY7: S | AZ7: log kw | BA7: log kw | BB7: S | BC7: S | BD7: log kw | BE7: log kw | BF7: S | BG7: S | BK7: MethanolC18 | BL7: MethanolPhenyl | BM7: MethanolC4 | BN7: AcetonitrileC18 | BO7: AcetonitrilePhenyl | BP7: AcetonitrileC4 | BT7: MethanolC18 | BU7: MethanolPhenyl | BV7: MethanolC4 | BW7: AcetonitrileC18 | BX7: AcetonitrilePhenyl | BY7: AcetonitrileC4 | CB7: log kw | CC7: log kw | CD7: log kw | CE7: log kw | CF7: log kw | CG7: log kw | CJ7: Wavelength | CK7: 200 | CL7: 210 | CM7: 220 | CN7: 230 | CO7: 240 | CP7: 250 | CQ7: 260 | CR7: 270 | CS7: 280 | CT7: 290 | CU7: 300 | CV7: 310 | CW7: 320 | CX7: 330 | CY7: 340 | CZ7: 350 | DD7: =C10 -> 220 | DH7: C18 | DI7: C4 | DJ7: Phenyl | DN7: =C16 -> C18 | DR7: pKa acid | DS7: pKa basic | DT7: acide/basique | DV7: data graph ionized form vs. pH
B8: Isocratic/gradient | C8: =calculation2!E65 -> Isocratic | G8: Mix 1 | H8: Uracil | I8: =IF($C$4=2.7,'1'!D11,IF($C$4=4.5,'1'!AB11,IF($C$4=7,'1'!AZ11,IF($C$4=9,'1'!BX11,"FAUX")))) -> 0.0293 | J8: =IF($C$4=2.7,'1'!E11,IF($C$4=4.5,'1'!AC11,IF($C$4=7,'1'!BA11,IF($C$4=9,'1'!BY11,"FAUX")))) -> -0.024 | K8: =IF($C$4=2.7,'1'!F11,IF($C$4=4.5,'1'!AD11,IF($C$4=7,'1'!BB11,IF($C$4=9,'1'!BZ11,"FAUX")))) -> 5.96 | L8: =IF($C$4=2.7,'1'!G11,IF($C$4=4.5,'1'!AE11,IF($C$4=7,'1'!BC11,IF($C$4=9,'1'!CA11,"FAUX")))) -> 7.73 | M8: =IF($C$4=2.7,'1'!H11,IF($C$4=4.5,'1'!AF11,IF($C$4=7,'1'!BD11,IF($C$4=9,'1'!CB11,"FAUX")))) -> 0.0373 | N8: =IF($C$4=2.7,'1'!I11,IF($C$4=4.5,'1'!AG11,IF($C$4=7,'1'!BE11,IF($C$4=9,'1'!CC11,"FAUX")))) -> -0.11 | O8: =IF($C$4=2.7,'1'!J11,IF($C$4=4.5,'1'!AH11,IF($C$4=7,'1'!BF11,IF($C$4=9,'1'!CD11,"FAUX")))) -> 4.98 | P8: =IF($C$4=2.7,'1'!K11,IF($C$4=4.5,'1'!AI11,IF($C$4=7,'1'!BG11,IF($C$4=9,'1'!CE11,"FAUX")))) -> 3.8 | Q8: =IF($C$4=2.7,'1'!L11,IF($C$4=4.5,'1'!AJ11,IF($C$4=7,'1'!BH11,IF($C$4=9,'1'!CF11,"FAUX")))) -> 0.0781 | R8: =IF($C$4=2.7,'1'!M11,IF($C$4=4.5,'1'!AK11,IF($C$4=7,'1'!BI11,IF($C$4=9,'1'!CG11,"FAUX")))) -> 0.0633 | S8: =IF($C$4=2.7,'1'!N11,IF($C$4=4.5,'1'!AL11,IF($C$4=7,'1'!BJ11,IF($C$4=9,'1'!CH11,"FAUX")))) -> 5.54 | T8: =IF($C$4=2.7,'1'!O11,IF($C$4=4.5,'1'!AM11,IF($C$4=7,'1'!BK11,IF($C$4=9,'1'!CI11,"FAUX")))) -> 6.64 | U8: =IF($C$4=2.7,'1'!P11,IF($C$4=4.5,'1'!AN11,IF($C$4=7,'1'!BL11,IF($C$4=9,'1'!CJ11,"FAUX")))) -> -0.36 | V8: =IF($C$4=2.7,'1'!Q11,IF($C$4=4.5,'1'!AO11,IF($C$4=7,'1'!BM11,IF($C$4=9,'1'!CK11,"FAUX")))) -> 0.288 | W8: =IF($C$4=2.7,'1'!R11,IF($C$4=4.5,'1'!AP11,IF($C$4=7,'1'!BN11,IF($C$4=9,'1'!CL11,"FAUX")))) -> 5.26 | X8: =IF($C$4=2.7,'1'!S11,IF($C$4=4.5,'1'!AQ11,IF($C$4=7,'1'!BO11,IF($C$4=9,'1'!CM11,"FAUX")))) -> 5.26 | Y8: =IF($C$4=2.7,'1'!T11,IF($C$4=4.5,'1'!AR11,IF($C$4=7,'1'!BP11,IF($C$4=9,'1'!CN11,"FAUX")))) -> 0.0653 | Z8: =IF($C$4=2.7,'1'!U11,IF($C$4=4.5,'1'!AS11,IF($C$4=7,'1'!BQ11,IF($C$4=9,'1'!CO11,"FAUX")))) -> -0.0779 | AA8: =IF($C$4=2.7,'1'!V11,IF($C$4=4.5,'1'!AT11,IF($C$4=7,'1'!BR11,IF($C$4=9,'1'!CP11,"FAUX")))) -> 8.71 | AB8: =IF($C$4=2.7,'1'!W11,IF($C$4=4.5,'1'!AU11,IF($C$4=7,'1'!BS11,IF($C$4=9,'1'!CQ11,"FAUX")))) -> 7.53 | AC8: =IF($C$4=2.7,'1'!X11,IF($C$4=4.5,'1'!AV11,IF($C$4=7,'1'!BT11,IF($C$4=9,'1'!CR11,"FAUX")))) -> 0.397 | AD8: =IF($C$4=2.7,'1'!Y11,IF($C$4=4.5,'1'!AW11,IF($C$4=7,'1'!BU11,IF($C$4=9,'1'!CS11,"FAUX")))) -> 0.266 | AE8: =IF($C$4=2.7,'1'!Z11,IF($C$4=4.5,'1'!AX11,IF($C$4=7,'1'!BV11,IF($C$4=9,'1'!CT11,"FAUX")))) -> 15 | AF8: =IF($C$4=2.7,'1'!AA11,IF($C$4=4.5,'1'!AY11,IF($C$4=7,'1'!BW11,IF($C$4=9,'1'!CU11,"FAUX")))) -> 13.5 | AH8: Mix 1 | AI8: =$H8 -> Uracil | AJ8: =SLOPE(I8:J8,$G$3:$G$4) -> -0.001776666667 | AK8: =INTERCEPT(I8:J8,$G$3:$G$4) -> 0.0826 | AL8: =SLOPE(K8:L8,$G$3:$G$4) -> 0.059 | AM8: =INTERCEPT(K8:L8,$G$3:$G$4) -> 4.19 | AN8: =SLOPE(M8:N8,$G$3:$G$4) -> -0.00491 | AO8: =INTERCEPT(M8:N8,$G$3:$G$4) -> 0.1846 | AP8: =SLOPE(O8:P8,$G$3:$G$4) -> -0.03933333333 | AQ8: =INTERCEPT(O8:P8,$G$3:$G$4) -> 6.16 | AR8: =SLOPE(Q8:R8,$G$3:$G$4) -> -0.0004933333333 | AS8: =INTERCEPT(Q8:R8,$G$3:$G$4) -> 0.0929 | AT8: =SLOPE(S8:T8,$G$3:$G$4) -> 0.03666666667 | AU8: =INTERCEPT(S8:T8,$G$3:$G$4) -> 4.44 | AV8: =SLOPE(U8:V8,$G$3:$G$4) -> 0.0216 | AW8: =INTERCEPT(U8:V8,$G$3:$G$4) -> -1.008 | AX8: =SLOPE(W8:X8,$G$3:$G$4) -> 0 | AY8: =INTERCEPT(W8:X8,$G$3:$G$4) -> 5.26 | AZ8: =SLOPE(Y8:Z8,$G$3:$G$4) -> -0.004773333333 | BA8: =INTERCEPT(Y8:Z8,$G$3:$G$4) -> 0.2085 | BB8: =SLOPE(AA8:AB8,$G$3:$G$4) -> -0.03933333333 | BC8: =INTERCEPT(AA8:AB8,$G$3:$G$4) -> 9.89 | BD8: =SLOPE(AC8:AD8,$G$3:$G$4) -> -0.004366666667 | BE8: =INTERCEPT(AC8:AD8,$G$3:$G$4) -> 0.528 | BF8: =SLOPE(AE8:AF8,$G$3:$G$4) -> -0.05 | BG8: =INTERCEPT(AE8:AF8,$G$3:$G$4) -> 16.5 | BI8: Mix 1 | BJ8: =H8 -> Uracil | BK8: =AJ8*$C$17+AK8 -> 0.0293 | BL8: =AN8*$C$17+AO8 -> 0.0373 | BM8: =AR8*$C$17+AS8 -> 0.0781 | BN8: =AV8*$C$17+AW8 -> -0.36 | BO8: =AZ8*$C$17+BA8 -> 0.0653 | BP8: =BD8*$C$17+BE8 -> 0.397 | BR8: Mix 1 | BS8: =H8 -> Uracil | BT8: =AL8*$C$17+AM8 -> 5.96 | BU8: =AP8*$C$17+AQ8 -> 4.98 | BV8: =AT8*$C$17+AU8 -> 5.54 | BW8: =AX8*$C$17+AY8 -> 5.26 | BX8: =BB8*$C$17+BC8 -> 8.71 | BY8: =BF8*$C$17+BG8 -> 15 | CB8: MethanolC18 | CC8: MethanolPhenyl | CD8: MethanolC4 | CE8: AcetonitrileC18 | CF8: AcetonitrilePhenyl | CG8: AcetonitrileC4 | CI8: Mix 1 | CJ8: =$H8 -> Uracil | CK8: ='1'!D57 -> 0.08872035038 | CL8: ='1'!E57 -> 0.04819681922 | CM8: ='1'!F57 -> 0 | CN8: ='1'!G57 -> 0.007657944705 | CO8: ='1'!H57 -> 0.07963742178 | CP8: ='1'!I57 -> 0.1551369768 | CQ8: ='1'!J57 -> 0.1895275232 | CR8: ='1'!K57 -> 0.1250227384 | CS8: ='1'!L57 -> 0.03332250442 | CT8: ='1'!M57 -> 0.001351067666 | CU8: ='1'!N57 -> -2.412693289e-05 | CV8: ='1'!O57 -> -4.709599027e-05 | CW8: ='1'!P57 -> -4.606675947e-05 | CX8: ='1'!Q57 -> -8.076332146e-05 | CY8: ='1'!R57 -> -6.294555483e-06 | CZ8: ='1'!S57 -> -1.274784953e-05 | DB8: Mix 1 | DC8: =$H8 -> Uracil | DD8: =HLOOKUP($DD$7,$CJ$7:$CZ$48,2,FALSE) -> 0 | DF8: Mix 1 | DG8: =$H8 -> Uracil | DH8: =IF($C$4=2.7,'1'!D125,IF($C$4=4.5,'1'!G125,IF($C$4=7,'1'!J125,IF($C$4=9,'1'!M125,FALSE)))) -> 1.38 | DI8: =IF($C$4=2.7,'1'!E125,IF($C$4=4.5,'1'!H125,IF($C$4=7,'1'!K125,IF($C$4=9,'1'!N125,FALSE)))) -> 1.26 | DJ8: =IF($C$4=2.7,'1'!F125,IF($C$4=4.5,'1'!I125,IF($C$4=7,'1'!L125,IF($C$4=9,'1'!O125,FALSE)))) -> 1.35 | DL8: Mix 1 | DM8: =$H8 -> Uracil | DN8: =HLOOKUP($DN$7,$DG$7:$DJ$48,2,FALSE) -> 1.38 | DP8: Mix 1 | DQ8: =$H8 -> Uracil | DR8: 8.8 | DT8: =IF(DR8="",1,2) -> 2 | DV8: =calculation2!E86 -> Uracil
B9: UV cell volume | C9: =calculation2!E66 -> 13 | D9: µl | H9: Methylparaben | I9: =IF($C$4=2.7,'1'!D12,IF($C$4=4.5,'1'!AB12,IF($C$4=7,'1'!AZ12,IF($C$4=9,'1'!BX12,"FAUX")))) -> 2.06 | J9: =IF($C$4=2.7,'1'!E12,IF($C$4=4.5,'1'!AC12,IF($C$4=7,'1'!BA12,IF($C$4=9,'1'!BY12,"FAUX")))) -> 1.92 | K9: =IF($C$4=2.7,'1'!F12,IF($C$4=4.5,'1'!AD12,IF($C$4=7,'1'!BB12,IF($C$4=9,'1'!BZ12,"FAUX")))) -> 4.25 | L9: =IF($C$4=2.7,'1'!G12,IF($C$4=4.5,'1'!AE12,IF($C$4=7,'1'!BC12,IF($C$4=9,'1'!CA12,"FAUX")))) -> 4.84 | M9: =IF($C$4=2.7,'1'!H12,IF($C$4=4.5,'1'!AF12,IF($C$4=7,'1'!BD12,IF($C$4=9,'1'!CB12,"FAUX")))) -> 1.91 | N9: =IF($C$4=2.7,'1'!I12,IF($C$4=4.5,'1'!AG12,IF($C$4=7,'1'!BE12,IF($C$4=9,'1'!CC12,"FAUX")))) -> 1.67 | O9: =IF($C$4=2.7,'1'!J12,IF($C$4=4.5,'1'!AH12,IF($C$4=7,'1'!BF12,IF($C$4=9,'1'!CD12,"FAUX")))) -> 3.91 | P9: =IF($C$4=2.7,'1'!K12,IF($C$4=4.5,'1'!AI12,IF($C$4=7,'1'!BG12,IF($C$4=9,'1'!CE12,"FAUX")))) -> 4.16 | Q9: =IF($C$4=2.7,'1'!L12,IF($C$4=4.5,'1'!AJ12,IF($C$4=7,'1'!BH12,IF($C$4=9,'1'!CF12,"FAUX")))) -> 2.02 | R9: =IF($C$4=2.7,'1'!M12,IF($C$4=4.5,'1'!AK12,IF($C$4=7,'1'!BI12,IF($C$4=9,'1'!CG12,"FAUX")))) -> 1.81 | S9: =IF($C$4=2.7,'1'!N12,IF($C$4=4.5,'1'!AL12,IF($C$4=7,'1'!BJ12,IF($C$4=9,'1'!CH12,"FAUX")))) -> 4.23 | T9: =IF($C$4=2.7,'1'!O12,IF($C$4=4.5,'1'!AM12,IF($C$4=7,'1'!BK12,IF($C$4=9,'1'!CI12,"FAUX")))) -> 4.48 | U9: =IF($C$4=2.7,'1'!P12,IF($C$4=4.5,'1'!AN12,IF($C$4=7,'1'!BL12,IF($C$4=9,'1'!CJ12,"FAUX")))) -> 1.76 | V9: =IF($C$4=2.7,'1'!Q12,IF($C$4=4.5,'1'!AO12,IF($C$4=7,'1'!BM12,IF($C$4=9,'1'!CK12,"FAUX")))) -> 1.9 | W9: =IF($C$4=2.7,'1'!R12,IF($C$4=4.5,'1'!AP12,IF($C$4=7,'1'!BN12,IF($C$4=9,'1'!CL12,"FAUX")))) -> 5.4 | X9: =IF($C$4=2.7,'1'!S12,IF($C$4=4.5,'1'!AQ12,IF($C$4=7,'1'!BO12,IF($C$4=9,'1'!CM12,"FAUX")))) -> 7.5 | Y9: =IF($C$4=2.7,'1'!T12,IF($C$4=4.5,'1'!AR12,IF($C$4=7,'1'!BP12,IF($C$4=9,'1'!CN12,"FAUX")))) -> 1.66 | Z9: =IF($C$4=2.7,'1'!U12,IF($C$4=4.5,'1'!AS12,IF($C$4=7,'1'!BQ12,IF($C$4=9,'1'!CO12,"FAUX")))) -> 1.6 | AA9: =IF($C$4=2.7,'1'!V12,IF($C$4=4.5,'1'!AT12,IF($C$4=7,'1'!BR12,IF($C$4=9,'1'!CP12,"FAUX")))) -> 5.59 | AB9: =IF($C$4=2.7,'1'!W12,IF($C$4=4.5,'1'!AU12,IF($C$4=7,'1'!BS12,IF($C$4=9,'1'!CQ12,"FAUX")))) -> 6.48 | AC9: =IF($C$4=2.7,'1'!X12,IF($C$4=4.5,'1'!AV12,IF($C$4=7,'1'!BT12,IF($C$4=9,'1'!CR12,"FAUX")))) -> 1.7 | AD9: =IF($C$4=2.7,'1'!Y12,IF($C$4=4.5,'1'!AW12,IF($C$4=7,'1'!BU12,IF($C$4=9,'1'!CS12,"FAUX")))) -> 1.71 | AE9: =IF($C$4=2.7,'1'!Z12,IF($C$4=4.5,'1'!AX12,IF($C$4=7,'1'!BV12,IF($C$4=9,'1'!CT12,"FAUX")))) -> 5.24 | AF9: =IF($C$4=2.7,'1'!AA12,IF($C$4=4.5,'1'!AY12,IF($C$4=7,'1'!BW12,IF($C$4=9,'1'!CU12,"FAUX")))) -> 6.36 | AI9: =$H9 -> Methylparaben | AJ9: =SLOPE(I9:J9,$G$3:$G$4) -> -0.004666666667 | AK9: =INTERCEPT(I9:J9,$G$3:$G$4) -> 2.2 | AL9: =SLOPE(K9:L9,$G$3:$G$4) -> 0.01966666667 | AM9: =INTERCEPT(K9:L9,$G$3:$G$4) -> 3.66 | AN9: =SLOPE(M9:N9,$G$3:$G$4) -> -0.008 | AO9: =INTERCEPT(M9:N9,$G$3:$G$4) -> 2.15 | AP9: =SLOPE(O9:P9,$G$3:$G$4) -> 0.008333333333 | AQ9: =INTERCEPT(O9:P9,$G$3:$G$4) -> 3.66 | AR9: =SLOPE(Q9:R9,$G$3:$G$4) -> -0.007 | AS9: =INTERCEPT(Q9:R9,$G$3:$G$4) -> 2.23 | AT9: =SLOPE(S9:T9,$G$3:$G$4) -> 0.008333333333 | AU9: =INTERCEPT(S9:T9,$G$3:$G$4) -> 3.98 | AV9: =SLOPE(U9:V9,$G$3:$G$4) -> 0.004666666667 | AW9: =INTERCEPT(U9:V9,$G$3:$G$4) -> 1.62 | AX9: =SLOPE(W9:X9,$G$3:$G$4) -> 0.07 | AY9: =INTERCEPT(W9:X9,$G$3:$G$4) -> 3.3 | AZ9: =SLOPE(Y9:Z9,$G$3:$G$4) -> -0.002 | BA9: =INTERCEPT(Y9:Z9,$G$3:$G$4) -> 1.72 | BB9: =SLOPE(AA9:AB9,$G$3:$G$4) -> 0.02966666667 | BC9: =INTERCEPT(AA9:AB9,$G$3:$G$4) -> 4.7 | BD9: =SLOPE(AC9:AD9,$G$3:$G$4) -> 0.0003333333333 | BE9: =INTERCEPT(AC9:AD9,$G$3:$G$4) -> 1.69 | BF9: =SLOPE(AE9:AF9,$G$3:$G$4) -> 0.03733333333 | BG9: =INTERCEPT(AE9:AF9,$G$3:$G$4) -> 4.12 | BJ9: Methylparaben | BK9: 2.06 | BL9: 1.91 | BM9: 2.02 | BN9: 1.76 | BO9: 1.66 | BP9: 1.7 | BS9: Methylparaben | BT9: 4.25 | BU9: 3.91 | BV9: 4.23 | BW9: 5.4 | BX9: 5.59 | BY9: 5.24 | CA9: =$Q$56 -> Uracil | CB9: =VLOOKUP($Q$56,$BJ$8:$BP$48,2,FALSE) -> 0.0293 | CC9: =VLOOKUP($Q$56,$BJ$8:$BP$48,3,FALSE) -> 0.0373 | CD9: =VLOOKUP($Q$56,$BJ$8:$BP$48,4,FALSE) -> 0.0781 | CE9: =VLOOKUP($Q$56,$BJ$8:$BP$48,5,FALSE) -> -0.36 | CF9: =VLOOKUP($Q$56,$BJ$8:$BP$48,6,FALSE) -> 0.0653 | CG9: =VLOOKUP($Q$56,$BJ$8:$BP$48,7,FALSE) -> 0.397 | CJ9: =$H9 -> Methylparaben | CK9: ='1'!D58 -> 0.3260977651 | CL9: ='1'!E58 -> 0.3009621517 | CM9: ='1'!F58 -> 0.1625005423 | CN9: ='1'!G58 -> 0.1294062311 | CO9: ='1'!H58 -> 0.1835801128 | CP9: ='1'!I58 -> 0.2902427418 | CQ9: ='1'!J58 -> 0.3002924668 | CR9: ='1'!K58 -> 0.1892971961 | CS9: ='1'!L58 -> 0.07217608975 | CT9: ='1'!M58 -> 0.005921654436 | CU9: ='1'!N58 -> -0.0003984111079 | CV9: ='1'!O58 -> -0.0003984111079 | CW9: ='1'!P58 -> -0.0003984111079 | CX9: ='1'!Q58 -> -0.0003984111079 | CY9: ='1'!R58 -> -0.0003984111079 | CZ9: ='1'!S58 -> -0.0003984111079 | DC9: =$H9 -> Methylparaben | DD9: =HLOOKUP($DD$7,$CJ$7:$CZ$48,3,FALSE) -> 0.1625005423 | DG9: =$H9 -> Methylparaben | DH9: =IF($C$4=2.7,'1'!D126,IF($C$4=4.5,'1'!G126,IF($C$4=7,'1'!J126,IF($C$4=9,'1'!M126,FALSE)))) -> 1.07 | DI9: =IF($C$4=2.7,'1'!E126,IF($C$4=4.5,'1'!H126,IF($C$4=7,'1'!K126,IF($C$4=9,'1'!N126,FALSE)))) -> 1.04 | DJ9: =IF($C$4=2.7,'1'!F126,IF($C$4=4.5,'1'!I126,IF($C$4=7,'1'!L126,IF($C$4=9,'1'!O126,FALSE)))) -> 1.03 | DM9: =$H9 -> Methylparaben | DN9: =HLOOKUP($DN$7,$DG$7:$DJ$48,3,FALSE) -> 1.07 | DQ9: =$H9 -> Methylparaben | DR9: 8.5 | DT9: =IF(DR9="",1,2) -> 2 | DV9: Acide/basique | DW9: =VLOOKUP(DV8,DQ8:DT48,4,FALSE) -> 2
B10: Wavelength | C10: =calculation2!E67 -> 220 | D10: nm | H10: Ethylparaben | I10: =IF($C$4=2.7,'1'!D13,IF($C$4=4.5,'1'!AB13,IF($C$4=7,'1'!AZ13,IF($C$4=9,'1'!BX13,"FAUX")))) -> 2.67 | J10: =IF($C$4=2.7,'1'!E13,IF($C$4=4.5,'1'!AC13,IF($C$4=7,'1'!BA13,IF($C$4=9,'1'!BY13,"FAUX")))) -> 2.45 | K10: =IF($C$4=2.7,'1'!F13,IF($C$4=4.5,'1'!AD13,IF($C$4=7,'1'!BB13,IF($C$4=9,'1'!BZ13,"FAUX")))) -> 4.77 | L10: =IF($C$4=2.7,'1'!G13,IF($C$4=4.5,'1'!AE13,IF($C$4=7,'1'!BC13,IF($C$4=9,'1'!CA13,"FAUX")))) -> 4.96 | M10: =IF($C$4=2.7,'1'!H13,IF($C$4=4.5,'1'!AF13,IF($C$4=7,'1'!BD13,IF($C$4=9,'1'!CB13,"FAUX")))) -> 2.42 | N10: =IF($C$4=2.7,'1'!I13,IF($C$4=4.5,'1'!AG13,IF($C$4=7,'1'!BE13,IF($C$4=9,'1'!CC13,"FAUX")))) -> 2.15 | O10: =IF($C$4=2.7,'1'!J13,IF($C$4=4.5,'1'!AH13,IF($C$4=7,'1'!BF13,IF($C$4=9,'1'!CD13,"FAUX")))) -> 4.36 | P10: =IF($C$4=2.7,'1'!K13,IF($C$4=4.5,'1'!AI13,IF($C$4=7,'1'!BG13,IF($C$4=9,'1'!CE13,"FAUX")))) -> 4.47 | Q10: =IF($C$4=2.7,'1'!L13,IF($C$4=4.5,'1'!AJ13,IF($C$4=7,'1'!BH13,IF($C$4=9,'1'!CF13,"FAUX")))) -> 2.56 | R10: =IF($C$4=2.7,'1'!M13,IF($C$4=4.5,'1'!AK13,IF($C$4=7,'1'!BI13,IF($C$4=9,'1'!CG13,"FAUX")))) -> 2.33 | S10: =IF($C$4=2.7,'1'!N13,IF($C$4=4.5,'1'!AL13,IF($C$4=7,'1'!BJ13,IF($C$4=9,'1'!CH13,"FAUX")))) -> 4.69 | T10: =IF($C$4=2.7,'1'!O13,IF($C$4=4.5,'1'!AM13,IF($C$4=7,'1'!BK13,IF($C$4=9,'1'!CI13,"FAUX")))) -> 4.79 | U10: =IF($C$4=2.7,'1'!P13,IF($C$4=4.5,'1'!AN13,IF($C$4=7,'1'!BL13,IF($C$4=9,'1'!CJ13,"FAUX")))) -> 2.1 | V10: =IF($C$4=2.7,'1'!Q13,IF($C$4=4.5,'1'!AO13,IF($C$4=7,'1'!BM13,IF($C$4=9,'1'!CK13,"FAUX")))) -> 2.28 | W10: =IF($C$4=2.7,'1'!R13,IF($C$4=4.5,'1'!AP13,IF($C$4=7,'1'!BN13,IF($C$4=9,'1'!CL13,"FAUX")))) -> 5.17 | X10: =IF($C$4=2.7,'1'!S13,IF($C$4=4.5,'1'!AQ13,IF($C$4=7,'1'!BO13,IF($C$4=9,'1'!CM13,"FAUX")))) -> 6.77 | Y10: =IF($C$4=2.7,'1'!T13,IF($C$4=4.5,'1'!AR13,IF($C$4=7,'1'!BP13,IF($C$4=9,'1'!CN13,"FAUX")))) -> 2 | Z10: =IF($C$4=2.7,'1'!U13,IF($C$4=4.5,'1'!AS13,IF($C$4=7,'1'!BQ13,IF($C$4=9,'1'!CO13,"FAUX")))) -> 1.96 | AA10: =IF($C$4=2.7,'1'!V13,IF($C$4=4.5,'1'!AT13,IF($C$4=7,'1'!BR13,IF($C$4=9,'1'!CP13,"FAUX")))) -> 5.48 | AB10: =IF($C$4=2.7,'1'!W13,IF($C$4=4.5,'1'!AU13,IF($C$4=7,'1'!BS13,IF($C$4=9,'1'!CQ13,"FAUX")))) -> 6.21 | AC10: =IF($C$4=2.7,'1'!X13,IF($C$4=4.5,'1'!AV13,IF($C$4=7,'1'!BT13,IF($C$4=9,'1'!CR13,"FAUX")))) -> 2.05 | AD10: =IF($C$4=2.7,'1'!Y13,IF($C$4=4.5,'1'!AW13,IF($C$4=7,'1'!BU13,IF($C$4=9,'1'!CS13,"FAUX")))) -> 2.03 | AE10: =IF($C$4=2.7,'1'!Z13,IF($C$4=4.5,'1'!AX13,IF($C$4=7,'1'!BV13,IF($C$4=9,'1'!CT13,"FAUX")))) -> 5.15 | AF10: =IF($C$4=2.7,'1'!AA13,IF($C$4=4.5,'1'!AY13,IF($C$4=7,'1'!BW13,IF($C$4=9,'1'!CU13,"FAUX")))) -> 5.8 | AI10: Ethylparaben | AJ10: -0.007333333333 | AK10: 2.89 | AL10: 0.006333333333 | AM10: 4.58 | AN10: -0.009 | AO10: 2.69 | AP10: 0.003666666667 | AQ10: 4.25 | AR10: -0.007666666667 | AS10: 2.79 | AT10: 0.003333333333 | AU10: 4.59 | AV10: 0.006 | AW10: 1.92 | AX10: 0.05333333333 | AY10: 3.57 | AZ10: -0.001333333333 | BA10: 2.04 | BB10: 0.02433333333 | BC10: 4.75 | BD10: -0.0006666666667 | BE10: 2.07 | BF10: 0.02166666667 | BG10: 4.5 | BJ10: Ethylparaben | BK10: 2.67 | BL10: 2.42 | BM10: 2.56 | BN10: 2.1 | BO10: 2 | BP10: 2.05 | BS10: Ethylparaben | BT10: 4.77 | BU10: 4.36 | BV10: 4.69 | BW10: 5.17 | BX10: 5.48 | BY10: 5.15 | CA10: =$R$56 -> Methylparaben | CB10: =VLOOKUP($R$56,$BJ$8:$BP$48,2,FALSE) -> 2.06 | CC10: =VLOOKUP($R$56,$BJ$8:$BP$48,3,FALSE) -> 1.91 | CD10: =VLOOKUP($R$56,$BJ$8:$BP$48,4,FALSE) -> 2.02 | CE10: =VLOOKUP($R$56,$BJ$8:$BP$48,5,FALSE) -> 1.76 | CF10: =VLOOKUP($R$56,$BJ$8:$BP$48,6,FALSE) -> 1.66 | CG10: =VLOOKUP($R$56,$BJ$8:$BP$48,7,FALSE) -> 1.7 | CJ10: Ethylparaben | CK10: ='1'!D59 -> 0.3015004081 | CL10: ='1'!E59 -> 0.289242684 | CM10: ='1'!F59 -> 0.1787730178 | CN10: ='1'!G59 -> 0.1473754019 | CO10: ='1'!H59 -> 0.1883177078 | CP10: ='1'!I59 -> 0.2845589389 | CQ10: ='1'!J59 -> 0.2924841532 | CR10: ='1'!K59 -> 0.1834890989 | CS10: ='1'!L59 -> 0.06904627336 | CT10: ='1'!M59 -> 0.005240934599 | CU10: ='1'!N59 -> 0 | CV10: ='1'!O59 -> 0 | CW10: ='1'!P59 -> 0 | CX10: ='1'!Q59 -> 0 | CY10: ='1'!R59 -> 0 | CZ10: ='1'!S59 -> 0 | DC10: Ethylparaben | DD10: =HLOOKUP($DD$7,$CJ$7:$CZ$48,4,FALSE) -> 0.1787730178 | DG10: Ethylparaben | DH10: =IF($C$4=2.7,'1'!D127,IF($C$4=4.5,'1'!G127,IF($C$4=7,'1'!J127,IF($C$4=9,'1'!M127,FALSE)))) -> 1.08 | DI10: =IF($C$4=2.7,'1'!E127,IF($C$4=4.5,'1'!H127,IF($C$4=7,'1'!K127,IF($C$4=9,'1'!N127,FALSE)))) -> 1.04 | DJ10: =IF($C$4=2.7,'1'!F127,IF($C$4=4.5,'1'!I127,IF($C$4=7,'1'!L127,IF($C$4=9,'1'!O127,FALSE)))) -> 1.05 | DM10: Ethylparaben | DN10: =HLOOKUP($DN$7,$DG$7:$DJ$48,4,FALSE) -> 1.08 | DQ10: Ethylparaben | DR10: 8.5 | DT10: 2 | DV10: pKa acide | DW10: =VLOOKUP(DV8,DQ8:DT48,2,FALSE) -> 8.8
B11: Time constant | C11: =calculation2!E68 -> 1000 | D11: ms | H11: Propylparaben | I11: =IF($C$4=2.7,'1'!D14,IF($C$4=4.5,'1'!AB14,IF($C$4=7,'1'!AZ14,IF($C$4=9,'1'!BX14,"FAUX")))) -> 3.16 | J11: =IF($C$4=2.7,'1'!E14,IF($C$4=4.5,'1'!AC14,IF($C$4=7,'1'!BA14,IF($C$4=9,'1'!BY14,"FAUX")))) -> 3.26 | K11: =IF($C$4=2.7,'1'!F14,IF($C$4=4.5,'1'!AD14,IF($C$4=7,'1'!BB14,IF($C$4=9,'1'!BZ14,"FAUX")))) -> 4.95 | L11: =IF($C$4=2.7,'1'!G14,IF($C$4=4.5,'1'!AE14,IF($C$4=7,'1'!BC14,IF($C$4=9,'1'!CA14,"FAUX")))) -> 5.82 | M11: =IF($C$4=2.7,'1'!H14,IF($C$4=4.5,'1'!AF14,IF($C$4=7,'1'!BD14,IF($C$4=9,'1'!CB14,"FAUX")))) -> 2.94 | N11: =IF($C$4=2.7,'1'!I14,IF($C$4=4.5,'1'!AG14,IF($C$4=7,'1'!BE14,IF($C$4=9,'1'!CC14,"FAUX")))) -> 2.66 | O11: =IF($C$4=2.7,'1'!J14,IF($C$4=4.5,'1'!AH14,IF($C$4=7,'1'!BF14,IF($C$4=9,'1'!CD14,"FAUX")))) -> 4.8 | P11: =IF($C$4=2.7,'1'!K14,IF($C$4=4.5,'1'!AI14,IF($C$4=7,'1'!BG14,IF($C$4=9,'1'!CE14,"FAUX")))) -> 4.84 | Q11: =IF($C$4=2.7,'1'!L14,IF($C$4=4.5,'1'!AJ14,IF($C$4=7,'1'!BH14,IF($C$4=9,'1'!CF14,"FAUX")))) -> 3.1 | R11: =IF($C$4=2.7,'1'!M14,IF($C$4=4.5,'1'!AK14,IF($C$4=7,'1'!BI14,IF($C$4=9,'1'!CG14,"FAUX")))) -> 2.86 | S11: =IF($C$4=2.7,'1'!N14,IF($C$4=4.5,'1'!AL14,IF($C$4=7,'1'!BJ14,IF($C$4=9,'1'!CH14,"FAUX")))) -> 5.1 | T11: =IF($C$4=2.7,'1'!O14,IF($C$4=4.5,'1'!AM14,IF($C$4=7,'1'!BK14,IF($C$4=9,'1'!CI14,"FAUX")))) -> 5.16 | U11: =IF($C$4=2.7,'1'!P14,IF($C$4=4.5,'1'!AN14,IF($C$4=7,'1'!BL14,IF($C$4=9,'1'!CJ14,"FAUX")))) -> 2.49 | V11: =IF($C$4=2.7,'1'!Q14,IF($C$4=4.5,'1'!AO14,IF($C$4=7,'1'!BM14,IF($C$4=9,'1'!CK14,"FAUX")))) -> 2.64 | W11: =IF($C$4=2.7,'1'!R14,IF($C$4=4.5,'1'!AP14,IF($C$4=7,'1'!BN14,IF($C$4=9,'1'!CL14,"FAUX")))) -> 5.2 | X11: =IF($C$4=2.7,'1'!S14,IF($C$4=4.5,'1'!AQ14,IF($C$4=7,'1'!BO14,IF($C$4=9,'1'!CM14,"FAUX")))) -> 6.33 | Y11: =IF($C$4=2.7,'1'!T14,IF($C$4=4.5,'1'!AR14,IF($C$4=7,'1'!BP14,IF($C$4=9,'1'!CN14,"FAUX")))) -> 2.33 | Z11: =IF($C$4=2.7,'1'!U14,IF($C$4=4.5,'1'!AS14,IF($C$4=7,'1'!BQ14,IF($C$4=9,'1'!CO14,"FAUX")))) -> 2.31 | AA11: =IF($C$4=2.7,'1'!V14,IF($C$4=4.5,'1'!AT14,IF($C$4=7,'1'!BR14,IF($C$4=9,'1'!CP14,"FAUX")))) -> 5.43 | AB11: =IF($C$4=2.7,'1'!W14,IF($C$4=4.5,'1'!AU14,IF($C$4=7,'1'!BS14,IF($C$4=9,'1'!CQ14,"FAUX")))) -> 6.02 | AC11: =IF($C$4=2.7,'1'!X14,IF($C$4=4.5,'1'!AV14,IF($C$4=7,'1'!BT14,IF($C$4=9,'1'!CR14,"FAUX")))) -> 2.43 | AD11: =IF($C$4=2.7,'1'!Y14,IF($C$4=4.5,'1'!AW14,IF($C$4=7,'1'!BU14,IF($C$4=9,'1'!CS14,"FAUX")))) -> 2.37 | AE11: =IF($C$4=2.7,'1'!Z14,IF($C$4=4.5,'1'!AX14,IF($C$4=7,'1'!BV14,IF($C$4=9,'1'!CT14,"FAUX")))) -> 5.27 | AF11: =IF($C$4=2.7,'1'!AA14,IF($C$4=4.5,'1'!AY14,IF($C$4=7,'1'!BW14,IF($C$4=9,'1'!CU14,"FAUX")))) -> 5.62 | AI11: Propylparaben | AJ11: 0.003333333333 | AK11: 3.06 | AL11: 0.029 | AM11: 4.08 | AN11: -0.009333333333 | AO11: 3.22 | AP11: 0.001333333333 | AQ11: 4.76 | AR11: -0.008 | AS11: 3.34 | AT11: 0.002 | AU11: 5.04 | AV11: 0.005 | AW11: 2.34 | AX11: 0.03766666667 | AY11: 4.07 | AZ11: -0.0006666666667 | BA11: 2.35 | BB11: 0.01966666667 | BC11: 4.84 | BD11: -0.002 | BE11: 2.49 | BF11: 0.01166666667 | BG11: 4.92 | BJ11: Propylparaben | BK11: 3.16 | BL11: 2.94 | BM11: 3.1 | BN11: 2.49 | BO11: 2.33 | BP11: 2.43 | BS11: Propylparaben | BT11: 4.95 | BU11: 4.8 | BV11: 5.1 | BW11: 5.2 | BX11: 5.43 | BY11: 5.27 | CA11: =$S$56 -> Ethylparaben | CB11: =VLOOKUP($S$56,$BJ$8:$BP$48,2,FALSE) -> 2.67 | CC11: =VLOOKUP($S$56,$BJ$8:$BP$48,3,FALSE) -> 2.42 | CD11: =VLOOKUP($S$56,$BJ$8:$BP$48,4,FALSE) -> 2.56 | CE11: =VLOOKUP($S$56,$BJ$8:$BP$48,5,FALSE) -> 2.1 | CF11: =VLOOKUP($S$56,$BJ$8:$BP$48,6,FALSE) -> 2 | CG11: =VLOOKUP($S$56,$BJ$8:$BP$48,7,FALSE) -> 2.05 | CJ11: Propylparaben | CK11: ='1'!D60 -> 0.2525449979 | CL11: ='1'!E60 -> 0.2647808032 | CM11: ='1'!F60 -> 0.1892171151 | CN11: ='1'!G60 -> 0.1604715642 | CO11: ='1'!H60 -> 0.1834312777 | CP11: ='1'!I60 -> 0.2627308791 | CQ11: ='1'!J60 -> 0.2671507824 | CR11: ='1'!K60 -> 0.1660172794 | CS11: ='1'!L60 -> 0.06127615529 | CT11: ='1'!M60 -> 0.004187547815 | CU11: ='1'!N60 -> 0 | CV11: ='1'!O60 -> 0 | CW11: ='1'!P60 -> 0 | CX11: ='1'!Q60 -> 0 | CY11: ='1'!R60 -> 0 | CZ11: ='1'!S60 -> 0 | DC11: Propylparaben | DD11: =HLOOKUP($DD$7,$CJ$7:$CZ$48,5,FALSE) -> 0.1892171151 | DG11: Propylparaben | DH11: =IF($C$4=2.7,'1'!D128,IF($C$4=4.5,'1'!G128,IF($C$4=7,'1'!J128,IF($C$4=9,'1'!M128,FALSE)))) -> 1.05 | DI11: =IF($C$4=2.7,'1'!E128,IF($C$4=4.5,'1'!H128,IF($C$4=7,'1'!K128,IF($C$4=9,'1'!N128,FALSE)))) -> 1.02 | DJ11: =IF($C$4=2.7,'1'!F128,IF($C$4=4.5,'1'!I128,IF($C$4=7,'1'!L128,IF($C$4=9,'1'!O128,FALSE)))) -> 1.02 | DM11: Propylparaben | DN11: =HLOOKUP($DN$7,$DG$7:$DJ$48,5,FALSE) -> 1.05 | DQ11: Propylparaben | DR11: 8.5 | DT11: 2 | DV11: pka basique | DW11: =VLOOKUP(DV8,DQ8:DT48,3,FALSE) -> 0
B12: Acquisition rate | C12: =calculation2!E69 -> 2 | D12: Hz | H12: Butylparaben | I12: =IF($C$4=2.7,'1'!D15,IF($C$4=4.5,'1'!AB15,IF($C$4=7,'1'!AZ15,IF($C$4=9,'1'!BX15,"FAUX")))) -> 3.73 | J12: =IF($C$4=2.7,'1'!E15,IF($C$4=4.5,'1'!AC15,IF($C$4=7,'1'!BA15,IF($C$4=9,'1'!BY15,"FAUX")))) -> 3.58 | K12: =IF($C$4=2.7,'1'!F15,IF($C$4=4.5,'1'!AD15,IF($C$4=7,'1'!BB15,IF($C$4=9,'1'!BZ15,"FAUX")))) -> 5.36 | L12: =IF($C$4=2.7,'1'!G15,IF($C$4=4.5,'1'!AE15,IF($C$4=7,'1'!BC15,IF($C$4=9,'1'!CA15,"FAUX")))) -> 5.63 | M12: =IF($C$4=2.7,'1'!H15,IF($C$4=4.5,'1'!AF15,IF($C$4=7,'1'!BD15,IF($C$4=9,'1'!CB15,"FAUX")))) -> 3.45 | N12: =IF($C$4=2.7,'1'!I15,IF($C$4=4.5,'1'!AG15,IF($C$4=7,'1'!BE15,IF($C$4=9,'1'!CC15,"FAUX")))) -> 3.17 | O12: =IF($C$4=2.7,'1'!J15,IF($C$4=4.5,'1'!AH15,IF($C$4=7,'1'!BF15,IF($C$4=9,'1'!CD15,"FAUX")))) -> 5.19 | P12: =IF($C$4=2.7,'1'!K15,IF($C$4=4.5,'1'!AI15,IF($C$4=7,'1'!BG15,IF($C$4=9,'1'!CE15,"FAUX")))) -> 5.26 | Q12: =IF($C$4=2.7,'1'!L15,IF($C$4=4.5,'1'!AJ15,IF($C$4=7,'1'!BH15,IF($C$4=9,'1'!CF15,"FAUX")))) -> 3.59 | R12: =IF($C$4=2.7,'1'!M15,IF($C$4=4.5,'1'!AK15,IF($C$4=7,'1'!BI15,IF($C$4=9,'1'!CG15,"FAUX")))) -> 3.33 | S12: =IF($C$4=2.7,'1'!N15,IF($C$4=4.5,'1'!AL15,IF($C$4=7,'1'!BJ15,IF($C$4=9,'1'!CH15,"FAUX")))) -> 5.45 | T12: =IF($C$4=2.7,'1'!O15,IF($C$4=4.5,'1'!AM15,IF($C$4=7,'1'!BK15,IF($C$4=9,'1'!CI15,"FAUX")))) -> 5.44 | U12: =IF($C$4=2.7,'1'!P15,IF($C$4=4.5,'1'!AN15,IF($C$4=7,'1'!BL15,IF($C$4=9,'1'!CJ15,"FAUX")))) -> 2.72 | V12: =IF($C$4=2.7,'1'!Q15,IF($C$4=4.5,'1'!AO15,IF($C$4=7,'1'!BM15,IF($C$4=9,'1'!CK15,"FAUX")))) -> 3.02 | W12: =IF($C$4=2.7,'1'!R15,IF($C$4=4.5,'1'!AP15,IF($C$4=7,'1'!BN15,IF($C$4=9,'1'!CL15,"FAUX")))) -> 4.92 | X12: =IF($C$4=2.7,'1'!S15,IF($C$4=4.5,'1'!AQ15,IF($C$4=7,'1'!BO15,IF($C$4=9,'1'!CM15,"FAUX")))) -> 6.24 | Y12: =IF($C$4=2.7,'1'!T15,IF($C$4=4.5,'1'!AR15,IF($C$4=7,'1'!BP15,IF($C$4=9,'1'!CN15,"FAUX")))) -> 2.72 | Z12: =IF($C$4=2.7,'1'!U15,IF($C$4=4.5,'1'!AS15,IF($C$4=7,'1'!BQ15,IF($C$4=9,'1'!CO15,"FAUX")))) -> 2.67 | AA12: =IF($C$4=2.7,'1'!V15,IF($C$4=4.5,'1'!AT15,IF($C$4=7,'1'!BR15,IF($C$4=9,'1'!CP15,"FAUX")))) -> 5.68 | AB12: =IF($C$4=2.7,'1'!W15,IF($C$4=4.5,'1'!AU15,IF($C$4=7,'1'!BS15,IF($C$4=9,'1'!CQ15,"FAUX")))) -> 6.1 | AC12: =IF($C$4=2.7,'1'!X15,IF($C$4=4.5,'1'!AV15,IF($C$4=7,'1'!BT15,IF($C$4=9,'1'!CR15,"FAUX")))) -> 2.73 | AD12: =IF($C$4=2.7,'1'!Y15,IF($C$4=4.5,'1'!AW15,IF($C$4=7,'1'!BU15,IF($C$4=9,'1'!CS15,"FAUX")))) -> 2.76 | AE12: =IF($C$4=2.7,'1'!Z15,IF($C$4=4.5,'1'!AX15,IF($C$4=7,'1'!BV15,IF($C$4=9,'1'!CT15,"FAUX")))) -> 5.23 | AF12: =IF($C$4=2.7,'1'!AA15,IF($C$4=4.5,'1'!AY15,IF($C$4=7,'1'!BW15,IF($C$4=9,'1'!CU15,"FAUX")))) -> 5.79 | AI12: Butylparaben | AJ12: -0.005 | AK12: 3.88 | AL12: 0.009 | AM12: 5.09 | AN12: -0.009333333333 | AO12: 3.73 | AP12: 0.002333333333 | AQ12: 5.12 | AR12: -0.008666666667 | AS12: 3.85 | AT12: -0.0003333333333 | AU12: 5.46 | AV12: 0.01 | AW12: 2.42 | AX12: 0.044 | AY12: 3.6 | AZ12: -0.001666666667 | BA12: 2.77 | BB12: 0.014 | BC12: 5.26 | BD12: 0.001 | BE12: 2.7 | BF12: 0.01866666667 | BG12: 4.67 | BJ12: Butylparaben | BK12: 3.73 | BL12: 3.45 | BM12: 3.59 | BN12: 2.72 | BO12: 2.72 | BP12: 2.73 | BS12: Butylparaben | BT12: 5.36 | BU12: 5.19 | BV12: 5.45 | BW12: 4.92 | BX12: 5.68 | BY12: 5.23 | CA12: =$T$56 -> Propylparaben | CB12: =VLOOKUP($T$56,$BJ$8:$BP$48,2,FALSE) -> 3.16 | CC12: =VLOOKUP($T$56,$BJ$8:$BP$48,3,FALSE) -> 2.94 | CD12: =VLOOKUP($T$56,$BJ$8:$BP$48,4,FALSE) -> 3.1 | CE12: =VLOOKUP($T$56,$BJ$8:$BP$48,5,FALSE) -> 2.49 | CF12: =VLOOKUP($T$56,$BJ$8:$BP$48,6,FALSE) -> 2.33 | CG12: =VLOOKUP($T$56,$BJ$8:$BP$48,7,FALSE) -> 2.43 | CJ12: Butylparaben | CK12: ='1'!D61 -> 0.1572091937 | CL12: ='1'!E61 -> 0.2114921274 | CM12: ='1'!F61 -> 0.1891214783 | CN12: ='1'!G61 -> 0.163918232 | CO12: ='1'!H61 -> 0.1595070914 | CP12: ='1'!I61 -> 0.2071829713 | CQ12: ='1'!J61 -> 0.2058450763 | CR12: ='1'!K61 -> 0.1264241645 | CS12: ='1'!L61 -> 0.04558949236 | CT12: ='1'!M61 -> 0.00262761996 | CU12: ='1'!N61 -> 0 | CV12: ='1'!O61 -> 0 | CW12: ='1'!P61 -> 0 | CX12: ='1'!Q61 -> 0 | CY12: ='1'!R61 -> 0 | CZ12: ='1'!S61 -> 0 | DC12: Butylparaben | DD12: =HLOOKUP($DD$7,$CJ$7:$CZ$48,6,FALSE) -> 0.1891214783 | DG12: Butylparaben | DH12: =IF($C$4=2.7,'1'!D129,IF($C$4=4.5,'1'!G129,IF($C$4=7,'1'!J129,IF($C$4=9,'1'!M129,FALSE)))) -> 1.03 | DI12: =IF($C$4=2.7,'1'!E129,IF($C$4=4.5,'1'!H129,IF($C$4=7,'1'!K129,IF($C$4=9,'1'!N129,FALSE)))) -> 1.06 | DJ12: =IF($C$4=2.7,'1'!F129,IF($C$4=4.5,'1'!I129,IF($C$4=7,'1'!L129,IF($C$4=9,'1'!O129,FALSE)))) -> 1.11 | DM12: Butylparaben | DN12: =HLOOKUP($DN$7,$DG$7:$DJ$48,6,FALSE) -> 1.03 | DQ12: Butylparaben | DR12: 8.5 | DT12: 2 | DV12: pka | DW12: =MAX(DW10:DW11) -> 8.8
B13: Lcol | C13: =calculation2!E70 -> 150 | D13: mm | G13: Mix 2 | H13: Aspirin | I13: =IF($C$4=2.7,'1'!D16,IF($C$4=4.5,'1'!AB16,IF($C$4=7,'1'!AZ16,IF($C$4=9,'1'!BX16,"FAUX")))) -> 0.925 | J13: =IF($C$4=2.7,'1'!E16,IF($C$4=4.5,'1'!AC16,IF($C$4=7,'1'!BA16,IF($C$4=9,'1'!BY16,"FAUX")))) -> 0.907 | K13: =IF($C$4=2.7,'1'!F16,IF($C$4=4.5,'1'!AD16,IF($C$4=7,'1'!BB16,IF($C$4=9,'1'!BZ16,"FAUX")))) -> 5.4 | L13: =IF($C$4=2.7,'1'!G16,IF($C$4=4.5,'1'!AE16,IF($C$4=7,'1'!BC16,IF($C$4=9,'1'!CA16,"FAUX")))) -> 7.27 | M13: =IF($C$4=2.7,'1'!H16,IF($C$4=4.5,'1'!AF16,IF($C$4=7,'1'!BD16,IF($C$4=9,'1'!CB16,"FAUX")))) -> 0.661 | N13: =IF($C$4=2.7,'1'!I16,IF($C$4=4.5,'1'!AG16,IF($C$4=7,'1'!BE16,IF($C$4=9,'1'!CC16,"FAUX")))) -> 0.515 | O13: =IF($C$4=2.7,'1'!J16,IF($C$4=4.5,'1'!AH16,IF($C$4=7,'1'!BF16,IF($C$4=9,'1'!CD16,"FAUX")))) -> 3.91 | P13: =IF($C$4=2.7,'1'!K16,IF($C$4=4.5,'1'!AI16,IF($C$4=7,'1'!BG16,IF($C$4=9,'1'!CE16,"FAUX")))) -> 3.56 | Q13: =IF($C$4=2.7,'1'!L16,IF($C$4=4.5,'1'!AJ16,IF($C$4=7,'1'!BH16,IF($C$4=9,'1'!CF16,"FAUX")))) -> 0.892 | R13: =IF($C$4=2.7,'1'!M16,IF($C$4=4.5,'1'!AK16,IF($C$4=7,'1'!BI16,IF($C$4=9,'1'!CG16,"FAUX")))) -> 0.917 | S13: =IF($C$4=2.7,'1'!N16,IF($C$4=4.5,'1'!AL16,IF($C$4=7,'1'!BJ16,IF($C$4=9,'1'!CH16,"FAUX")))) -> 4.59 | T13: =IF($C$4=2.7,'1'!O16,IF($C$4=4.5,'1'!AM16,IF($C$4=7,'1'!BK16,IF($C$4=9,'1'!CI16,"FAUX")))) -> 6.88 | U13: =IF($C$4=2.7,'1'!P16,IF($C$4=4.5,'1'!AN16,IF($C$4=7,'1'!BL16,IF($C$4=9,'1'!CJ16,"FAUX")))) -> 0.943 | V13: =IF($C$4=2.7,'1'!Q16,IF($C$4=4.5,'1'!AO16,IF($C$4=7,'1'!BM16,IF($C$4=9,'1'!CK16,"FAUX")))) -> 1.46 | W13: =IF($C$4=2.7,'1'!R16,IF($C$4=4.5,'1'!AP16,IF($C$4=7,'1'!BN16,IF($C$4=9,'1'!CL16,"FAUX")))) -> 11.8 | X13: =IF($C$4=2.7,'1'!S16,IF($C$4=4.5,'1'!AQ16,IF($C$4=7,'1'!BO16,IF($C$4=9,'1'!CM16,"FAUX")))) -> 23.6 | Y13: =IF($C$4=2.7,'1'!T16,IF($C$4=4.5,'1'!AR16,IF($C$4=7,'1'!BP16,IF($C$4=9,'1'!CN16,"FAUX")))) -> 0.505 | Z13: =IF($C$4=2.7,'1'!U16,IF($C$4=4.5,'1'!AS16,IF($C$4=7,'1'!BQ16,IF($C$4=9,'1'!CO16,"FAUX")))) -> 0.146 | AA13: =IF($C$4=2.7,'1'!V16,IF($C$4=4.5,'1'!AT16,IF($C$4=7,'1'!BR16,IF($C$4=9,'1'!CP16,"FAUX")))) -> 5.43 | AB13: =IF($C$4=2.7,'1'!W16,IF($C$4=4.5,'1'!AU16,IF($C$4=7,'1'!BS16,IF($C$4=9,'1'!CQ16,"FAUX")))) -> 0.223 | AC13: =IF($C$4=2.7,'1'!X16,IF($C$4=4.5,'1'!AV16,IF($C$4=7,'1'!BT16,IF($C$4=9,'1'!CR16,"FAUX")))) -> 0.899 | AD13: =IF($C$4=2.7,'1'!Y16,IF($C$4=4.5,'1'!AW16,IF($C$4=7,'1'!BU16,IF($C$4=9,'1'!CS16,"FAUX")))) -> 1.09 | AE13: =IF($C$4=2.7,'1'!Z16,IF($C$4=4.5,'1'!AX16,IF($C$4=7,'1'!BV16,IF($C$4=9,'1'!CT16,"FAUX")))) -> 9.99 | AF13: =IF($C$4=2.7,'1'!AA16,IF($C$4=4.5,'1'!AY16,IF($C$4=7,'1'!BW16,IF($C$4=9,'1'!CU16,"FAUX")))) -> 15 | AH13: Mix 2 | AI13: Aspirin | AJ13: -0.0006 | AK13: 0.943 | AL13: 0.06233333333 | AM13: 3.53 | AN13: -0.004866666667 | AO13: 0.807 | AP13: -0.01166666667 | AQ13: 4.26 | AR13: 0.0008333333333 | AS13: 0.867 | AT13: 0.07633333333 | AU13: 2.3 | AV13: 0.01723333333 | AW13: 0.426 | AX13: 0.3933333333 | AY13: 3.552713679e-15 | AZ13: -0.01196666667 | BA13: 0.864 | BB13: -0.1735666667 | BC13: 10.637 | BD13: 0.006366666667 | BE13: 0.708 | BF13: 0.167 | BG13: 4.98 | BI13: Mix 2 | BJ13: Aspirin | BK13: 0.925 | BL13: 0.661 | BM13: 0.892 | BN13: 0.943 | BO13: 0.505 | BP13: 0.899 | BR13: Mix 2 | BS13: Aspirin | BT13: 5.4 | BU13: 3.91 | BV13: 4.59 | BW13: 11.8 | BX13: 5.43 | BY13: 9.99 | CA13: =$U$56 -> Butylparaben | CB13: =VLOOKUP($U$56,$BJ$8:$BP$48,2,FALSE) -> 3.73 | CC13: =VLOOKUP($U$56,$BJ$8:$BP$48,3,FALSE) -> 3.45 | CD13: =VLOOKUP($U$56,$BJ$8:$BP$48,4,FALSE) -> 3.59 | CE13: =VLOOKUP($U$56,$BJ$8:$BP$48,5,FALSE) -> 2.72 | CF13: =VLOOKUP($U$56,$BJ$8:$BP$48,6,FALSE) -> 2.72 | CG13: =VLOOKUP($U$56,$BJ$8:$BP$48,7,FALSE) -> 2.73 | CI13: Mix 2 | CJ13: Aspirin | CK13: ='1'!D62 -> 0.3854390008 | CL13: ='1'!E62 -> 0.1633423987 | CM13: ='1'!F62 -> 0.2228509017 | CN13: ='1'!G62 -> 0.2160256861 | CO13: ='1'!H62 -> 0.09754894302 | CP13: ='1'!I62 -> 0.02277494749 | CQ13: ='1'!J62 -> 0.01280066735 | CR13: ='1'!K62 -> 0.01865622439 | CS13: ='1'!L62 -> 0.01957224938 | CT13: ='1'!M62 -> 0.007581095878 | CU13: ='1'!N62 -> 0 | CV13: ='1'!O62 -> 0 | CW13: ='1'!P62 -> 0 | CX13: ='1'!Q62 -> 0 | CY13: ='1'!R62 -> 0 | CZ13: ='1'!S62 -> 0 | DB13: Mix 2 | DC13: Aspirin | DD13: =HLOOKUP($DD$7,$CJ$7:$CZ$48,7,FALSE) -> 0.2228509017 | DF13: Mix 2 | DG13: Aspirin | DH13: =IF($C$4=2.7,'1'!D130,IF($C$4=4.5,'1'!G130,IF($C$4=7,'1'!J130,IF($C$4=9,'1'!M130,FALSE)))) -> 1.2 | DI13: =IF($C$4=2.7,'1'!E130,IF($C$4=4.5,'1'!H130,IF($C$4=7,'1'!K130,IF($C$4=9,'1'!N130,FALSE)))) -> 1.16 | DJ13: =IF($C$4=2.7,'1'!F130,IF($C$4=4.5,'1'!I130,IF($C$4=7,'1'!L130,IF($C$4=9,'1'!O130,FALSE)))) -> 1.17 | DL13: Mix 2 | DM13: Aspirin | DN13: =HLOOKUP($DN$7,$DG$7:$DJ$48,7,FALSE) -> 1.2 | DP13: Mix 2 | DQ13: Aspirin | DR13: 3.41 | DT13: 2
B14: dc col | C14: =calculation2!E71 -> 4.6 | D14: mm | H14: Salicylic acid | I14: =IF($C$4=2.7,'1'!D17,IF($C$4=4.5,'1'!AB17,IF($C$4=7,'1'!AZ17,IF($C$4=9,'1'!BX17,"FAUX")))) -> 0.955 | J14: =IF($C$4=2.7,'1'!E17,IF($C$4=4.5,'1'!AC17,IF($C$4=7,'1'!BA17,IF($C$4=9,'1'!BY17,"FAUX")))) -> 0.798 | K14: =IF($C$4=2.7,'1'!F17,IF($C$4=4.5,'1'!AD17,IF($C$4=7,'1'!BB17,IF($C$4=9,'1'!BZ17,"FAUX")))) -> 3.78 | L14: =IF($C$4=2.7,'1'!G17,IF($C$4=4.5,'1'!AE17,IF($C$4=7,'1'!BC17,IF($C$4=9,'1'!CA17,"FAUX")))) -> 4.54 | M14: =IF($C$4=2.7,'1'!H17,IF($C$4=4.5,'1'!AF17,IF($C$4=7,'1'!BD17,IF($C$4=9,'1'!CB17,"FAUX")))) -> 0.826 | N14: =IF($C$4=2.7,'1'!I17,IF($C$4=4.5,'1'!AG17,IF($C$4=7,'1'!BE17,IF($C$4=9,'1'!CC17,"FAUX")))) -> 0.655 | O14: =IF($C$4=2.7,'1'!J17,IF($C$4=4.5,'1'!AH17,IF($C$4=7,'1'!BF17,IF($C$4=9,'1'!CD17,"FAUX")))) -> 3.16 | P14: =IF($C$4=2.7,'1'!K17,IF($C$4=4.5,'1'!AI17,IF($C$4=7,'1'!BG17,IF($C$4=9,'1'!CE17,"FAUX")))) -> 3.7 | Q14: =IF($C$4=2.7,'1'!L17,IF($C$4=4.5,'1'!AJ17,IF($C$4=7,'1'!BH17,IF($C$4=9,'1'!CF17,"FAUX")))) -> 0.957 | R14: =IF($C$4=2.7,'1'!M17,IF($C$4=4.5,'1'!AK17,IF($C$4=7,'1'!BI17,IF($C$4=9,'1'!CG17,"FAUX")))) -> 0.839 | S14: =IF($C$4=2.7,'1'!N17,IF($C$4=4.5,'1'!AL17,IF($C$4=7,'1'!BJ17,IF($C$4=9,'1'!CH17,"FAUX")))) -> 3.37 | T14: =IF($C$4=2.7,'1'!O17,IF($C$4=4.5,'1'!AM17,IF($C$4=7,'1'!BK17,IF($C$4=9,'1'!CI17,"FAUX")))) -> 4.33 | U14: =IF($C$4=2.7,'1'!P17,IF($C$4=4.5,'1'!AN17,IF($C$4=7,'1'!BL17,IF($C$4=9,'1'!CJ17,"FAUX")))) -> 1.11 | V14: =IF($C$4=2.7,'1'!Q17,IF($C$4=4.5,'1'!AO17,IF($C$4=7,'1'!BM17,IF($C$4=9,'1'!CK17,"FAUX")))) -> 0.907 | W14: =IF($C$4=2.7,'1'!R17,IF($C$4=4.5,'1'!AP17,IF($C$4=7,'1'!BN17,IF($C$4=9,'1'!CL17,"FAUX")))) -> 9.26 | X14: =IF($C$4=2.7,'1'!S17,IF($C$4=4.5,'1'!AQ17,IF($C$4=7,'1'!BO17,IF($C$4=9,'1'!CM17,"FAUX")))) -> 9.36 | Y14: =IF($C$4=2.7,'1'!T17,IF($C$4=4.5,'1'!AR17,IF($C$4=7,'1'!BP17,IF($C$4=9,'1'!CN17,"FAUX")))) -> 0.975 | Z14: =IF($C$4=2.7,'1'!U17,IF($C$4=4.5,'1'!AS17,IF($C$4=7,'1'!BQ17,IF($C$4=9,'1'!CO17,"FAUX")))) -> 0.801 | AA14: =IF($C$4=2.7,'1'!V17,IF($C$4=4.5,'1'!AT17,IF($C$4=7,'1'!BR17,IF($C$4=9,'1'!CP17,"FAUX")))) -> 8.17 | AB14: =IF($C$4=2.7,'1'!W17,IF($C$4=4.5,'1'!AU17,IF($C$4=7,'1'!BS17,IF($C$4=9,'1'!CQ17,"FAUX")))) -> 8.67 | AC14: =IF($C$4=2.7,'1'!X17,IF($C$4=4.5,'1'!AV17,IF($C$4=7,'1'!BT17,IF($C$4=9,'1'!CR17,"FAUX")))) -> 1.07 | AD14: =IF($C$4=2.7,'1'!Y17,IF($C$4=4.5,'1'!AW17,IF($C$4=7,'1'!BU17,IF($C$4=9,'1'!CS17,"FAUX")))) -> 1 | AE14: =IF($C$4=2.7,'1'!Z17,IF($C$4=4.5,'1'!AX17,IF($C$4=7,'1'!BV17,IF($C$4=9,'1'!CT17,"FAUX")))) -> 7.61 | AF14: =IF($C$4=2.7,'1'!AA17,IF($C$4=4.5,'1'!AY17,IF($C$4=7,'1'!BW17,IF($C$4=9,'1'!CU17,"FAUX")))) -> 9.36 | AI14: Salicylic acid | AJ14: -0.005233333333 | AK14: 1.112 | AL14: 0.02533333333 | AM14: 3.02 | AN14: -0.0057 | AO14: 0.997 | AP14: 0.018 | AQ14: 2.62 | AR14: -0.003933333333 | AS14: 1.075 | AT14: 0.032 | AU14: 2.41 | AV14: -0.006766666667 | AW14: 1.313 | AX14: 0.003333333333 | AY14: 9.16 | AZ14: -0.0058 | BA14: 1.149 | BB14: 0.01666666667 | BC14: 7.67 | BD14: -0.002333333333 | BE14: 1.14 | BF14: 0.05833333333 | BG14: 5.86 | BJ14: Salicylic acid | BK14: 0.955 | BL14: 0.826 | BM14: 0.957 | BN14: 1.11 | BO14: 0.975 | BP14: 1.07 | BS14: Salicylic acid | BT14: 3.78 | BU14: 3.16 | BV14: 3.37 | BW14: 9.26 | BX14: 8.17 | BY14: 7.61 | CB14: =VLOOKUP($V$56,$BJ$8:$BP$48,2,FALSE) -> 0 | CC14: =VLOOKUP($V$56,$BJ$8:$BP$48,3,FALSE) -> 0 | CD14: =VLOOKUP($V$56,$BJ$8:$BP$48,4,FALSE) -> 0 | CE14: =VLOOKUP($V$56,$BJ$8:$BP$48,5,FALSE) -> 0 | CF14: =VLOOKUP($V$56,$BJ$8:$BP$48,6,FALSE) -> 0 | CG14: =VLOOKUP($V$56,$BJ$8:$BP$48,7,FALSE) -> 0 | CJ14: Salicylic acid | CK14: ='1'!D63 -> 0.427 | CL14: ='1'!E63 -> 0.18 | CM14: ='1'!F63 -> 0.246 | CN14: ='1'!G63 -> 0.239 | CO14: ='1'!H63 -> 0.107 | CP14: ='1'!I63 -> 0.025 | CQ14: ='1'!J63 -> 0.013 | CR14: ='1'!K63 -> 0.02 | CS14: ='1'!L63 -> 0.03 | CT14: ='1'!M63 -> 0 | CU14: ='1'!N63 -> 0 | CV14: ='1'!O63 -> 0 | CW14: ='1'!P63 -> 0 | CX14: ='1'!Q63 -> 0 | CY14: ='1'!R63 -> 0 | CZ14: ='1'!S63 -> 0 | DC14: Salicylic acid | DD14: =HLOOKUP($DD$7,$CJ$7:$CZ$48,8,FALSE) -> 0.246 | DG14: Salicylic acid | DH14: =IF($C$4=2.7,'1'!D131,IF($C$4=4.5,'1'!G131,IF($C$4=7,'1'!J131,IF($C$4=9,'1'!M131,FALSE)))) -> 1.42 | DI14: =IF($C$4=2.7,'1'!E131,IF($C$4=4.5,'1'!H131,IF($C$4=7,'1'!K131,IF($C$4=9,'1'!N131,FALSE)))) -> 1.46 | DJ14: =IF($C$4=2.7,'1'!F131,IF($C$4=4.5,'1'!I131,IF($C$4=7,'1'!L131,IF($C$4=9,'1'!O131,FALSE)))) -> 1.51 | DM14: Salicylic acid | DN14: =HLOOKUP($DN$7,$DG$7:$DJ$48,8,FALSE) -> 1.42 | DQ14: Salicylic acid | DR14: 2.79 | DT14: 2 | DV14: pH | DW14: % Neutre | DX14: % ionisée
B15: dp col | C15: =calculation2!E72 -> 5 | D15: µm | H15: mefenamic acid | I15: =IF($C$4=2.7,'1'!D18,IF($C$4=4.5,'1'!AB18,IF($C$4=7,'1'!AZ18,IF($C$4=9,'1'!BX18,"FAUX")))) -> 3.97 | J15: =IF($C$4=2.7,'1'!E18,IF($C$4=4.5,'1'!AC18,IF($C$4=7,'1'!BA18,IF($C$4=9,'1'!BY18,"FAUX")))) -> 3.73 | K15: =IF($C$4=2.7,'1'!F18,IF($C$4=4.5,'1'!AD18,IF($C$4=7,'1'!BB18,IF($C$4=9,'1'!BZ18,"FAUX")))) -> 5.83 | L15: =IF($C$4=2.7,'1'!G18,IF($C$4=4.5,'1'!AE18,IF($C$4=7,'1'!BC18,IF($C$4=9,'1'!CA18,"FAUX")))) -> 6.04 | M15: =IF($C$4=2.7,'1'!H18,IF($C$4=4.5,'1'!AF18,IF($C$4=7,'1'!BD18,IF($C$4=9,'1'!CB18,"FAUX")))) -> 3.67 | N15: =IF($C$4=2.7,'1'!I18,IF($C$4=4.5,'1'!AG18,IF($C$4=7,'1'!BE18,IF($C$4=9,'1'!CC18,"FAUX")))) -> 3.32 | O15: =IF($C$4=2.7,'1'!J18,IF($C$4=4.5,'1'!AH18,IF($C$4=7,'1'!BF18,IF($C$4=9,'1'!CD18,"FAUX")))) -> 5.54 | P15: =IF($C$4=2.7,'1'!K18,IF($C$4=4.5,'1'!AI18,IF($C$4=7,'1'!BG18,IF($C$4=9,'1'!CE18,"FAUX")))) -> 5.53 | Q15: =IF($C$4=2.7,'1'!L18,IF($C$4=4.5,'1'!AJ18,IF($C$4=7,'1'!BH18,IF($C$4=9,'1'!CF18,"FAUX")))) -> 3.84 | R15: =IF($C$4=2.7,'1'!M18,IF($C$4=4.5,'1'!AK18,IF($C$4=7,'1'!BI18,IF($C$4=9,'1'!CG18,"FAUX")))) -> 3.45 | S15: =IF($C$4=2.7,'1'!N18,IF($C$4=4.5,'1'!AL18,IF($C$4=7,'1'!BJ18,IF($C$4=9,'1'!CH18,"FAUX")))) -> 5.83 | T15: =IF($C$4=2.7,'1'!O18,IF($C$4=4.5,'1'!AM18,IF($C$4=7,'1'!BK18,IF($C$4=9,'1'!CI18,"FAUX")))) -> 5.63 | U15: =IF($C$4=2.7,'1'!P18,IF($C$4=4.5,'1'!AN18,IF($C$4=7,'1'!BL18,IF($C$4=9,'1'!CJ18,"FAUX")))) -> 3.75 | V15: =IF($C$4=2.7,'1'!Q18,IF($C$4=4.5,'1'!AO18,IF($C$4=7,'1'!BM18,IF($C$4=9,'1'!CK18,"FAUX")))) -> 3.55 | W15: =IF($C$4=2.7,'1'!R18,IF($C$4=4.5,'1'!AP18,IF($C$4=7,'1'!BN18,IF($C$4=9,'1'!CL18,"FAUX")))) -> 10 | X15: =IF($C$4=2.7,'1'!S18,IF($C$4=4.5,'1'!AQ18,IF($C$4=7,'1'!BO18,IF($C$4=9,'1'!CM18,"FAUX")))) -> 10 | Y15: =IF($C$4=2.7,'1'!T18,IF($C$4=4.5,'1'!AR18,IF($C$4=7,'1'!BP18,IF($C$4=9,'1'!CN18,"FAUX")))) -> 3.4 | Z15: =IF($C$4=2.7,'1'!U18,IF($C$4=4.5,'1'!AS18,IF($C$4=7,'1'!BQ18,IF($C$4=9,'1'!CO18,"FAUX")))) -> 3.21 | AA15: =IF($C$4=2.7,'1'!V18,IF($C$4=4.5,'1'!AT18,IF($C$4=7,'1'!BR18,IF($C$4=9,'1'!CP18,"FAUX")))) -> 9.44 | AB15: =IF($C$4=2.7,'1'!W18,IF($C$4=4.5,'1'!AU18,IF($C$4=7,'1'!BS18,IF($C$4=9,'1'!CQ18,"FAUX")))) -> 9.44 | AC15: =IF($C$4=2.7,'1'!X18,IF($C$4=4.5,'1'!AV18,IF($C$4=7,'1'!BT18,IF($C$4=9,'1'!CR18,"FAUX")))) -> 3.5 | AD15: =IF($C$4=2.7,'1'!Y18,IF($C$4=4.5,'1'!AW18,IF($C$4=7,'1'!BU18,IF($C$4=9,'1'!CS18,"FAUX")))) -> 3.27 | AE15: =IF($C$4=2.7,'1'!Z18,IF($C$4=4.5,'1'!AX18,IF($C$4=7,'1'!BV18,IF($C$4=9,'1'!CT18,"FAUX")))) -> 9.19 | AF15: =IF($C$4=2.7,'1'!AA18,IF($C$4=4.5,'1'!AY18,IF($C$4=7,'1'!BW18,IF($C$4=9,'1'!CU18,"FAUX")))) -> 8.93 | AI15: mefenamic acid | AJ15: -0.008 | AK15: 4.21 | AL15: 0.007 | AM15: 5.62 | AN15: -0.01166666667 | AO15: 4.02 | AP15: -0.0003333333333 | AQ15: 5.55 | AR15: -0.013 | AS15: 4.23 | AT15: -0.006666666667 | AU15: 6.03 | AV15: -0.006666666667 | AW15: 3.95 | AX15: 0 | AY15: 10 | AZ15: -0.006333333333 | BA15: 3.59 | BB15: 0 | BC15: 9.44 | BD15: -0.007666666667 | BE15: 3.73 | BF15: -0.008666666667 | BG15: 9.45 | BJ15: mefenamic acid | BK15: 3.97 | BL15: 3.67 | BM15: 3.84 | BN15: 3.75 | BO15: 3.4 | BP15: 3.5 | BS15: mefenamic acid | BT15: 5.83 | BU15: 5.54 | BV15: 5.83 | BW15: 10 | BX15: 9.44 | BY15: 9.19 | CA15: =$W$56 ->  | CB15: =VLOOKUP($W$56,$BJ$8:$BP$48,2,FALSE) -> 0 | CC15: =VLOOKUP($W$56,$BJ$8:$BP$48,3,FALSE) -> 0 | CD15: =VLOOKUP($W$56,$BJ$8:$BP$48,4,FALSE) -> 0 | CE15: =VLOOKUP($W$56,$BJ$8:$BP$48,5,FALSE) -> 0 | CF15: =VLOOKUP($W$56,$BJ$8:$BP$48,6,FALSE) -> 0 | CG15: =VLOOKUP($W$56,$BJ$8:$BP$48,7,FALSE) -> 0 | CJ15: mefenamic acid | CK15: ='1'!D64 -> 0.0570140449 | CL15: ='1'!E64 -> 0.2425128863 | CM15: ='1'!F64 -> 0.4105167289 | CN15: ='1'!G64 -> 0.2685124935 | CO15: ='1'!H64 -> 0.1369044736 | CP15: ='1'!I64 -> 0.05848955533 | CQ15: ='1'!J64 -> 0.04997469612 | CR15: ='1'!K64 -> 0.06056282909 | CS15: ='1'!L64 -> 0.06731575792 | CT15: ='1'!M64 -> 0.05514771308 | CU15: ='1'!N64 -> 0.02791852681 | CV15: ='1'!O64 -> 0.01542840042 | CW15: ='1'!P64 -> 0.02075240305 | CX15: ='1'!Q64 -> 0.03353062229 | CY15: ='1'!R64 -> 0.04673929116 | CZ15: ='1'!S64 -> 0.05475579694 | DC15: mefenamic acid | DD15: =HLOOKUP($DD$7,$CJ$7:$CZ$48,9,FALSE) -> 0.4105167289 | DG15: mefenamic acid | DH15: =IF($C$4=2.7,'1'!D132,IF($C$4=4.5,'1'!G132,IF($C$4=7,'1'!J132,IF($C$4=9,'1'!M132,FALSE)))) -> 1.02 | DI15: =IF($C$4=2.7,'1'!E132,IF($C$4=4.5,'1'!H132,IF($C$4=7,'1'!K132,IF($C$4=9,'1'!N132,FALSE)))) -> 1 | DJ15: =IF($C$4=2.7,'1'!F132,IF($C$4=4.5,'1'!I132,IF($C$4=7,'1'!L132,IF($C$4=9,'1'!O132,FALSE)))) -> 1.08 | DM15: mefenamic acid | DN15: =HLOOKUP($DN$7,$DG$7:$DJ$48,9,FALSE) -> 1.02 | DQ15: mefenamic acid | DR15: 3.89 | DT15: 2 | DV15: 0 | DW15: =IF($DW$9=2,100/(1+10^(DV15-$DW$12)),100/(1+10^($DW$12-DV15))) -> 99.99999984 | DX15: =100-DW15 -> 1.584893141e-07
B16: Chemistry | C16: =calculation2!E73 -> C18 | H16: Paracetamol | I16: =IF($C$4=2.7,'1'!D19,IF($C$4=4.5,'1'!AB19,IF($C$4=7,'1'!AZ19,IF($C$4=9,'1'!BX19,"FAUX")))) -> 1.06 | J16: =IF($C$4=2.7,'1'!E19,IF($C$4=4.5,'1'!AC19,IF($C$4=7,'1'!BA19,IF($C$4=9,'1'!BY19,"FAUX")))) -> 0.953 | K16: =IF($C$4=2.7,'1'!F19,IF($C$4=4.5,'1'!AD19,IF($C$4=7,'1'!BB19,IF($C$4=9,'1'!BZ19,"FAUX")))) -> 5.81 | L16: =IF($C$4=2.7,'1'!G19,IF($C$4=4.5,'1'!AE19,IF($C$4=7,'1'!BC19,IF($C$4=9,'1'!CA19,"FAUX")))) -> 7.7 | M16: =IF($C$4=2.7,'1'!H19,IF($C$4=4.5,'1'!AF19,IF($C$4=7,'1'!BD19,IF($C$4=9,'1'!CB19,"FAUX")))) -> 0.863 | N16: =IF($C$4=2.7,'1'!I19,IF($C$4=4.5,'1'!AG19,IF($C$4=7,'1'!BE19,IF($C$4=9,'1'!CC19,"FAUX")))) -> 0.667 | O16: =IF($C$4=2.7,'1'!J19,IF($C$4=4.5,'1'!AH19,IF($C$4=7,'1'!BF19,IF($C$4=9,'1'!CD19,"FAUX")))) -> 4.38 | P16: =IF($C$4=2.7,'1'!K19,IF($C$4=4.5,'1'!AI19,IF($C$4=7,'1'!BG19,IF($C$4=9,'1'!CE19,"FAUX")))) -> 4.15 | Q16: =IF($C$4=2.7,'1'!L19,IF($C$4=4.5,'1'!AJ19,IF($C$4=7,'1'!BH19,IF($C$4=9,'1'!CF19,"FAUX")))) -> 1.01 | R16: =IF($C$4=2.7,'1'!M19,IF($C$4=4.5,'1'!AK19,IF($C$4=7,'1'!BI19,IF($C$4=9,'1'!CG19,"FAUX")))) -> 0.846 | S16: =IF($C$4=2.7,'1'!N19,IF($C$4=4.5,'1'!AL19,IF($C$4=7,'1'!BJ19,IF($C$4=9,'1'!CH19,"FAUX")))) -> 5.51 | T16: =IF($C$4=2.7,'1'!O19,IF($C$4=4.5,'1'!AM19,IF($C$4=7,'1'!BK19,IF($C$4=9,'1'!CI19,"FAUX")))) -> 5.81 | U16: =IF($C$4=2.7,'1'!P19,IF($C$4=4.5,'1'!AN19,IF($C$4=7,'1'!BL19,IF($C$4=9,'1'!CJ19,"FAUX")))) -> 1.16 | V16: =IF($C$4=2.7,'1'!Q19,IF($C$4=4.5,'1'!AO19,IF($C$4=7,'1'!BM19,IF($C$4=9,'1'!CK19,"FAUX")))) -> 1.01 | W16: =IF($C$4=2.7,'1'!R19,IF($C$4=4.5,'1'!AP19,IF($C$4=7,'1'!BN19,IF($C$4=9,'1'!CL19,"FAUX")))) -> 12.5 | X16: =IF($C$4=2.7,'1'!S19,IF($C$4=4.5,'1'!AQ19,IF($C$4=7,'1'!BO19,IF($C$4=9,'1'!CM19,"FAUX")))) -> 13.3 | Y16: =IF($C$4=2.7,'1'!T19,IF($C$4=4.5,'1'!AR19,IF($C$4=7,'1'!BP19,IF($C$4=9,'1'!CN19,"FAUX")))) -> 0.875 | Z16: =IF($C$4=2.7,'1'!U19,IF($C$4=4.5,'1'!AS19,IF($C$4=7,'1'!BQ19,IF($C$4=9,'1'!CO19,"FAUX")))) -> 0.648 | AA16: =IF($C$4=2.7,'1'!V19,IF($C$4=4.5,'1'!AT19,IF($C$4=7,'1'!BR19,IF($C$4=9,'1'!CP19,"FAUX")))) -> 8.64 | AB16: =IF($C$4=2.7,'1'!W19,IF($C$4=4.5,'1'!AU19,IF($C$4=7,'1'!BS19,IF($C$4=9,'1'!CQ19,"FAUX")))) -> 7.29 | AC16: =IF($C$4=2.7,'1'!X19,IF($C$4=4.5,'1'!AV19,IF($C$4=7,'1'!BT19,IF($C$4=9,'1'!CR19,"FAUX")))) -> 0.946 | AD16: =IF($C$4=2.7,'1'!Y19,IF($C$4=4.5,'1'!AW19,IF($C$4=7,'1'!BU19,IF($C$4=9,'1'!CS19,"FAUX")))) -> 0.998 | AE16: =IF($C$4=2.7,'1'!Z19,IF($C$4=4.5,'1'!AX19,IF($C$4=7,'1'!BV19,IF($C$4=9,'1'!CT19,"FAUX")))) -> 8.79 | AF16: =IF($C$4=2.7,'1'!AA19,IF($C$4=4.5,'1'!AY19,IF($C$4=7,'1'!BW19,IF($C$4=9,'1'!CU19,"FAUX")))) -> 12.1 | AI16: Paracetamol | AJ16: -0.003566666667 | AK16: 1.167 | AL16: 0.063 | AM16: 3.92 | AN16: -0.006533333333 | AO16: 1.059 | AP16: -0.007666666667 | AQ16: 4.61 | AR16: -0.005466666667 | AS16: 1.174 | AT16: 0.01 | AU16: 5.21 | AV16: -0.005 | AW16: 1.31 | AX16: 0.02666666667 | AY16: 11.7 | AZ16: -0.007566666667 | BA16: 1.102 | BB16: -0.045 | BC16: 9.99 | BD16: 0.001733333333 | BE16: 0.894 | BF16: 0.1103333333 | BG16: 5.48 | BJ16: Paracetamol | BK16: 1.06 | BL16: 0.863 | BM16: 1.01 | BN16: 1.16 | BO16: 0.875 | BP16: 0.946 | BS16: Paracetamol | BT16: 5.81 | BU16: 4.38 | BV16: 5.51 | BW16: 12.5 | BX16: 8.64 | BY16: 8.79 | CA16: =$X$56 ->  | CB16: =VLOOKUP($X$56,$BJ$8:$BP$48,2,FALSE) -> 0 | CC16: =VLOOKUP($X$56,$BJ$8:$BP$48,3,FALSE) -> 0 | CD16: =VLOOKUP($X$56,$BJ$8:$BP$48,4,FALSE) -> 0 | CE16: =VLOOKUP($X$56,$BJ$8:$BP$48,5,FALSE) -> 0 | CF16: =VLOOKUP($X$56,$BJ$8:$BP$48,6,FALSE) -> 0 | CG16: =VLOOKUP($X$56,$BJ$8:$BP$48,7,FALSE) -> 0 | CJ16: Paracetamol | CK16: ='1'!D65 -> 0.6390707737 | CL16: ='1'!E65 -> 0.2411335046 | CM16: ='1'!F65 -> 0.2003004055 | CN16: ='1'!G65 -> 0.2627535788 | CO16: ='1'!H65 -> 0.3245762074 | CP16: ='1'!I65 -> 0.3168257821 | CQ16: ='1'!J65 -> 0.1799784811 | CR16: ='1'!K65 -> 0.08567194642 | CS16: ='1'!L65 -> 0.05692316446 | CT16: ='1'!M65 -> 0.03672835285 | CU16: ='1'!N65 -> 0.008170748462 | CV16: ='1'!O65 -> 2.513175893e-05 | CW16: ='1'!P65 -> -0.0003675547887 | CX16: ='1'!Q65 -> -0.0003672250276 | CY16: ='1'!R65 -> -0.0003727865481 | CZ16: ='1'!S65 -> -0.0004230798997 | DC16: Paracetamol | DD16: =HLOOKUP($DD$7,$CJ$7:$CZ$48,10,FALSE) -> 0.2003004055 | DG16: Paracetamol | DH16: =IF($C$4=2.7,'1'!D133,IF($C$4=4.5,'1'!G133,IF($C$4=7,'1'!J133,IF($C$4=9,'1'!M133,FALSE)))) -> 1.07 | DI16: =IF($C$4=2.7,'1'!E133,IF($C$4=4.5,'1'!H133,IF($C$4=7,'1'!K133,IF($C$4=9,'1'!N133,FALSE)))) -> 1.09 | DJ16: =IF($C$4=2.7,'1'!F133,IF($C$4=4.5,'1'!I133,IF($C$4=7,'1'!L133,IF($C$4=9,'1'!O133,FALSE)))) -> 1.01 | DM16: Paracetamol | DN16: =HLOOKUP($DN$7,$DG$7:$DJ$48,10,FALSE) -> 1.07 | DQ16: Paracetamol | DR16: 9.46 | DT16: 2 | DV16: =DV15+0.5 -> 0.5 | DW16: =IF($DW$9=2,100/(1+10^(DV16-$DW$12)),100/(1+10^($DW$12-DV16))) -> 99.9999995 | DX16: =100-DW16 -> 5.011872162e-07
B17: Temperature | C17: =calculation2!E74 -> 30 | D17: °C | H17: Ibuprofen | I17: =IF($C$4=2.7,'1'!D20,IF($C$4=4.5,'1'!AB20,IF($C$4=7,'1'!AZ20,IF($C$4=9,'1'!BX20,"FAUX")))) -> 3.56 | J17: =IF($C$4=2.7,'1'!E20,IF($C$4=4.5,'1'!AC20,IF($C$4=7,'1'!BA20,IF($C$4=9,'1'!BY20,"FAUX")))) -> 3.37 | K17: =IF($C$4=2.7,'1'!F20,IF($C$4=4.5,'1'!AD20,IF($C$4=7,'1'!BB20,IF($C$4=9,'1'!BZ20,"FAUX")))) -> 5.27 | L17: =IF($C$4=2.7,'1'!G20,IF($C$4=4.5,'1'!AE20,IF($C$4=7,'1'!BC20,IF($C$4=9,'1'!CA20,"FAUX")))) -> 5.44 | M17: =IF($C$4=2.7,'1'!H20,IF($C$4=4.5,'1'!AF20,IF($C$4=7,'1'!BD20,IF($C$4=9,'1'!CB20,"FAUX")))) -> 3.17 | N17: =IF($C$4=2.7,'1'!I20,IF($C$4=4.5,'1'!AG20,IF($C$4=7,'1'!BE20,IF($C$4=9,'1'!CC20,"FAUX")))) -> 2.91 | O17: =IF($C$4=2.7,'1'!J20,IF($C$4=4.5,'1'!AH20,IF($C$4=7,'1'!BF20,IF($C$4=9,'1'!CD20,"FAUX")))) -> 5.1 | P17: =IF($C$4=2.7,'1'!K20,IF($C$4=4.5,'1'!AI20,IF($C$4=7,'1'!BG20,IF($C$4=9,'1'!CE20,"FAUX")))) -> 5.17 | Q17: =IF($C$4=2.7,'1'!L20,IF($C$4=4.5,'1'!AJ20,IF($C$4=7,'1'!BH20,IF($C$4=9,'1'!CF20,"FAUX")))) -> 3.33 | R17: =IF($C$4=2.7,'1'!M20,IF($C$4=4.5,'1'!AK20,IF($C$4=7,'1'!BI20,IF($C$4=9,'1'!CG20,"FAUX")))) -> 3.12 | S17: =IF($C$4=2.7,'1'!N20,IF($C$4=4.5,'1'!AL20,IF($C$4=7,'1'!BJ20,IF($C$4=9,'1'!CH20,"FAUX")))) -> 5.03 | T17: =IF($C$4=2.7,'1'!O20,IF($C$4=4.5,'1'!AM20,IF($C$4=7,'1'!BK20,IF($C$4=9,'1'!CI20,"FAUX")))) -> 5.1 | U17: =IF($C$4=2.7,'1'!P20,IF($C$4=4.5,'1'!AN20,IF($C$4=7,'1'!BL20,IF($C$4=9,'1'!CJ20,"FAUX")))) -> 3.34 | V17: =IF($C$4=2.7,'1'!Q20,IF($C$4=4.5,'1'!AO20,IF($C$4=7,'1'!BM20,IF($C$4=9,'1'!CK20,"FAUX")))) -> 3.14 | W17: =IF($C$4=2.7,'1'!R20,IF($C$4=4.5,'1'!AP20,IF($C$4=7,'1'!BN20,IF($C$4=9,'1'!CL20,"FAUX")))) -> 10.3 | X17: =IF($C$4=2.7,'1'!S20,IF($C$4=4.5,'1'!AQ20,IF($C$4=7,'1'!BO20,IF($C$4=9,'1'!CM20,"FAUX")))) -> 10 | Y17: =IF($C$4=2.7,'1'!T20,IF($C$4=4.5,'1'!AR20,IF($C$4=7,'1'!BP20,IF($C$4=9,'1'!CN20,"FAUX")))) -> 3.36 | Z17: =IF($C$4=2.7,'1'!U20,IF($C$4=4.5,'1'!AS20,IF($C$4=7,'1'!BQ20,IF($C$4=9,'1'!CO20,"FAUX")))) -> 2.81 | AA17: =IF($C$4=2.7,'1'!V20,IF($C$4=4.5,'1'!AT20,IF($C$4=7,'1'!BR20,IF($C$4=9,'1'!CP20,"FAUX")))) -> 11.4 | AB17: =IF($C$4=2.7,'1'!W20,IF($C$4=4.5,'1'!AU20,IF($C$4=7,'1'!BS20,IF($C$4=9,'1'!CQ20,"FAUX")))) -> 9.67 | AC17: =IF($C$4=2.7,'1'!X20,IF($C$4=4.5,'1'!AV20,IF($C$4=7,'1'!BT20,IF($C$4=9,'1'!CR20,"FAUX")))) -> 3.08 | AD17: =IF($C$4=2.7,'1'!Y20,IF($C$4=4.5,'1'!AW20,IF($C$4=7,'1'!BU20,IF($C$4=9,'1'!CS20,"FAUX")))) -> 2.8 | AE17: =IF($C$4=2.7,'1'!Z20,IF($C$4=4.5,'1'!AX20,IF($C$4=7,'1'!BV20,IF($C$4=9,'1'!CT20,"FAUX")))) -> 9.17 | AF17: =IF($C$4=2.7,'1'!AA20,IF($C$4=4.5,'1'!AY20,IF($C$4=7,'1'!BW20,IF($C$4=9,'1'!CU20,"FAUX")))) -> 8.44 | AI17: Ibuprofen | AJ17: -0.006333333333 | AK17: 3.75 | AL17: 0.005666666667 | AM17: 5.1 | AN17: -0.008666666667 | AO17: 3.43 | AP17: 0.002333333333 | AQ17: 5.03 | AR17: -0.007 | AS17: 3.54 | AT17: 0.002333333333 | AU17: 4.96 | AV17: -0.006666666667 | AW17: 3.54 | AX17: -0.01 | AY17: 10.6 | AZ17: -0.01833333333 | BA17: 3.91 | BB17: -0.05766666667 | BC17: 13.13 | BD17: -0.009333333333 | BE17: 3.36 | BF17: -0.02433333333 | BG17: 9.9 | BJ17: Ibuprofen | BK17: 3.56 | BL17: 3.17 | BM17: 3.33 | BN17: 3.34 | BO17: 3.36 | BP17: 3.08 | BS17: Ibuprofen | BT17: 5.27 | BU17: 5.1 | BV17: 5.03 | BW17: 10.3 | BX17: 11.4 | BY17: 9.17 | CJ17: Ibuprofen | CK17: ='1'!D66 -> 0.03517144568 | CL17: ='1'!E66 -> 0.1415179869 | CM17: ='1'!F66 -> 0.2716885787 | CN17: ='1'!G66 -> 0.1891187016 | CO17: ='1'!H66 -> 0.06753554709 | CP17: ='1'!I66 -> 0.01417120366 | CQ17: ='1'!J66 -> 0.003075014545 | CR17: ='1'!K66 -> 0.001667830295 | CS17: ='1'!L66 -> 3.310000102e-05 | CT17: ='1'!M66 -> 3.310000102e-05 | CU17: ='1'!N66 -> 3.310000102e-05 | CV17: ='1'!O66 -> 3.310000102e-05 | CW17: ='1'!P66 -> 3.310000102e-05 | CX17: ='1'!Q66 -> 3.310000102e-05 | CY17: ='1'!R66 -> 3.310000102e-05 | CZ17: ='1'!S66 -> 3.310000102e-05 | DC17: Ibuprofen | DD17: =HLOOKUP($DD$7,$CJ$7:$CZ$48,11,FALSE) -> 0.2716885787 | DG17: Ibuprofen | DH17: =IF($C$4=2.7,'1'!D134,IF($C$4=4.5,'1'!G134,IF($C$4=7,'1'!J134,IF($C$4=9,'1'!M134,FALSE)))) -> 1.02 | DI17: =IF($C$4=2.7,'1'!E134,IF($C$4=4.5,'1'!H134,IF($C$4=7,'1'!K134,IF($C$4=9,'1'!N134,FALSE)))) -> 1.02 | DJ17: =IF($C$4=2.7,'1'!F134,IF($C$4=4.5,'1'!I134,IF($C$4=7,'1'!L134,IF($C$4=9,'1'!O134,FALSE)))) -> 1.12 | DM17: Ibuprofen | DN17: =HLOOKUP($DN$7,$DG$7:$DJ$48,11,FALSE) -> 1.02 | DQ17: Ibuprofen | DR17: 4.85 | DT17: 2 | DV17: =DV16+0.5 -> 1 | DW17: 99.99999842 | DX17: 1.58489317e-06
B18: Ltube inlet | C18: =calculation2!E75 -> 50 | D18: cm | H18: Ketoprofen | I18: =IF($C$4=2.7,'1'!D21,IF($C$4=4.5,'1'!AB21,IF($C$4=7,'1'!AZ21,IF($C$4=9,'1'!BX21,"FAUX")))) -> 3.1 | J18: =IF($C$4=2.7,'1'!E21,IF($C$4=4.5,'1'!AC21,IF($C$4=7,'1'!BA21,IF($C$4=9,'1'!BY21,"FAUX")))) -> 2.99 | K18: =IF($C$4=2.7,'1'!F21,IF($C$4=4.5,'1'!AD21,IF($C$4=7,'1'!BB21,IF($C$4=9,'1'!BZ21,"FAUX")))) -> 5.71 | L18: =IF($C$4=2.7,'1'!G21,IF($C$4=4.5,'1'!AE21,IF($C$4=7,'1'!BC21,IF($C$4=9,'1'!CA21,"FAUX")))) -> 6.24 | M18: =IF($C$4=2.7,'1'!H21,IF($C$4=4.5,'1'!AF21,IF($C$4=7,'1'!BD21,IF($C$4=9,'1'!CB21,"FAUX")))) -> 2.85 | N18: =IF($C$4=2.7,'1'!I21,IF($C$4=4.5,'1'!AG21,IF($C$4=7,'1'!BE21,IF($C$4=9,'1'!CC21,"FAUX")))) -> 2.62 | O18: =IF($C$4=2.7,'1'!J21,IF($C$4=4.5,'1'!AH21,IF($C$4=7,'1'!BF21,IF($C$4=9,'1'!CD21,"FAUX")))) -> 5.25 | P18: =IF($C$4=2.7,'1'!K21,IF($C$4=4.5,'1'!AI21,IF($C$4=7,'1'!BG21,IF($C$4=9,'1'!CE21,"FAUX")))) -> 5.48 | Q18: =IF($C$4=2.7,'1'!L21,IF($C$4=4.5,'1'!AJ21,IF($C$4=7,'1'!BH21,IF($C$4=9,'1'!CF21,"FAUX")))) -> 2.92 | R18: =IF($C$4=2.7,'1'!M21,IF($C$4=4.5,'1'!AK21,IF($C$4=7,'1'!BI21,IF($C$4=9,'1'!CG21,"FAUX")))) -> 2.71 | S18: =IF($C$4=2.7,'1'!N21,IF($C$4=4.5,'1'!AL21,IF($C$4=7,'1'!BJ21,IF($C$4=9,'1'!CH21,"FAUX")))) -> 5.42 | T18: =IF($C$4=2.7,'1'!O21,IF($C$4=4.5,'1'!AM21,IF($C$4=7,'1'!BK21,IF($C$4=9,'1'!CI21,"FAUX")))) -> 5.59 | U18: =IF($C$4=2.7,'1'!P21,IF($C$4=4.5,'1'!AN21,IF($C$4=7,'1'!BL21,IF($C$4=9,'1'!CJ21,"FAUX")))) -> 3.3 | V18: =IF($C$4=2.7,'1'!Q21,IF($C$4=4.5,'1'!AO21,IF($C$4=7,'1'!BM21,IF($C$4=9,'1'!CK21,"FAUX")))) -> 1.6 | W18: =IF($C$4=2.7,'1'!R21,IF($C$4=4.5,'1'!AP21,IF($C$4=7,'1'!BN21,IF($C$4=9,'1'!CL21,"FAUX")))) -> 13.2 | X18: =IF($C$4=2.7,'1'!S21,IF($C$4=4.5,'1'!AQ21,IF($C$4=7,'1'!BO21,IF($C$4=9,'1'!CM21,"FAUX")))) -> 5.62 | Y18: =IF($C$4=2.7,'1'!T21,IF($C$4=4.5,'1'!AR21,IF($C$4=7,'1'!BP21,IF($C$4=9,'1'!CN21,"FAUX")))) -> 2.91 | Z18: =IF($C$4=2.7,'1'!U21,IF($C$4=4.5,'1'!AS21,IF($C$4=7,'1'!BQ21,IF($C$4=9,'1'!CO21,"FAUX")))) -> 2.63 | AA18: =IF($C$4=2.7,'1'!V21,IF($C$4=4.5,'1'!AT21,IF($C$4=7,'1'!BR21,IF($C$4=9,'1'!CP21,"FAUX")))) -> 11.7 | AB18: =IF($C$4=2.7,'1'!W21,IF($C$4=4.5,'1'!AU21,IF($C$4=7,'1'!BS21,IF($C$4=9,'1'!CQ21,"FAUX")))) -> 11.3 | AC18: =IF($C$4=2.7,'1'!X21,IF($C$4=4.5,'1'!AV21,IF($C$4=7,'1'!BT21,IF($C$4=9,'1'!CR21,"FAUX")))) -> 2.88 | AD18: =IF($C$4=2.7,'1'!Y21,IF($C$4=4.5,'1'!AW21,IF($C$4=7,'1'!BU21,IF($C$4=9,'1'!CS21,"FAUX")))) -> 2.58 | AE18: =IF($C$4=2.7,'1'!Z21,IF($C$4=4.5,'1'!AX21,IF($C$4=7,'1'!BV21,IF($C$4=9,'1'!CT21,"FAUX")))) -> 11 | AF18: =IF($C$4=2.7,'1'!AA21,IF($C$4=4.5,'1'!AY21,IF($C$4=7,'1'!BW21,IF($C$4=9,'1'!CU21,"FAUX")))) -> 10.2 | AI18: Ketoprofen | AJ18: -0.003666666667 | AK18: 3.21 | AL18: 0.01766666667 | AM18: 5.18 | AN18: -0.007666666667 | AO18: 3.08 | AP18: 0.007666666667 | AQ18: 5.02 | AR18: -0.007 | AS18: 3.13 | AT18: 0.005666666667 | AU18: 5.25 | AV18: -0.05666666667 | AW18: 5 | AX18: -0.2526666667 | AY18: 20.78 | AZ18: -0.009333333333 | BA18: 3.19 | BB18: -0.01333333333 | BC18: 12.1 | BD18: -0.01 | BE18: 3.18 | BF18: -0.02666666667 | BG18: 11.8 | BJ18: Ketoprofen | BK18: 3.1 | BL18: 2.85 | BM18: 2.92 | BN18: 3.3 | BO18: 2.91 | BP18: 2.88 | BS18: Ketoprofen | BT18: 5.71 | BU18: 5.25 | BV18: 5.42 | BW18: 13.2 | BX18: 11.7 | BY18: 11 | CJ18: Ketoprofen | CK18: ='1'!D67 -> 0.244113119 | CL18: ='1'!E67 -> 0.3049023171 | CM18: ='1'!F67 -> 0.268271453 | CN18: ='1'!G67 -> 0.1945074287 | CO18: ='1'!H67 -> 0.1669937867 | CP18: ='1'!I67 -> 0.2111348979 | CQ18: ='1'!J67 -> 0.209849445 | CR18: ='1'!K67 -> 0.1315273147 | CS18: ='1'!L67 -> 0.07044042342 | CT18: ='1'!M67 -> 0.03879042613 | CU18: ='1'!N67 -> 0.01305404052 | CV18: ='1'!O67 -> 0.003280356213 | CW18: ='1'!P67 -> 0.001488438968 | CX18: ='1'!Q67 -> 0.001370331324 | CY18: ='1'!R67 -> 0.0009913071039 | CZ18: ='1'!S67 -> 9.520774838e-05 | DC18: Ketoprofen | DD18: =HLOOKUP($DD$7,$CJ$7:$CZ$48,12,FALSE) -> 0.268271453 | DG18: Ketoprofen | DH18: =IF($C$4=2.7,'1'!D135,IF($C$4=4.5,'1'!G135,IF($C$4=7,'1'!J135,IF($C$4=9,'1'!M135,FALSE)))) -> 1.08 | DI18: =IF($C$4=2.7,'1'!E135,IF($C$4=4.5,'1'!H135,IF($C$4=7,'1'!K135,IF($C$4=9,'1'!N135,FALSE)))) -> 1.11 | DJ18: =IF($C$4=2.7,'1'!F135,IF($C$4=4.5,'1'!I135,IF($C$4=7,'1'!L135,IF($C$4=9,'1'!O135,FALSE)))) -> 1.09 | DM18: Ketoprofen | DN18: =HLOOKUP($DN$7,$DG$7:$DJ$48,12,FALSE) -> 1.08 | DQ18: Ketoprofen | DR18: 3.88 | DT18: 2 | DV18: 1.5 | DW18: 99.99999499 | DX18: 5.011872091e-06
B19: dtube inlet | C19: =calculation2!E76 -> 250 | D19: µm | G19: Mix 3 | H19: Lidocaine | I19: =IF($C$4=2.7,'1'!D22,IF($C$4=4.5,'1'!AB22,IF($C$4=7,'1'!AZ22,IF($C$4=9,'1'!BX22,"FAUX")))) -> 3.4 | J19: =IF($C$4=2.7,'1'!E22,IF($C$4=4.5,'1'!AC22,IF($C$4=7,'1'!BA22,IF($C$4=9,'1'!BY22,"FAUX")))) -> 3.45 | K19: =IF($C$4=2.7,'1'!F22,IF($C$4=4.5,'1'!AD22,IF($C$4=7,'1'!BB22,IF($C$4=9,'1'!BZ22,"FAUX")))) -> 4.68 | L19: =IF($C$4=2.7,'1'!G22,IF($C$4=4.5,'1'!AE22,IF($C$4=7,'1'!BC22,IF($C$4=9,'1'!CA22,"FAUX")))) -> 4.96 | M19: =IF($C$4=2.7,'1'!H22,IF($C$4=4.5,'1'!AF22,IF($C$4=7,'1'!BD22,IF($C$4=9,'1'!CB22,"FAUX")))) -> 3.05 | N19: =IF($C$4=2.7,'1'!I22,IF($C$4=4.5,'1'!AG22,IF($C$4=7,'1'!BE22,IF($C$4=9,'1'!CC22,"FAUX")))) -> 3.02 | O19: =IF($C$4=2.7,'1'!J22,IF($C$4=4.5,'1'!AH22,IF($C$4=7,'1'!BF22,IF($C$4=9,'1'!CD22,"FAUX")))) -> 4.2 | P19: =IF($C$4=2.7,'1'!K22,IF($C$4=4.5,'1'!AI22,IF($C$4=7,'1'!BG22,IF($C$4=9,'1'!CE22,"FAUX")))) -> 4.36 | Q19: =IF($C$4=2.7,'1'!L22,IF($C$4=4.5,'1'!AJ22,IF($C$4=7,'1'!BH22,IF($C$4=9,'1'!CF22,"FAUX")))) -> 3.11 | R19: =IF($C$4=2.7,'1'!M22,IF($C$4=4.5,'1'!AK22,IF($C$4=7,'1'!BI22,IF($C$4=9,'1'!CG22,"FAUX")))) -> 3.23 | S19: =IF($C$4=2.7,'1'!N22,IF($C$4=4.5,'1'!AL22,IF($C$4=7,'1'!BJ22,IF($C$4=9,'1'!CH22,"FAUX")))) -> 4.42 | T19: =IF($C$4=2.7,'1'!O22,IF($C$4=4.5,'1'!AM22,IF($C$4=7,'1'!BK22,IF($C$4=9,'1'!CI22,"FAUX")))) -> 4.81 | U19: =IF($C$4=2.7,'1'!P22,IF($C$4=4.5,'1'!AN22,IF($C$4=7,'1'!BL22,IF($C$4=9,'1'!CJ22,"FAUX")))) -> 2.45 | V19: =IF($C$4=2.7,'1'!Q22,IF($C$4=4.5,'1'!AO22,IF($C$4=7,'1'!BM22,IF($C$4=9,'1'!CK22,"FAUX")))) -> 2.63 | W19: =IF($C$4=2.7,'1'!R22,IF($C$4=4.5,'1'!AP22,IF($C$4=7,'1'!BN22,IF($C$4=9,'1'!CL22,"FAUX")))) -> 4.48 | X19: =IF($C$4=2.7,'1'!S22,IF($C$4=4.5,'1'!AQ22,IF($C$4=7,'1'!BO22,IF($C$4=9,'1'!CM22,"FAUX")))) -> 4.84 | Y19: =IF($C$4=2.7,'1'!T22,IF($C$4=4.5,'1'!AR22,IF($C$4=7,'1'!BP22,IF($C$4=9,'1'!CN22,"FAUX")))) -> 2.1 | Z19: =IF($C$4=2.7,'1'!U22,IF($C$4=4.5,'1'!AS22,IF($C$4=7,'1'!BQ22,IF($C$4=9,'1'!CO22,"FAUX")))) -> 2.32 | AA19: =IF($C$4=2.7,'1'!V22,IF($C$4=4.5,'1'!AT22,IF($C$4=7,'1'!BR22,IF($C$4=9,'1'!CP22,"FAUX")))) -> 4.27 | AB19: =IF($C$4=2.7,'1'!W22,IF($C$4=4.5,'1'!AU22,IF($C$4=7,'1'!BS22,IF($C$4=9,'1'!CQ22,"FAUX")))) -> 4.71 | AC19: =IF($C$4=2.7,'1'!X22,IF($C$4=4.5,'1'!AV22,IF($C$4=7,'1'!BT22,IF($C$4=9,'1'!CR22,"FAUX")))) -> 2.26 | AD19: =IF($C$4=2.7,'1'!Y22,IF($C$4=4.5,'1'!AW22,IF($C$4=7,'1'!BU22,IF($C$4=9,'1'!CS22,"FAUX")))) -> 2.48 | AE19: =IF($C$4=2.7,'1'!Z22,IF($C$4=4.5,'1'!AX22,IF($C$4=7,'1'!BV22,IF($C$4=9,'1'!CT22,"FAUX")))) -> 4.21 | AF19: =IF($C$4=2.7,'1'!AA22,IF($C$4=4.5,'1'!AY22,IF($C$4=7,'1'!BW22,IF($C$4=9,'1'!CU22,"FAUX")))) -> 4.61 | AH19: Mix 3 | AI19: Lidocaine | AJ19: 0.001666666667 | AK19: 3.35 | AL19: 0.009333333333 | AM19: 4.4 | AN19: -0.001 | AO19: 3.08 | AP19: 0.005333333333 | AQ19: 4.04 | AR19: 0.004 | AS19: 2.99 | AT19: 0.013 | AU19: 4.03 | AV19: 0.006 | AW19: 2.27 | AX19: 0.012 | AY19: 4.12 | AZ19: 0.007333333333 | BA19: 1.88 | BB19: 0.01466666667 | BC19: 3.83 | BD19: 0.007333333333 | BE19: 2.04 | BF19: 0.01333333333 | BG19: 3.81 | BI19: Mix 3 | BJ19: Lidocaine | BK19: 3.4 | BL19: 3.05 | BM19: 3.11 | BN19: 2.45 | BO19: 2.1 | BP19: 2.26 | BR19: Mix 3 | BS19: Lidocaine | BT19: 4.68 | BU19: 4.2 | BV19: 4.42 | BW19: 4.48 | BX19: 4.27 | BY19: 4.21 | CB19: S | CC19: S | CD19: S | CE19: S | CF19: S | CG19: S | CI19: Mix 3 | CJ19: Lidocaine | CK19: ='1'!D68 -> 0.2924353186 | CL19: ='1'!E68 -> 0.2196067183 | CM19: ='1'!F68 -> 0.1466728896 | CN19: ='1'!G68 -> 0.08131988141 | CO19: ='1'!H68 -> 0.0302781995 | CP19: ='1'!I68 -> 0.007777139031 | CQ19: ='1'!J68 -> 0.004610713099 | CR19: ='1'!K68 -> 0.003464942071 | CS19: ='1'!L68 -> -0.0003984111079 | CT19: ='1'!M68 -> -0.0003984111079 | CU19: ='1'!N68 -> -0.0003984111079 | CV19: ='1'!O68 -> -0.0003984111079 | CW19: ='1'!P68 -> -0.0003984111079 | CX19: ='1'!Q68 -> -0.0003984111079 | CY19: ='1'!R68 -> -0.0003984111079 | CZ19: ='1'!S68 -> -0.0003984111079 | DB19: Mix 3 | DC19: Lidocaine | DD19: =HLOOKUP($DD$7,$CJ$7:$CZ$48,13,FALSE) -> 0.1466728896 | DF19: Mix 3 | DG19: Lidocaine | DH19: =IF($C$4=2.7,'1'!D136,IF($C$4=4.5,'1'!G136,IF($C$4=7,'1'!J136,IF($C$4=9,'1'!M136,FALSE)))) -> 1.05 | DI19: =IF($C$4=2.7,'1'!E136,IF($C$4=4.5,'1'!H136,IF($C$4=7,'1'!K136,IF($C$4=9,'1'!N136,FALSE)))) -> 1.01 | DJ19: =IF($C$4=2.7,'1'!F136,IF($C$4=4.5,'1'!I136,IF($C$4=7,'1'!L136,IF($C$4=9,'1'!O136,FALSE)))) -> 0.98 | DL19: Mix 3 | DM19: Lidocaine | DN19: =HLOOKUP($DN$7,$DG$7:$DJ$48,13,FALSE) -> 1.05 | DP19: Mix 3 | DQ19: Lidocaine | DS19: 7.75 | DT19: 1 | DV19: 2 | DW19: 99.99998415 | DX19: 1.584892941e-05
B20: Ltube outlet | C20: =calculation2!E77 -> 50 | D20: cm | H20: 2,6-dimethylaniline | I20: =IF($C$4=2.7,'1'!D23,IF($C$4=4.5,'1'!AB23,IF($C$4=7,'1'!AZ23,IF($C$4=9,'1'!BX23,"FAUX")))) -> 2.04 | J20: =IF($C$4=2.7,'1'!E23,IF($C$4=4.5,'1'!AC23,IF($C$4=7,'1'!BA23,IF($C$4=9,'1'!BY23,"FAUX")))) -> 1.9 | K20: =IF($C$4=2.7,'1'!F23,IF($C$4=4.5,'1'!AD23,IF($C$4=7,'1'!BB23,IF($C$4=9,'1'!BZ23,"FAUX")))) -> 3.48 | L20: =IF($C$4=2.7,'1'!G23,IF($C$4=4.5,'1'!AE23,IF($C$4=7,'1'!BC23,IF($C$4=9,'1'!CA23,"FAUX")))) -> 3.58 | M20: =IF($C$4=2.7,'1'!H23,IF($C$4=4.5,'1'!AF23,IF($C$4=7,'1'!BD23,IF($C$4=9,'1'!CB23,"FAUX")))) -> 2.16 | N20: =IF($C$4=2.7,'1'!I23,IF($C$4=4.5,'1'!AG23,IF($C$4=7,'1'!BE23,IF($C$4=9,'1'!CC23,"FAUX")))) -> 1.74 | O20: =IF($C$4=2.7,'1'!J23,IF($C$4=4.5,'1'!AH23,IF($C$4=7,'1'!BF23,IF($C$4=9,'1'!CD23,"FAUX")))) -> 4.23 | P20: =IF($C$4=2.7,'1'!K23,IF($C$4=4.5,'1'!AI23,IF($C$4=7,'1'!BG23,IF($C$4=9,'1'!CE23,"FAUX")))) -> 3.34 | Q20: =IF($C$4=2.7,'1'!L23,IF($C$4=4.5,'1'!AJ23,IF($C$4=7,'1'!BH23,IF($C$4=9,'1'!CF23,"FAUX")))) -> 1.95 | R20: =IF($C$4=2.7,'1'!M23,IF($C$4=4.5,'1'!AK23,IF($C$4=7,'1'!BI23,IF($C$4=9,'1'!CG23,"FAUX")))) -> 1.81 | S20: =IF($C$4=2.7,'1'!N23,IF($C$4=4.5,'1'!AL23,IF($C$4=7,'1'!BJ23,IF($C$4=9,'1'!CH23,"FAUX")))) -> 3.44 | T20: =IF($C$4=2.7,'1'!O23,IF($C$4=4.5,'1'!AM23,IF($C$4=7,'1'!BK23,IF($C$4=9,'1'!CI23,"FAUX")))) -> 3.52 | U20: =IF($C$4=2.7,'1'!P23,IF($C$4=4.5,'1'!AN23,IF($C$4=7,'1'!BL23,IF($C$4=9,'1'!CJ23,"FAUX")))) -> 2.12 | V20: =IF($C$4=2.7,'1'!Q23,IF($C$4=4.5,'1'!AO23,IF($C$4=7,'1'!BM23,IF($C$4=9,'1'!CK23,"FAUX")))) -> 1.8 | W20: =IF($C$4=2.7,'1'!R23,IF($C$4=4.5,'1'!AP23,IF($C$4=7,'1'!BN23,IF($C$4=9,'1'!CL23,"FAUX")))) -> 4.94 | X20: =IF($C$4=2.7,'1'!S23,IF($C$4=4.5,'1'!AQ23,IF($C$4=7,'1'!BO23,IF($C$4=9,'1'!CM23,"FAUX")))) -> 4.28 | Y20: =IF($C$4=2.7,'1'!T23,IF($C$4=4.5,'1'!AR23,IF($C$4=7,'1'!BP23,IF($C$4=9,'1'!CN23,"FAUX")))) -> 1.78 | Z20: =IF($C$4=2.7,'1'!U23,IF($C$4=4.5,'1'!AS23,IF($C$4=7,'1'!BQ23,IF($C$4=9,'1'!CO23,"FAUX")))) -> 1.62 | AA20: =IF($C$4=2.7,'1'!V23,IF($C$4=4.5,'1'!AT23,IF($C$4=7,'1'!BR23,IF($C$4=9,'1'!CP23,"FAUX")))) -> 4.39 | AB20: =IF($C$4=2.7,'1'!W23,IF($C$4=4.5,'1'!AU23,IF($C$4=7,'1'!BS23,IF($C$4=9,'1'!CQ23,"FAUX")))) -> 4.16 | AC20: =IF($C$4=2.7,'1'!X23,IF($C$4=4.5,'1'!AV23,IF($C$4=7,'1'!BT23,IF($C$4=9,'1'!CR23,"FAUX")))) -> 1.84 | AD20: =IF($C$4=2.7,'1'!Y23,IF($C$4=4.5,'1'!AW23,IF($C$4=7,'1'!BU23,IF($C$4=9,'1'!CS23,"FAUX")))) -> 1.72 | AE20: =IF($C$4=2.7,'1'!Z23,IF($C$4=4.5,'1'!AX23,IF($C$4=7,'1'!BV23,IF($C$4=9,'1'!CT23,"FAUX")))) -> 4.13 | AF20: =IF($C$4=2.7,'1'!AA23,IF($C$4=4.5,'1'!AY23,IF($C$4=7,'1'!BW23,IF($C$4=9,'1'!CU23,"FAUX")))) -> 4.15 | AI20: 2,6-dimethylaniline | AJ20: -0.004666666667 | AK20: 2.18 | AL20: 0.003333333333 | AM20: 3.38 | AN20: -0.014 | AO20: 2.58 | AP20: -0.02966666667 | AQ20: 5.12 | AR20: -0.004666666667 | AS20: 2.09 | AT20: 0.002666666667 | AU20: 3.36 | AV20: -0.01066666667 | AW20: 2.44 | AX20: -0.022 | AY20: 5.6 | AZ20: -0.005333333333 | BA20: 1.94 | BB20: -0.007666666667 | BC20: 4.62 | BD20: -0.004 | BE20: 1.96 | BF20: 0.0006666666667 | BG20: 4.11 | BJ20: 2,6-dimethylaniline | BK20: 2.04 | BL20: 2.16 | BM20: 1.95 | BN20: 2.12 | BO20: 1.78 | BP20: 1.84 | BS20: 2,6-dimethylaniline | BT20: 3.48 | BU20: 4.23 | BV20: 3.44 | BW20: 4.94 | BX20: 4.39 | BY20: 4.13 | CB20: MethanolC18 | CC20: MethanolPhenyl | CD20: MethanolC4 | CE20: AcetonitrileC18 | CF20: AcetonitrilePhenyl | CG20: AcetonitrileC4 | CJ20: 2,6-dimethylaniline | CK20: ='1'!D69 -> 0.353946 | CL20: ='1'!E69 -> 0.2852692556 | CM20: ='1'!F69 -> 0.1130464385 | CN20: ='1'!G69 -> 0.06410489253 | CO20: ='1'!H69 -> 0.03123434355 | CP20: ='1'!I69 -> 0.01161568261 | CQ20: ='1'!J69 -> 0.012034891 | CR20: ='1'!K69 -> 0.01102010684 | CS20: ='1'!L69 -> 0.005803865965 | CT20: ='1'!M69 -> 0.00309453388 | CU20: ='1'!N69 -> -0.000254128273 | CV20: ='1'!O69 -> -0.000254128273 | CW20: ='1'!P69 -> -0.000254128273 | CX20: ='1'!Q69 -> -0.000254128273 | CY20: ='1'!R69 -> -0.000254128273 | CZ20: ='1'!S69 -> -0.000254128273 | DC20: 2,6-dimethylaniline | DD20: =HLOOKUP($DD$7,$CJ$7:$CZ$48,14,FALSE) -> 0.1130464385 | DG20: 2,6-dimethylaniline | DH20: =IF($C$4=2.7,'1'!D137,IF($C$4=4.5,'1'!G137,IF($C$4=7,'1'!J137,IF($C$4=9,'1'!M137,FALSE)))) -> 1 | DI20: =IF($C$4=2.7,'1'!E137,IF($C$4=4.5,'1'!H137,IF($C$4=7,'1'!K137,IF($C$4=9,'1'!N137,FALSE)))) -> 1.01 | DJ20: =IF($C$4=2.7,'1'!F137,IF($C$4=4.5,'1'!I137,IF($C$4=7,'1'!L137,IF($C$4=9,'1'!O137,FALSE)))) -> 0.96 | DM20: 2,6-dimethylaniline | DN20: =HLOOKUP($DN$7,$DG$7:$DJ$48,14,FALSE) -> 1 | DQ20: 2,6-dimethylaniline | DS20: 4.31 | DT20: 1 | DV20: 2.5 | DW20: 99.99994988 | DX20: 5.011869825e-05
B21: dtube outlet | C21: =calculation2!E78 -> 250 | D21: µm | H21: Methylparaben | I21: =IF($C$4=2.7,'1'!D24,IF($C$4=4.5,'1'!AB24,IF($C$4=7,'1'!AZ24,IF($C$4=9,'1'!BX24,"FAUX")))) -> 2.06 | J21: =IF($C$4=2.7,'1'!E24,IF($C$4=4.5,'1'!AC24,IF($C$4=7,'1'!BA24,IF($C$4=9,'1'!BY24,"FAUX")))) -> 1.92 | K21: =IF($C$4=2.7,'1'!F24,IF($C$4=4.5,'1'!AD24,IF($C$4=7,'1'!BB24,IF($C$4=9,'1'!BZ24,"FAUX")))) -> 4.25 | L21: =IF($C$4=2.7,'1'!G24,IF($C$4=4.5,'1'!AE24,IF($C$4=7,'1'!BC24,IF($C$4=9,'1'!CA24,"FAUX")))) -> 4.84 | M21: =IF($C$4=2.7,'1'!H24,IF($C$4=4.5,'1'!AF24,IF($C$4=7,'1'!BD24,IF($C$4=9,'1'!CB24,"FAUX")))) -> 1.91 | N21: =IF($C$4=2.7,'1'!I24,IF($C$4=4.5,'1'!AG24,IF($C$4=7,'1'!BE24,IF($C$4=9,'1'!CC24,"FAUX")))) -> 1.67 | O21: =IF($C$4=2.7,'1'!J24,IF($C$4=4.5,'1'!AH24,IF($C$4=7,'1'!BF24,IF($C$4=9,'1'!CD24,"FAUX")))) -> 3.91 | P21: =IF($C$4=2.7,'1'!K24,IF($C$4=4.5,'1'!AI24,IF($C$4=7,'1'!BG24,IF($C$4=9,'1'!CE24,"FAUX")))) -> 4.16 | Q21: =IF($C$4=2.7,'1'!L24,IF($C$4=4.5,'1'!AJ24,IF($C$4=7,'1'!BH24,IF($C$4=9,'1'!CF24,"FAUX")))) -> 2.02 | R21: =IF($C$4=2.7,'1'!M24,IF($C$4=4.5,'1'!AK24,IF($C$4=7,'1'!BI24,IF($C$4=9,'1'!CG24,"FAUX")))) -> 1.81 | S21: =IF($C$4=2.7,'1'!N24,IF($C$4=4.5,'1'!AL24,IF($C$4=7,'1'!BJ24,IF($C$4=9,'1'!CH24,"FAUX")))) -> 4.23 | T21: =IF($C$4=2.7,'1'!O24,IF($C$4=4.5,'1'!AM24,IF($C$4=7,'1'!BK24,IF($C$4=9,'1'!CI24,"FAUX")))) -> 4.48 | U21: =IF($C$4=2.7,'1'!P24,IF($C$4=4.5,'1'!AN24,IF($C$4=7,'1'!BL24,IF($C$4=9,'1'!CJ24,"FAUX")))) -> 1.76 | V21: =IF($C$4=2.7,'1'!Q24,IF($C$4=4.5,'1'!AO24,IF($C$4=7,'1'!BM24,IF($C$4=9,'1'!CK24,"FAUX")))) -> 1.9 | W21: =IF($C$4=2.7,'1'!R24,IF($C$4=4.5,'1'!AP24,IF($C$4=7,'1'!BN24,IF($C$4=9,'1'!CL24,"FAUX")))) -> 5.4 | X21: =IF($C$4=2.7,'1'!S24,IF($C$4=4.5,'1'!AQ24,IF($C$4=7,'1'!BO24,IF($C$4=9,'1'!CM24,"FAUX")))) -> 7.5 | Y21: =IF($C$4=2.7,'1'!T24,IF($C$4=4.5,'1'!AR24,IF($C$4=7,'1'!BP24,IF($C$4=9,'1'!CN24,"FAUX")))) -> 1.66 | Z21: =IF($C$4=2.7,'1'!U24,IF($C$4=4.5,'1'!AS24,IF($C$4=7,'1'!BQ24,IF($C$4=9,'1'!CO24,"FAUX")))) -> 1.6 | AA21: =IF($C$4=2.7,'1'!V24,IF($C$4=4.5,'1'!AT24,IF($C$4=7,'1'!BR24,IF($C$4=9,'1'!CP24,"FAUX")))) -> 5.59 | AB21: =IF($C$4=2.7,'1'!W24,IF($C$4=4.5,'1'!AU24,IF($C$4=7,'1'!BS24,IF($C$4=9,'1'!CQ24,"FAUX")))) -> 6.48 | AC21: =IF($C$4=2.7,'1'!X24,IF($C$4=4.5,'1'!AV24,IF($C$4=7,'1'!BT24,IF($C$4=9,'1'!CR24,"FAUX")))) -> 1.7 | AD21: =IF($C$4=2.7,'1'!Y24,IF($C$4=4.5,'1'!AW24,IF($C$4=7,'1'!BU24,IF($C$4=9,'1'!CS24,"FAUX")))) -> 1.71 | AE21: =IF($C$4=2.7,'1'!Z24,IF($C$4=4.5,'1'!AX24,IF($C$4=7,'1'!BV24,IF($C$4=9,'1'!CT24,"FAUX")))) -> 5.24 | AF21: =IF($C$4=2.7,'1'!AA24,IF($C$4=4.5,'1'!AY24,IF($C$4=7,'1'!BW24,IF($C$4=9,'1'!CU24,"FAUX")))) -> 6.36 | AI21: Methylparaben | AJ21: -0.004666666667 | AK21: 2.2 | AL21: 0.01966666667 | AM21: 3.66 | AN21: -0.008 | AO21: 2.15 | AP21: 0.008333333333 | AQ21: 3.66 | AR21: -0.007 | AS21: 2.23 | AT21: 0.008333333333 | AU21: 3.98 | AV21: 0.004666666667 | AW21: 1.62 | AX21: 0.07 | AY21: 3.3 | AZ21: -0.002 | BA21: 1.72 | BB21: 0.02966666667 | BC21: 4.7 | BD21: 0.0003333333333 | BE21: 1.69 | BF21: 0.03733333333 | BG21: 4.12 | BJ21: Methylparaben | BK21: 2.06 | BL21: 1.91 | BM21: 2.02 | BN21: 1.76 | BO21: 1.66 | BP21: 1.7 | BS21: Methylparaben | BT21: 4.25 | BU21: 3.91 | BV21: 4.23 | BW21: 5.4 | BX21: 5.59 | BY21: 5.24 | CA21: =$Q$56 -> Uracil | CB21: =VLOOKUP($Q$56,$BS$8:$BY$48,2,FALSE) -> 5.96 | CC21: =VLOOKUP($Q$56,$BS$8:$BY$48,3,FALSE) -> 4.98 | CD21: =VLOOKUP($Q$56,$BS$8:$BY$48,4,FALSE) -> 5.54 | CE21: =VLOOKUP($Q$56,$BS$8:$BY$48,5,FALSE) -> 5.26 | CF21: =VLOOKUP($Q$56,$BS$8:$BY$48,6,FALSE) -> 8.71 | CG21: =VLOOKUP($Q$56,$BS$8:$BY$48,7,FALSE) -> 15 | CJ21: Methylparaben | CK21: ='1'!D70 -> 0.3260977651 | CL21: ='1'!E70 -> 0.3009621517 | CM21: ='1'!F70 -> 0.1625005423 | CN21: ='1'!G70 -> 0.1294062311 | CO21: ='1'!H70 -> 0.1835801128 | CP21: ='1'!I70 -> 0.2902427418 | CQ21: ='1'!J70 -> 0.3002924668 | CR21: ='1'!K70 -> 0.1892971961 | CS21: ='1'!L70 -> 0.07217608975 | CT21: ='1'!M70 -> 0.005921654436 | CU21: ='1'!N70 -> -0.0003984111079 | CV21: ='1'!O70 -> -0.0003984111079 | CW21: ='1'!P70 -> -0.0003984111079 | CX21: ='1'!Q70 -> -0.0003984111079 | CY21: ='1'!R70 -> -0.0003984111079 | CZ21: ='1'!S70 -> -0.0003984111079 | DC21: Methylparaben | DD21: =HLOOKUP($DD$7,$CJ$7:$CZ$48,15,FALSE) -> 0.1625005423 | DG21: Methylparaben | DH21: =IF($C$4=2.7,'1'!D138,IF($C$4=4.5,'1'!G138,IF($C$4=7,'1'!J138,IF($C$4=9,'1'!M138,FALSE)))) -> 1.07 | DI21: =IF($C$4=2.7,'1'!E138,IF($C$4=4.5,'1'!H138,IF($C$4=7,'1'!K138,IF($C$4=9,'1'!N138,FALSE)))) -> 1.04 | DJ21: =IF($C$4=2.7,'1'!F138,IF($C$4=4.5,'1'!I138,IF($C$4=7,'1'!L138,IF($C$4=9,'1'!O138,FALSE)))) -> 1.03 | DM21: Methylparaben | DN21: =HLOOKUP($DN$7,$DG$7:$DJ$48,15,FALSE) -> 1.07 | DQ21: Methylparaben | DR21: 8.5 | DT21: 2 | DV21: 3 | DW21: 99.99984151 | DX21: 0.0001584890681
B22: Vinj | C22: =calculation2!E79 -> 20 | D22: µL | H22: Propylparaben | I22: =IF($C$4=2.7,'1'!D25,IF($C$4=4.5,'1'!AB25,IF($C$4=7,'1'!AZ25,IF($C$4=9,'1'!BX25,"FAUX")))) -> 3.16 | J22: =IF($C$4=2.7,'1'!E25,IF($C$4=4.5,'1'!AC25,IF($C$4=7,'1'!BA25,IF($C$4=9,'1'!BY25,"FAUX")))) -> 3.26 | K22: =IF($C$4=2.7,'1'!F25,IF($C$4=4.5,'1'!AD25,IF($C$4=7,'1'!BB25,IF($C$4=9,'1'!BZ25,"FAUX")))) -> 4.95 | L22: =IF($C$4=2.7,'1'!G25,IF($C$4=4.5,'1'!AE25,IF($C$4=7,'1'!BC25,IF($C$4=9,'1'!CA25,"FAUX")))) -> 5.82 | M22: =IF($C$4=2.7,'1'!H25,IF($C$4=4.5,'1'!AF25,IF($C$4=7,'1'!BD25,IF($C$4=9,'1'!CB25,"FAUX")))) -> 2.94 | N22: =IF($C$4=2.7,'1'!I25,IF($C$4=4.5,'1'!AG25,IF($C$4=7,'1'!BE25,IF($C$4=9,'1'!CC25,"FAUX")))) -> 2.66 | O22: =IF($C$4=2.7,'1'!J25,IF($C$4=4.5,'1'!AH25,IF($C$4=7,'1'!BF25,IF($C$4=9,'1'!CD25,"FAUX")))) -> 4.8 | P22: =IF($C$4=2.7,'1'!K25,IF($C$4=4.5,'1'!AI25,IF($C$4=7,'1'!BG25,IF($C$4=9,'1'!CE25,"FAUX")))) -> 4.84 | Q22: =IF($C$4=2.7,'1'!L25,IF($C$4=4.5,'1'!AJ25,IF($C$4=7,'1'!BH25,IF($C$4=9,'1'!CF25,"FAUX")))) -> 3.1 | R22: =IF($C$4=2.7,'1'!M25,IF($C$4=4.5,'1'!AK25,IF($C$4=7,'1'!BI25,IF($C$4=9,'1'!CG25,"FAUX")))) -> 2.86 | S22: =IF($C$4=2.7,'1'!N25,IF($C$4=4.5,'1'!AL25,IF($C$4=7,'1'!BJ25,IF($C$4=9,'1'!CH25,"FAUX")))) -> 5.1 | T22: =IF($C$4=2.7,'1'!O25,IF($C$4=4.5,'1'!AM25,IF($C$4=7,'1'!BK25,IF($C$4=9,'1'!CI25,"FAUX")))) -> 5.16 | U22: =IF($C$4=2.7,'1'!P25,IF($C$4=4.5,'1'!AN25,IF($C$4=7,'1'!BL25,IF($C$4=9,'1'!CJ25,"FAUX")))) -> 2.49 | V22: =IF($C$4=2.7,'1'!Q25,IF($C$4=4.5,'1'!AO25,IF($C$4=7,'1'!BM25,IF($C$4=9,'1'!CK25,"FAUX")))) -> 2.64 | W22: =IF($C$4=2.7,'1'!R25,IF($C$4=4.5,'1'!AP25,IF($C$4=7,'1'!BN25,IF($C$4=9,'1'!CL25,"FAUX")))) -> 5.2 | X22: =IF($C$4=2.7,'1'!S25,IF($C$4=4.5,'1'!AQ25,IF($C$4=7,'1'!BO25,IF($C$4=9,'1'!CM25,"FAUX")))) -> 6.33 | Y22: =IF($C$4=2.7,'1'!T25,IF($C$4=4.5,'1'!AR25,IF($C$4=7,'1'!BP25,IF($C$4=9,'1'!CN25,"FAUX")))) -> 2.33 | Z22: =IF($C$4=2.7,'1'!U25,IF($C$4=4.5,'1'!AS25,IF($C$4=7,'1'!BQ25,IF($C$4=9,'1'!CO25,"FAUX")))) -> 2.31 | AA22: =IF($C$4=2.7,'1'!V25,IF($C$4=4.5,'1'!AT25,IF($C$4=7,'1'!BR25,IF($C$4=9,'1'!CP25,"FAUX")))) -> 5.43 | AB22: =IF($C$4=2.7,'1'!W25,IF($C$4=4.5,'1'!AU25,IF($C$4=7,'1'!BS25,IF($C$4=9,'1'!CQ25,"FAUX")))) -> 6.02 | AC22: =IF($C$4=2.7,'1'!X25,IF($C$4=4.5,'1'!AV25,IF($C$4=7,'1'!BT25,IF($C$4=9,'1'!CR25,"FAUX")))) -> 2.43 | AD22: =IF($C$4=2.7,'1'!Y25,IF($C$4=4.5,'1'!AW25,IF($C$4=7,'1'!BU25,IF($C$4=9,'1'!CS25,"FAUX")))) -> 2.37 | AE22: =IF($C$4=2.7,'1'!Z25,IF($C$4=4.5,'1'!AX25,IF($C$4=7,'1'!BV25,IF($C$4=9,'1'!CT25,"FAUX")))) -> 5.27 | AF22: =IF($C$4=2.7,'1'!AA25,IF($C$4=4.5,'1'!AY25,IF($C$4=7,'1'!BW25,IF($C$4=9,'1'!CU25,"FAUX")))) -> 5.62 | AI22: Propylparaben | AJ22: 0.003333333333 | AK22: 3.06 | AL22: 0.029 | AM22: 4.08 | AN22: -0.009333333333 | AO22: 3.22 | AP22: 0.001333333333 | AQ22: 4.76 | AR22: -0.008 | AS22: 3.34 | AT22: 0.002 | AU22: 5.04 | AV22: 0.005 | AW22: 2.34 | AX22: 0.03766666667 | AY22: 4.07 | AZ22: -0.0006666666667 | BA22: 2.35 | BB22: 0.01966666667 | BC22: 4.84 | BD22: -0.002 | BE22: 2.49 | BF22: 0.01166666667 | BG22: 4.92 | BJ22: Propylparaben | BK22: 3.16 | BL22: 2.94 | BM22: 3.1 | BN22: 2.49 | BO22: 2.33 | BP22: 2.43 | BS22: Propylparaben | BT22: 4.95 | BU22: 4.8 | BV22: 5.1 | BW22: 5.2 | BX22: 5.43 | BY22: 5.27 | CA22: =$R$56 -> Methylparaben | CB22: =VLOOKUP($R$56,$BS$8:$BY$48,2,FALSE) -> 4.25 | CC22: =VLOOKUP($R$56,$BS$8:$BY$48,3,FALSE) -> 3.91 | CD22: =VLOOKUP($R$56,$BS$8:$BY$48,4,FALSE) -> 4.23 | CE22: =VLOOKUP($R$56,$BS$8:$BY$48,5,FALSE) -> 5.4 | CF22: =VLOOKUP($R$56,$BS$8:$BY$48,6,FALSE) -> 5.59 | CG22: =VLOOKUP($R$56,$BS$8:$BY$48,7,FALSE) -> 5.24 | CJ22: Propylparaben | CK22: ='1'!D71 -> 0.2525449979 | CL22: ='1'!E71 -> 0.2647808032 | CM22: ='1'!F71 -> 0.1892171151 | CN22: ='1'!G71 -> 0.1604715642 | CO22: ='1'!H71 -> 0.1834312777 | CP22: ='1'!I71 -> 0.2627308791 | CQ22: ='1'!J71 -> 0.2671507824 | CR22: ='1'!K71 -> 0.1660172794 | CS22: ='1'!L71 -> 0.06127615529 | CT22: ='1'!M71 -> 0.004187547815 | CU22: ='1'!N71 -> 0 | CV22: ='1'!O71 -> 0 | CW22: ='1'!P71 -> 0 | CX22: ='1'!Q71 -> 0 | CY22: ='1'!R71 -> 0 | CZ22: ='1'!S71 -> 0 | DC22: Propylparaben | DD22: =HLOOKUP($DD$7,$CJ$7:$CZ$48,16,FALSE) -> 0.1892171151 | DG22: Propylparaben | DH22: =IF($C$4=2.7,'1'!D139,IF($C$4=4.5,'1'!G139,IF($C$4=7,'1'!J139,IF($C$4=9,'1'!M139,FALSE)))) -> 1.05 | DI22: =IF($C$4=2.7,'1'!E139,IF($C$4=4.5,'1'!H139,IF($C$4=7,'1'!K139,IF($C$4=9,'1'!N139,FALSE)))) -> 1.02 | DJ22: =IF($C$4=2.7,'1'!F139,IF($C$4=4.5,'1'!I139,IF($C$4=7,'1'!L139,IF($C$4=9,'1'!O139,FALSE)))) -> 1.02 | DM22: Propylparaben | DN22: =HLOOKUP($DN$7,$DG$7:$DJ$48,16,FALSE) -> 1.05 | DQ22: Propylparaben | DR22: 8.5 | DT22: 2 | DV22: 3.5 | DW22: 99.99949882 | DX22: 0.0005011847218
B23: % injection solvent | C23: ='HPLC simulator'!L30 -> 20 | D23: % | G23: Mix 4 | H23: THC | I23: =IF($C$4=2.7,'1'!D26,IF($C$4=4.5,'1'!AB26,IF($C$4=7,'1'!AZ26,IF($C$4=9,'1'!BX26,"FAUX")))) -> 6.29 | J23: =IF($C$4=2.7,'1'!E26,IF($C$4=4.5,'1'!AC26,IF($C$4=7,'1'!BA26,IF($C$4=9,'1'!BY26,"FAUX")))) -> 6.16 | K23: =IF($C$4=2.7,'1'!F26,IF($C$4=4.5,'1'!AD26,IF($C$4=7,'1'!BB26,IF($C$4=9,'1'!BZ26,"FAUX")))) -> 6.78 | L23: =IF($C$4=2.7,'1'!G26,IF($C$4=4.5,'1'!AE26,IF($C$4=7,'1'!BC26,IF($C$4=9,'1'!CA26,"FAUX")))) -> 6.92 | M23: =IF($C$4=2.7,'1'!H26,IF($C$4=4.5,'1'!AF26,IF($C$4=7,'1'!BD26,IF($C$4=9,'1'!CB26,"FAUX")))) -> 6 | N23: =IF($C$4=2.7,'1'!I26,IF($C$4=4.5,'1'!AG26,IF($C$4=7,'1'!BE26,IF($C$4=9,'1'!CC26,"FAUX")))) -> 5.44 | O23: =IF($C$4=2.7,'1'!J26,IF($C$4=4.5,'1'!AH26,IF($C$4=7,'1'!BF26,IF($C$4=9,'1'!CD26,"FAUX")))) -> 6.92 | P23: =IF($C$4=2.7,'1'!K26,IF($C$4=4.5,'1'!AI26,IF($C$4=7,'1'!BG26,IF($C$4=9,'1'!CE26,"FAUX")))) -> 6.51 | Q23: =IF($C$4=2.7,'1'!L26,IF($C$4=4.5,'1'!AJ26,IF($C$4=7,'1'!BH26,IF($C$4=9,'1'!CF26,"FAUX")))) -> 6.08 | R23: =IF($C$4=2.7,'1'!M26,IF($C$4=4.5,'1'!AK26,IF($C$4=7,'1'!BI26,IF($C$4=9,'1'!CG26,"FAUX")))) -> 5.76 | S23: =IF($C$4=2.7,'1'!N26,IF($C$4=4.5,'1'!AL26,IF($C$4=7,'1'!BJ26,IF($C$4=9,'1'!CH26,"FAUX")))) -> 7.06 | T23: =IF($C$4=2.7,'1'!O26,IF($C$4=4.5,'1'!AM26,IF($C$4=7,'1'!BK26,IF($C$4=9,'1'!CI26,"FAUX")))) -> 6.92 | U23: =IF($C$4=2.7,'1'!P26,IF($C$4=4.5,'1'!AN26,IF($C$4=7,'1'!BL26,IF($C$4=9,'1'!CJ26,"FAUX")))) -> 3.94 | V23: =IF($C$4=2.7,'1'!Q26,IF($C$4=4.5,'1'!AO26,IF($C$4=7,'1'!BM26,IF($C$4=9,'1'!CK26,"FAUX")))) -> 3.91 | W23: =IF($C$4=2.7,'1'!R26,IF($C$4=4.5,'1'!AP26,IF($C$4=7,'1'!BN26,IF($C$4=9,'1'!CL26,"FAUX")))) -> 4.27 | X23: =IF($C$4=2.7,'1'!S26,IF($C$4=4.5,'1'!AQ26,IF($C$4=7,'1'!BO26,IF($C$4=9,'1'!CM26,"FAUX")))) -> 4.5 | Y23: =IF($C$4=2.7,'1'!T26,IF($C$4=4.5,'1'!AR26,IF($C$4=7,'1'!BP26,IF($C$4=9,'1'!CN26,"FAUX")))) -> 3.9 | Z23: =IF($C$4=2.7,'1'!U26,IF($C$4=4.5,'1'!AS26,IF($C$4=7,'1'!BQ26,IF($C$4=9,'1'!CO26,"FAUX")))) -> 3.79 | AA23: =IF($C$4=2.7,'1'!V26,IF($C$4=4.5,'1'!AT26,IF($C$4=7,'1'!BR26,IF($C$4=9,'1'!CP26,"FAUX")))) -> 5.11 | AB23: =IF($C$4=2.7,'1'!W26,IF($C$4=4.5,'1'!AU26,IF($C$4=7,'1'!BS26,IF($C$4=9,'1'!CQ26,"FAUX")))) -> 5.19 | AC23: =IF($C$4=2.7,'1'!X26,IF($C$4=4.5,'1'!AV26,IF($C$4=7,'1'!BT26,IF($C$4=9,'1'!CR26,"FAUX")))) -> 3.86 | AD23: =IF($C$4=2.7,'1'!Y26,IF($C$4=4.5,'1'!AW26,IF($C$4=7,'1'!BU26,IF($C$4=9,'1'!CS26,"FAUX")))) -> 3.8 | AE23: =IF($C$4=2.7,'1'!Z26,IF($C$4=4.5,'1'!AX26,IF($C$4=7,'1'!BV26,IF($C$4=9,'1'!CT26,"FAUX")))) -> 4.62 | AF23: =IF($C$4=2.7,'1'!AA26,IF($C$4=4.5,'1'!AY26,IF($C$4=7,'1'!BW26,IF($C$4=9,'1'!CU26,"FAUX")))) -> 4.75 | AH23: Mix 4 | AI23: THC | AJ23: -0.004333333333 | AK23: 6.42 | AL23: 0.004666666667 | AM23: 6.64 | AN23: -0.01866666667 | AO23: 6.56 | AP23: -0.01366666667 | AQ23: 7.33 | AR23: -0.01066666667 | AS23: 6.4 | AT23: -0.004666666667 | AU23: 7.2 | AV23: -0.001 | AW23: 3.97 | AX23: 0.007666666667 | AY23: 4.04 | AZ23: -0.003666666667 | BA23: 4.01 | BB23: 0.002666666667 | BC23: 5.03 | BD23: -0.002 | BE23: 3.92 | BF23: 0.004333333333 | BG23: 4.49 | BI23: Mix 4 | BJ23: THC | BK23: 6.29 | BL23: 6 | BM23: 6.08 | BN23: 3.94 | BO23: 3.9 | BP23: 3.86 | BR23: Mix 4 | BS23: THC | BT23: 6.78 | BU23: 6.92 | BV23: 7.06 | BW23: 4.27 | BX23: 5.11 | BY23: 4.62 | CA23: =$S$56 -> Ethylparaben | CB23: =VLOOKUP($S$56,$BS$8:$BY$48,2,FALSE) -> 4.77 | CC23: =VLOOKUP($S$56,$BS$8:$BY$48,3,FALSE) -> 4.36 | CD23: =VLOOKUP($S$56,$BS$8:$BY$48,4,FALSE) -> 4.69 | CE23: =VLOOKUP($S$56,$BS$8:$BY$48,5,FALSE) -> 5.17 | CF23: =VLOOKUP($S$56,$BS$8:$BY$48,6,FALSE) -> 5.48 | CG23: =VLOOKUP($S$56,$BS$8:$BY$48,7,FALSE) -> 5.15 | CI23: Mix 4 | CJ23: THC | CK23: ='1'!D72 -> 0 | CL23: ='1'!E72 -> 0.1745164044 | CM23: ='1'!F72 -> 0.2656560235 | CN23: ='1'!G72 -> 0.2364039583 | CO23: ='1'!H72 -> 0.1093417185 | CP23: ='1'!I72 -> 0.02205333016 | CQ23: ='1'!J72 -> 0.002246005827 | CR23: ='1'!K72 -> 0.002990638992 | CS23: ='1'!L72 -> 0.003332369172 | CT23: ='1'!M72 -> -0.0004006270147 | CU23: ='1'!N72 -> -0.0004006270147 | CV23: ='1'!O72 -> -0.0004006270147 | CW23: ='1'!P72 -> -0.0004006270147 | CX23: ='1'!Q72 -> -0.0004006270147 | CY23: ='1'!R72 -> -0.0004006270147 | CZ23: ='1'!S72 -> -0.0004006270147 | DB23: Mix 4 | DC23: THC | DD23: =HLOOKUP($DD$7,$CJ$7:$CZ$48,17,FALSE) -> 0.2656560235 | DF23: Mix 4 | DG23: THC | DH23: =IF($C$4=2.7,'1'!D140,IF($C$4=4.5,'1'!G140,IF($C$4=7,'1'!J140,IF($C$4=9,'1'!M140,FALSE)))) -> 1.07 | DI23: =IF($C$4=2.7,'1'!E140,IF($C$4=4.5,'1'!H140,IF($C$4=7,'1'!K140,IF($C$4=9,'1'!N140,FALSE)))) -> 1.1 | DJ23: =IF($C$4=2.7,'1'!F140,IF($C$4=4.5,'1'!I140,IF($C$4=7,'1'!L140,IF($C$4=9,'1'!O140,FALSE)))) -> 1.03 | DL23: Mix 4 | DM23: THC | DN23: =HLOOKUP($DN$7,$DG$7:$DJ$48,17,FALSE) -> 1.07 | DP23: Mix 4 | DQ23: THC | DR23: 9.34 | DT23: 2 | DV23: 4 | DW23: 99.99841513 | DX23: 0.001584868074
B24: Melange | C24: =calculation2!E80 -> Mix 1 - parabens | H24: CBD | I24: =IF($C$4=2.7,'1'!D27,IF($C$4=4.5,'1'!AB27,IF($C$4=7,'1'!AZ27,IF($C$4=9,'1'!BX27,"FAUX")))) -> 6.28 | J24: =IF($C$4=2.7,'1'!E27,IF($C$4=4.5,'1'!AC27,IF($C$4=7,'1'!BA27,IF($C$4=9,'1'!BY27,"FAUX")))) -> 5.93 | K24: =IF($C$4=2.7,'1'!F27,IF($C$4=4.5,'1'!AD27,IF($C$4=7,'1'!BB27,IF($C$4=9,'1'!BZ27,"FAUX")))) -> 7.37 | L24: =IF($C$4=2.7,'1'!G27,IF($C$4=4.5,'1'!AE27,IF($C$4=7,'1'!BC27,IF($C$4=9,'1'!CA27,"FAUX")))) -> 7.22 | M24: =IF($C$4=2.7,'1'!H27,IF($C$4=4.5,'1'!AF27,IF($C$4=7,'1'!BD27,IF($C$4=9,'1'!CB27,"FAUX")))) -> 5.74 | N24: =IF($C$4=2.7,'1'!I27,IF($C$4=4.5,'1'!AG27,IF($C$4=7,'1'!BE27,IF($C$4=9,'1'!CC27,"FAUX")))) -> 5.22 | O24: =IF($C$4=2.7,'1'!J27,IF($C$4=4.5,'1'!AH27,IF($C$4=7,'1'!BF27,IF($C$4=9,'1'!CD27,"FAUX")))) -> 7.06 | P24: =IF($C$4=2.7,'1'!K27,IF($C$4=4.5,'1'!AI27,IF($C$4=7,'1'!BG27,IF($C$4=9,'1'!CE27,"FAUX")))) -> 6.64 | Q24: =IF($C$4=2.7,'1'!L27,IF($C$4=4.5,'1'!AJ27,IF($C$4=7,'1'!BH27,IF($C$4=9,'1'!CF27,"FAUX")))) -> 5.74 | R24: =IF($C$4=2.7,'1'!M27,IF($C$4=4.5,'1'!AK27,IF($C$4=7,'1'!BI27,IF($C$4=9,'1'!CG27,"FAUX")))) -> 5.54 | S24: =IF($C$4=2.7,'1'!N27,IF($C$4=4.5,'1'!AL27,IF($C$4=7,'1'!BJ27,IF($C$4=9,'1'!CH27,"FAUX")))) -> 7.06 | T24: =IF($C$4=2.7,'1'!O27,IF($C$4=4.5,'1'!AM27,IF($C$4=7,'1'!BK27,IF($C$4=9,'1'!CI27,"FAUX")))) -> 7.06 | U24: =IF($C$4=2.7,'1'!P27,IF($C$4=4.5,'1'!AN27,IF($C$4=7,'1'!BL27,IF($C$4=9,'1'!CJ27,"FAUX")))) -> 3.98 | V24: =IF($C$4=2.7,'1'!Q27,IF($C$4=4.5,'1'!AO27,IF($C$4=7,'1'!BM27,IF($C$4=9,'1'!CK27,"FAUX")))) -> 3.98 | W24: =IF($C$4=2.7,'1'!R27,IF($C$4=4.5,'1'!AP27,IF($C$4=7,'1'!BN27,IF($C$4=9,'1'!CL27,"FAUX")))) -> 4.96 | X24: =IF($C$4=2.7,'1'!S27,IF($C$4=4.5,'1'!AQ27,IF($C$4=7,'1'!BO27,IF($C$4=9,'1'!CM27,"FAUX")))) -> 5.19 | Y24: =IF($C$4=2.7,'1'!T27,IF($C$4=4.5,'1'!AR27,IF($C$4=7,'1'!BP27,IF($C$4=9,'1'!CN27,"FAUX")))) -> 3.98 | Z24: =IF($C$4=2.7,'1'!U27,IF($C$4=4.5,'1'!AS27,IF($C$4=7,'1'!BQ27,IF($C$4=9,'1'!CO27,"FAUX")))) -> 3.91 | AA24: =IF($C$4=2.7,'1'!V27,IF($C$4=4.5,'1'!AT27,IF($C$4=7,'1'!BR27,IF($C$4=9,'1'!CP27,"FAUX")))) -> 5.73 | AB24: =IF($C$4=2.7,'1'!W27,IF($C$4=4.5,'1'!AU27,IF($C$4=7,'1'!BS27,IF($C$4=9,'1'!CQ27,"FAUX")))) -> 5.83 | AC24: =IF($C$4=2.7,'1'!X27,IF($C$4=4.5,'1'!AV27,IF($C$4=7,'1'!BT27,IF($C$4=9,'1'!CR27,"FAUX")))) -> 3.92 | AD24: =IF($C$4=2.7,'1'!Y27,IF($C$4=4.5,'1'!AW27,IF($C$4=7,'1'!BU27,IF($C$4=9,'1'!CS27,"FAUX")))) -> 3.9 | AE24: =IF($C$4=2.7,'1'!Z27,IF($C$4=4.5,'1'!AX27,IF($C$4=7,'1'!BV27,IF($C$4=9,'1'!CT27,"FAUX")))) -> 5.19 | AF24: =IF($C$4=2.7,'1'!AA27,IF($C$4=4.5,'1'!AY27,IF($C$4=7,'1'!BW27,IF($C$4=9,'1'!CU27,"FAUX")))) -> 5.36 | AI24: CBD | AJ24: -0.01166666667 | AK24: 6.63 | AL24: -0.005 | AM24: 7.52 | AN24: -0.01733333333 | AO24: 6.26 | AP24: -0.014 | AQ24: 7.48 | AR24: -0.006666666667 | AS24: 5.94 | AT24: 0 | AU24: 7.06 | AV24: 0 | AW24: 3.98 | AX24: 0.007666666667 | AY24: 4.73 | AZ24: -0.002333333333 | BA24: 4.05 | BB24: 0.003333333333 | BC24: 5.63 | BD24: -0.0006666666667 | BE24: 3.94 | BF24: 0.005666666667 | BG24: 5.02 | BJ24: CBD | BK24: 6.28 | BL24: 5.74 | BM24: 5.74 | BN24: 3.98 | BO24: 3.98 | BP24: 3.92 | BS24: CBD | BT24: 7.37 | BU24: 7.06 | BV24: 7.06 | BW24: 4.96 | BX24: 5.73 | BY24: 5.19 | CA24: =$T$56 -> Propylparaben | CB24: =VLOOKUP($T$56,$BS$8:$BY$48,2,FALSE) -> 4.95 | CC24: =VLOOKUP($T$56,$BS$8:$BY$48,3,FALSE) -> 4.8 | CD24: =VLOOKUP($T$56,$BS$8:$BY$48,4,FALSE) -> 5.1 | CE24: =VLOOKUP($T$56,$BS$8:$BY$48,5,FALSE) -> 5.2 | CF24: =VLOOKUP($T$56,$BS$8:$BY$48,6,FALSE) -> 5.43 | CG24: =VLOOKUP($T$56,$BS$8:$BY$48,7,FALSE) -> 5.27 | CJ24: CBD | CK24: ='1'!D73 -> 0 | CL24: ='1'!E73 -> 0.2108438452 | CM24: ='1'!F73 -> 0.2775182084 | CN24: ='1'!G73 -> 0.2341968515 | CO24: ='1'!H73 -> 0.0994948462 | CP24: ='1'!I73 -> 0.01896320178 | CQ24: ='1'!J73 -> 0.002360725993 | CR24: ='1'!K73 -> 0.003477996731 | CS24: ='1'!L73 -> 0.003322909356 | CT24: ='1'!M73 -> 0 | CU24: ='1'!N73 -> 0 | CV24: ='1'!O73 -> 0 | CW24: ='1'!P73 -> 0 | CX24: ='1'!Q73 -> 0 | CY24: ='1'!R73 -> 0 | CZ24: ='1'!S73 -> 0 | DC24: CBD | DD24: =HLOOKUP($DD$7,$CJ$7:$CZ$48,18,FALSE) -> 0.2775182084 | DG24: CBD | DH24: =IF($C$4=2.7,'1'!D141,IF($C$4=4.5,'1'!G141,IF($C$4=7,'1'!J141,IF($C$4=9,'1'!M141,FALSE)))) -> 1.06 | DI24: =IF($C$4=2.7,'1'!E141,IF($C$4=4.5,'1'!H141,IF($C$4=7,'1'!K141,IF($C$4=9,'1'!N141,FALSE)))) -> 1.13 | DJ24: =IF($C$4=2.7,'1'!F141,IF($C$4=4.5,'1'!I141,IF($C$4=7,'1'!L141,IF($C$4=9,'1'!O141,FALSE)))) -> 1.04 | DM24: CBD | DN24: =HLOOKUP($DN$7,$DG$7:$DJ$48,18,FALSE) -> 1.06 | DQ24: CBD | DR24: 9.13 | DT24: 2 | DV24: 4.5 | DW24: 99.99498838 | DX24: 0.00501162116
B25: Numéro du mix | C25: =calculation2!R78 -> 1 | H25: CBN | I25: =IF($C$4=2.7,'1'!D28,IF($C$4=4.5,'1'!AB28,IF($C$4=7,'1'!AZ28,IF($C$4=9,'1'!BX28,"FAUX")))) -> 6.39 | J25: =IF($C$4=2.7,'1'!E28,IF($C$4=4.5,'1'!AC28,IF($C$4=7,'1'!BA28,IF($C$4=9,'1'!BY28,"FAUX")))) -> 6.14 | K25: =IF($C$4=2.7,'1'!F28,IF($C$4=4.5,'1'!AD28,IF($C$4=7,'1'!BB28,IF($C$4=9,'1'!BZ28,"FAUX")))) -> 7.06 | L25: =IF($C$4=2.7,'1'!G28,IF($C$4=4.5,'1'!AE28,IF($C$4=7,'1'!BC28,IF($C$4=9,'1'!CA28,"FAUX")))) -> 7.06 | M25: =IF($C$4=2.7,'1'!H28,IF($C$4=4.5,'1'!AF28,IF($C$4=7,'1'!BD28,IF($C$4=9,'1'!CB28,"FAUX")))) -> 5.88 | N25: =IF($C$4=2.7,'1'!I28,IF($C$4=4.5,'1'!AG28,IF($C$4=7,'1'!BE28,IF($C$4=9,'1'!CC28,"FAUX")))) -> 5.34 | O25: =IF($C$4=2.7,'1'!J28,IF($C$4=4.5,'1'!AH28,IF($C$4=7,'1'!BF28,IF($C$4=9,'1'!CD28,"FAUX")))) -> 6.92 | P25: =IF($C$4=2.7,'1'!K28,IF($C$4=4.5,'1'!AI28,IF($C$4=7,'1'!BG28,IF($C$4=9,'1'!CE28,"FAUX")))) -> 6.51 | Q25: =IF($C$4=2.7,'1'!L28,IF($C$4=4.5,'1'!AJ28,IF($C$4=7,'1'!BH28,IF($C$4=9,'1'!CF28,"FAUX")))) -> 6.06 | R25: =IF($C$4=2.7,'1'!M28,IF($C$4=4.5,'1'!AK28,IF($C$4=7,'1'!BI28,IF($C$4=9,'1'!CG28,"FAUX")))) -> 5.43 | S25: =IF($C$4=2.7,'1'!N28,IF($C$4=4.5,'1'!AL28,IF($C$4=7,'1'!BJ28,IF($C$4=9,'1'!CH28,"FAUX")))) -> 7.22 | T25: =IF($C$4=2.7,'1'!O28,IF($C$4=4.5,'1'!AM28,IF($C$4=7,'1'!BK28,IF($C$4=9,'1'!CI28,"FAUX")))) -> 6.64 | U25: =IF($C$4=2.7,'1'!P28,IF($C$4=4.5,'1'!AN28,IF($C$4=7,'1'!BL28,IF($C$4=9,'1'!CJ28,"FAUX")))) -> 3.92 | V25: =IF($C$4=2.7,'1'!Q28,IF($C$4=4.5,'1'!AO28,IF($C$4=7,'1'!BM28,IF($C$4=9,'1'!CK28,"FAUX")))) -> 3.99 | W25: =IF($C$4=2.7,'1'!R28,IF($C$4=4.5,'1'!AP28,IF($C$4=7,'1'!BN28,IF($C$4=9,'1'!CL28,"FAUX")))) -> 4.44 | X25: =IF($C$4=2.7,'1'!S28,IF($C$4=4.5,'1'!AQ28,IF($C$4=7,'1'!BO28,IF($C$4=9,'1'!CM28,"FAUX")))) -> 4.82 | Y25: =IF($C$4=2.7,'1'!T28,IF($C$4=4.5,'1'!AR28,IF($C$4=7,'1'!BP28,IF($C$4=9,'1'!CN28,"FAUX")))) -> 3.88 | Z25: =IF($C$4=2.7,'1'!U28,IF($C$4=4.5,'1'!AS28,IF($C$4=7,'1'!BQ28,IF($C$4=9,'1'!CO28,"FAUX")))) -> 3.87 | AA25: =IF($C$4=2.7,'1'!V28,IF($C$4=4.5,'1'!AT28,IF($C$4=7,'1'!BR28,IF($C$4=9,'1'!CP28,"FAUX")))) -> 5.19 | AB25: =IF($C$4=2.7,'1'!W28,IF($C$4=4.5,'1'!AU28,IF($C$4=7,'1'!BS28,IF($C$4=9,'1'!CQ28,"FAUX")))) -> 5.45 | AC25: =IF($C$4=2.7,'1'!X28,IF($C$4=4.5,'1'!AV28,IF($C$4=7,'1'!BT28,IF($C$4=9,'1'!CR28,"FAUX")))) -> 3.88 | AD25: =IF($C$4=2.7,'1'!Y28,IF($C$4=4.5,'1'!AW28,IF($C$4=7,'1'!BU28,IF($C$4=9,'1'!CS28,"FAUX")))) -> 3.82 | AE25: =IF($C$4=2.7,'1'!Z28,IF($C$4=4.5,'1'!AX28,IF($C$4=7,'1'!BV28,IF($C$4=9,'1'!CT28,"FAUX")))) -> 4.82 | AF25: =IF($C$4=2.7,'1'!AA28,IF($C$4=4.5,'1'!AY28,IF($C$4=7,'1'!BW28,IF($C$4=9,'1'!CU28,"FAUX")))) -> 4.96 | AI25: CBN | AJ25: -0.008333333333 | AK25: 6.64 | AL25: 0 | AM25: 7.06 | AN25: -0.018 | AO25: 6.42 | AP25: -0.01366666667 | AQ25: 7.33 | AR25: -0.021 | AS25: 6.69 | AT25: -0.01933333333 | AU25: 7.8 | AV25: 0.002333333333 | AW25: 3.85 | AX25: 0.01266666667 | AY25: 4.06 | AZ25: -0.0003333333333 | BA25: 3.89 | BB25: 0.008666666667 | BC25: 4.93 | BD25: -0.002 | BE25: 3.94 | BF25: 0.004666666667 | BG25: 4.68 | BJ25: CBN | BK25: 6.39 | BL25: 5.88 | BM25: 6.06 | BN25: 3.92 | BO25: 3.88 | BP25: 3.88 | BS25: CBN | BT25: 7.06 | BU25: 6.92 | BV25: 7.22 | BW25: 4.44 | BX25: 5.19 | BY25: 4.82 | CA25: =$U$56 -> Butylparaben | CB25: =VLOOKUP($U$56,$BS$8:$BY$48,2,FALSE) -> 5.36 | CC25: =VLOOKUP($U$56,$BS$8:$BY$48,3,FALSE) -> 5.19 | CD25: =VLOOKUP($U$56,$BS$8:$BY$48,4,FALSE) -> 5.45 | CE25: =VLOOKUP($U$56,$BS$8:$BY$48,5,FALSE) -> 4.92 | CF25: =VLOOKUP($U$56,$BS$8:$BY$48,6,FALSE) -> 5.68 | CG25: =VLOOKUP($U$56,$BS$8:$BY$48,7,FALSE) -> 5.23 | CJ25: CBN | CK25: ='1'!D74 -> 0 | CL25: ='1'!E74 -> 0.2072236992 | CM25: ='1'!F74 -> 0.41861121 | CN25: ='1'!G74 -> 0.3464490409 | CO25: ='1'!H74 -> 0.1690578597 | CP25: ='1'!I74 -> 0.03860019409 | CQ25: ='1'!J74 -> 0.04841573707 | CR25: ='1'!K74 -> 0.08866109697 | CS25: ='1'!L74 -> 0.1168747529 | CT25: ='1'!M74 -> 0.1140130654 | CU25: ='1'!N74 -> 0.0779954414 | CV25: ='1'!O74 -> 0.02900291137 | CW25: ='1'!P74 -> 0.005041269656 | CX25: ='1'!Q74 -> 0 | CY25: ='1'!R74 -> 0 | CZ25: ='1'!S74 -> 0 | DC25: CBN | DD25: =HLOOKUP($DD$7,$CJ$7:$CZ$48,19,FALSE) -> 0.41861121 | DG25: CBN | DH25: =IF($C$4=2.7,'1'!D142,IF($C$4=4.5,'1'!G142,IF($C$4=7,'1'!J142,IF($C$4=9,'1'!M142,FALSE)))) -> 1.13 | DI25: =IF($C$4=2.7,'1'!E142,IF($C$4=4.5,'1'!H142,IF($C$4=7,'1'!K142,IF($C$4=9,'1'!N142,FALSE)))) -> 1.11 | DJ25: =IF($C$4=2.7,'1'!F142,IF($C$4=4.5,'1'!I142,IF($C$4=7,'1'!L142,IF($C$4=9,'1'!O142,FALSE)))) -> 1.09 | DM25: CBN | DN25: =HLOOKUP($DN$7,$DG$7:$DJ$48,19,FALSE) -> 1.13 | DQ25: CBN | DR25: 9.32 | DT25: 2 | DV25: 5 | DW25: 99.98415358 | DX25: 0.01584642044
B26: %solvant | C26: =calculation2!E81 -> 40 | D26: % | H26: THC-A | I26: =IF($C$4=2.7,'1'!D29,IF($C$4=4.5,'1'!AB29,IF($C$4=7,'1'!AZ29,IF($C$4=9,'1'!BX29,"FAUX")))) -> 7.32 | J26: =IF($C$4=2.7,'1'!E29,IF($C$4=4.5,'1'!AC29,IF($C$4=7,'1'!BA29,IF($C$4=9,'1'!BY29,"FAUX")))) -> 6.49 | K26: =IF($C$4=2.7,'1'!F29,IF($C$4=4.5,'1'!AD29,IF($C$4=7,'1'!BB29,IF($C$4=9,'1'!BZ29,"FAUX")))) -> 8.95 | L26: =IF($C$4=2.7,'1'!G29,IF($C$4=4.5,'1'!AE29,IF($C$4=7,'1'!BC29,IF($C$4=9,'1'!CA29,"FAUX")))) -> 8.29 | M26: =IF($C$4=2.7,'1'!H29,IF($C$4=4.5,'1'!AF29,IF($C$4=7,'1'!BD29,IF($C$4=9,'1'!CB29,"FAUX")))) -> 6.13 | N26: =IF($C$4=2.7,'1'!I29,IF($C$4=4.5,'1'!AG29,IF($C$4=7,'1'!BE29,IF($C$4=9,'1'!CC29,"FAUX")))) -> 5.54 | O26: =IF($C$4=2.7,'1'!J29,IF($C$4=4.5,'1'!AH29,IF($C$4=7,'1'!BF29,IF($C$4=9,'1'!CD29,"FAUX")))) -> 7.9 | P26: =IF($C$4=2.7,'1'!K29,IF($C$4=4.5,'1'!AI29,IF($C$4=7,'1'!BG29,IF($C$4=9,'1'!CE29,"FAUX")))) -> 7.54 | Q26: =IF($C$4=2.7,'1'!L29,IF($C$4=4.5,'1'!AJ29,IF($C$4=7,'1'!BH29,IF($C$4=9,'1'!CF29,"FAUX")))) -> 6.23 | R26: =IF($C$4=2.7,'1'!M29,IF($C$4=4.5,'1'!AK29,IF($C$4=7,'1'!BI29,IF($C$4=9,'1'!CG29,"FAUX")))) -> 5.59 | S26: =IF($C$4=2.7,'1'!N29,IF($C$4=4.5,'1'!AL29,IF($C$4=7,'1'!BJ29,IF($C$4=9,'1'!CH29,"FAUX")))) -> 7.9 | T26: =IF($C$4=2.7,'1'!O29,IF($C$4=4.5,'1'!AM29,IF($C$4=7,'1'!BK29,IF($C$4=9,'1'!CI29,"FAUX")))) -> 7.37 | U26: =IF($C$4=2.7,'1'!P29,IF($C$4=4.5,'1'!AN29,IF($C$4=7,'1'!BL29,IF($C$4=9,'1'!CJ29,"FAUX")))) -> 4.18 | V26: =IF($C$4=2.7,'1'!Q29,IF($C$4=4.5,'1'!AO29,IF($C$4=7,'1'!BM29,IF($C$4=9,'1'!CK29,"FAUX")))) -> 4.26 | W26: =IF($C$4=2.7,'1'!R29,IF($C$4=4.5,'1'!AP29,IF($C$4=7,'1'!BN29,IF($C$4=9,'1'!CL29,"FAUX")))) -> 6.91 | X26: =IF($C$4=2.7,'1'!S29,IF($C$4=4.5,'1'!AQ29,IF($C$4=7,'1'!BO29,IF($C$4=9,'1'!CM29,"FAUX")))) -> 7.37 | Y26: =IF($C$4=2.7,'1'!T29,IF($C$4=4.5,'1'!AR29,IF($C$4=7,'1'!BP29,IF($C$4=9,'1'!CN29,"FAUX")))) -> 7.23 | Z26: =IF($C$4=2.7,'1'!U29,IF($C$4=4.5,'1'!AS29,IF($C$4=7,'1'!BQ29,IF($C$4=9,'1'!CO29,"FAUX")))) -> 4.23 | AA26: =IF($C$4=2.7,'1'!V29,IF($C$4=4.5,'1'!AT29,IF($C$4=7,'1'!BR29,IF($C$4=9,'1'!CP29,"FAUX")))) -> 14.3 | AB26: =IF($C$4=2.7,'1'!W29,IF($C$4=4.5,'1'!AU29,IF($C$4=7,'1'!BS29,IF($C$4=9,'1'!CQ29,"FAUX")))) -> 8.29 | AC26: =IF($C$4=2.7,'1'!X29,IF($C$4=4.5,'1'!AV29,IF($C$4=7,'1'!BT29,IF($C$4=9,'1'!CR29,"FAUX")))) -> 4.04 | AD26: =IF($C$4=2.7,'1'!Y29,IF($C$4=4.5,'1'!AW29,IF($C$4=7,'1'!BU29,IF($C$4=9,'1'!CS29,"FAUX")))) -> 3.84 | AE26: =IF($C$4=2.7,'1'!Z29,IF($C$4=4.5,'1'!AX29,IF($C$4=7,'1'!BV29,IF($C$4=9,'1'!CT29,"FAUX")))) -> 6.91 | AF26: =IF($C$4=2.7,'1'!AA29,IF($C$4=4.5,'1'!AY29,IF($C$4=7,'1'!BW29,IF($C$4=9,'1'!CU29,"FAUX")))) -> 6.64 | AI26: THC-A | AJ26: -0.02766666667 | AK26: 8.15 | AL26: -0.022 | AM26: 9.61 | AN26: -0.01966666667 | AO26: 6.72 | AP26: -0.012 | AQ26: 8.26 | AR26: -0.02133333333 | AS26: 6.87 | AT26: -0.01766666667 | AU26: 8.43 | AV26: 0.002666666667 | AW26: 4.1 | AX26: 0.01533333333 | AY26: 6.45 | AZ26: -0.1 | BA26: 10.23 | BB26: -0.2003333333 | BC26: 20.31 | BD26: -0.006666666667 | BE26: 4.24 | BF26: -0.009 | BG26: 7.18 | BJ26: THC-A | BK26: 7.32 | BL26: 6.13 | BM26: 6.23 | BN26: 4.18 | BO26: 7.23 | BP26: 4.04 | BS26: THC-A | BT26: 8.95 | BU26: 7.9 | BV26: 7.9 | BW26: 6.91 | BX26: 14.3 | BY26: 6.91 | CA26: =$V$56 ->  | CB26: =VLOOKUP($V$56,$BS$8:$BY$48,2,FALSE) -> 0 | CC26: =VLOOKUP($V$56,$BS$8:$BY$48,3,FALSE) -> 0 | CD26: =VLOOKUP($V$56,$BS$8:$BY$48,4,FALSE) -> 0 | CE26: =VLOOKUP($V$56,$BS$8:$BY$48,5,FALSE) -> 0 | CF26: =VLOOKUP($V$56,$BS$8:$BY$48,6,FALSE) -> 0 | CG26: =VLOOKUP($V$56,$BS$8:$BY$48,7,FALSE) -> 0 | CJ26: THC-A | CK26: ='1'!D75 -> 0 | CL26: ='1'!E75 -> 0.1151837605 | CM26: ='1'!F75 -> 0.3508740483 | CN26: ='1'!G75 -> 0.3255927729 | CO26: ='1'!H75 -> 0.1357424595 | CP26: ='1'!I75 -> 0.04527536946 | CQ26: ='1'!J75 -> 0.05774922688 | CR26: ='1'!K75 -> 0.07880909199 | CS26: ='1'!L75 -> 0.05314043769 | CT26: ='1'!M75 -> 0.02445951871 | CU26: ='1'!N75 -> 0.02903318517 | CV26: ='1'!O75 -> 0.02872029783 | CW26: ='1'!P75 -> 0.01645863997 | CX26: ='1'!Q75 -> 0.003962592213 | CY26: ='1'!R75 -> 0 | CZ26: ='1'!S75 -> 0 | DC26: THC-A | DD26: =HLOOKUP($DD$7,$CJ$7:$CZ$48,20,FALSE) -> 0.3508740483 | DG26: THC-A | DH26: =IF($C$4=2.7,'1'!D143,IF($C$4=4.5,'1'!G143,IF($C$4=7,'1'!J143,IF($C$4=9,'1'!M143,FALSE)))) -> 1.11 | DI26: =IF($C$4=2.7,'1'!E143,IF($C$4=4.5,'1'!H143,IF($C$4=7,'1'!K143,IF($C$4=9,'1'!N143,FALSE)))) -> 1.07 | DJ26: =IF($C$4=2.7,'1'!F143,IF($C$4=4.5,'1'!I143,IF($C$4=7,'1'!L143,IF($C$4=9,'1'!O143,FALSE)))) -> 1.1 | DM26: THC-A | DN26: =HLOOKUP($DN$7,$DG$7:$DJ$48,20,FALSE) -> 1.11 | DQ26: THC-A | DR26: 2.89 | DT26: 2 | DV26: 5.5 | DW26: 99.94990638 | DX26: 0.05009361708
B27: Initial time | C27: 0 | D27: min | H27: CBD-A | I27: =IF($C$4=2.7,'1'!D30,IF($C$4=4.5,'1'!AB30,IF($C$4=7,'1'!AZ30,IF($C$4=9,'1'!BX30,"FAUX")))) -> 6.11 | J27: =IF($C$4=2.7,'1'!E30,IF($C$4=4.5,'1'!AC30,IF($C$4=7,'1'!BA30,IF($C$4=9,'1'!BY30,"FAUX")))) -> 5.67 | K27: =IF($C$4=2.7,'1'!F30,IF($C$4=4.5,'1'!AD30,IF($C$4=7,'1'!BB30,IF($C$4=9,'1'!BZ30,"FAUX")))) -> 8.29 | L27: =IF($C$4=2.7,'1'!G30,IF($C$4=4.5,'1'!AE30,IF($C$4=7,'1'!BC30,IF($C$4=9,'1'!CA30,"FAUX")))) -> 8.09 | M27: =IF($C$4=2.7,'1'!H30,IF($C$4=4.5,'1'!AF30,IF($C$4=7,'1'!BD30,IF($C$4=9,'1'!CB30,"FAUX")))) -> 5.43 | N27: =IF($C$4=2.7,'1'!I30,IF($C$4=4.5,'1'!AG30,IF($C$4=7,'1'!BE30,IF($C$4=9,'1'!CC30,"FAUX")))) -> 5.21 | O27: =IF($C$4=2.7,'1'!J30,IF($C$4=4.5,'1'!AH30,IF($C$4=7,'1'!BF30,IF($C$4=9,'1'!CD30,"FAUX")))) -> 7.71 | P27: =IF($C$4=2.7,'1'!K30,IF($C$4=4.5,'1'!AI30,IF($C$4=7,'1'!BG30,IF($C$4=9,'1'!CE30,"FAUX")))) -> 7.9 | Q27: =IF($C$4=2.7,'1'!L30,IF($C$4=4.5,'1'!AJ30,IF($C$4=7,'1'!BH30,IF($C$4=9,'1'!CF30,"FAUX")))) -> 5.33 | R27: =IF($C$4=2.7,'1'!M30,IF($C$4=4.5,'1'!AK30,IF($C$4=7,'1'!BI30,IF($C$4=9,'1'!CG30,"FAUX")))) -> 5.17 | S27: =IF($C$4=2.7,'1'!N30,IF($C$4=4.5,'1'!AL30,IF($C$4=7,'1'!BJ30,IF($C$4=9,'1'!CH30,"FAUX")))) -> 7.37 | T27: =IF($C$4=2.7,'1'!O30,IF($C$4=4.5,'1'!AM30,IF($C$4=7,'1'!BK30,IF($C$4=9,'1'!CI30,"FAUX")))) -> 7.54 | U27: =IF($C$4=2.7,'1'!P30,IF($C$4=4.5,'1'!AN30,IF($C$4=7,'1'!BL30,IF($C$4=9,'1'!CJ30,"FAUX")))) -> 4.36 | V27: =IF($C$4=2.7,'1'!Q30,IF($C$4=4.5,'1'!AO30,IF($C$4=7,'1'!BM30,IF($C$4=9,'1'!CK30,"FAUX")))) -> 4.44 | W27: =IF($C$4=2.7,'1'!R30,IF($C$4=4.5,'1'!AP30,IF($C$4=7,'1'!BN30,IF($C$4=9,'1'!CL30,"FAUX")))) -> 8.5 | X27: =IF($C$4=2.7,'1'!S30,IF($C$4=4.5,'1'!AQ30,IF($C$4=7,'1'!BO30,IF($C$4=9,'1'!CM30,"FAUX")))) -> 8.95 | Y27: =IF($C$4=2.7,'1'!T30,IF($C$4=4.5,'1'!AR30,IF($C$4=7,'1'!BP30,IF($C$4=9,'1'!CN30,"FAUX")))) -> 4.21 | Z27: =IF($C$4=2.7,'1'!U30,IF($C$4=4.5,'1'!AS30,IF($C$4=7,'1'!BQ30,IF($C$4=9,'1'!CO30,"FAUX")))) -> 4.1 | AA27: =IF($C$4=2.7,'1'!V30,IF($C$4=4.5,'1'!AT30,IF($C$4=7,'1'!BR30,IF($C$4=9,'1'!CP30,"FAUX")))) -> 8.95 | AB27: =IF($C$4=2.7,'1'!W30,IF($C$4=4.5,'1'!AU30,IF($C$4=7,'1'!BS30,IF($C$4=9,'1'!CQ30,"FAUX")))) -> 8.95 | AC27: =IF($C$4=2.7,'1'!X30,IF($C$4=4.5,'1'!AV30,IF($C$4=7,'1'!BT30,IF($C$4=9,'1'!CR30,"FAUX")))) -> 4.16 | AD27: =IF($C$4=2.7,'1'!Y30,IF($C$4=4.5,'1'!AW30,IF($C$4=7,'1'!BU30,IF($C$4=9,'1'!CS30,"FAUX")))) -> 3.85 | AE27: =IF($C$4=2.7,'1'!Z30,IF($C$4=4.5,'1'!AX30,IF($C$4=7,'1'!BV30,IF($C$4=9,'1'!CT30,"FAUX")))) -> 8.09 | AF27: =IF($C$4=2.7,'1'!AA30,IF($C$4=4.5,'1'!AY30,IF($C$4=7,'1'!BW30,IF($C$4=9,'1'!CU30,"FAUX")))) -> 7.54 | AI27: CBD-A | AJ27: -0.01466666667 | AK27: 6.55 | AL27: -0.006666666667 | AM27: 8.49 | AN27: -0.007333333333 | AO27: 5.65 | AP27: 0.006333333333 | AQ27: 7.52 | AR27: -0.005333333333 | AS27: 5.49 | AT27: 0.005666666667 | AU27: 7.2 | AV27: 0.002666666667 | AW27: 4.28 | AX27: 0.015 | AY27: 8.05 | AZ27: -0.003666666667 | BA27: 4.32 | BB27: 0 | BC27: 8.95 | BD27: -0.01033333333 | BE27: 4.47 | BF27: -0.01833333333 | BG27: 8.64 | BJ27: CBD-A | BK27: 6.11 | BL27: 5.43 | BM27: 5.33 | BN27: 4.36 | BO27: 4.21 | BP27: 4.16 | BS27: CBD-A | BT27: 8.29 | BU27: 7.71 | BV27: 7.37 | BW27: 8.5 | BX27: 8.95 | BY27: 8.09 | CA27: =$W$56 ->  | CB27: =VLOOKUP($W$56,$BS$8:$BY$48,2,FALSE) -> 0 | CC27: =VLOOKUP($W$56,$BS$8:$BY$48,3,FALSE) -> 0 | CD27: =VLOOKUP($W$56,$BS$8:$BY$48,4,FALSE) -> 0 | CE27: =VLOOKUP($W$56,$BS$8:$BY$48,5,FALSE) -> 0 | CF27: =VLOOKUP($W$56,$BS$8:$BY$48,6,FALSE) -> 0 | CG27: =VLOOKUP($W$56,$BS$8:$BY$48,7,FALSE) -> 0 | CJ27: CBD-A | CK27: ='1'!D76 -> 0 | CL27: ='1'!E76 -> 0.1430407185 | CM27: ='1'!F76 -> 0.3625519615 | CN27: ='1'!G76 -> 0.3266866758 | CO27: ='1'!H76 -> 0.1211185943 | CP27: ='1'!I76 -> 0.04825884766 | CQ27: ='1'!J76 -> 0.06664462436 | CR27: ='1'!K76 -> 0.07884231313 | CS27: ='1'!L76 -> 0.04391555189 | CT27: ='1'!M76 -> 0.02163305715 | CU27: ='1'!N76 -> 0.02803476079 | CV27: ='1'!O76 -> 0.02881225318 | CW27: ='1'!P76 -> 0.0185297739 | CX27: ='1'!Q76 -> 0.005948594367 | CY27: ='1'!R76 -> 0.000220025354 | CZ27: ='1'!S76 -> 0 | DC27: CBD-A | DD27: =HLOOKUP($DD$7,$CJ$7:$CZ$48,21,FALSE) -> 0.3625519615 | DG27: CBD-A | DH27: =IF($C$4=2.7,'1'!D144,IF($C$4=4.5,'1'!G144,IF($C$4=7,'1'!J144,IF($C$4=9,'1'!M144,FALSE)))) -> 1.07 | DI27: =IF($C$4=2.7,'1'!E144,IF($C$4=4.5,'1'!H144,IF($C$4=7,'1'!K144,IF($C$4=9,'1'!N144,FALSE)))) -> 1.04 | DJ27: =IF($C$4=2.7,'1'!F144,IF($C$4=4.5,'1'!I144,IF($C$4=7,'1'!L144,IF($C$4=9,'1'!O144,FALSE)))) -> 1.03 | DM27: CBD-A | DN27: =HLOOKUP($DN$7,$DG$7:$DJ$48,21,FALSE) -> 1.07 | DQ27: CBD-A | DR27: 2.91 | DT27: 2 | DV27: 6 | DW27: 99.84176147 | DX27: 0.1582385281
B28: gradient time | C28: =calculation2!E82 -> 30 | D28: min | H28: CBG-A | I28: =IF($C$4=2.7,'1'!D31,IF($C$4=4.5,'1'!AB31,IF($C$4=7,'1'!AZ31,IF($C$4=9,'1'!BX31,"FAUX")))) -> 6.25 | J28: =IF($C$4=2.7,'1'!E31,IF($C$4=4.5,'1'!AC31,IF($C$4=7,'1'!BA31,IF($C$4=9,'1'!BY31,"FAUX")))) -> 6.03 | K28: =IF($C$4=2.7,'1'!F31,IF($C$4=4.5,'1'!AD31,IF($C$4=7,'1'!BB31,IF($C$4=9,'1'!BZ31,"FAUX")))) -> 8.29 | L28: =IF($C$4=2.7,'1'!G31,IF($C$4=4.5,'1'!AE31,IF($C$4=7,'1'!BC31,IF($C$4=9,'1'!CA31,"FAUX")))) -> 8.5 | M28: =IF($C$4=2.7,'1'!H31,IF($C$4=4.5,'1'!AF31,IF($C$4=7,'1'!BD31,IF($C$4=9,'1'!CB31,"FAUX")))) -> 5.29 | N28: =IF($C$4=2.7,'1'!I31,IF($C$4=4.5,'1'!AG31,IF($C$4=7,'1'!BE31,IF($C$4=9,'1'!CC31,"FAUX")))) -> 5.5 | O28: =IF($C$4=2.7,'1'!J31,IF($C$4=4.5,'1'!AH31,IF($C$4=7,'1'!BF31,IF($C$4=9,'1'!CD31,"FAUX")))) -> 7.37 | P28: =IF($C$4=2.7,'1'!K31,IF($C$4=4.5,'1'!AI31,IF($C$4=7,'1'!BG31,IF($C$4=9,'1'!CE31,"FAUX")))) -> 8.29 | Q28: =IF($C$4=2.7,'1'!L31,IF($C$4=4.5,'1'!AJ31,IF($C$4=7,'1'!BH31,IF($C$4=9,'1'!CF31,"FAUX")))) -> 5.89 | R28: =IF($C$4=2.7,'1'!M31,IF($C$4=4.5,'1'!AK31,IF($C$4=7,'1'!BI31,IF($C$4=9,'1'!CG31,"FAUX")))) -> 5.46 | S28: =IF($C$4=2.7,'1'!N31,IF($C$4=4.5,'1'!AL31,IF($C$4=7,'1'!BJ31,IF($C$4=9,'1'!CH31,"FAUX")))) -> 8.09 | T28: =IF($C$4=2.7,'1'!O31,IF($C$4=4.5,'1'!AM31,IF($C$4=7,'1'!BK31,IF($C$4=9,'1'!CI31,"FAUX")))) -> 7.9 | U28: =IF($C$4=2.7,'1'!P31,IF($C$4=4.5,'1'!AN31,IF($C$4=7,'1'!BL31,IF($C$4=9,'1'!CJ31,"FAUX")))) -> 4.5 | V28: =IF($C$4=2.7,'1'!Q31,IF($C$4=4.5,'1'!AO31,IF($C$4=7,'1'!BM31,IF($C$4=9,'1'!CK31,"FAUX")))) -> 4.46 | W28: =IF($C$4=2.7,'1'!R31,IF($C$4=4.5,'1'!AP31,IF($C$4=7,'1'!BN31,IF($C$4=9,'1'!CL31,"FAUX")))) -> 8.5 | X28: =IF($C$4=2.7,'1'!S31,IF($C$4=4.5,'1'!AQ31,IF($C$4=7,'1'!BO31,IF($C$4=9,'1'!CM31,"FAUX")))) -> 8.72 | Y28: =IF($C$4=2.7,'1'!T31,IF($C$4=4.5,'1'!AR31,IF($C$4=7,'1'!BP31,IF($C$4=9,'1'!CN31,"FAUX")))) -> 4.34 | Z28: =IF($C$4=2.7,'1'!U31,IF($C$4=4.5,'1'!AS31,IF($C$4=7,'1'!BQ31,IF($C$4=9,'1'!CO31,"FAUX")))) -> 4.11 | AA28: =IF($C$4=2.7,'1'!V31,IF($C$4=4.5,'1'!AT31,IF($C$4=7,'1'!BR31,IF($C$4=9,'1'!CP31,"FAUX")))) -> 8.95 | AB28: =IF($C$4=2.7,'1'!W31,IF($C$4=4.5,'1'!AU31,IF($C$4=7,'1'!BS31,IF($C$4=9,'1'!CQ31,"FAUX")))) -> 8.72 | AC28: =IF($C$4=2.7,'1'!X31,IF($C$4=4.5,'1'!AV31,IF($C$4=7,'1'!BT31,IF($C$4=9,'1'!CR31,"FAUX")))) -> 4.26 | AD28: =IF($C$4=2.7,'1'!Y31,IF($C$4=4.5,'1'!AW31,IF($C$4=7,'1'!BU31,IF($C$4=9,'1'!CS31,"FAUX")))) -> 4 | AE28: =IF($C$4=2.7,'1'!Z31,IF($C$4=4.5,'1'!AX31,IF($C$4=7,'1'!BV31,IF($C$4=9,'1'!CT31,"FAUX")))) -> 8.09 | AF28: =IF($C$4=2.7,'1'!AA31,IF($C$4=4.5,'1'!AY31,IF($C$4=7,'1'!BW31,IF($C$4=9,'1'!CU31,"FAUX")))) -> 7.71 | AI28: CBG-A | AJ28: -0.007333333333 | AK28: 6.47 | AL28: 0.007 | AM28: 8.08 | AN28: 0.007 | AO28: 5.08 | AP28: 0.03066666667 | AQ28: 6.45 | AR28: -0.01433333333 | AS28: 6.32 | AT28: -0.006333333333 | AU28: 8.28 | AV28: -0.001333333333 | AW28: 4.54 | AX28: 0.007333333333 | AY28: 8.28 | AZ28: -0.007666666667 | BA28: 4.57 | BB28: -0.007666666667 | BC28: 9.18 | BD28: -0.008666666667 | BE28: 4.52 | BF28: -0.01266666667 | BG28: 8.47 | BJ28: CBG-A | BK28: 6.25 | BL28: 5.29 | BM28: 5.89 | BN28: 4.5 | BO28: 4.34 | BP28: 4.26 | BS28: CBG-A | BT28: 8.29 | BU28: 7.37 | BV28: 8.09 | BW28: 8.5 | BX28: 8.95 | BY28: 8.09 | CA28: =$X$56 ->  | CB28: =VLOOKUP($X$56,$BS$8:$BY$48,2,FALSE) -> 0 | CC28: =VLOOKUP($X$56,$BS$8:$BY$48,3,FALSE) -> 0 | CD28: =VLOOKUP($X$56,$BS$8:$BY$48,4,FALSE) -> 0 | CE28: =VLOOKUP($X$56,$BS$8:$BY$48,5,FALSE) -> 0 | CF28: =VLOOKUP($X$56,$BS$8:$BY$48,6,FALSE) -> 0 | CG28: =VLOOKUP($X$56,$BS$8:$BY$48,7,FALSE) -> 0 | CJ28: CBG-A | CK28: ='1'!D77 -> 0 | CL28: ='1'!E77 -> 0.1431581664 | CM28: ='1'!F77 -> 0.3516815043 | CN28: ='1'!G77 -> 0.3141124508 | CO28: ='1'!H77 -> 0.1176747472 | CP28: ='1'!I77 -> 0.04797483314 | CQ28: ='1'!J77 -> 0.06405241643 | CR28: ='1'!K77 -> 0.0716967038 | CS28: ='1'!L77 -> 0.03623523162 | CT28: ='1'!M77 -> 0.01863849653 | CU28: ='1'!N77 -> 0.02385515961 | CV28: ='1'!O77 -> 0.02284207161 | CW28: ='1'!P77 -> 0.01310424954 | CX28: ='1'!Q77 -> 0.003421832109 | CY28: ='1'!R77 -> -0.0003351978843 | CZ28: ='1'!S77 -> 0 | DC28: CBG-A | DD28: =HLOOKUP($DD$7,$CJ$7:$CZ$48,22,FALSE) -> 0.3516815043 | DG28: CBG-A | DH28: =IF($C$4=2.7,'1'!D145,IF($C$4=4.5,'1'!G145,IF($C$4=7,'1'!J145,IF($C$4=9,'1'!M145,FALSE)))) -> 1.03 | DI28: =IF($C$4=2.7,'1'!E145,IF($C$4=4.5,'1'!H145,IF($C$4=7,'1'!K145,IF($C$4=9,'1'!N145,FALSE)))) -> 1.08 | DJ28: =IF($C$4=2.7,'1'!F145,IF($C$4=4.5,'1'!I145,IF($C$4=7,'1'!L145,IF($C$4=9,'1'!O145,FALSE)))) -> 1.06 | DM28: CBG-A | DN28: =HLOOKUP($DN$7,$DG$7:$DJ$48,22,FALSE) -> 1.03 | DQ28: CBG-A | DR28: 2.91 | DT28: 2 | DV28: 6.5 | DW28: 99.50131213 | DX28: 0.4986878737
B29: %Bini | C29: =calculation2!E83 -> 5 | D29: % | G29: Mix 5 | H29: Salbutamol | I29: =IF($C$4=2.7,'1'!D32,IF($C$4=4.5,'1'!AB32,IF($C$4=7,'1'!AZ32,IF($C$4=9,'1'!BX32,"FAUX")))) -> 1.46 | J29: =IF($C$4=2.7,'1'!E32,IF($C$4=4.5,'1'!AC32,IF($C$4=7,'1'!BA32,IF($C$4=9,'1'!BY32,"FAUX")))) -> 1.3 | K29: =IF($C$4=2.7,'1'!F32,IF($C$4=4.5,'1'!AD32,IF($C$4=7,'1'!BB32,IF($C$4=9,'1'!BZ32,"FAUX")))) -> 8.66 | L29: =IF($C$4=2.7,'1'!G32,IF($C$4=4.5,'1'!AE32,IF($C$4=7,'1'!BC32,IF($C$4=9,'1'!CA32,"FAUX")))) -> 8.59 | M29: =IF($C$4=2.7,'1'!H32,IF($C$4=4.5,'1'!AF32,IF($C$4=7,'1'!BD32,IF($C$4=9,'1'!CB32,"FAUX")))) -> 1.16 | N29: =IF($C$4=2.7,'1'!I32,IF($C$4=4.5,'1'!AG32,IF($C$4=7,'1'!BE32,IF($C$4=9,'1'!CC32,"FAUX")))) -> 0.946 | O29: =IF($C$4=2.7,'1'!J32,IF($C$4=4.5,'1'!AH32,IF($C$4=7,'1'!BF32,IF($C$4=9,'1'!CD32,"FAUX")))) -> 6.66 | P29: =IF($C$4=2.7,'1'!K32,IF($C$4=4.5,'1'!AI32,IF($C$4=7,'1'!BG32,IF($C$4=9,'1'!CE32,"FAUX")))) -> 5.9 | Q29: =IF($C$4=2.7,'1'!L32,IF($C$4=4.5,'1'!AJ32,IF($C$4=7,'1'!BH32,IF($C$4=9,'1'!CF32,"FAUX")))) -> 1.36 | R29: =IF($C$4=2.7,'1'!M32,IF($C$4=4.5,'1'!AK32,IF($C$4=7,'1'!BI32,IF($C$4=9,'1'!CG32,"FAUX")))) -> 1.19 | S29: =IF($C$4=2.7,'1'!N32,IF($C$4=4.5,'1'!AL32,IF($C$4=7,'1'!BJ32,IF($C$4=9,'1'!CH32,"FAUX")))) -> 8.33 | T29: =IF($C$4=2.7,'1'!O32,IF($C$4=4.5,'1'!AM32,IF($C$4=7,'1'!BK32,IF($C$4=9,'1'!CI32,"FAUX")))) -> 7.84 | U29: =IF($C$4=2.7,'1'!P32,IF($C$4=4.5,'1'!AN32,IF($C$4=7,'1'!BL32,IF($C$4=9,'1'!CJ32,"FAUX")))) -> 1.8 | V29: =IF($C$4=2.7,'1'!Q32,IF($C$4=4.5,'1'!AO32,IF($C$4=7,'1'!BM32,IF($C$4=9,'1'!CK32,"FAUX")))) -> 1.35 | W29: =IF($C$4=2.7,'1'!R32,IF($C$4=4.5,'1'!AP32,IF($C$4=7,'1'!BN32,IF($C$4=9,'1'!CL32,"FAUX")))) -> 23.1 | X29: =IF($C$4=2.7,'1'!S32,IF($C$4=4.5,'1'!AQ32,IF($C$4=7,'1'!BO32,IF($C$4=9,'1'!CM32,"FAUX")))) -> 17.7 | Y29: =IF($C$4=2.7,'1'!T32,IF($C$4=4.5,'1'!AR32,IF($C$4=7,'1'!BP32,IF($C$4=9,'1'!CN32,"FAUX")))) -> 1.07 | Z29: =IF($C$4=2.7,'1'!U32,IF($C$4=4.5,'1'!AS32,IF($C$4=7,'1'!BQ32,IF($C$4=9,'1'!CO32,"FAUX")))) -> 1.14 | AA29: =IF($C$4=2.7,'1'!V32,IF($C$4=4.5,'1'!AT32,IF($C$4=7,'1'!BR32,IF($C$4=9,'1'!CP32,"FAUX")))) -> 12.1 | AB29: =IF($C$4=2.7,'1'!W32,IF($C$4=4.5,'1'!AU32,IF($C$4=7,'1'!BS32,IF($C$4=9,'1'!CQ32,"FAUX")))) -> 15.1 | AC29: =IF($C$4=2.7,'1'!X32,IF($C$4=4.5,'1'!AV32,IF($C$4=7,'1'!BT32,IF($C$4=9,'1'!CR32,"FAUX")))) -> 1.5 | AD29: =IF($C$4=2.7,'1'!Y32,IF($C$4=4.5,'1'!AW32,IF($C$4=7,'1'!BU32,IF($C$4=9,'1'!CS32,"FAUX")))) -> 1.1 | AE29: =IF($C$4=2.7,'1'!Z32,IF($C$4=4.5,'1'!AX32,IF($C$4=7,'1'!BV32,IF($C$4=9,'1'!CT32,"FAUX")))) -> 18.4 | AF29: =IF($C$4=2.7,'1'!AA32,IF($C$4=4.5,'1'!AY32,IF($C$4=7,'1'!BW32,IF($C$4=9,'1'!CU32,"FAUX")))) -> 13.4 | AH29: Mix 5 | AI29: Salbutamol | AJ29: -0.005333333333 | AK29: 1.62 | AL29: -0.002333333333 | AM29: 8.73 | AN29: -0.007133333333 | AO29: 1.374 | AP29: -0.02533333333 | AQ29: 7.42 | AR29: -0.005666666667 | AS29: 1.53 | AT29: -0.01633333333 | AU29: 8.82 | AV29: -0.015 | AW29: 2.25 | AX29: -0.18 | AY29: 28.5 | AZ29: 0.002333333333 | BA29: 1 | BB29: 0.1 | BC29: 9.1 | BD29: -0.01333333333 | BE29: 1.9 | BF29: -0.1666666667 | BG29: 23.4 | BI29: Mix 5 | BJ29: Salbutamol | BK29: 1.46 | BL29: 1.16 | BM29: 1.36 | BN29: 1.8 | BO29: 1.07 | BP29: 1.5 | BR29: Mix 5 | BS29: Salbutamol | BT29: 8.66 | BU29: 6.66 | BV29: 8.33 | BW29: 23.1 | BX29: 12.1 | BY29: 18.4 | CI29: Mix 5 | CJ29: Salbutamol | CK29: ='1'!D78 -> 0.6102920961 | CL29: ='1'!E78 -> 0.1902322665 | CM29: ='1'!F78 -> 0.2048039097 | CN29: ='1'!G78 -> 0.1508521933 | CO29: ='1'!H78 -> 0.01800506809 | CP29: ='1'!I78 -> 0.004742685015 | CQ29: ='1'!J78 -> 0.01426857958 | CR29: ='1'!K78 -> 0.03005756228 | CS29: ='1'!L78 -> 0.03414250897 | CT29: ='1'!M78 -> 0.008106730755 | CU29: ='1'!N78 -> -0.0004460881629 | CV29: ='1'!O78 -> -0.0004896440957 | CW29: ='1'!P78 -> -0.0003806032445 | CX29: ='1'!Q78 -> -0.0003503064409 | CY29: ='1'!R78 -> -0.0003025645228 | CZ29: ='1'!S78 -> -0.0002887086166 | DB29: Mix 5 | DC29: Salbutamol | DD29: =HLOOKUP($DD$7,$CJ$7:$CZ$48,23,FALSE) -> 0.2048039097 | DF29: Mix 5 | DG29: Salbutamol | DH29: =IF($C$4=2.7,'1'!D146,IF($C$4=4.5,'1'!G146,IF($C$4=7,'1'!J146,IF($C$4=9,'1'!M146,FALSE)))) -> 1.14 | DI29: =IF($C$4=2.7,'1'!E146,IF($C$4=4.5,'1'!H146,IF($C$4=7,'1'!K146,IF($C$4=9,'1'!N146,FALSE)))) -> 1.12 | DJ29: =IF($C$4=2.7,'1'!F146,IF($C$4=4.5,'1'!I146,IF($C$4=7,'1'!L146,IF($C$4=9,'1'!O146,FALSE)))) -> 1.21 | DL29: Mix 5 | DM29: Salbutamol | DN29: =HLOOKUP($DN$7,$DG$7:$DJ$48,23,FALSE) -> 1.14 | DP29: Mix 5 | DQ29: Salbutamol | DS29: 9.4 | DT29: 1 | DV29: 7 | DW29: 98.43983378 | DX29: 1.560166224
B30: %Bfin | C30: =calculation2!E84 -> 50 | D30: % | H30: Impurity B | I30: =IF($C$4=2.7,'1'!D33,IF($C$4=4.5,'1'!AB33,IF($C$4=7,'1'!AZ33,IF($C$4=9,'1'!BX33,"FAUX")))) -> 1.53 | J30: =IF($C$4=2.7,'1'!E33,IF($C$4=4.5,'1'!AC33,IF($C$4=7,'1'!BA33,IF($C$4=9,'1'!BY33,"FAUX")))) -> 1.32 | K30: =IF($C$4=2.7,'1'!F33,IF($C$4=4.5,'1'!AD33,IF($C$4=7,'1'!BB33,IF($C$4=9,'1'!BZ33,"FAUX")))) -> 8.12 | L30: =IF($C$4=2.7,'1'!G33,IF($C$4=4.5,'1'!AE33,IF($C$4=7,'1'!BC33,IF($C$4=9,'1'!CA33,"FAUX")))) -> 7.53 | M30: =IF($C$4=2.7,'1'!H33,IF($C$4=4.5,'1'!AF33,IF($C$4=7,'1'!BD33,IF($C$4=9,'1'!CB33,"FAUX")))) -> 1.18 | N30: =IF($C$4=2.7,'1'!I33,IF($C$4=4.5,'1'!AG33,IF($C$4=7,'1'!BE33,IF($C$4=9,'1'!CC33,"FAUX")))) -> 0.984 | O30: =IF($C$4=2.7,'1'!J33,IF($C$4=4.5,'1'!AH33,IF($C$4=7,'1'!BF33,IF($C$4=9,'1'!CD33,"FAUX")))) -> 5.51 | P30: =IF($C$4=2.7,'1'!K33,IF($C$4=4.5,'1'!AI33,IF($C$4=7,'1'!BG33,IF($C$4=9,'1'!CE33,"FAUX")))) -> 4.93 | Q30: =IF($C$4=2.7,'1'!L33,IF($C$4=4.5,'1'!AJ33,IF($C$4=7,'1'!BH33,IF($C$4=9,'1'!CF33,"FAUX")))) -> 1.36 | R30: =IF($C$4=2.7,'1'!M33,IF($C$4=4.5,'1'!AK33,IF($C$4=7,'1'!BI33,IF($C$4=9,'1'!CG33,"FAUX")))) -> 1.21 | S30: =IF($C$4=2.7,'1'!N33,IF($C$4=4.5,'1'!AL33,IF($C$4=7,'1'!BJ33,IF($C$4=9,'1'!CH33,"FAUX")))) -> 7.24 | T30: =IF($C$4=2.7,'1'!O33,IF($C$4=4.5,'1'!AM33,IF($C$4=7,'1'!BK33,IF($C$4=9,'1'!CI33,"FAUX")))) -> 6.89 | U30: =IF($C$4=2.7,'1'!P33,IF($C$4=4.5,'1'!AN33,IF($C$4=7,'1'!BL33,IF($C$4=9,'1'!CJ33,"FAUX")))) -> 1.61 | V30: =IF($C$4=2.7,'1'!Q33,IF($C$4=4.5,'1'!AO33,IF($C$4=7,'1'!BM33,IF($C$4=9,'1'!CK33,"FAUX")))) -> 1.4 | W30: =IF($C$4=2.7,'1'!R33,IF($C$4=4.5,'1'!AP33,IF($C$4=7,'1'!BN33,IF($C$4=9,'1'!CL33,"FAUX")))) -> 16.6 | X30: =IF($C$4=2.7,'1'!S33,IF($C$4=4.5,'1'!AQ33,IF($C$4=7,'1'!BO33,IF($C$4=9,'1'!CM33,"FAUX")))) -> 15.2 | Y30: =IF($C$4=2.7,'1'!T33,IF($C$4=4.5,'1'!AR33,IF($C$4=7,'1'!BP33,IF($C$4=9,'1'!CN33,"FAUX")))) -> 1.24 | Z30: =IF($C$4=2.7,'1'!U33,IF($C$4=4.5,'1'!AS33,IF($C$4=7,'1'!BQ33,IF($C$4=9,'1'!CO33,"FAUX")))) -> 1.11 | AA30: =IF($C$4=2.7,'1'!V33,IF($C$4=4.5,'1'!AT33,IF($C$4=7,'1'!BR33,IF($C$4=9,'1'!CP33,"FAUX")))) -> 11.8 | AB30: =IF($C$4=2.7,'1'!W33,IF($C$4=4.5,'1'!AU33,IF($C$4=7,'1'!BS33,IF($C$4=9,'1'!CQ33,"FAUX")))) -> 11.6 | AC30: =IF($C$4=2.7,'1'!X33,IF($C$4=4.5,'1'!AV33,IF($C$4=7,'1'!BT33,IF($C$4=9,'1'!CR33,"FAUX")))) -> 1.43 | AD30: =IF($C$4=2.7,'1'!Y33,IF($C$4=4.5,'1'!AW33,IF($C$4=7,'1'!BU33,IF($C$4=9,'1'!CS33,"FAUX")))) -> 1.23 | AE30: =IF($C$4=2.7,'1'!Z33,IF($C$4=4.5,'1'!AX33,IF($C$4=7,'1'!BV33,IF($C$4=9,'1'!CT33,"FAUX")))) -> 14.2 | AF30: =IF($C$4=2.7,'1'!AA33,IF($C$4=4.5,'1'!AY33,IF($C$4=7,'1'!BW33,IF($C$4=9,'1'!CU33,"FAUX")))) -> 12.7 | AI30: Impurity B | AJ30: -0.007 | AK30: 1.74 | AL30: -0.01966666667 | AM30: 8.71 | AN30: -0.006533333333 | AO30: 1.376 | AP30: -0.01933333333 | AQ30: 6.09 | AR30: -0.005 | AS30: 1.51 | AT30: -0.01166666667 | AU30: 7.59 | AV30: -0.007 | AW30: 1.82 | AX30: -0.04666666667 | AY30: 18 | AZ30: -0.004333333333 | BA30: 1.37 | BB30: -0.006666666667 | BC30: 12 | BD30: -0.006666666667 | BE30: 1.63 | BF30: -0.05 | BG30: 15.7 | BJ30: Impurity B | BK30: 1.53 | BL30: 1.18 | BM30: 1.36 | BN30: 1.61 | BO30: 1.24 | BP30: 1.43 | BS30: Impurity B | BT30: 8.12 | BU30: 5.51 | BV30: 7.24 | BW30: 16.6 | BX30: 11.8 | BY30: 14.2 | CJ30: Impurity B | CK30: ='1'!D79 -> 0.1506313558 | CL30: ='1'!E79 -> 0.1314852277 | CM30: ='1'!F79 -> 0.1703460733 | CN30: ='1'!G79 -> 0.09348790738 | CO30: ='1'!H79 -> 0.01053654851 | CP30: ='1'!I79 -> 0.003686316955 | CQ30: ='1'!J79 -> 0.009352813732 | CR30: ='1'!K79 -> 0.01705482698 | CS30: ='1'!L79 -> 0.01445884995 | CT30: ='1'!M79 -> 0.0003810396322 | CU30: ='1'!N79 -> 3.310000102e-05 | CV30: ='1'!O79 -> 3.310000102e-05 | CW30: ='1'!P79 -> -0.0004326017566 | CX30: ='1'!Q79 -> -0.0003734672485 | CY30: ='1'!R79 -> -0.0003641061437 | CZ30: ='1'!S79 -> -0.0003757858755 | DC30: Impurity B | DD30: =HLOOKUP($DD$7,$CJ$7:$CZ$48,24,FALSE) -> 0.1703460733 | DG30: Impurity B | DH30: =IF($C$4=2.7,'1'!D147,IF($C$4=4.5,'1'!G147,IF($C$4=7,'1'!J147,IF($C$4=9,'1'!M147,FALSE)))) -> 1.05 | DI30: =IF($C$4=2.7,'1'!E147,IF($C$4=4.5,'1'!H147,IF($C$4=7,'1'!K147,IF($C$4=9,'1'!N147,FALSE)))) -> 0.91 | DJ30: =IF($C$4=2.7,'1'!F147,IF($C$4=4.5,'1'!I147,IF($C$4=7,'1'!L147,IF($C$4=9,'1'!O147,FALSE)))) -> 1.19 | DM30: Impurity B | DN30: =HLOOKUP($DN$7,$DG$7:$DJ$48,24,FALSE) -> 1.05 | DQ30: Impurity B | DS30: 8.97 | DT30: 1 | DV30: 7.5 | DW30: 95.2273279 | DX30: 4.772672103
B31: concentration | C31: =calculation2!E85 -> 0.1 | D31: mg/mL | H31: Impurity D | I31: =IF($C$4=2.7,'1'!D34,IF($C$4=4.5,'1'!AB34,IF($C$4=7,'1'!AZ34,IF($C$4=9,'1'!BX34,"FAUX")))) -> 1.82 | J31: =IF($C$4=2.7,'1'!E34,IF($C$4=4.5,'1'!AC34,IF($C$4=7,'1'!BA34,IF($C$4=9,'1'!BY34,"FAUX")))) -> 1.65 | K31: =IF($C$4=2.7,'1'!F34,IF($C$4=4.5,'1'!AD34,IF($C$4=7,'1'!BB34,IF($C$4=9,'1'!BZ34,"FAUX")))) -> 6.35 | L31: =IF($C$4=2.7,'1'!G34,IF($C$4=4.5,'1'!AE34,IF($C$4=7,'1'!BC34,IF($C$4=9,'1'!CA34,"FAUX")))) -> 6.02 | M31: =IF($C$4=2.7,'1'!H34,IF($C$4=4.5,'1'!AF34,IF($C$4=7,'1'!BD34,IF($C$4=9,'1'!CB34,"FAUX")))) -> 1.62 | N31: =IF($C$4=2.7,'1'!I34,IF($C$4=4.5,'1'!AG34,IF($C$4=7,'1'!BE34,IF($C$4=9,'1'!CC34,"FAUX")))) -> 1.39 | O31: =IF($C$4=2.7,'1'!J34,IF($C$4=4.5,'1'!AH34,IF($C$4=7,'1'!BF34,IF($C$4=9,'1'!CD34,"FAUX")))) -> 5.24 | P31: =IF($C$4=2.7,'1'!K34,IF($C$4=4.5,'1'!AI34,IF($C$4=7,'1'!BG34,IF($C$4=9,'1'!CE34,"FAUX")))) -> 4.91 | Q31: =IF($C$4=2.7,'1'!L34,IF($C$4=4.5,'1'!AJ34,IF($C$4=7,'1'!BH34,IF($C$4=9,'1'!CF34,"FAUX")))) -> 1.71 | R31: =IF($C$4=2.7,'1'!M34,IF($C$4=4.5,'1'!AK34,IF($C$4=7,'1'!BI34,IF($C$4=9,'1'!CG34,"FAUX")))) -> 1.54 | S31: =IF($C$4=2.7,'1'!N34,IF($C$4=4.5,'1'!AL34,IF($C$4=7,'1'!BJ34,IF($C$4=9,'1'!CH34,"FAUX")))) -> 6.36 | T31: =IF($C$4=2.7,'1'!O34,IF($C$4=4.5,'1'!AM34,IF($C$4=7,'1'!BK34,IF($C$4=9,'1'!CI34,"FAUX")))) -> 5.98 | U31: =IF($C$4=2.7,'1'!P34,IF($C$4=4.5,'1'!AN34,IF($C$4=7,'1'!BL34,IF($C$4=9,'1'!CJ34,"FAUX")))) -> 1.92 | V31: =IF($C$4=2.7,'1'!Q34,IF($C$4=4.5,'1'!AO34,IF($C$4=7,'1'!BM34,IF($C$4=9,'1'!CK34,"FAUX")))) -> 1.7 | W31: =IF($C$4=2.7,'1'!R34,IF($C$4=4.5,'1'!AP34,IF($C$4=7,'1'!BN34,IF($C$4=9,'1'!CL34,"FAUX")))) -> 12.5 | X31: =IF($C$4=2.7,'1'!S34,IF($C$4=4.5,'1'!AQ34,IF($C$4=7,'1'!BO34,IF($C$4=9,'1'!CM34,"FAUX")))) -> 11.6 | Y31: =IF($C$4=2.7,'1'!T34,IF($C$4=4.5,'1'!AR34,IF($C$4=7,'1'!BP34,IF($C$4=9,'1'!CN34,"FAUX")))) -> 1.62 | Z31: =IF($C$4=2.7,'1'!U34,IF($C$4=4.5,'1'!AS34,IF($C$4=7,'1'!BQ34,IF($C$4=9,'1'!CO34,"FAUX")))) -> 1.43 | AA31: =IF($C$4=2.7,'1'!V34,IF($C$4=4.5,'1'!AT34,IF($C$4=7,'1'!BR34,IF($C$4=9,'1'!CP34,"FAUX")))) -> 10.3 | AB31: =IF($C$4=2.7,'1'!W34,IF($C$4=4.5,'1'!AU34,IF($C$4=7,'1'!BS34,IF($C$4=9,'1'!CQ34,"FAUX")))) -> 10 | AC31: =IF($C$4=2.7,'1'!X34,IF($C$4=4.5,'1'!AV34,IF($C$4=7,'1'!BT34,IF($C$4=9,'1'!CR34,"FAUX")))) -> 1.66 | AD31: =IF($C$4=2.7,'1'!Y34,IF($C$4=4.5,'1'!AW34,IF($C$4=7,'1'!BU34,IF($C$4=9,'1'!CS34,"FAUX")))) -> 1.55 | AE31: =IF($C$4=2.7,'1'!Z34,IF($C$4=4.5,'1'!AX34,IF($C$4=7,'1'!BV34,IF($C$4=9,'1'!CT34,"FAUX")))) -> 10.7 | AF31: =IF($C$4=2.7,'1'!AA34,IF($C$4=4.5,'1'!AY34,IF($C$4=7,'1'!BW34,IF($C$4=9,'1'!CU34,"FAUX")))) -> 10.8 | AI31: Impurity D | AJ31: -0.005666666667 | AK31: 1.99 | AL31: -0.011 | AM31: 6.68 | AN31: -0.007666666667 | AO31: 1.85 | AP31: -0.011 | AQ31: 5.57 | AR31: -0.005666666667 | AS31: 1.88 | AT31: -0.01266666667 | AU31: 6.74 | AV31: -0.007333333333 | AW31: 2.14 | AX31: -0.03 | AY31: 13.4 | AZ31: -0.006333333333 | BA31: 1.81 | BB31: -0.01 | BC31: 10.6 | BD31: -0.003666666667 | BE31: 1.77 | BF31: 0.003333333333 | BG31: 10.6 | BJ31: Impurity D | BK31: 1.82 | BL31: 1.62 | BM31: 1.71 | BN31: 1.92 | BO31: 1.62 | BP31: 1.66 | BS31: Impurity D | BT31: 6.35 | BU31: 5.24 | BV31: 6.36 | BW31: 12.5 | BX31: 10.3 | BY31: 10.7 | CJ31: Impurity D | CK31: ='1'!D80 -> 0.2343492644 | CL31: ='1'!E80 -> 0.4293576969 | CM31: ='1'!F80 -> 0.4815477429 | CN31: ='1'!G80 -> 0.1231166393 | CO31: ='1'!H80 -> 0.09066298254 | CP31: ='1'!I80 -> 0.1661632725 | CQ31: ='1'!J80 -> 0.1631564039 | CR31: ='1'!K80 -> 0.02971499037 | CS31: ='1'!L80 -> 0.005429438907 | CT31: ='1'!M80 -> 0.01022734197 | CU31: ='1'!N80 -> 0.02527597269 | CV31: ='1'!O80 -> 0.04166822312 | CW31: ='1'!P80 -> 0.05556554158 | CX31: ='1'!Q80 -> 0.05914764285 | CY31: ='1'!R80 -> 0.0492931586 | CZ31: ='1'!S80 -> 0.02664821468 | DC31: Impurity D | DD31: =HLOOKUP($DD$7,$CJ$7:$CZ$48,25,FALSE) -> 0.4815477429 | DG31: Impurity D | DH31: =IF($C$4=2.7,'1'!D148,IF($C$4=4.5,'1'!G148,IF($C$4=7,'1'!J148,IF($C$4=9,'1'!M148,FALSE)))) -> 1.09 | DI31: =IF($C$4=2.7,'1'!E148,IF($C$4=4.5,'1'!H148,IF($C$4=7,'1'!K148,IF($C$4=9,'1'!N148,FALSE)))) -> 1.17 | DJ31: =IF($C$4=2.7,'1'!F148,IF($C$4=4.5,'1'!I148,IF($C$4=7,'1'!L148,IF($C$4=9,'1'!O148,FALSE)))) -> 1.24 | DM31: Impurity D | DN31: =HLOOKUP($DN$7,$DG$7:$DJ$48,25,FALSE) -> 1.09 | DQ31: Impurity D | DS31: 9.62 | DT31: 1 | DV31: 8 | DW31: 86.31931114 | DX31: 13.68068886
B32: Concatener 1 | C32: =CONCATENATE(C5,C16) -> AcetonitrileC18 | H32: Impurity G | I32: =IF($C$4=2.7,'1'!D35,IF($C$4=4.5,'1'!AB35,IF($C$4=7,'1'!AZ35,IF($C$4=9,'1'!BX35,"FAUX")))) -> 2.77 | J32: =IF($C$4=2.7,'1'!E35,IF($C$4=4.5,'1'!AC35,IF($C$4=7,'1'!BA35,IF($C$4=9,'1'!BY35,"FAUX")))) -> 2.98 | K32: =IF($C$4=2.7,'1'!F35,IF($C$4=4.5,'1'!AD35,IF($C$4=7,'1'!BB35,IF($C$4=9,'1'!BZ35,"FAUX")))) -> 3.88 | L32: =IF($C$4=2.7,'1'!G35,IF($C$4=4.5,'1'!AE35,IF($C$4=7,'1'!BC35,IF($C$4=9,'1'!CA35,"FAUX")))) -> 4.36 | M32: =IF($C$4=2.7,'1'!H35,IF($C$4=4.5,'1'!AF35,IF($C$4=7,'1'!BD35,IF($C$4=9,'1'!CB35,"FAUX")))) -> 2.38 | N32: =IF($C$4=2.7,'1'!I35,IF($C$4=4.5,'1'!AG35,IF($C$4=7,'1'!BE35,IF($C$4=9,'1'!CC35,"FAUX")))) -> 2.49 | O32: =IF($C$4=2.7,'1'!J35,IF($C$4=4.5,'1'!AH35,IF($C$4=7,'1'!BF35,IF($C$4=9,'1'!CD35,"FAUX")))) -> 3.39 | P32: =IF($C$4=2.7,'1'!K35,IF($C$4=4.5,'1'!AI35,IF($C$4=7,'1'!BG35,IF($C$4=9,'1'!CE35,"FAUX")))) -> 3.72 | Q32: =IF($C$4=2.7,'1'!L35,IF($C$4=4.5,'1'!AJ35,IF($C$4=7,'1'!BH35,IF($C$4=9,'1'!CF35,"FAUX")))) -> 2.39 | R32: =IF($C$4=2.7,'1'!M35,IF($C$4=4.5,'1'!AK35,IF($C$4=7,'1'!BI35,IF($C$4=9,'1'!CG35,"FAUX")))) -> 2.57 | S32: =IF($C$4=2.7,'1'!N35,IF($C$4=4.5,'1'!AL35,IF($C$4=7,'1'!BJ35,IF($C$4=9,'1'!CH35,"FAUX")))) -> 3.66 | T32: =IF($C$4=2.7,'1'!O35,IF($C$4=4.5,'1'!AM35,IF($C$4=7,'1'!BK35,IF($C$4=9,'1'!CI35,"FAUX")))) -> 4 | U32: =IF($C$4=2.7,'1'!P35,IF($C$4=4.5,'1'!AN35,IF($C$4=7,'1'!BL35,IF($C$4=9,'1'!CJ35,"FAUX")))) -> 2.26 | V32: =IF($C$4=2.7,'1'!Q35,IF($C$4=4.5,'1'!AO35,IF($C$4=7,'1'!BM35,IF($C$4=9,'1'!CK35,"FAUX")))) -> 2.38 | W32: =IF($C$4=2.7,'1'!R35,IF($C$4=4.5,'1'!AP35,IF($C$4=7,'1'!BN35,IF($C$4=9,'1'!CL35,"FAUX")))) -> 5.23 | X32: =IF($C$4=2.7,'1'!S35,IF($C$4=4.5,'1'!AQ35,IF($C$4=7,'1'!BO35,IF($C$4=9,'1'!CM35,"FAUX")))) -> 5.02 | Y32: =IF($C$4=2.7,'1'!T35,IF($C$4=4.5,'1'!AR35,IF($C$4=7,'1'!BP35,IF($C$4=9,'1'!CN35,"FAUX")))) -> 1.99 | Z32: =IF($C$4=2.7,'1'!U35,IF($C$4=4.5,'1'!AS35,IF($C$4=7,'1'!BQ35,IF($C$4=9,'1'!CO35,"FAUX")))) -> 2.08 | AA32: =IF($C$4=2.7,'1'!V35,IF($C$4=4.5,'1'!AT35,IF($C$4=7,'1'!BR35,IF($C$4=9,'1'!CP35,"FAUX")))) -> 5.29 | AB32: =IF($C$4=2.7,'1'!W35,IF($C$4=4.5,'1'!AU35,IF($C$4=7,'1'!BS35,IF($C$4=9,'1'!CQ35,"FAUX")))) -> 4.92 | AC32: =IF($C$4=2.7,'1'!X35,IF($C$4=4.5,'1'!AV35,IF($C$4=7,'1'!BT35,IF($C$4=9,'1'!CR35,"FAUX")))) -> 2.07 | AD32: =IF($C$4=2.7,'1'!Y35,IF($C$4=4.5,'1'!AW35,IF($C$4=7,'1'!BU35,IF($C$4=9,'1'!CS35,"FAUX")))) -> 2.16 | AE32: =IF($C$4=2.7,'1'!Z35,IF($C$4=4.5,'1'!AX35,IF($C$4=7,'1'!BV35,IF($C$4=9,'1'!CT35,"FAUX")))) -> 5.16 | AF32: =IF($C$4=2.7,'1'!AA35,IF($C$4=4.5,'1'!AY35,IF($C$4=7,'1'!BW35,IF($C$4=9,'1'!CU35,"FAUX")))) -> 4.81 | AI32: Impurity G | AJ32: 0.007 | AK32: 2.56 | AL32: 0.016 | AM32: 3.4 | AN32: 0.003666666667 | AO32: 2.27 | AP32: 0.011 | AQ32: 3.06 | AR32: 0.006 | AS32: 2.21 | AT32: 0.01133333333 | AU32: 3.32 | AV32: 0.004 | AW32: 2.14 | AX32: -0.007 | AY32: 5.44 | AZ32: 0.003 | BA32: 1.9 | BB32: -0.01233333333 | BC32: 5.66 | BD32: 0.003 | BE32: 1.98 | BF32: -0.01166666667 | BG32: 5.51 | BJ32: Impurity G | BK32: 2.77 | BL32: 2.38 | BM32: 2.39 | BN32: 2.26 | BO32: 1.99 | BP32: 2.07 | BS32: Impurity G | BT32: 3.88 | BU32: 3.39 | BV32: 3.66 | BW32: 5.23 | BX32: 5.29 | BY32: 5.16 | CJ32: Impurity G | CK32: ='1'!D81 -> 0.2181196311 | CL32: ='1'!E81 -> 0.1848656037 | CM32: ='1'!F81 -> 0.1569161396 | CN32: ='1'!G81 -> 0.1450415787 | CO32: ='1'!H81 -> 0.05450222595 | CP32: ='1'!I81 -> 0.020807699 | CQ32: ='1'!J81 -> 0.04461624589 | CR32: ='1'!K81 -> 0.08070559648 | CS32: ='1'!L81 -> 0.1163611995 | CT32: ='1'!M81 -> 0.1443768128 | CU32: ='1'!N81 -> 0.1382389036 | CV32: ='1'!O81 -> 0.08969910833 | CW32: ='1'!P81 -> 0.03657006802 | CX32: ='1'!Q81 -> 0.008025484958 | CY32: ='1'!R81 -> 0.0005032356169 | CZ32: ='1'!S81 -> -0.0003984111079 | DC32: Impurity G | DD32: =HLOOKUP($DD$7,$CJ$7:$CZ$48,26,FALSE) -> 0.1569161396 | DG32: Impurity G | DH32: =IF($C$4=2.7,'1'!D149,IF($C$4=4.5,'1'!G149,IF($C$4=7,'1'!J149,IF($C$4=9,'1'!M149,FALSE)))) -> 1.06 | DI32: =IF($C$4=2.7,'1'!E149,IF($C$4=4.5,'1'!H149,IF($C$4=7,'1'!K149,IF($C$4=9,'1'!N149,FALSE)))) -> 1.04 | DJ32: =IF($C$4=2.7,'1'!F149,IF($C$4=4.5,'1'!I149,IF($C$4=7,'1'!L149,IF($C$4=9,'1'!O149,FALSE)))) -> 0.98 | DM32: Impurity G | DN32: =HLOOKUP($DN$7,$DG$7:$DJ$48,26,FALSE) -> 1.06 | DQ32: Impurity G | DS32: 7.5 | DT32: 1 | DV32: 8.5 | DW32: 66.61394246 | DX32: 33.38605754
B33: Concatener 2 | C33: =CONCATENATE(calculation2!E63,calculation2!E62) -> Acetonitrile7 | H33: Impurity F | I33: =IF($C$4=2.7,'1'!D36,IF($C$4=4.5,'1'!AB36,IF($C$4=7,'1'!AZ36,IF($C$4=9,'1'!BX36,"FAUX")))) -> 2.8 | J33: =IF($C$4=2.7,'1'!E36,IF($C$4=4.5,'1'!AC36,IF($C$4=7,'1'!BA36,IF($C$4=9,'1'!BY36,"FAUX")))) -> 2.6 | K33: =IF($C$4=2.7,'1'!F36,IF($C$4=4.5,'1'!AD36,IF($C$4=7,'1'!BB36,IF($C$4=9,'1'!BZ36,"FAUX")))) -> 7.02 | L33: =IF($C$4=2.7,'1'!G36,IF($C$4=4.5,'1'!AE36,IF($C$4=7,'1'!BC36,IF($C$4=9,'1'!CA36,"FAUX")))) -> 6.44 | M33: =IF($C$4=2.7,'1'!H36,IF($C$4=4.5,'1'!AF36,IF($C$4=7,'1'!BD36,IF($C$4=9,'1'!CB36,"FAUX")))) -> 2.67 | N33: =IF($C$4=2.7,'1'!I36,IF($C$4=4.5,'1'!AG36,IF($C$4=7,'1'!BE36,IF($C$4=9,'1'!CC36,"FAUX")))) -> 2.24 | O33: =IF($C$4=2.7,'1'!J36,IF($C$4=4.5,'1'!AH36,IF($C$4=7,'1'!BF36,IF($C$4=9,'1'!CD36,"FAUX")))) -> 7 | P33: =IF($C$4=2.7,'1'!K36,IF($C$4=4.5,'1'!AI36,IF($C$4=7,'1'!BG36,IF($C$4=9,'1'!CE36,"FAUX")))) -> 5.68 | Q33: =IF($C$4=2.7,'1'!L36,IF($C$4=4.5,'1'!AJ36,IF($C$4=7,'1'!BH36,IF($C$4=9,'1'!CF36,"FAUX")))) -> 2.72 | R33: =IF($C$4=2.7,'1'!M36,IF($C$4=4.5,'1'!AK36,IF($C$4=7,'1'!BI36,IF($C$4=9,'1'!CG36,"FAUX")))) -> 2.44 | S33: =IF($C$4=2.7,'1'!N36,IF($C$4=4.5,'1'!AL36,IF($C$4=7,'1'!BJ36,IF($C$4=9,'1'!CH36,"FAUX")))) -> 8.43 | T33: =IF($C$4=2.7,'1'!O36,IF($C$4=4.5,'1'!AM36,IF($C$4=7,'1'!BK36,IF($C$4=9,'1'!CI36,"FAUX")))) -> 7.26 | U33: =IF($C$4=2.7,'1'!P36,IF($C$4=4.5,'1'!AN36,IF($C$4=7,'1'!BL36,IF($C$4=9,'1'!CJ36,"FAUX")))) -> 2.74 | V33: =IF($C$4=2.7,'1'!Q36,IF($C$4=4.5,'1'!AO36,IF($C$4=7,'1'!BM36,IF($C$4=9,'1'!CK36,"FAUX")))) -> 2.53 | W33: =IF($C$4=2.7,'1'!R36,IF($C$4=4.5,'1'!AP36,IF($C$4=7,'1'!BN36,IF($C$4=9,'1'!CL36,"FAUX")))) -> 13.6 | X33: =IF($C$4=2.7,'1'!S36,IF($C$4=4.5,'1'!AQ36,IF($C$4=7,'1'!BO36,IF($C$4=9,'1'!CM36,"FAUX")))) -> 12.1 | Y33: =IF($C$4=2.7,'1'!T36,IF($C$4=4.5,'1'!AR36,IF($C$4=7,'1'!BP36,IF($C$4=9,'1'!CN36,"FAUX")))) -> 2.65 | Z33: =IF($C$4=2.7,'1'!U36,IF($C$4=4.5,'1'!AS36,IF($C$4=7,'1'!BQ36,IF($C$4=9,'1'!CO36,"FAUX")))) -> 2.31 | AA33: =IF($C$4=2.7,'1'!V36,IF($C$4=4.5,'1'!AT36,IF($C$4=7,'1'!BR36,IF($C$4=9,'1'!CP36,"FAUX")))) -> 16.2 | AB33: =IF($C$4=2.7,'1'!W36,IF($C$4=4.5,'1'!AU36,IF($C$4=7,'1'!BS36,IF($C$4=9,'1'!CQ36,"FAUX")))) -> 14 | AC33: =IF($C$4=2.7,'1'!X36,IF($C$4=4.5,'1'!AV36,IF($C$4=7,'1'!BT36,IF($C$4=9,'1'!CR36,"FAUX")))) -> 3.26 | AD33: =IF($C$4=2.7,'1'!Y36,IF($C$4=4.5,'1'!AW36,IF($C$4=7,'1'!BU36,IF($C$4=9,'1'!CS36,"FAUX")))) -> 2.65 | AE33: =IF($C$4=2.7,'1'!Z36,IF($C$4=4.5,'1'!AX36,IF($C$4=7,'1'!BV36,IF($C$4=9,'1'!CT36,"FAUX")))) -> 21.7 | AF33: =IF($C$4=2.7,'1'!AA36,IF($C$4=4.5,'1'!AY36,IF($C$4=7,'1'!BW36,IF($C$4=9,'1'!CU36,"FAUX")))) -> 17.1 | AI33: =$H33 -> Impurity F | AJ33: =SLOPE(I33:J33,$G$3:$G$4) -> -0.006666666667 | AK33: =INTERCEPT(I33:J33,$G$3:$G$4) -> 3 | AL33: =SLOPE(K33:L33,$G$3:$G$4) -> -0.01933333333 | AM33: =INTERCEPT(K33:L33,$G$3:$G$4) -> 7.6 | AN33: =SLOPE(M33:N33,$G$3:$G$4) -> -0.01433333333 | AO33: =INTERCEPT(M33:N33,$G$3:$G$4) -> 3.1 | AP33: =SLOPE(O33:P33,$G$3:$G$4) -> -0.044 | AQ33: =INTERCEPT(O33:P33,$G$3:$G$4) -> 8.32 | AR33: =SLOPE(Q33:R33,$G$3:$G$4) -> -0.009333333333 | AS33: =INTERCEPT(Q33:R33,$G$3:$G$4) -> 3 | AT33: =SLOPE(S33:T33,$G$3:$G$4) -> -0.039 | AU33: =INTERCEPT(S33:T33,$G$3:$G$4) -> 9.6 | AV33: =SLOPE(U33:V33,$G$3:$G$4) -> -0.007 | AW33: =INTERCEPT(U33:V33,$G$3:$G$4) -> 2.95 | AX33: =SLOPE(W33:X33,$G$3:$G$4) -> -0.05 | AY33: =INTERCEPT(W33:X33,$G$3:$G$4) -> 15.1 | AZ33: =SLOPE(Y33:Z33,$G$3:$G$4) -> -0.01133333333 | BA33: =INTERCEPT(Y33:Z33,$G$3:$G$4) -> 2.99 | BB33: =SLOPE(AA33:AB33,$G$3:$G$4) -> -0.07333333333 | BC33: =INTERCEPT(AA33:AB33,$G$3:$G$4) -> 18.4 | BD33: =SLOPE(AC33:AD33,$G$3:$G$4) -> -0.02033333333 | BE33: =INTERCEPT(AC33:AD33,$G$3:$G$4) -> 3.87 | BF33: =SLOPE(AE33:AF33,$G$3:$G$4) -> -0.1533333333 | BG33: =INTERCEPT(AE33:AF33,$G$3:$G$4) -> 26.3 | BJ33: Impurity F | BK33: 2.8 | BL33: 2.67 | BM33: 2.72 | BN33: 2.74 | BO33: 2.65 | BP33: 3.26 | BS33: Impurity F | BT33: 7.02 | BU33: 7 | BV33: 8.43 | BW33: 13.6 | BX33: 16.2 | BY33: 21.7 | CJ33: Impurity F | CK33: ='1'!D82 -> 0.5307012387 | CL33: ='1'!E82 -> 0.1878526384 | CM33: ='1'!F82 -> 0.184379013 | CN33: ='1'!G82 -> 0.1270951443 | CO33: ='1'!H82 -> 0.01941573446 | CP33: ='1'!I82 -> 0.004140976467 | CQ33: ='1'!J82 -> 0.01064426963 | CR33: ='1'!K82 -> 0.02406322922 | CS33: ='1'!L82 -> 0.03126105772 | CT33: ='1'!M82 -> 0.01137893961 | CU33: ='1'!N82 -> -0.0003984111079 | CV33: ='1'!O82 -> -0.0003984111079 | CW33: ='1'!P82 -> -0.0003984111079 | CX33: ='1'!Q82 -> -0.0003984111079 | CY33: ='1'!R82 -> -0.0003984111079 | CZ33: ='1'!S82 -> -0.0003984111079 | DC33: Impurity F | DD33: =HLOOKUP($DD$7,$CJ$7:$CZ$48,27,FALSE) -> 0.184379013 | DG33: Impurity F | DH33: =IF($C$4=2.7,'1'!D150,IF($C$4=4.5,'1'!G150,IF($C$4=7,'1'!J150,IF($C$4=9,'1'!M150,FALSE)))) -> 1.85 | DI33: =IF($C$4=2.7,'1'!E150,IF($C$4=4.5,'1'!H150,IF($C$4=7,'1'!K150,IF($C$4=9,'1'!N150,FALSE)))) -> 1.09 | DJ33: =IF($C$4=2.7,'1'!F150,IF($C$4=4.5,'1'!I150,IF($C$4=7,'1'!L150,IF($C$4=9,'1'!O150,FALSE)))) -> 1.89 | DM33: Impurity F | DN33: =HLOOKUP($DN$7,$DG$7:$DJ$48,27,FALSE) -> 1.85 | DQ33: Impurity F | DS33: 9.66 | DT33: 1 | DV33: 9 | DW33: 38.68631798 | DX33: 61.31368202
B34: % solvant moyen iso/grad | C34: =IF(C8="isocratic",C26,C29) -> 40 | D34: % | H34: ="" ->  | I34: 0 | J34: 0 | K34: 0 | L34: 0 | M34: 0 | N34: 0 | O34: 0 | P34: 0 | Q34: 0 | R34: 0 | S34: 0 | T34: 0 | U34: 0 | V34: 0 | W34: 0 | X34: 0 | Y34: 0 | Z34: 0 | AA34: 0 | AB34: 0 | AC34: 0 | AD34: 0 | AE34: 0 | AF34: 0 | AJ34: 0 | AK34: 0 | AL34: 0 | AM34: 0 | AN34: 0 | AO34: 0 | AP34: 0 | AQ34: 0 | AR34: 0 | AS34: 0 | AT34: 0 | AU34: 0 | AV34: 0 | AW34: 0 | AX34: 0 | AY34: 0 | AZ34: 0 | BA34: 0 | BB34: 0 | BC34: 0 | BD34: 0 | BE34: 0 | BF34: 0 | BG34: 0 | BK34: 0 | BL34: 0 | BM34: 0 | BN34: 0 | BO34: 0 | BP34: 0 | BT34: 0 | BU34: 0 | BV34: 0 | BW34: 0 | BX34: 0 | BY34: 0 | CK34: ='1'!D83 -> 0 | CL34: ='1'!E83 -> 0 | CM34: ='1'!F83 -> 0 | CN34: ='1'!G83 -> 0 | CO34: ='1'!H83 -> 0 | CP34: ='1'!I83 -> 0 | CQ34: ='1'!J83 -> 0 | CR34: ='1'!K83 -> 0 | CS34: ='1'!L83 -> 0 | CT34: ='1'!M83 -> 0 | CU34: ='1'!N83 -> 0 | CV34: ='1'!O83 -> 0 | CW34: ='1'!P83 -> 0 | CX34: ='1'!Q83 -> 0 | CY34: ='1'!R83 -> 0 | CZ34: ='1'!S83 -> 0 | DD34: =HLOOKUP($DD$7,$CJ$7:$CZ$48,28,FALSE) -> 0 | DH34: =IF($C$4=2.7,'1'!D151,IF($C$4=4.5,'1'!G151,IF($C$4=7,'1'!J151,IF($C$4=9,'1'!M151,FALSE)))) -> 0 | DI34: =IF($C$4=2.7,'1'!E151,IF($C$4=4.5,'1'!H151,IF($C$4=7,'1'!K151,IF($C$4=9,'1'!N151,FALSE)))) -> 0 | DJ34: =IF($C$4=2.7,'1'!F151,IF($C$4=4.5,'1'!I151,IF($C$4=7,'1'!L151,IF($C$4=9,'1'!O151,FALSE)))) -> 0 | DN34: =HLOOKUP($DN$7,$DG$7:$DJ$48,28,FALSE) -> 0 | DS34: 10.16 | DT34: 1 | DV34: 9.5 | DW34: 16.63375308 | DX34: 83.36624692
H35: ="" ->  | I35: =IF($C$4=2.7,'1'!D38,IF($C$4=4.5,'1'!AB38,IF($C$4=7,'1'!AZ38,IF($C$4=9,'1'!BX38,"FAUX")))) -> 0 | J35: =IF($C$4=2.7,'1'!E38,IF($C$4=4.5,'1'!AC38,IF($C$4=7,'1'!BA38,IF($C$4=9,'1'!BY38,"FAUX")))) -> 0 | K35: =IF($C$4=2.7,'1'!F38,IF($C$4=4.5,'1'!AD38,IF($C$4=7,'1'!BB38,IF($C$4=9,'1'!BZ38,"FAUX")))) -> 0 | L35: =IF($C$4=2.7,'1'!G38,IF($C$4=4.5,'1'!AE38,IF($C$4=7,'1'!BC38,IF($C$4=9,'1'!CA38,"FAUX")))) -> 0 | M35: =IF($C$4=2.7,'1'!H38,IF($C$4=4.5,'1'!AF38,IF($C$4=7,'1'!BD38,IF($C$4=9,'1'!CB38,"FAUX")))) -> 0 | N35: =IF($C$4=2.7,'1'!I38,IF($C$4=4.5,'1'!AG38,IF($C$4=7,'1'!BE38,IF($C$4=9,'1'!CC38,"FAUX")))) -> 0 | O35: =IF($C$4=2.7,'1'!J38,IF($C$4=4.5,'1'!AH38,IF($C$4=7,'1'!BF38,IF($C$4=9,'1'!CD38,"FAUX")))) -> 0 | P35: =IF($C$4=2.7,'1'!K38,IF($C$4=4.5,'1'!AI38,IF($C$4=7,'1'!BG38,IF($C$4=9,'1'!CE38,"FAUX")))) -> 0 | Q35: =IF($C$4=2.7,'1'!L38,IF($C$4=4.5,'1'!AJ38,IF($C$4=7,'1'!BH38,IF($C$4=9,'1'!CF38,"FAUX")))) -> 0 | R35: =IF($C$4=2.7,'1'!M38,IF($C$4=4.5,'1'!AK38,IF($C$4=7,'1'!BI38,IF($C$4=9,'1'!CG38,"FAUX")))) -> 0 | S35: =IF($C$4=2.7,'1'!N38,IF($C$4=4.5,'1'!AL38,IF($C$4=7,'1'!BJ38,IF($C$4=9,'1'!CH38,"FAUX")))) -> 0 | T35: =IF($C$4=2.7,'1'!O38,IF($C$4=4.5,'1'!AM38,IF($C$4=7,'1'!BK38,IF($C$4=9,'1'!CI38,"FAUX")))) -> 0 | U35: =IF($C$4=2.7,'1'!P38,IF($C$4=4.5,'1'!AN38,IF($C$4=7,'1'!BL38,IF($C$4=9,'1'!CJ38,"FAUX")))) -> 0 | V35: =IF($C$4=2.7,'1'!Q38,IF($C$4=4.5,'1'!AO38,IF($C$4=7,'1'!BM38,IF($C$4=9,'1'!CK38,"FAUX")))) -> 0 | W35: =IF($C$4=2.7,'1'!R38,IF($C$4=4.5,'1'!AP38,IF($C$4=7,'1'!BN38,IF($C$4=9,'1'!CL38,"FAUX")))) -> 0 | X35: =IF($C$4=2.7,'1'!S38,IF($C$4=4.5,'1'!AQ38,IF($C$4=7,'1'!BO38,IF($C$4=9,'1'!CM38,"FAUX")))) -> 0 | Y35: =IF($C$4=2.7,'1'!T38,IF($C$4=4.5,'1'!AR38,IF($C$4=7,'1'!BP38,IF($C$4=9,'1'!CN38,"FAUX")))) -> 0 | Z35: =IF($C$4=2.7,'1'!U38,IF($C$4=4.5,'1'!AS38,IF($C$4=7,'1'!BQ38,IF($C$4=9,'1'!CO38,"FAUX")))) -> 0 | AA35: =IF($C$4=2.7,'1'!V38,IF($C$4=4.5,'1'!AT38,IF($C$4=7,'1'!BR38,IF($C$4=9,'1'!CP38,"FAUX")))) -> 0 | AB35: =IF($C$4=2.7,'1'!W38,IF($C$4=4.5,'1'!AU38,IF($C$4=7,'1'!BS38,IF($C$4=9,'1'!CQ38,"FAUX")))) -> 0 | AC35: =IF($C$4=2.7,'1'!X38,IF($C$4=4.5,'1'!AV38,IF($C$4=7,'1'!BT38,IF($C$4=9,'1'!CR38,"FAUX")))) -> 0 | AD35: =IF($C$4=2.7,'1'!Y38,IF($C$4=4.5,'1'!AW38,IF($C$4=7,'1'!BU38,IF($C$4=9,'1'!CS38,"FAUX")))) -> 0 | AE35: =IF($C$4=2.7,'1'!Z38,IF($C$4=4.5,'1'!AX38,IF($C$4=7,'1'!BV38,IF($C$4=9,'1'!CT38,"FAUX")))) -> 0 | AF35: =IF($C$4=2.7,'1'!AA38,IF($C$4=4.5,'1'!AY38,IF($C$4=7,'1'!BW38,IF($C$4=9,'1'!CU38,"FAUX")))) -> 0 | AI35: ="" ->  | AJ35: 0 | AK35: 0 | AL35: 0 | AM35: 0 | AN35: 0 | AO35: 0 | AP35: 0 | AQ35: 0 | AR35: 0 | AS35: 0 | AT35: 0 | AU35: 0 | AV35: 0 | AW35: 0 | AX35: 0 | AY35: 0 | AZ35: 0 | BA35: 0 | BB35: 0 | BC35: 0 | BD35: 0 | BE35: 0 | BF35: 0 | BG35: 0 | BJ35: ="" ->  | BK35: =AJ35*$C$17+AK35 -> 0 | BL35: =AN35*$C$17+AO35 -> 0 | BM35: =AR35*$C$17+AS35 -> 0 | BN35: =AV35*$C$17+AW35 -> 0 | BO35: =AZ35*$C$17+BA35 -> 0 | BP35: =BD35*$C$17+BE35 -> 0 | BS35: ="" ->  | BT35: =AL35*$C$17+AM35 -> 0 | BU35: =AP35*$C$17+AQ35 -> 0 | BV35: =AT35*$C$17+AU35 -> 0 | BW35: =AX35*$C$17+AY35 -> 0 | BX35: =BB35*$C$17+BC35 -> 0 | BY35: =BF35*$C$17+BG35 -> 0 | CJ35: ="" ->  | CK35: ='1'!D84 -> 0 | CL35: ='1'!E84 -> 0 | CM35: ='1'!F84 -> 0 | CN35: ='1'!G84 -> 0 | CO35: ='1'!H84 -> 0 | CP35: ='1'!I84 -> 0 | CQ35: ='1'!J84 -> 0 | CR35: ='1'!K84 -> 0 | CS35: ='1'!L84 -> 0 | CT35: ='1'!M84 -> 0 | CU35: ='1'!N84 -> 0 | CV35: ='1'!O84 -> 0 | CW35: ='1'!P84 -> 0 | CX35: ='1'!Q84 -> 0 | CY35: ='1'!R84 -> 0 | CZ35: ='1'!S84 -> 0 | DC35: ="" ->  | DD35: =HLOOKUP($DD$7,$CJ$7:$CZ$48,29,FALSE) -> 0 | DG35: ="" ->  | DH35: =IF($C$4=2.7,'1'!D152,IF($C$4=4.5,'1'!G152,IF($C$4=7,'1'!J152,IF($C$4=9,'1'!M152,FALSE)))) -> 0 | DI35: =IF($C$4=2.7,'1'!E152,IF($C$4=4.5,'1'!H152,IF($C$4=7,'1'!K152,IF($C$4=9,'1'!N152,FALSE)))) -> 0 | DJ35: =IF($C$4=2.7,'1'!F152,IF($C$4=4.5,'1'!I152,IF($C$4=7,'1'!L152,IF($C$4=9,'1'!O152,FALSE)))) -> 0 | DM35: ="" ->  | DN35: =HLOOKUP($DN$7,$DG$7:$DJ$48,29,FALSE) -> 0 | DQ35: ="" ->  | DT35: 1 | DV35: 10 | DW35: 5.93509431 | DX35: 94.06490569
B36: OUTPUT | H36: ="" ->  | I36: =IF($C$4=2.7,'1'!D39,IF($C$4=4.5,'1'!AB39,IF($C$4=7,'1'!AZ39,IF($C$4=9,'1'!BX39,"FAUX")))) -> 0 | J36: =IF($C$4=2.7,'1'!E39,IF($C$4=4.5,'1'!AC39,IF($C$4=7,'1'!BA39,IF($C$4=9,'1'!BY39,"FAUX")))) -> 0 | K36: =IF($C$4=2.7,'1'!F39,IF($C$4=4.5,'1'!AD39,IF($C$4=7,'1'!BB39,IF($C$4=9,'1'!BZ39,"FAUX")))) -> 0 | L36: =IF($C$4=2.7,'1'!G39,IF($C$4=4.5,'1'!AE39,IF($C$4=7,'1'!BC39,IF($C$4=9,'1'!CA39,"FAUX")))) -> 0 | M36: =IF($C$4=2.7,'1'!H39,IF($C$4=4.5,'1'!AF39,IF($C$4=7,'1'!BD39,IF($C$4=9,'1'!CB39,"FAUX")))) -> 0 | N36: =IF($C$4=2.7,'1'!I39,IF($C$4=4.5,'1'!AG39,IF($C$4=7,'1'!BE39,IF($C$4=9,'1'!CC39,"FAUX")))) -> 0 | O36: =IF($C$4=2.7,'1'!J39,IF($C$4=4.5,'1'!AH39,IF($C$4=7,'1'!BF39,IF($C$4=9,'1'!CD39,"FAUX")))) -> 0 | P36: =IF($C$4=2.7,'1'!K39,IF($C$4=4.5,'1'!AI39,IF($C$4=7,'1'!BG39,IF($C$4=9,'1'!CE39,"FAUX")))) -> 0 | Q36: =IF($C$4=2.7,'1'!L39,IF($C$4=4.5,'1'!AJ39,IF($C$4=7,'1'!BH39,IF($C$4=9,'1'!CF39,"FAUX")))) -> 0 | R36: =IF($C$4=2.7,'1'!M39,IF($C$4=4.5,'1'!AK39,IF($C$4=7,'1'!BI39,IF($C$4=9,'1'!CG39,"FAUX")))) -> 0 | S36: =IF($C$4=2.7,'1'!N39,IF($C$4=4.5,'1'!AL39,IF($C$4=7,'1'!BJ39,IF($C$4=9,'1'!CH39,"FAUX")))) -> 0 | T36: =IF($C$4=2.7,'1'!O39,IF($C$4=4.5,'1'!AM39,IF($C$4=7,'1'!BK39,IF($C$4=9,'1'!CI39,"FAUX")))) -> 0 | U36: =IF($C$4=2.7,'1'!P39,IF($C$4=4.5,'1'!AN39,IF($C$4=7,'1'!BL39,IF($C$4=9,'1'!CJ39,"FAUX")))) -> 0 | V36: =IF($C$4=2.7,'1'!Q39,IF($C$4=4.5,'1'!AO39,IF($C$4=7,'1'!BM39,IF($C$4=9,'1'!CK39,"FAUX")))) -> 0 | W36: =IF($C$4=2.7,'1'!R39,IF($C$4=4.5,'1'!AP39,IF($C$4=7,'1'!BN39,IF($C$4=9,'1'!CL39,"FAUX")))) -> 0 | X36: =IF($C$4=2.7,'1'!S39,IF($C$4=4.5,'1'!AQ39,IF($C$4=7,'1'!BO39,IF($C$4=9,'1'!CM39,"FAUX")))) -> 0 | Y36: =IF($C$4=2.7,'1'!T39,IF($C$4=4.5,'1'!AR39,IF($C$4=7,'1'!BP39,IF($C$4=9,'1'!CN39,"FAUX")))) -> 0 | Z36: =IF($C$4=2.7,'1'!U39,IF($C$4=4.5,'1'!AS39,IF($C$4=7,'1'!BQ39,IF($C$4=9,'1'!CO39,"FAUX")))) -> 0 | AA36: =IF($C$4=2.7,'1'!V39,IF($C$4=4.5,'1'!AT39,IF($C$4=7,'1'!BR39,IF($C$4=9,'1'!CP39,"FAUX")))) -> 0 | AB36: =IF($C$4=2.7,'1'!W39,IF($C$4=4.5,'1'!AU39,IF($C$4=7,'1'!BS39,IF($C$4=9,'1'!CQ39,"FAUX")))) -> 0 | AC36: =IF($C$4=2.7,'1'!X39,IF($C$4=4.5,'1'!AV39,IF($C$4=7,'1'!BT39,IF($C$4=9,'1'!CR39,"FAUX")))) -> 0 | AD36: =IF($C$4=2.7,'1'!Y39,IF($C$4=4.5,'1'!AW39,IF($C$4=7,'1'!BU39,IF($C$4=9,'1'!CS39,"FAUX")))) -> 0 | AE36: =IF($C$4=2.7,'1'!Z39,IF($C$4=4.5,'1'!AX39,IF($C$4=7,'1'!BV39,IF($C$4=9,'1'!CT39,"FAUX")))) -> 0 | AF36: =IF($C$4=2.7,'1'!AA39,IF($C$4=4.5,'1'!AY39,IF($C$4=7,'1'!BW39,IF($C$4=9,'1'!CU39,"FAUX")))) -> 0 | AI36: ="" ->  | AJ36: 0 | AK36: 0 | AL36: 0 | AM36: 0 | AN36: 0 | AO36: 0 | AP36: 0 | AQ36: 0 | AR36: 0 | AS36: 0 | AT36: 0 | AU36: 0 | AV36: 0 | AW36: 0 | AX36: 0 | AY36: 0 | AZ36: 0 | BA36: 0 | BB36: 0 | BC36: 0 | BD36: 0 | BE36: 0 | BF36: 0 | BG36: 0 | BJ36: ="" ->  | BK36: 0 | BL36: 0 | BM36: 0 | BN36: 0 | BO36: 0 | BP36: 0 | BS36: ="" ->  | BT36: 0 | BU36: 0 | BV36: 0 | BW36: 0 | BX36: 0 | BY36: 0 | CJ36: ="" ->  | CK36: ='1'!D85 -> 0 | CL36: ='1'!E85 -> 0 | CM36: ='1'!F85 -> 0 | CN36: ='1'!G85 -> 0 | CO36: ='1'!H85 -> 0 | CP36: ='1'!I85 -> 0 | CQ36: ='1'!J85 -> 0 | CR36: ='1'!K85 -> 0 | CS36: ='1'!L85 -> 0 | CT36: ='1'!M85 -> 0 | CU36: ='1'!N85 -> 0 | CV36: ='1'!O85 -> 0 | CW36: ='1'!P85 -> 0 | CX36: ='1'!Q85 -> 0 | CY36: ='1'!R85 -> 0 | CZ36: ='1'!S85 -> 0 | DC36: ="" ->  | DD36: =HLOOKUP($DD$7,$CJ$7:$CZ$48,30,FALSE) -> 0 | DG36: ="" ->  | DH36: =IF($C$4=2.7,'1'!D153,IF($C$4=4.5,'1'!G153,IF($C$4=7,'1'!J153,IF($C$4=9,'1'!M153,FALSE)))) -> 0 | DI36: =IF($C$4=2.7,'1'!E153,IF($C$4=4.5,'1'!H153,IF($C$4=7,'1'!K153,IF($C$4=9,'1'!N153,FALSE)))) -> 0 | DJ36: =IF($C$4=2.7,'1'!F153,IF($C$4=4.5,'1'!I153,IF($C$4=7,'1'!L153,IF($C$4=9,'1'!O153,FALSE)))) -> 0 | DM36: ="" ->  | DN36: =HLOOKUP($DN$7,$DG$7:$DJ$48,30,FALSE) -> 0 | DQ36: ="" ->  | DT36: 1 | DV36: 10.5 | DW36: 1.956230387 | DX36: 98.04376961
B37: Porosity | C37: ='HPLC simulator'!O22 -> 0.7 | G37: Mix 6 | H37: Retinyl acetate | I37: =IF($C$4=2.7,'1'!D40,IF($C$4=4.5,'1'!AB40,IF($C$4=7,'1'!AZ40,IF($C$4=9,'1'!BX40,"FAUX")))) -> 5.89 | J37: =IF($C$4=2.7,'1'!E40,IF($C$4=4.5,'1'!AC40,IF($C$4=7,'1'!BA40,IF($C$4=9,'1'!BY40,"FAUX")))) -> 6 | K37: =IF($C$4=2.7,'1'!F40,IF($C$4=4.5,'1'!AD40,IF($C$4=7,'1'!BB40,IF($C$4=9,'1'!BZ40,"FAUX")))) -> 5.72 | L37: =IF($C$4=2.7,'1'!G40,IF($C$4=4.5,'1'!AE40,IF($C$4=7,'1'!BC40,IF($C$4=9,'1'!CA40,"FAUX")))) -> 6.05 | M37: =IF($C$4=2.7,'1'!H40,IF($C$4=4.5,'1'!AF40,IF($C$4=7,'1'!BD40,IF($C$4=9,'1'!CB40,"FAUX")))) -> 6.15 | N37: =IF($C$4=2.7,'1'!I40,IF($C$4=4.5,'1'!AG40,IF($C$4=7,'1'!BE40,IF($C$4=9,'1'!CC40,"FAUX")))) -> 5.73 | O37: =IF($C$4=2.7,'1'!J40,IF($C$4=4.5,'1'!AH40,IF($C$4=7,'1'!BF40,IF($C$4=9,'1'!CD40,"FAUX")))) -> 6.55 | P37: =IF($C$4=2.7,'1'!K40,IF($C$4=4.5,'1'!AI40,IF($C$4=7,'1'!BG40,IF($C$4=9,'1'!CE40,"FAUX")))) -> 6.29 | Q37: =IF($C$4=2.7,'1'!L40,IF($C$4=4.5,'1'!AJ40,IF($C$4=7,'1'!BH40,IF($C$4=9,'1'!CF40,"FAUX")))) -> 6.23 | R37: =IF($C$4=2.7,'1'!M40,IF($C$4=4.5,'1'!AK40,IF($C$4=7,'1'!BI40,IF($C$4=9,'1'!CG40,"FAUX")))) -> 5.94 | S37: =IF($C$4=2.7,'1'!N40,IF($C$4=4.5,'1'!AL40,IF($C$4=7,'1'!BJ40,IF($C$4=9,'1'!CH40,"FAUX")))) -> 6.69 | T37: =IF($C$4=2.7,'1'!O40,IF($C$4=4.5,'1'!AM40,IF($C$4=7,'1'!BK40,IF($C$4=9,'1'!CI40,"FAUX")))) -> 6.55 | U37: =IF($C$4=2.7,'1'!P40,IF($C$4=4.5,'1'!AN40,IF($C$4=7,'1'!BL40,IF($C$4=9,'1'!CJ40,"FAUX")))) -> 4.18 | V37: =IF($C$4=2.7,'1'!Q40,IF($C$4=4.5,'1'!AO40,IF($C$4=7,'1'!BM40,IF($C$4=9,'1'!CK40,"FAUX")))) -> 4.22 | W37: =IF($C$4=2.7,'1'!R40,IF($C$4=4.5,'1'!AP40,IF($C$4=7,'1'!BN40,IF($C$4=9,'1'!CL40,"FAUX")))) -> 3.89 | X37: =IF($C$4=2.7,'1'!S40,IF($C$4=4.5,'1'!AQ40,IF($C$4=7,'1'!BO40,IF($C$4=9,'1'!CM40,"FAUX")))) -> 4.2 | Y37: =IF($C$4=2.7,'1'!T40,IF($C$4=4.5,'1'!AR40,IF($C$4=7,'1'!BP40,IF($C$4=9,'1'!CN40,"FAUX")))) -> 3.81 | Z37: =IF($C$4=2.7,'1'!U40,IF($C$4=4.5,'1'!AS40,IF($C$4=7,'1'!BQ40,IF($C$4=9,'1'!CO40,"FAUX")))) -> 3.84 | AA37: =IF($C$4=2.7,'1'!V40,IF($C$4=4.5,'1'!AT40,IF($C$4=7,'1'!BR40,IF($C$4=9,'1'!CP40,"FAUX")))) -> 4.38 | AB37: =IF($C$4=2.7,'1'!W40,IF($C$4=4.5,'1'!AU40,IF($C$4=7,'1'!BS40,IF($C$4=9,'1'!CQ40,"FAUX")))) -> 4.63 | AC37: =IF($C$4=2.7,'1'!X40,IF($C$4=4.5,'1'!AV40,IF($C$4=7,'1'!BT40,IF($C$4=9,'1'!CR40,"FAUX")))) -> 3.92 | AD37: =IF($C$4=2.7,'1'!Y40,IF($C$4=4.5,'1'!AW40,IF($C$4=7,'1'!BU40,IF($C$4=9,'1'!CS40,"FAUX")))) -> 3.97 | AE37: =IF($C$4=2.7,'1'!Z40,IF($C$4=4.5,'1'!AX40,IF($C$4=7,'1'!BV40,IF($C$4=9,'1'!CT40,"FAUX")))) -> 4.09 | AF37: =IF($C$4=2.7,'1'!AA40,IF($C$4=4.5,'1'!AY40,IF($C$4=7,'1'!BW40,IF($C$4=9,'1'!CU40,"FAUX")))) -> 4.38 | AH37: Mix 6 | AI37: =$H37 -> Retinyl acetate | AJ37: =SLOPE(I37:J37,$G$3:$G$4) -> 0.003666666667 | AK37: =INTERCEPT(I37:J37,$G$3:$G$4) -> 5.78 | AL37: =SLOPE(K37:L37,$G$3:$G$4) -> 0.011 | AM37: =INTERCEPT(K37:L37,$G$3:$G$4) -> 5.39 | AN37: =SLOPE(M37:N37,$G$3:$G$4) -> -0.014 | AO37: =INTERCEPT(M37:N37,$G$3:$G$4) -> 6.57 | AP37: =SLOPE(O37:P37,$G$3:$G$4) -> -0.008666666667 | AQ37: =INTERCEPT(O37:P37,$G$3:$G$4) -> 6.81 | AR37: =SLOPE(Q37:R37,$G$3:$G$4) -> -0.009666666667 | AS37: =INTERCEPT(Q37:R37,$G$3:$G$4) -> 6.52 | AT37: =SLOPE(S37:T37,$G$3:$G$4) -> -0.004666666667 | AU37: =INTERCEPT(S37:T37,$G$3:$G$4) -> 6.83 | AV37: =SLOPE(U37:V37,$G$3:$G$4) -> 0.001333333333 | AW37: =INTERCEPT(U37:V37,$G$3:$G$4) -> 4.14 | AX37: =SLOPE(W37:X37,$G$3:$G$4) -> 0.01033333333 | AY37: =INTERCEPT(W37:X37,$G$3:$G$4) -> 3.58 | AZ37: =SLOPE(Y37:Z37,$G$3:$G$4) -> 0.001 | BA37: =INTERCEPT(Y37:Z37,$G$3:$G$4) -> 3.78 | BB37: =SLOPE(AA37:AB37,$G$3:$G$4) -> 0.008333333333 | BC37: =INTERCEPT(AA37:AB37,$G$3:$G$4) -> 4.13 | BD37: =SLOPE(AC37:AD37,$G$3:$G$4) -> 0.001666666667 | BE37: =INTERCEPT(AC37:AD37,$G$3:$G$4) -> 3.87 | BF37: 0.009666666667 | BG37: =INTERCEPT(AE37:AF37,$G$3:$G$4) -> 3.8 | BI37: Mix 6 | BJ37: =H37 -> Retinyl acetate | BK37: 5.89 | BL37: 6.15 | BM37: 6.23 | BN37: 4.18 | BO37: 3.81 | BP37: 3.92 | BR37: Mix 6 | BS37: =H37 -> Retinyl acetate | BT37: 5.72 | BU37: 6.55 | BV37: 6.69 | BW37: 3.89 | BX37: 4.38 | BY37: 4.09 | CI37: Mix 6 | CJ37: =$H37 -> Retinyl acetate | CK37: ='1'!D86 -> 0 | CL37: ='1'!E86 -> 0.04413354243 | CM37: ='1'!F86 -> 0.2611572329 | CN37: ='1'!G86 -> 0.2719872965 | CO37: ='1'!H86 -> 0.158647426 | CP37: ='1'!I86 -> 0.07757786256 | CQ37: ='1'!J86 -> 0.05058946074 | CR37: ='1'!K86 -> 0.06060337811 | CS37: ='1'!L86 -> 0.09390158873 | CT37: ='1'!M86 -> 0.1496353851 | CU37: ='1'!N86 -> 0.2555483376 | CV37: ='1'!O86 -> 0.3594417595 | CW37: ='1'!P86 -> 0.4233839043 | CX37: ='1'!Q86 -> 0.4446109261 | CY37: ='1'!R86 -> 0.3839082797 | CZ37: ='1'!S86 -> 0.2501386381 | DB37: Mix 6 | DC37: =$H37 -> Retinyl acetate | DD37: =HLOOKUP($DD$7,$CJ$7:$CZ$48,31,FALSE) -> 0.2611572329 | DF37: Mix 6 | DG37: =$H37 -> Retinyl acetate | DH37: =IF($C$4=2.7,'1'!D154,IF($C$4=4.5,'1'!G154,IF($C$4=7,'1'!J154,IF($C$4=9,'1'!M154,FALSE)))) -> 1.08 | DI37: =IF($C$4=2.7,'1'!E154,IF($C$4=4.5,'1'!H154,IF($C$4=7,'1'!K154,IF($C$4=9,'1'!N154,FALSE)))) -> 1.11 | DJ37: =IF($C$4=2.7,'1'!F154,IF($C$4=4.5,'1'!I154,IF($C$4=7,'1'!L154,IF($C$4=9,'1'!O154,FALSE)))) -> 1.09 | DL37: Mix 6 | DM37: =$H37 -> Retinyl acetate | DN37: =HLOOKUP($DN$7,$DG$7:$DJ$48,31,FALSE) -> 1.08 | DP37: Mix 6 | DQ37: =$H37 -> Retinyl acetate | DR37: 20 | DT37: 2 | DV37: 11 | DW37: 0.6270012341 | DX37: 99.37299877
B38: solute molar volume | C38: 100 | D38: cm3/g.mol | H38: Alpha tocopherol | I38: =IF($C$4=2.7,'1'!D41,IF($C$4=4.5,'1'!AB41,IF($C$4=7,'1'!AZ41,IF($C$4=9,'1'!BX41,"FAUX")))) -> 9.63 | J38: =IF($C$4=2.7,'1'!E41,IF($C$4=4.5,'1'!AC41,IF($C$4=7,'1'!BA41,IF($C$4=9,'1'!BY41,"FAUX")))) -> 8.5 | K38: =IF($C$4=2.7,'1'!F41,IF($C$4=4.5,'1'!AD41,IF($C$4=7,'1'!BB41,IF($C$4=9,'1'!BZ41,"FAUX")))) -> 9.14 | L38: =IF($C$4=2.7,'1'!G41,IF($C$4=4.5,'1'!AE41,IF($C$4=7,'1'!BC41,IF($C$4=9,'1'!CA41,"FAUX")))) -> 8.16 | M38: =IF($C$4=2.7,'1'!H41,IF($C$4=4.5,'1'!AF41,IF($C$4=7,'1'!BD41,IF($C$4=9,'1'!CB41,"FAUX")))) -> 6.93 | N38: =IF($C$4=2.7,'1'!I41,IF($C$4=4.5,'1'!AG41,IF($C$4=7,'1'!BE41,IF($C$4=9,'1'!CC41,"FAUX")))) -> 6.49 | O38: =IF($C$4=2.7,'1'!J41,IF($C$4=4.5,'1'!AH41,IF($C$4=7,'1'!BF41,IF($C$4=9,'1'!CD41,"FAUX")))) -> 6.99 | P38: =IF($C$4=2.7,'1'!K41,IF($C$4=4.5,'1'!AI41,IF($C$4=7,'1'!BG41,IF($C$4=9,'1'!CE41,"FAUX")))) -> 6.69 | Q38: =IF($C$4=2.7,'1'!L41,IF($C$4=4.5,'1'!AJ41,IF($C$4=7,'1'!BH41,IF($C$4=9,'1'!CF41,"FAUX")))) -> 6.8 | R38: =IF($C$4=2.7,'1'!M41,IF($C$4=4.5,'1'!AK41,IF($C$4=7,'1'!BI41,IF($C$4=9,'1'!CG41,"FAUX")))) -> 7.02 | S38: =IF($C$4=2.7,'1'!N41,IF($C$4=4.5,'1'!AL41,IF($C$4=7,'1'!BJ41,IF($C$4=9,'1'!CH41,"FAUX")))) -> 6.84 | T38: =IF($C$4=2.7,'1'!O41,IF($C$4=4.5,'1'!AM41,IF($C$4=7,'1'!BK41,IF($C$4=9,'1'!CI41,"FAUX")))) -> 7.31 | U38: =IF($C$4=2.7,'1'!P41,IF($C$4=4.5,'1'!AN41,IF($C$4=7,'1'!BL41,IF($C$4=9,'1'!CJ41,"FAUX")))) -> 8.21 | V38: =IF($C$4=2.7,'1'!Q41,IF($C$4=4.5,'1'!AO41,IF($C$4=7,'1'!BM41,IF($C$4=9,'1'!CK41,"FAUX")))) -> 6.43 | W38: =IF($C$4=2.7,'1'!R41,IF($C$4=4.5,'1'!AP41,IF($C$4=7,'1'!BN41,IF($C$4=9,'1'!CL41,"FAUX")))) -> 7.37 | X38: =IF($C$4=2.7,'1'!S41,IF($C$4=4.5,'1'!AQ41,IF($C$4=7,'1'!BO41,IF($C$4=9,'1'!CM41,"FAUX")))) -> 5.86 | Y38: =IF($C$4=2.7,'1'!T41,IF($C$4=4.5,'1'!AR41,IF($C$4=7,'1'!BP41,IF($C$4=9,'1'!CN41,"FAUX")))) -> 4.58 | Z38: =IF($C$4=2.7,'1'!U41,IF($C$4=4.5,'1'!AS41,IF($C$4=7,'1'!BQ41,IF($C$4=9,'1'!CO41,"FAUX")))) -> 6.05 | AA38: =IF($C$4=2.7,'1'!V41,IF($C$4=4.5,'1'!AT41,IF($C$4=7,'1'!BR41,IF($C$4=9,'1'!CP41,"FAUX")))) -> 4.64 | AB38: =IF($C$4=2.7,'1'!W41,IF($C$4=4.5,'1'!AU41,IF($C$4=7,'1'!BS41,IF($C$4=9,'1'!CQ41,"FAUX")))) -> 6.69 | AC38: =IF($C$4=2.7,'1'!X41,IF($C$4=4.5,'1'!AV41,IF($C$4=7,'1'!BT41,IF($C$4=9,'1'!CR41,"FAUX")))) -> 5.58 | AD38: =IF($C$4=2.7,'1'!Y41,IF($C$4=4.5,'1'!AW41,IF($C$4=7,'1'!BU41,IF($C$4=9,'1'!CS41,"FAUX")))) -> 4.58 | AE38: =IF($C$4=2.7,'1'!Z41,IF($C$4=4.5,'1'!AX41,IF($C$4=7,'1'!BV41,IF($C$4=9,'1'!CT41,"FAUX")))) -> 5.43 | AF38: =IF($C$4=2.7,'1'!AA41,IF($C$4=4.5,'1'!AY41,IF($C$4=7,'1'!BW41,IF($C$4=9,'1'!CU41,"FAUX")))) -> 4.5 | AI38: Alpha tocopherol | AJ38: -0.03766666667 | AK38: 10.76 | AL38: -0.03266666667 | AM38: 10.12 | AN38: -0.01466666667 | AO38: 7.37 | AP38: -0.01 | AQ38: 7.29 | AR38: 0.007333333333 | AS38: 6.58 | AT38: 0.01566666667 | AU38: 6.37 | AV38: -0.05933333333 | AW38: 9.99 | AX38: -0.05033333333 | AY38: 8.88 | AZ38: 0.049 | BA38: 3.11 | BB38: 0.06833333333 | BC38: 2.59 | BD38: -0.03333333333 | BE38: 6.58 | BF38: -0.031 | BG38: 6.36 | BJ38: Alpha tocopherol | BK38: 9.63 | BL38: 6.93 | BM38: 6.8 | BN38: 8.21 | BO38: 4.58 | BP38: 5.58 | BS38: Alpha tocopherol | BT38: 9.14 | BU38: 6.99 | BV38: 6.84 | BW38: 7.37 | BX38: 4.64 | BY38: 5.43 | CJ38: Alpha tocopherol | CK38: ='1'!D87 -> 0 | CL38: ='1'!E87 -> 0.0930572001 | CM38: ='1'!F87 -> 0.3015769371 | CN38: ='1'!G87 -> 0.3289029926 | CO38: ='1'!H87 -> 0.1694371251 | CP38: ='1'!I87 -> 0.04262254621 | CQ38: ='1'!J87 -> 0.003606071663 | CR38: ='1'!K87 -> 0.004562425985 | CS38: ='1'!L87 -> 0.01241813253 | CT38: ='1'!M87 -> 0.02533405897 | CU38: ='1'!N87 -> 0.031362378 | CV38: ='1'!O87 -> 0.011226797 | CW38: ='1'!P87 -> 0 | CX38: ='1'!Q87 -> 0 | CY38: ='1'!R87 -> 0 | CZ38: ='1'!S87 -> 0 | DC38: Alpha tocopherol | DD38: =HLOOKUP($DD$7,$CJ$7:$CZ$48,32,FALSE) -> 0.3015769371 | DG38: Alpha tocopherol | DH38: =IF($C$4=2.7,'1'!D155,IF($C$4=4.5,'1'!G155,IF($C$4=7,'1'!J155,IF($C$4=9,'1'!M155,FALSE)))) -> 1.16 | DI38: =IF($C$4=2.7,'1'!E155,IF($C$4=4.5,'1'!H155,IF($C$4=7,'1'!K155,IF($C$4=9,'1'!N155,FALSE)))) -> 1.09 | DJ38: =IF($C$4=2.7,'1'!F155,IF($C$4=4.5,'1'!I155,IF($C$4=7,'1'!L155,IF($C$4=9,'1'!O155,FALSE)))) -> 1.16 | DM38: Alpha tocopherol | DN38: =HLOOKUP($DN$7,$DG$7:$DJ$48,32,FALSE) -> 1.16 | DQ38: Alpha tocopherol | DR38: 10.8 | DT38: 2 | DV38: 11.5 | DW38: 0.1991289171 | DX38: 99.80087108
B39: Column dead volume | C39: =PI()*C14*C14/4*C13*C37 -> 1744.997639 | D39: µl | H39: cholecalciferol | I39: =IF($C$4=2.7,'1'!D42,IF($C$4=4.5,'1'!AB42,IF($C$4=7,'1'!AZ42,IF($C$4=9,'1'!BX42,"FAUX")))) -> 8.31 | J39: =IF($C$4=2.7,'1'!E42,IF($C$4=4.5,'1'!AC42,IF($C$4=7,'1'!BA42,IF($C$4=9,'1'!BY42,"FAUX")))) -> 6.93 | K39: =IF($C$4=2.7,'1'!F42,IF($C$4=4.5,'1'!AD42,IF($C$4=7,'1'!BB42,IF($C$4=9,'1'!BZ42,"FAUX")))) -> 7.88 | L39: =IF($C$4=2.7,'1'!G42,IF($C$4=4.5,'1'!AE42,IF($C$4=7,'1'!BC42,IF($C$4=9,'1'!CA42,"FAUX")))) -> 6.59 | M39: =IF($C$4=2.7,'1'!H42,IF($C$4=4.5,'1'!AF42,IF($C$4=7,'1'!BD42,IF($C$4=9,'1'!CB42,"FAUX")))) -> 6.68 | N39: =IF($C$4=2.7,'1'!I42,IF($C$4=4.5,'1'!AG42,IF($C$4=7,'1'!BE42,IF($C$4=9,'1'!CC42,"FAUX")))) -> 6.24 | O39: =IF($C$4=2.7,'1'!J42,IF($C$4=4.5,'1'!AH42,IF($C$4=7,'1'!BF42,IF($C$4=9,'1'!CD42,"FAUX")))) -> 6.84 | P39: =IF($C$4=2.7,'1'!K42,IF($C$4=4.5,'1'!AI42,IF($C$4=7,'1'!BG42,IF($C$4=9,'1'!CE42,"FAUX")))) -> 6.55 | Q39: =IF($C$4=2.7,'1'!L42,IF($C$4=4.5,'1'!AJ42,IF($C$4=7,'1'!BH42,IF($C$4=9,'1'!CF42,"FAUX")))) -> 6.42 | R39: =IF($C$4=2.7,'1'!M42,IF($C$4=4.5,'1'!AK42,IF($C$4=7,'1'!BI42,IF($C$4=9,'1'!CG42,"FAUX")))) -> 6.47 | S39: =IF($C$4=2.7,'1'!N42,IF($C$4=4.5,'1'!AL42,IF($C$4=7,'1'!BJ42,IF($C$4=9,'1'!CH42,"FAUX")))) -> 6.42 | T39: =IF($C$4=2.7,'1'!O42,IF($C$4=4.5,'1'!AM42,IF($C$4=7,'1'!BK42,IF($C$4=9,'1'!CI42,"FAUX")))) -> 6.69 | U39: =IF($C$4=2.7,'1'!P42,IF($C$4=4.5,'1'!AN42,IF($C$4=7,'1'!BL42,IF($C$4=9,'1'!CJ42,"FAUX")))) -> 5.92 | V39: =IF($C$4=2.7,'1'!Q42,IF($C$4=4.5,'1'!AO42,IF($C$4=7,'1'!BM42,IF($C$4=9,'1'!CK42,"FAUX")))) -> 4.9 | W39: =IF($C$4=2.7,'1'!R42,IF($C$4=4.5,'1'!AP42,IF($C$4=7,'1'!BN42,IF($C$4=9,'1'!CL42,"FAUX")))) -> 5.19 | X39: =IF($C$4=2.7,'1'!S42,IF($C$4=4.5,'1'!AQ42,IF($C$4=7,'1'!BO42,IF($C$4=9,'1'!CM42,"FAUX")))) -> 4.35 | Y39: =IF($C$4=2.7,'1'!T42,IF($C$4=4.5,'1'!AR42,IF($C$4=7,'1'!BP42,IF($C$4=9,'1'!CN42,"FAUX")))) -> 4.03 | Z39: =IF($C$4=2.7,'1'!U42,IF($C$4=4.5,'1'!AS42,IF($C$4=7,'1'!BQ42,IF($C$4=9,'1'!CO42,"FAUX")))) -> 4.05 | AA39: =IF($C$4=2.7,'1'!V42,IF($C$4=4.5,'1'!AT42,IF($C$4=7,'1'!BR42,IF($C$4=9,'1'!CP42,"FAUX")))) -> 4.26 | AB39: =IF($C$4=2.7,'1'!W42,IF($C$4=4.5,'1'!AU42,IF($C$4=7,'1'!BS42,IF($C$4=9,'1'!CQ42,"FAUX")))) -> 4.5 | AC39: =IF($C$4=2.7,'1'!X42,IF($C$4=4.5,'1'!AV42,IF($C$4=7,'1'!BT42,IF($C$4=9,'1'!CR42,"FAUX")))) -> 4.09 | AD39: =IF($C$4=2.7,'1'!Y42,IF($C$4=4.5,'1'!AW42,IF($C$4=7,'1'!BU42,IF($C$4=9,'1'!CS42,"FAUX")))) -> 4.18 | AE39: =IF($C$4=2.7,'1'!Z42,IF($C$4=4.5,'1'!AX42,IF($C$4=7,'1'!BV42,IF($C$4=9,'1'!CT42,"FAUX")))) -> 3.8 | AF39: =IF($C$4=2.7,'1'!AA42,IF($C$4=4.5,'1'!AY42,IF($C$4=7,'1'!BW42,IF($C$4=9,'1'!CU42,"FAUX")))) -> 4.15 | AI39: cholecalciferol | AJ39: -0.046 | AK39: 9.69 | AL39: -0.043 | AM39: 9.17 | AN39: -0.01466666667 | AO39: 7.12 | AP39: -0.009666666667 | AQ39: 7.13 | AR39: 0.001666666667 | AS39: 6.37 | AT39: 0.009 | AU39: 6.15 | AV39: -0.034 | AW39: 6.94 | AX39: -0.028 | AY39: 6.03 | AZ39: 0.0006666666667 | BA39: 4.01 | BB39: 0.008 | BC39: 4.02 | BD39: 0.003 | BE39: 4 | BF39: 0.01166666667 | BG39: 3.45 | BJ39: cholecalciferol | BK39: 8.31 | BL39: 6.68 | BM39: 6.42 | BN39: 5.92 | BO39: 4.03 | BP39: 4.09 | BS39: cholecalciferol | BT39: 7.88 | BU39: 6.84 | BV39: 6.42 | BW39: 5.19 | BX39: 4.26 | BY39: 3.8 | CJ39: cholecalciferol | CK39: ='1'!D88 -> 0 | CL39: ='1'!E88 -> 0.1911850257 | CM39: ='1'!F88 -> 0.4323722415 | CN39: ='1'!G88 -> 0.4151624563 | CO39: ='1'!H88 -> 0.3141279899 | CP39: ='1'!I88 -> 0.2435946634 | CQ39: ='1'!J88 -> 0.2509953084 | CR39: ='1'!K88 -> 0.2487794045 | CS39: ='1'!L88 -> 0.1918552764 | CT39: ='1'!M88 -> 0.1119250711 | CU39: ='1'!N88 -> 0.03730520287 | CV39: ='1'!O88 -> 0.01022439816 | CW39: ='1'!P88 -> 0 | CX39: ='1'!Q88 -> 0 | CY39: ='1'!R88 -> 0 | CZ39: ='1'!S88 -> 0 | DC39: cholecalciferol | DD39: =HLOOKUP($DD$7,$CJ$7:$CZ$48,33,FALSE) -> 0.4323722415 | DG39: cholecalciferol | DH39: =IF($C$4=2.7,'1'!D156,IF($C$4=4.5,'1'!G156,IF($C$4=7,'1'!J156,IF($C$4=9,'1'!M156,FALSE)))) -> 1.06 | DI39: =IF($C$4=2.7,'1'!E156,IF($C$4=4.5,'1'!H156,IF($C$4=7,'1'!K156,IF($C$4=9,'1'!N156,FALSE)))) -> 1.06 | DJ39: =IF($C$4=2.7,'1'!F156,IF($C$4=4.5,'1'!I156,IF($C$4=7,'1'!L156,IF($C$4=9,'1'!O156,FALSE)))) -> 1.12 | DM39: cholecalciferol | DN39: =HLOOKUP($DN$7,$DG$7:$DJ$48,33,FALSE) -> 1.06 | DQ39: cholecalciferol | DR39: 20 | DT39: 2 | DV39: 12 | DW39: 0.06305594883 | DX39: 99.93694405
B40: Column dead time | C40: =C39/(C3*1000) -> 1.744997639 | D40: min | H40: Vitamin K1 | I40: =IF($C$4=2.7,'1'!D43,IF($C$4=4.5,'1'!AB43,IF($C$4=7,'1'!AZ43,IF($C$4=9,'1'!BX43,"FAUX")))) -> 9.85 | J40: =IF($C$4=2.7,'1'!E43,IF($C$4=4.5,'1'!AC43,IF($C$4=7,'1'!BA43,IF($C$4=9,'1'!BY43,"FAUX")))) -> 10.4 | K40: =IF($C$4=2.7,'1'!F43,IF($C$4=4.5,'1'!AD43,IF($C$4=7,'1'!BB43,IF($C$4=9,'1'!BZ43,"FAUX")))) -> 9.14 | L40: =IF($C$4=2.7,'1'!G43,IF($C$4=4.5,'1'!AE43,IF($C$4=7,'1'!BC43,IF($C$4=9,'1'!CA43,"FAUX")))) -> 9.94 | M40: =IF($C$4=2.7,'1'!H43,IF($C$4=4.5,'1'!AF43,IF($C$4=7,'1'!BD43,IF($C$4=9,'1'!CB43,"FAUX")))) -> 6.96 | N40: =IF($C$4=2.7,'1'!I43,IF($C$4=4.5,'1'!AG43,IF($C$4=7,'1'!BE43,IF($C$4=9,'1'!CC43,"FAUX")))) -> 6.16 | O40: =IF($C$4=2.7,'1'!J43,IF($C$4=4.5,'1'!AH43,IF($C$4=7,'1'!BF43,IF($C$4=9,'1'!CD43,"FAUX")))) -> 6.71 | P40: =IF($C$4=2.7,'1'!K43,IF($C$4=4.5,'1'!AI43,IF($C$4=7,'1'!BG43,IF($C$4=9,'1'!CE43,"FAUX")))) -> 6.05 | Q40: =IF($C$4=2.7,'1'!L43,IF($C$4=4.5,'1'!AJ43,IF($C$4=7,'1'!BH43,IF($C$4=9,'1'!CF43,"FAUX")))) -> 6.94 | R40: =IF($C$4=2.7,'1'!M43,IF($C$4=4.5,'1'!AK43,IF($C$4=7,'1'!BI43,IF($C$4=9,'1'!CG43,"FAUX")))) -> 6.61 | S40: =IF($C$4=2.7,'1'!N43,IF($C$4=4.5,'1'!AL43,IF($C$4=7,'1'!BJ43,IF($C$4=9,'1'!CH43,"FAUX")))) -> 6.72 | T40: =IF($C$4=2.7,'1'!O43,IF($C$4=4.5,'1'!AM43,IF($C$4=7,'1'!BK43,IF($C$4=9,'1'!CI43,"FAUX")))) -> 6.55 | U40: =IF($C$4=2.7,'1'!P43,IF($C$4=4.5,'1'!AN43,IF($C$4=7,'1'!BL43,IF($C$4=9,'1'!CJ43,"FAUX")))) -> 9.42 | V40: =IF($C$4=2.7,'1'!Q43,IF($C$4=4.5,'1'!AO43,IF($C$4=7,'1'!BM43,IF($C$4=9,'1'!CK43,"FAUX")))) -> 7.38 | W40: =IF($C$4=2.7,'1'!R43,IF($C$4=4.5,'1'!AP43,IF($C$4=7,'1'!BN43,IF($C$4=9,'1'!CL43,"FAUX")))) -> 8.47 | X40: =IF($C$4=2.7,'1'!S43,IF($C$4=4.5,'1'!AQ43,IF($C$4=7,'1'!BO43,IF($C$4=9,'1'!CM43,"FAUX")))) -> 6.72 | Y40: =IF($C$4=2.7,'1'!T43,IF($C$4=4.5,'1'!AR43,IF($C$4=7,'1'!BP43,IF($C$4=9,'1'!CN43,"FAUX")))) -> 4.86 | Z40: =IF($C$4=2.7,'1'!U43,IF($C$4=4.5,'1'!AS43,IF($C$4=7,'1'!BQ43,IF($C$4=9,'1'!CO43,"FAUX")))) -> 4.71 | AA40: =IF($C$4=2.7,'1'!V43,IF($C$4=4.5,'1'!AT43,IF($C$4=7,'1'!BR43,IF($C$4=9,'1'!CP43,"FAUX")))) -> 4.77 | AB40: =IF($C$4=2.7,'1'!W43,IF($C$4=4.5,'1'!AU43,IF($C$4=7,'1'!BS43,IF($C$4=9,'1'!CQ43,"FAUX")))) -> 4.85 | AC40: =IF($C$4=2.7,'1'!X43,IF($C$4=4.5,'1'!AV43,IF($C$4=7,'1'!BT43,IF($C$4=9,'1'!CR43,"FAUX")))) -> 6.04 | AD40: =IF($C$4=2.7,'1'!Y43,IF($C$4=4.5,'1'!AW43,IF($C$4=7,'1'!BU43,IF($C$4=9,'1'!CS43,"FAUX")))) -> 5.03 | AE40: =IF($C$4=2.7,'1'!Z43,IF($C$4=4.5,'1'!AX43,IF($C$4=7,'1'!BV43,IF($C$4=9,'1'!CT43,"FAUX")))) -> 5.51 | AF40: =IF($C$4=2.7,'1'!AA43,IF($C$4=4.5,'1'!AY43,IF($C$4=7,'1'!BW43,IF($C$4=9,'1'!CU43,"FAUX")))) -> 4.73 | AI40: Vitamin K1 | AJ40: 0.01833333333 | AK40: 9.3 | AL40: 0.02666666667 | AM40: 8.34 | AN40: -0.02666666667 | AO40: 7.76 | AP40: -0.022 | AQ40: 7.37 | AR40: -0.011 | AS40: 7.27 | AT40: -0.005666666667 | AU40: 6.89 | AV40: -0.068 | AW40: 11.46 | AX40: -0.05833333333 | AY40: 10.22 | AZ40: -0.005 | BA40: 5.01 | BB40: 0.002666666667 | BC40: 4.69 | BD40: -0.03366666667 | BE40: 7.05 | BF40: -0.026 | BG40: 6.29 | BJ40: Vitamin K1 | BK40: 9.85 | BL40: 6.96 | BM40: 6.94 | BN40: 9.42 | BO40: 4.86 | BP40: 6.04 | BS40: Vitamin K1 | BT40: 9.14 | BU40: 6.71 | BV40: 6.72 | BW40: 8.47 | BX40: 4.77 | BY40: 5.51 | CJ40: Vitamin K1 | CK40: ='1'!D89 -> -0.0003984111079 | CL40: ='1'!E89 -> 0.05200244901 | CM40: ='1'!F89 -> 0.3320043795 | CN40: ='1'!G89 -> 0.3730120401 | CO40: ='1'!H89 -> 0.2724953091 | CP40: ='1'!I89 -> 0.1552473346 | CQ40: ='1'!J89 -> 0.1027119537 | CR40: ='1'!K89 -> 0.1051255381 | CS40: ='1'!L89 -> 0.02406216466 | CT40: ='1'!M89 -> 0.007418992579 | CU40: ='1'!N89 -> 0.01027540382 | CV40: ='1'!O89 -> 0.01405806443 | CW40: ='1'!P89 -> 0.01815851544 | CX40: ='1'!Q89 -> 0.01959529232 | CY40: ='1'!R89 -> 0.01686661788 | CZ40: ='1'!S89 -> 0.01006265816 | DC40: Vitamin K1 | DD40: =HLOOKUP($DD$7,$CJ$7:$CZ$48,34,FALSE) -> 0.3320043795 | DG40: Vitamin K1 | DH40: =IF($C$4=2.7,'1'!D157,IF($C$4=4.5,'1'!G157,IF($C$4=7,'1'!J157,IF($C$4=9,'1'!M157,FALSE)))) -> 1.11 | DI40: =IF($C$4=2.7,'1'!E157,IF($C$4=4.5,'1'!H157,IF($C$4=7,'1'!K157,IF($C$4=9,'1'!N157,FALSE)))) -> 1.16 | DJ40: =IF($C$4=2.7,'1'!F157,IF($C$4=4.5,'1'!I157,IF($C$4=7,'1'!L157,IF($C$4=9,'1'!O157,FALSE)))) -> 1.1 | DM40: Vitamin K1 | DN40: =HLOOKUP($DN$7,$DG$7:$DJ$48,34,FALSE) -> 1.11 | DQ40: Vitamin K1 | DR40: 20 | DT40: 2 | DV40: 12.5 | DW40: 0.01994864287 | DX40: 99.98005136
B41: viscosity | C41: =IF(C5="Acetonitrile",10^(-2.063+(601.9/($C$17+273))+0.0709*$C$34/100+((62*$C$34/100)/($C$17+273))+0.5043*($C$34/100)*($C$34/100)-(345.8*($C$34/100)*($C$34/100)/($C$17+273))),10^(-2.429+(714/($C$17+273))-1.859*$C$34/100+((911.7*$C$34/100)/($C$17+273))+1.8586*($C$34/100)*($C$34/100)-(968.1*($C$34/100)*($C$34/100)/($C$17+273)))) -> 0.8546025249 | D41: cp | H41: ="" ->  | I41: 0 | J41: 0 | K41: 0 | L41: 0 | M41: 0 | N41: 0 | O41: 0 | P41: 0 | Q41: 0 | R41: 0 | S41: 0 | T41: 0 | U41: 0 | V41: 0 | W41: 0 | X41: 0 | Y41: 0 | Z41: 0 | AA41: 0 | AB41: 0 | AC41: 0 | AD41: 0 | AE41: 0 | AF41: 0 | AJ41: 0 | AK41: =SLOPE(J41:K41,$G$3:$G$4) -> 0 | AL41: 0 | AM41: =SLOPE(L41:M41,$G$3:$G$4) -> 0 | AN41: 0 | AO41: =SLOPE(N41:O41,$G$3:$G$4) -> 0 | AP41: 0 | AQ41: =SLOPE(P41:Q41,$G$3:$G$4) -> 0 | AR41: 0 | AS41: =SLOPE(R41:S41,$G$3:$G$4) -> 0 | AT41: 0 | AU41: =SLOPE(T41:U41,$G$3:$G$4) -> 0 | AV41: 0 | AW41: =SLOPE(V41:W41,$G$3:$G$4) -> 0 | AX41: 0 | AY41: =SLOPE(X41:Y41,$G$3:$G$4) -> 0 | AZ41: 0 | BA41: =SLOPE(Z41:AA41,$G$3:$G$4) -> 0 | BB41: 0 | BC41: =SLOPE(AB41:AC41,$G$3:$G$4) -> 0 | BD41: 0 | BE41: =SLOPE(AD41:AE41,$G$3:$G$4) -> 0 | BF41: =SLOPE(AE41:AF41,$G$3:$G$4) -> 0 | BJ41: ="" ->  | BK41: 0 | BL41: =AK41*$C$17+AL41 -> 0 | BM41: =AL41*$C$17+AM41 -> 0 | BN41: =AM41*$C$17+AN41 -> 0 | BO41: =AN41*$C$17+AO41 -> 0 | BP41: =AO41*$C$17+AP41 -> 0 | BS41: ="" ->  | BT41: 0 | BU41: 0 | BV41: 0 | BW41: 0 | BX41: 0 | CJ41: ="" ->  | CK41: ='1'!D90 -> 0 | CL41: ='1'!E90 -> 0 | CM41: ='1'!F90 -> 0 | CN41: ='1'!G90 -> 0 | CO41: ='1'!H90 -> 0 | CP41: ='1'!I90 -> 0 | CQ41: ='1'!J90 -> 0 | CR41: ='1'!K90 -> 0 | CS41: ='1'!L90 -> 0 | CT41: ='1'!M90 -> 0 | CU41: ='1'!N90 -> 0 | CV41: ='1'!O90 -> 0 | CW41: ='1'!P90 -> 0 | CX41: ='1'!Q90 -> 0 | CY41: ='1'!R90 -> 0 | CZ41: ='1'!S90 -> 0 | DC41: ="" ->  | DD41: =HLOOKUP($DD$7,$CJ$7:$CZ$48,35,FALSE) -> 0 | DG41: ="" ->  | DH41: =IF($C$4=2.7,'1'!D158,IF($C$4=4.5,'1'!G158,IF($C$4=7,'1'!J158,IF($C$4=9,'1'!M158,FALSE)))) -> 0 | DI41: =IF($C$4=2.7,'1'!E158,IF($C$4=4.5,'1'!H158,IF($C$4=7,'1'!K158,IF($C$4=9,'1'!N158,FALSE)))) -> 0 | DJ41: =IF($C$4=2.7,'1'!F158,IF($C$4=4.5,'1'!I158,IF($C$4=7,'1'!L158,IF($C$4=9,'1'!O158,FALSE)))) -> 0 | DM41: ="" ->  | DN41: =HLOOKUP($DN$7,$DG$7:$DJ$48,35,FALSE) -> 0 | DT41: =IF(DR37="",1,2) -> 2 | DV41: 13 | DW41: 0.006309175363 | DX41: 99.99369082
B42: Φ | C42: 750 | G42: Mix 7 | H42: Acebutolol | I42: =IF($C$4=2.7,'1'!D45,IF($C$4=4.5,'1'!AB45,IF($C$4=7,'1'!AZ45,IF($C$4=9,'1'!BX45,"FAUX")))) -> 2.5 | J42: =IF($C$4=2.7,'1'!E45,IF($C$4=4.5,'1'!AC45,IF($C$4=7,'1'!BA45,IF($C$4=9,'1'!BY45,"FAUX")))) -> 2.33 | K42: =IF($C$4=2.7,'1'!F45,IF($C$4=4.5,'1'!AD45,IF($C$4=7,'1'!BB45,IF($C$4=9,'1'!BZ45,"FAUX")))) -> 6.07 | L42: =IF($C$4=2.7,'1'!G45,IF($C$4=4.5,'1'!AE45,IF($C$4=7,'1'!BC45,IF($C$4=9,'1'!CA45,"FAUX")))) -> 5.71 | M42: =IF($C$4=2.7,'1'!H45,IF($C$4=4.5,'1'!AF45,IF($C$4=7,'1'!BD45,IF($C$4=9,'1'!CB45,"FAUX")))) -> 2.41 | N42: =IF($C$4=2.7,'1'!I45,IF($C$4=4.5,'1'!AG45,IF($C$4=7,'1'!BE45,IF($C$4=9,'1'!CC45,"FAUX")))) -> 2.13 | O42: =IF($C$4=2.7,'1'!J45,IF($C$4=4.5,'1'!AH45,IF($C$4=7,'1'!BF45,IF($C$4=9,'1'!CD45,"FAUX")))) -> 5.54 | P42: =IF($C$4=2.7,'1'!K45,IF($C$4=4.5,'1'!AI45,IF($C$4=7,'1'!BG45,IF($C$4=9,'1'!CE45,"FAUX")))) -> 5.02 | Q42: =IF($C$4=2.7,'1'!L45,IF($C$4=4.5,'1'!AJ45,IF($C$4=7,'1'!BH45,IF($C$4=9,'1'!CF45,"FAUX")))) -> 2.37 | R42: =IF($C$4=2.7,'1'!M45,IF($C$4=4.5,'1'!AK45,IF($C$4=7,'1'!BI45,IF($C$4=9,'1'!CG45,"FAUX")))) -> 2.23 | S42: =IF($C$4=2.7,'1'!N45,IF($C$4=4.5,'1'!AL45,IF($C$4=7,'1'!BJ45,IF($C$4=9,'1'!CH45,"FAUX")))) -> 6.04 | T42: =IF($C$4=2.7,'1'!O45,IF($C$4=4.5,'1'!AM45,IF($C$4=7,'1'!BK45,IF($C$4=9,'1'!CI45,"FAUX")))) -> 5.79 | U42: =IF($C$4=2.7,'1'!P45,IF($C$4=4.5,'1'!AN45,IF($C$4=7,'1'!BL45,IF($C$4=9,'1'!CJ45,"FAUX")))) -> 2.6 | V42: =IF($C$4=2.7,'1'!Q45,IF($C$4=4.5,'1'!AO45,IF($C$4=7,'1'!BM45,IF($C$4=9,'1'!CK45,"FAUX")))) -> 2.42 | W42: =IF($C$4=2.7,'1'!R45,IF($C$4=4.5,'1'!AP45,IF($C$4=7,'1'!BN45,IF($C$4=9,'1'!CL45,"FAUX")))) -> 12.5 | X42: =IF($C$4=2.7,'1'!S45,IF($C$4=4.5,'1'!AQ45,IF($C$4=7,'1'!BO45,IF($C$4=9,'1'!CM45,"FAUX")))) -> 11.6 | Y42: =IF($C$4=2.7,'1'!T45,IF($C$4=4.5,'1'!AR45,IF($C$4=7,'1'!BP45,IF($C$4=9,'1'!CN45,"FAUX")))) -> 2.23 | Z42: =IF($C$4=2.7,'1'!U45,IF($C$4=4.5,'1'!AS45,IF($C$4=7,'1'!BQ45,IF($C$4=9,'1'!CO45,"FAUX")))) -> 2.07 | AA42: =IF($C$4=2.7,'1'!V45,IF($C$4=4.5,'1'!AT45,IF($C$4=7,'1'!BR45,IF($C$4=9,'1'!CP45,"FAUX")))) -> 10.4 | AB42: =IF($C$4=2.7,'1'!W45,IF($C$4=4.5,'1'!AU45,IF($C$4=7,'1'!BS45,IF($C$4=9,'1'!CQ45,"FAUX")))) -> 9.68 | AC42: =IF($C$4=2.7,'1'!X45,IF($C$4=4.5,'1'!AV45,IF($C$4=7,'1'!BT45,IF($C$4=9,'1'!CR45,"FAUX")))) -> 2.28 | AD42: =IF($C$4=2.7,'1'!Y45,IF($C$4=4.5,'1'!AW45,IF($C$4=7,'1'!BU45,IF($C$4=9,'1'!CS45,"FAUX")))) -> 2.19 | AE42: =IF($C$4=2.7,'1'!Z45,IF($C$4=4.5,'1'!AX45,IF($C$4=7,'1'!BV45,IF($C$4=9,'1'!CT45,"FAUX")))) -> 10.8 | AF42: =IF($C$4=2.7,'1'!AA45,IF($C$4=4.5,'1'!AY45,IF($C$4=7,'1'!BW45,IF($C$4=9,'1'!CU45,"FAUX")))) -> 10.4 | AH42: Mix 7 | AI42: Acebutolol | AJ42: -0.005666666667 | AK42: 2.67 | AL42: -0.012 | AM42: 6.43 | AN42: -0.009333333333 | AO42: 2.69 | AP42: -0.01733333333 | AQ42: 6.06 | AR42: -0.004666666667 | AS42: 2.51 | AT42: -0.008333333333 | AU42: 6.29 | AV42: -0.006 | AW42: 2.78 | AX42: -0.03 | AY42: 13.4 | AZ42: -0.005333333333 | BA42: 2.39 | BB42: -0.024 | BC42: 11.12 | BD42: -0.003 | BE42: 2.37 | BF42: -0.01333333333 | BG42: 11.2 | BI42: Mix 7 | BJ42: Acebutolol | BK42: 2.5 | BL42: =AN42*$C$17+AO42 -> 2.41 | BM42: =AR42*$C$17+AS42 -> 2.37 | BN42: =AV42*$C$17+AW42 -> 2.6 | BO42: =AZ42*$C$17+BA42 -> 2.23 | BP42: =BD42*$C$17+BE42 -> 2.28 | BR42: Mix 7 | BS42: Acebutolol | BT42: 6.07 | BU42: 5.54 | BV42: 6.04 | BW42: 12.5 | BX42: 10.4 | BY42: 10.8 | CI42: Mix 7 | CJ42: Acebutolol | CK42: ='1'!D91 -> 0.1166532138 | CL42: ='1'!E91 -> 0.1630464073 | CM42: ='1'!F91 -> 0.2459438953 | CN42: ='1'!G91 -> 0.2931524354 | CO42: ='1'!H91 -> 0.2621162222 | CP42: ='1'!I91 -> 0.1878341203 | CQ42: ='1'!J91 -> 0.120240747 | CR42: ='1'!K91 -> 0.0407397313 | CS42: ='1'!L91 -> 0.008236656647 | CT42: ='1'!M91 -> 0.009109437434 | CU42: ='1'!N91 -> 0.0172153929 | CV42: ='1'!O91 -> 0.02407749822 | CW42: ='1'!P91 -> 0.02826285715 | CX42: ='1'!Q91 -> 0.02770775245 | CY42: ='1'!R91 -> 0.02266356526 | CZ42: ='1'!S91 -> 0.01342162393 | DB42: Mix 7 | DC42: Acebutolol | DD42: =HLOOKUP($DD$7,$CJ$7:$CZ$48,36,FALSE) -> 0.2459438953 | DF42: Mix 7 | DG42: Acebutolol | DH42: =IF($C$4=2.7,'1'!D159,IF($C$4=4.5,'1'!G159,IF($C$4=7,'1'!J159,IF($C$4=9,'1'!M159,FALSE)))) -> 1.12 | DI42: =IF($C$4=2.7,'1'!E159,IF($C$4=4.5,'1'!H159,IF($C$4=7,'1'!K159,IF($C$4=9,'1'!N159,FALSE)))) -> 1.06 | DJ42: =IF($C$4=2.7,'1'!F159,IF($C$4=4.5,'1'!I159,IF($C$4=7,'1'!L159,IF($C$4=9,'1'!O159,FALSE)))) -> 1.21 | DL42: Mix 7 | DM42: Acebutolol | DN42: =HLOOKUP($DN$7,$DG$7:$DJ$48,36,FALSE) -> 1.12 | DP42: Mix 7 | DQ42: Acebutolol | DS42: 9.57 | DT42: 1 | DV42: 13.5 | DW42: 0.001995222505 | DX42: 99.99800478
B43: Dm | C43: =IF($C$5="acetonitrile",(0.0000000000069*((($C$34/100)*1*41)+((1-$C$34/100)*2.26*18))^0.5*(273+$C$17))/($C$41*(C38^0.6)),(0.0000000000069*((($C$34/100)*1.9*32)+((1-$C$34/100)*2.26*18))^0.5*(273+$C$17))/($C$41*C38^0.6)) -> 9.860528732e-10 | D43: m²/s | H43: Propranolol | I43: =IF($C$4=2.7,'1'!D46,IF($C$4=4.5,'1'!AB46,IF($C$4=7,'1'!AZ46,IF($C$4=9,'1'!BX46,"FAUX")))) -> 2.7 | J43: =IF($C$4=2.7,'1'!E46,IF($C$4=4.5,'1'!AC46,IF($C$4=7,'1'!BA46,IF($C$4=9,'1'!BY46,"FAUX")))) -> 2.55 | K43: =IF($C$4=2.7,'1'!F46,IF($C$4=4.5,'1'!AD46,IF($C$4=7,'1'!BB46,IF($C$4=9,'1'!BZ46,"FAUX")))) -> 4.02 | L43: =IF($C$4=2.7,'1'!G46,IF($C$4=4.5,'1'!AE46,IF($C$4=7,'1'!BC46,IF($C$4=9,'1'!CA46,"FAUX")))) -> 3.73 | M43: =IF($C$4=2.7,'1'!H46,IF($C$4=4.5,'1'!AF46,IF($C$4=7,'1'!BD46,IF($C$4=9,'1'!CB46,"FAUX")))) -> 2.74 | N43: =IF($C$4=2.7,'1'!I46,IF($C$4=4.5,'1'!AG46,IF($C$4=7,'1'!BE46,IF($C$4=9,'1'!CC46,"FAUX")))) -> 2.42 | O43: =IF($C$4=2.7,'1'!J46,IF($C$4=4.5,'1'!AH46,IF($C$4=7,'1'!BF46,IF($C$4=9,'1'!CD46,"FAUX")))) -> 4.18 | P43: =IF($C$4=2.7,'1'!K46,IF($C$4=4.5,'1'!AI46,IF($C$4=7,'1'!BG46,IF($C$4=9,'1'!CE46,"FAUX")))) -> 3.67 | Q43: =IF($C$4=2.7,'1'!L46,IF($C$4=4.5,'1'!AJ46,IF($C$4=7,'1'!BH46,IF($C$4=9,'1'!CF46,"FAUX")))) -> 2.6 | R43: =IF($C$4=2.7,'1'!M46,IF($C$4=4.5,'1'!AK46,IF($C$4=7,'1'!BI46,IF($C$4=9,'1'!CG46,"FAUX")))) -> 2.37 | S43: =IF($C$4=2.7,'1'!N46,IF($C$4=4.5,'1'!AL46,IF($C$4=7,'1'!BJ46,IF($C$4=9,'1'!CH46,"FAUX")))) -> 4.33 | T43: =IF($C$4=2.7,'1'!O46,IF($C$4=4.5,'1'!AM46,IF($C$4=7,'1'!BK46,IF($C$4=9,'1'!CI46,"FAUX")))) -> 3.83 | U43: =IF($C$4=2.7,'1'!P46,IF($C$4=4.5,'1'!AN46,IF($C$4=7,'1'!BL46,IF($C$4=9,'1'!CJ46,"FAUX")))) -> 2.73 | V43: =IF($C$4=2.7,'1'!Q46,IF($C$4=4.5,'1'!AO46,IF($C$4=7,'1'!BM46,IF($C$4=9,'1'!CK46,"FAUX")))) -> 2.54 | W43: =IF($C$4=2.7,'1'!R46,IF($C$4=4.5,'1'!AP46,IF($C$4=7,'1'!BN46,IF($C$4=9,'1'!CL46,"FAUX")))) -> 7.84 | X43: =IF($C$4=2.7,'1'!S46,IF($C$4=4.5,'1'!AQ46,IF($C$4=7,'1'!BO46,IF($C$4=9,'1'!CM46,"FAUX")))) -> 7.13 | Y43: =IF($C$4=2.7,'1'!T46,IF($C$4=4.5,'1'!AR46,IF($C$4=7,'1'!BP46,IF($C$4=9,'1'!CN46,"FAUX")))) -> 2.7 | Z43: =IF($C$4=2.7,'1'!U46,IF($C$4=4.5,'1'!AS46,IF($C$4=7,'1'!BQ46,IF($C$4=9,'1'!CO46,"FAUX")))) -> 2.34 | AA43: =IF($C$4=2.7,'1'!V46,IF($C$4=4.5,'1'!AT46,IF($C$4=7,'1'!BR46,IF($C$4=9,'1'!CP46,"FAUX")))) -> 7.83 | AB43: =IF($C$4=2.7,'1'!W46,IF($C$4=4.5,'1'!AU46,IF($C$4=7,'1'!BS46,IF($C$4=9,'1'!CQ46,"FAUX")))) -> 6.65 | AC43: =IF($C$4=2.7,'1'!X46,IF($C$4=4.5,'1'!AV46,IF($C$4=7,'1'!BT46,IF($C$4=9,'1'!CR46,"FAUX")))) -> 2.75 | AD43: =IF($C$4=2.7,'1'!Y46,IF($C$4=4.5,'1'!AW46,IF($C$4=7,'1'!BU46,IF($C$4=9,'1'!CS46,"FAUX")))) -> 2.36 | AE43: =IF($C$4=2.7,'1'!Z46,IF($C$4=4.5,'1'!AX46,IF($C$4=7,'1'!BV46,IF($C$4=9,'1'!CT46,"FAUX")))) -> 8.23 | AF43: =IF($C$4=2.7,'1'!AA46,IF($C$4=4.5,'1'!AY46,IF($C$4=7,'1'!BW46,IF($C$4=9,'1'!CU46,"FAUX")))) -> 6.79 | AI43: Propranolol | AJ43: -0.005 | AK43: 2.85 | AL43: -0.009666666667 | AM43: 4.31 | AN43: -0.01066666667 | AO43: 3.06 | AP43: -0.017 | AQ43: 4.69 | AR43: -0.007666666667 | AS43: 2.83 | AT43: -0.01666666667 | AU43: 4.83 | AV43: -0.006333333333 | AW43: 2.92 | AX43: -0.02366666667 | AY43: 8.55 | AZ43: -0.012 | BA43: 3.06 | BB43: -0.03933333333 | BC43: 9.01 | BD43: -0.013 | BE43: 3.14 | BF43: -0.048 | BG43: 9.67 | BJ43: Propranolol | BK43: 2.7 | BL43: 2.74 | BM43: 2.6 | BN43: 2.73 | BO43: 2.7 | BP43: 2.75 | BS43: Propranolol | BT43: 4.02 | BU43: 4.18 | BV43: 4.33 | BW43: 7.84 | BX43: 7.83 | BY43: 8.23 | CJ43: Propranolol | CK43: ='1'!D92 -> 0.2004254759 | CL43: ='1'!E92 -> 0.5053801481 | CM43: ='1'!F92 -> 0.5142690995 | CN43: ='1'!G92 -> 0.4341761594 | CO43: ='1'!H92 -> 0.1187556833 | CP43: ='1'!I92 -> 0.014490923 | CQ43: ='1'!J92 -> 0.02263637375 | CR43: ='1'!K92 -> 0.04064440512 | CS43: ='1'!L92 -> 0.06041520192 | CT43: ='1'!M92 -> 0.06773619947 | CU43: ='1'!N92 -> 0.04673866225 | CV43: ='1'!O92 -> 0.02920059715 | CW43: ='1'!P92 -> 0.01804046533 | CX43: ='1'!Q92 -> -0.0003672250276 | CY43: ='1'!R92 -> -0.0003672250276 | CZ43: ='1'!S92 -> -0.0003672250276 | DC43: Propranolol | DD43: =HLOOKUP($DD$7,$CJ$7:$CZ$48,37,FALSE) -> 0.5142690995 | DG43: Propranolol | DH43: =IF($C$4=2.7,'1'!D160,IF($C$4=4.5,'1'!G160,IF($C$4=7,'1'!J160,IF($C$4=9,'1'!M160,FALSE)))) -> 1.21 | DI43: =IF($C$4=2.7,'1'!E160,IF($C$4=4.5,'1'!H160,IF($C$4=7,'1'!K160,IF($C$4=9,'1'!N160,FALSE)))) -> 1.19 | DJ43: =IF($C$4=2.7,'1'!F160,IF($C$4=4.5,'1'!I160,IF($C$4=7,'1'!L160,IF($C$4=9,'1'!O160,FALSE)))) -> 1.27 | DM43: Propranolol | DN43: =HLOOKUP($DN$7,$DG$7:$DJ$48,37,FALSE) -> 1.21 | DQ43: Propranolol | DS43: 9.67 | DT43: 1 | DV43: 14 | DW43: 0.0006309533634 | DX43: 99.99936905
B44: u | C44: =(C3/60*1000*4)/(PI()*C37*C14*C14) -> 1.432666694 | D44: mm/s | H44: Atenolol | I44: =IF($C$4=2.7,'1'!D47,IF($C$4=4.5,'1'!AB47,IF($C$4=7,'1'!AZ47,IF($C$4=9,'1'!BX47,"FAUX")))) -> 1.63 | J44: =IF($C$4=2.7,'1'!E47,IF($C$4=4.5,'1'!AC47,IF($C$4=7,'1'!BA47,IF($C$4=9,'1'!BY47,"FAUX")))) -> 1.46 | K44: =IF($C$4=2.7,'1'!F47,IF($C$4=4.5,'1'!AD47,IF($C$4=7,'1'!BB47,IF($C$4=9,'1'!BZ47,"FAUX")))) -> 9.36 | L44: =IF($C$4=2.7,'1'!G47,IF($C$4=4.5,'1'!AE47,IF($C$4=7,'1'!BC47,IF($C$4=9,'1'!CA47,"FAUX")))) -> 8.92 | M44: =IF($C$4=2.7,'1'!H47,IF($C$4=4.5,'1'!AF47,IF($C$4=7,'1'!BD47,IF($C$4=9,'1'!CB47,"FAUX")))) -> 1.39 | N44: =IF($C$4=2.7,'1'!I47,IF($C$4=4.5,'1'!AG47,IF($C$4=7,'1'!BE47,IF($C$4=9,'1'!CC47,"FAUX")))) -> 1.2 | O44: =IF($C$4=2.7,'1'!J47,IF($C$4=4.5,'1'!AH47,IF($C$4=7,'1'!BF47,IF($C$4=9,'1'!CD47,"FAUX")))) -> 6.97 | P44: =IF($C$4=2.7,'1'!K47,IF($C$4=4.5,'1'!AI47,IF($C$4=7,'1'!BG47,IF($C$4=9,'1'!CE47,"FAUX")))) -> 6.64 | Q44: =IF($C$4=2.7,'1'!L47,IF($C$4=4.5,'1'!AJ47,IF($C$4=7,'1'!BH47,IF($C$4=9,'1'!CF47,"FAUX")))) -> 1.48 | R44: =IF($C$4=2.7,'1'!M47,IF($C$4=4.5,'1'!AK47,IF($C$4=7,'1'!BI47,IF($C$4=9,'1'!CG47,"FAUX")))) -> 1.31 | S44: =IF($C$4=2.7,'1'!N47,IF($C$4=4.5,'1'!AL47,IF($C$4=7,'1'!BJ47,IF($C$4=9,'1'!CH47,"FAUX")))) -> 8.99 | T44: =IF($C$4=2.7,'1'!O47,IF($C$4=4.5,'1'!AM47,IF($C$4=7,'1'!BK47,IF($C$4=9,'1'!CI47,"FAUX")))) -> 8.13 | U44: =IF($C$4=2.7,'1'!P47,IF($C$4=4.5,'1'!AN47,IF($C$4=7,'1'!BL47,IF($C$4=9,'1'!CJ47,"FAUX")))) -> 1.88 | V44: =IF($C$4=2.7,'1'!Q47,IF($C$4=4.5,'1'!AO47,IF($C$4=7,'1'!BM47,IF($C$4=9,'1'!CK47,"FAUX")))) -> 1.87 | W44: =IF($C$4=2.7,'1'!R47,IF($C$4=4.5,'1'!AP47,IF($C$4=7,'1'!BN47,IF($C$4=9,'1'!CL47,"FAUX")))) -> 22.3 | X44: =IF($C$4=2.7,'1'!S47,IF($C$4=4.5,'1'!AQ47,IF($C$4=7,'1'!BO47,IF($C$4=9,'1'!CM47,"FAUX")))) -> 23.6 | Y44: =IF($C$4=2.7,'1'!T47,IF($C$4=4.5,'1'!AR47,IF($C$4=7,'1'!BP47,IF($C$4=9,'1'!CN47,"FAUX")))) -> 1.39 | Z44: =IF($C$4=2.7,'1'!U47,IF($C$4=4.5,'1'!AS47,IF($C$4=7,'1'!BQ47,IF($C$4=9,'1'!CO47,"FAUX")))) -> 1.42 | AA44: =IF($C$4=2.7,'1'!V47,IF($C$4=4.5,'1'!AT47,IF($C$4=7,'1'!BR47,IF($C$4=9,'1'!CP47,"FAUX")))) -> 14.5 | AB44: =IF($C$4=2.7,'1'!W47,IF($C$4=4.5,'1'!AU47,IF($C$4=7,'1'!BS47,IF($C$4=9,'1'!CQ47,"FAUX")))) -> 16.8 | AC44: =IF($C$4=2.7,'1'!X47,IF($C$4=4.5,'1'!AV47,IF($C$4=7,'1'!BT47,IF($C$4=9,'1'!CR47,"FAUX")))) -> 1.47 | AD44: =IF($C$4=2.7,'1'!Y47,IF($C$4=4.5,'1'!AW47,IF($C$4=7,'1'!BU47,IF($C$4=9,'1'!CS47,"FAUX")))) -> 1.27 | AE44: =IF($C$4=2.7,'1'!Z47,IF($C$4=4.5,'1'!AX47,IF($C$4=7,'1'!BV47,IF($C$4=9,'1'!CT47,"FAUX")))) -> 16.5 | AF44: =IF($C$4=2.7,'1'!AA47,IF($C$4=4.5,'1'!AY47,IF($C$4=7,'1'!BW47,IF($C$4=9,'1'!CU47,"FAUX")))) -> 14.8 | AI44: Atenolol | AJ44: =SLOPE(I44:J44,$G$3:$G$4) -> -0.005666666667 | AK44: =INTERCEPT(I44:J44,$G$3:$G$4) -> 1.8 | AL44: =SLOPE(K44:L44,$G$3:$G$4) -> -0.01466666667 | AM44: 9.8 | AN44: -0.006333333333 | AO44: 1.58 | AP44: -0.011 | AQ44: 7.3 | AR44: -0.005666666667 | AS44: 1.65 | AT44: -0.02866666667 | AU44: 9.85 | AV44: -0.0003333333333 | AW44: 1.89 | AX44: 0.04333333333 | AY44: 21 | AZ44: 0.001 | BA44: 1.36 | BB44: 0.07666666667 | BC44: 12.2 | BD44: -0.006666666667 | BE44: 1.67 | BF44: -0.05666666667 | BG44: 18.2 | BJ44: Atenolol | BK44: 1.63 | BL44: 1.39 | BM44: 1.48 | BN44: 1.88 | BO44: 1.39 | BP44: 1.47 | BS44: Atenolol | BT44: 9.36 | BU44: 6.97 | BV44: 8.99 | BW44: 22.3 | BX44: 14.5 | BY44: 16.5 | CJ44: Atenolol | CK44: ='1'!D93 -> 0.3079710972 | CL44: ='1'!E93 -> 0.173854487 | CM44: ='1'!F93 -> 0.207149687 | CN44: ='1'!G93 -> 0.1568842816 | CO44: ='1'!H93 -> 0.03260463564 | CP44: ='1'!I93 -> 0.005847171862 | CQ44: ='1'!J93 -> 0.01164237172 | CR44: ='1'!K93 -> 0.02121818953 | CS44: ='1'!L93 -> 0.01915628159 | CT44: ='1'!M93 -> 0.0007296738473 | CU44: ='1'!N93 -> -0.0004776517421 | CV44: ='1'!O93 -> -0.000415839782 | CW44: ='1'!P93 -> -0.0003470574822 | CX44: ='1'!Q93 -> -0.0002590638383 | CY44: ='1'!R93 -> -0.0002124036315 | CZ44: ='1'!S93 -> -0.0002535844257 | DC44: Atenolol | DD44: =HLOOKUP($DD$7,$CJ$7:$CZ$48,38,FALSE) -> 0.207149687 | DG44: Atenolol | DH44: =IF($C$4=2.7,'1'!D161,IF($C$4=4.5,'1'!G161,IF($C$4=7,'1'!J161,IF($C$4=9,'1'!M161,FALSE)))) -> 1.3 | DI44: =IF($C$4=2.7,'1'!E161,IF($C$4=4.5,'1'!H161,IF($C$4=7,'1'!K161,IF($C$4=9,'1'!N161,FALSE)))) -> 1.23 | DJ44: =IF($C$4=2.7,'1'!F161,IF($C$4=4.5,'1'!I161,IF($C$4=7,'1'!L161,IF($C$4=9,'1'!O161,FALSE)))) -> 1.26 | DM44: Atenolol | DN44: =HLOOKUP($DN$7,$DG$7:$DJ$48,38,FALSE) -> 1.3 | DQ44: Atenolol | DS44: 9.67 | DT44: 1
B45: ΔP | C45: =C42*C13/10*0.01*C44*0.001*C41*0.001/(C15*0.000001)^2/100000 -> 55.09622585 | D45: bar | H45: Hydrochlorothiazide | I45: =IF($C$4=2.7,'1'!D48,IF($C$4=4.5,'1'!AB48,IF($C$4=7,'1'!AZ48,IF($C$4=9,'1'!BX48,"FAUX")))) -> 1.13 | J45: =IF($C$4=2.7,'1'!E48,IF($C$4=4.5,'1'!AC48,IF($C$4=7,'1'!BA48,IF($C$4=9,'1'!BY48,"FAUX")))) -> 0.92 | K45: =IF($C$4=2.7,'1'!F48,IF($C$4=4.5,'1'!AD48,IF($C$4=7,'1'!BB48,IF($C$4=9,'1'!BZ48,"FAUX")))) -> 6.66 | L45: =IF($C$4=2.7,'1'!G48,IF($C$4=4.5,'1'!AE48,IF($C$4=7,'1'!BC48,IF($C$4=9,'1'!CA48,"FAUX")))) -> 8.22 | M45: =IF($C$4=2.7,'1'!H48,IF($C$4=4.5,'1'!AF48,IF($C$4=7,'1'!BD48,IF($C$4=9,'1'!CB48,"FAUX")))) -> 1.25 | N45: =IF($C$4=2.7,'1'!I48,IF($C$4=4.5,'1'!AG48,IF($C$4=7,'1'!BE48,IF($C$4=9,'1'!CC48,"FAUX")))) -> 0.984 | O45: =IF($C$4=2.7,'1'!J48,IF($C$4=4.5,'1'!AH48,IF($C$4=7,'1'!BF48,IF($C$4=9,'1'!CD48,"FAUX")))) -> 4.74 | P45: =IF($C$4=2.7,'1'!K48,IF($C$4=4.5,'1'!AI48,IF($C$4=7,'1'!BG48,IF($C$4=9,'1'!CE48,"FAUX")))) -> 5.34 | Q45: =IF($C$4=2.7,'1'!L48,IF($C$4=4.5,'1'!AJ48,IF($C$4=7,'1'!BH48,IF($C$4=9,'1'!CF48,"FAUX")))) -> 1.1 | R45: =IF($C$4=2.7,'1'!M48,IF($C$4=4.5,'1'!AK48,IF($C$4=7,'1'!BI48,IF($C$4=9,'1'!CG48,"FAUX")))) -> 0.876 | S45: =IF($C$4=2.7,'1'!N48,IF($C$4=4.5,'1'!AL48,IF($C$4=7,'1'!BJ48,IF($C$4=9,'1'!CH48,"FAUX")))) -> 6.51 | T45: =IF($C$4=2.7,'1'!O48,IF($C$4=4.5,'1'!AM48,IF($C$4=7,'1'!BK48,IF($C$4=9,'1'!CI48,"FAUX")))) -> 7.22 | U45: =IF($C$4=2.7,'1'!P48,IF($C$4=4.5,'1'!AN48,IF($C$4=7,'1'!BL48,IF($C$4=9,'1'!CJ48,"FAUX")))) -> 1.28 | V45: =IF($C$4=2.7,'1'!Q48,IF($C$4=4.5,'1'!AO48,IF($C$4=7,'1'!BM48,IF($C$4=9,'1'!CK48,"FAUX")))) -> 0.999 | W45: =IF($C$4=2.7,'1'!R48,IF($C$4=4.5,'1'!AP48,IF($C$4=7,'1'!BN48,IF($C$4=9,'1'!CL48,"FAUX")))) -> 8.03 | X45: =IF($C$4=2.7,'1'!S48,IF($C$4=4.5,'1'!AQ48,IF($C$4=7,'1'!BO48,IF($C$4=9,'1'!CM48,"FAUX")))) -> 8.68 | Y45: =IF($C$4=2.7,'1'!T48,IF($C$4=4.5,'1'!AR48,IF($C$4=7,'1'!BP48,IF($C$4=9,'1'!CN48,"FAUX")))) -> 1.3 | Z45: =IF($C$4=2.7,'1'!U48,IF($C$4=4.5,'1'!AS48,IF($C$4=7,'1'!BQ48,IF($C$4=9,'1'!CO48,"FAUX")))) -> 1.02 | AA45: =IF($C$4=2.7,'1'!V48,IF($C$4=4.5,'1'!AT48,IF($C$4=7,'1'!BR48,IF($C$4=9,'1'!CP48,"FAUX")))) -> 6.71 | AB45: =IF($C$4=2.7,'1'!W48,IF($C$4=4.5,'1'!AU48,IF($C$4=7,'1'!BS48,IF($C$4=9,'1'!CQ48,"FAUX")))) -> 7.03 | AC45: =IF($C$4=2.7,'1'!X48,IF($C$4=4.5,'1'!AV48,IF($C$4=7,'1'!BT48,IF($C$4=9,'1'!CR48,"FAUX")))) -> 1.17 | AD45: =IF($C$4=2.7,'1'!Y48,IF($C$4=4.5,'1'!AW48,IF($C$4=7,'1'!BU48,IF($C$4=9,'1'!CS48,"FAUX")))) -> 0.917 | AE45: =IF($C$4=2.7,'1'!Z48,IF($C$4=4.5,'1'!AX48,IF($C$4=7,'1'!BV48,IF($C$4=9,'1'!CT48,"FAUX")))) -> 6.53 | AF45: =IF($C$4=2.7,'1'!AA48,IF($C$4=4.5,'1'!AY48,IF($C$4=7,'1'!BW48,IF($C$4=9,'1'!CU48,"FAUX")))) -> 6.88 | AI45: Hydrochlorothiazide | AJ45: -0.007 | AK45: 1.34 | AL45: 0.052 | AM45: =INTERCEPT(K45:L45,$G$3:$G$4) -> 5.1 | AN45: -0.008866666667 | AO45: 1.516 | AP45: 0.02 | AQ45: 4.14 | AR45: -0.007466666667 | AS45: 1.324 | AT45: 0.02366666667 | AU45: 5.8 | AV45: -0.009366666667 | AW45: 1.561 | AX45: 0.02166666667 | AY45: 7.38 | AZ45: -0.009333333333 | BA45: 1.58 | BB45: 0.01066666667 | BC45: 6.39 | BD45: -0.008433333333 | BE45: 1.423 | BF45: 0.01166666667 | BG45: 6.18 | BJ45: Hydrochlorothiazide | BK45: 1.13 | BL45: 1.25 | BM45: 1.1 | BN45: 1.28 | BO45: 1.3 | BP45: 1.17 | BS45: Hydrochlorothiazide | BT45: 6.66 | BU45: 4.74 | BV45: 6.51 | BW45: 8.03 | BX45: 6.71 | BY45: 6.53 | CJ45: Hydrochlorothiazide | CK45: ='1'!D94 -> 0.1378815358 | CL45: ='1'!E94 -> 0.312459671 | CM45: ='1'!F94 -> 0.5272927087 | CN45: ='1'!G94 -> 0.322891833 | CO45: ='1'!H94 -> 0.0374694682 | CP45: ='1'!I94 -> 0.04262293634 | CQ45: ='1'!J94 -> 0.1638147428 | CR45: ='1'!K94 -> 0.2745259676 | CS45: ='1'!L94 -> 0.1664667636 | CT45: ='1'!M94 -> 0.04203166388 | CU45: ='1'!N94 -> 0.03365143286 | CV45: ='1'!O94 -> 0.04097933337 | CW45: ='1'!P94 -> 0.04240108146 | CX45: ='1'!Q94 -> 0.03102167548 | CY45: ='1'!R94 -> 0.01001218443 | CZ45: ='1'!S94 -> 3.310000102e-05 | DC45: Hydrochlorothiazide | DD45: =HLOOKUP($DD$7,$CJ$7:$CZ$48,39,FALSE) -> 0.5272927087 | DG45: Hydrochlorothiazide | DH45: =IF($C$4=2.7,'1'!D162,IF($C$4=4.5,'1'!G162,IF($C$4=7,'1'!J162,IF($C$4=9,'1'!M162,FALSE)))) -> 1.09 | DI45: =IF($C$4=2.7,'1'!E162,IF($C$4=4.5,'1'!H162,IF($C$4=7,'1'!K162,IF($C$4=9,'1'!N162,FALSE)))) -> 1.07 | DJ45: =IF($C$4=2.7,'1'!F162,IF($C$4=4.5,'1'!I162,IF($C$4=7,'1'!L162,IF($C$4=9,'1'!O162,FALSE)))) -> 1.09 | DM45: Hydrochlorothiazide | DN45: =HLOOKUP($DN$7,$DG$7:$DJ$48,39,FALSE) -> 1.09 | DQ45: Hydrochlorothiazide | DR45: 9.09 | DT45: 2
B46: A | C46: 1 | H46: Furosemide | I46: =IF($C$4=2.7,'1'!D49,IF($C$4=4.5,'1'!AB49,IF($C$4=7,'1'!AZ49,IF($C$4=9,'1'!BX49,"FAUX")))) -> 2.54 | J46: =IF($C$4=2.7,'1'!E49,IF($C$4=4.5,'1'!AC49,IF($C$4=7,'1'!BA49,IF($C$4=9,'1'!BY49,"FAUX")))) -> 2.28 | K46: =IF($C$4=2.7,'1'!F49,IF($C$4=4.5,'1'!AD49,IF($C$4=7,'1'!BB49,IF($C$4=9,'1'!BZ49,"FAUX")))) -> 6.19 | L46: =IF($C$4=2.7,'1'!G49,IF($C$4=4.5,'1'!AE49,IF($C$4=7,'1'!BC49,IF($C$4=9,'1'!CA49,"FAUX")))) -> 6.5 | M46: =IF($C$4=2.7,'1'!H49,IF($C$4=4.5,'1'!AF49,IF($C$4=7,'1'!BD49,IF($C$4=9,'1'!CB49,"FAUX")))) -> 2.52 | N46: =IF($C$4=2.7,'1'!I49,IF($C$4=4.5,'1'!AG49,IF($C$4=7,'1'!BE49,IF($C$4=9,'1'!CC49,"FAUX")))) -> 2.23 | O46: =IF($C$4=2.7,'1'!J49,IF($C$4=4.5,'1'!AH49,IF($C$4=7,'1'!BF49,IF($C$4=9,'1'!CD49,"FAUX")))) -> 5.47 | P46: =IF($C$4=2.7,'1'!K49,IF($C$4=4.5,'1'!AI49,IF($C$4=7,'1'!BG49,IF($C$4=9,'1'!CE49,"FAUX")))) -> 5.68 | Q46: =IF($C$4=2.7,'1'!L49,IF($C$4=4.5,'1'!AJ49,IF($C$4=7,'1'!BH49,IF($C$4=9,'1'!CF49,"FAUX")))) -> 2.42 | R46: =IF($C$4=2.7,'1'!M49,IF($C$4=4.5,'1'!AK49,IF($C$4=7,'1'!BI49,IF($C$4=9,'1'!CG49,"FAUX")))) -> 2.11 | S46: =IF($C$4=2.7,'1'!N49,IF($C$4=4.5,'1'!AL49,IF($C$4=7,'1'!BJ49,IF($C$4=9,'1'!CH49,"FAUX")))) -> 5.84 | T46: =IF($C$4=2.7,'1'!O49,IF($C$4=4.5,'1'!AM49,IF($C$4=7,'1'!BK49,IF($C$4=9,'1'!CI49,"FAUX")))) -> 5.73 | U46: =IF($C$4=2.7,'1'!P49,IF($C$4=4.5,'1'!AN49,IF($C$4=7,'1'!BL49,IF($C$4=9,'1'!CJ49,"FAUX")))) -> 2.85 | V46: =IF($C$4=2.7,'1'!Q49,IF($C$4=4.5,'1'!AO49,IF($C$4=7,'1'!BM49,IF($C$4=9,'1'!CK49,"FAUX")))) -> 2.69 | W46: =IF($C$4=2.7,'1'!R49,IF($C$4=4.5,'1'!AP49,IF($C$4=7,'1'!BN49,IF($C$4=9,'1'!CL49,"FAUX")))) -> 11.7 | X46: =IF($C$4=2.7,'1'!S49,IF($C$4=4.5,'1'!AQ49,IF($C$4=7,'1'!BO49,IF($C$4=9,'1'!CM49,"FAUX")))) -> 12.6 | Y46: =IF($C$4=2.7,'1'!T49,IF($C$4=4.5,'1'!AR49,IF($C$4=7,'1'!BP49,IF($C$4=9,'1'!CN49,"FAUX")))) -> 2.74 | Z46: =IF($C$4=2.7,'1'!U49,IF($C$4=4.5,'1'!AS49,IF($C$4=7,'1'!BQ49,IF($C$4=9,'1'!CO49,"FAUX")))) -> 2.4 | AA46: =IF($C$4=2.7,'1'!V49,IF($C$4=4.5,'1'!AT49,IF($C$4=7,'1'!BR49,IF($C$4=9,'1'!CP49,"FAUX")))) -> 10.9 | AB46: =IF($C$4=2.7,'1'!W49,IF($C$4=4.5,'1'!AU49,IF($C$4=7,'1'!BS49,IF($C$4=9,'1'!CQ49,"FAUX")))) -> 10.8 | AC46: =IF($C$4=2.7,'1'!X49,IF($C$4=4.5,'1'!AV49,IF($C$4=7,'1'!BT49,IF($C$4=9,'1'!CR49,"FAUX")))) -> 2.66 | AD46: =IF($C$4=2.7,'1'!Y49,IF($C$4=4.5,'1'!AW49,IF($C$4=7,'1'!BU49,IF($C$4=9,'1'!CS49,"FAUX")))) -> 2.3 | AE46: =IF($C$4=2.7,'1'!Z49,IF($C$4=4.5,'1'!AX49,IF($C$4=7,'1'!BV49,IF($C$4=9,'1'!CT49,"FAUX")))) -> 10.2 | AF46: =IF($C$4=2.7,'1'!AA49,IF($C$4=4.5,'1'!AY49,IF($C$4=7,'1'!BW49,IF($C$4=9,'1'!CU49,"FAUX")))) -> 9.82 | AI46: Furosemide | AJ46: -0.008666666667 | AK46: 2.8 | AL46: 0.01033333333 | AM46: 5.88 | AN46: =SLOPE(M46:N46,$G$3:$G$4) -> -0.009666666667 | AO46: 2.81 | AP46: 0.007 | AQ46: 5.26 | AR46: -0.01033333333 | AS46: 2.73 | AT46: -0.003666666667 | AU46: 5.95 | AV46: -0.005333333333 | AW46: 3.01 | AX46: 0.03 | AY46: 10.8 | AZ46: -0.01133333333 | BA46: 3.08 | BB46: -0.003333333333 | BC46: 11 | BD46: -0.012 | BE46: 3.02 | BF46: -0.01266666667 | BG46: 10.58 | BJ46: Furosemide | BK46: 2.54 | BL46: 2.52 | BM46: 2.42 | BN46: 2.85 | BO46: 2.74 | BP46: 2.66 | BS46: Furosemide | BT46: 6.19 | BU46: 5.47 | BV46: 5.84 | BW46: 11.7 | BX46: 10.9 | BY46: 10.2 | CJ46: Furosemide | CK46: ='1'!D95 -> 0.05458951983 | CL46: ='1'!E95 -> 0.2067422477 | CM46: ='1'!F95 -> 0.3676961784 | CN46: ='1'!G95 -> 0.4890529589 | CO46: ='1'!H95 -> 0.2557569638 | CP46: ='1'!I95 -> 0.06106197501 | CQ46: ='1'!J95 -> 0.1035634991 | CR46: ='1'!K95 -> 0.1918043837 | CS46: ='1'!L95 -> 0.1507084427 | CT46: ='1'!M95 -> 0.02254468753 | CU46: ='1'!N95 -> 0.00885982822 | CV46: ='1'!O95 -> 0.01619297166 | CW46: ='1'!P95 -> 0.02835093476 | CX46: ='1'!Q95 -> 0.04256836368 | CY46: ='1'!R95 -> 0.05319411404 | CZ46: ='1'!S95 -> 0.05031153474 | DC46: Furosemide | DD46: =HLOOKUP($DD$7,$CJ$7:$CZ$48,40,FALSE) -> 0.3676961784 | DG46: Furosemide | DH46: =IF($C$4=2.7,'1'!D163,IF($C$4=4.5,'1'!G163,IF($C$4=7,'1'!J163,IF($C$4=9,'1'!M163,FALSE)))) -> 1 | DI46: =IF($C$4=2.7,'1'!E163,IF($C$4=4.5,'1'!H163,IF($C$4=7,'1'!K163,IF($C$4=9,'1'!N163,FALSE)))) -> 0.97 | DJ46: =IF($C$4=2.7,'1'!F163,IF($C$4=4.5,'1'!I163,IF($C$4=7,'1'!L163,IF($C$4=9,'1'!O163,FALSE)))) -> 0.99 | DM46: Furosemide | DN46: =HLOOKUP($DN$7,$DG$7:$DJ$48,40,FALSE) -> 1 | DQ46: Furosemide | DR46: 4.25 | DT46: 2 | DV46: 0 | DW46: =C4 -> 7
B47: B | C47: 4 | H47: Chlorthalidone | I47: =IF($C$4=2.7,'1'!D50,IF($C$4=4.5,'1'!AB50,IF($C$4=7,'1'!AZ50,IF($C$4=9,'1'!BX50,"FAUX")))) -> 2.69 | J47: =IF($C$4=2.7,'1'!E50,IF($C$4=4.5,'1'!AC50,IF($C$4=7,'1'!BA50,IF($C$4=9,'1'!BY50,"FAUX")))) -> 2.43 | K47: =IF($C$4=2.7,'1'!F50,IF($C$4=4.5,'1'!AD50,IF($C$4=7,'1'!BB50,IF($C$4=9,'1'!BZ50,"FAUX")))) -> 6.72 | L47: =IF($C$4=2.7,'1'!G50,IF($C$4=4.5,'1'!AE50,IF($C$4=7,'1'!BC50,IF($C$4=9,'1'!CA50,"FAUX")))) -> 6.95 | M47: =IF($C$4=2.7,'1'!H50,IF($C$4=4.5,'1'!AF50,IF($C$4=7,'1'!BD50,IF($C$4=9,'1'!CB50,"FAUX")))) -> 2.63 | N47: =IF($C$4=2.7,'1'!I50,IF($C$4=4.5,'1'!AG50,IF($C$4=7,'1'!BE50,IF($C$4=9,'1'!CC50,"FAUX")))) -> 2.3 | O47: =IF($C$4=2.7,'1'!J50,IF($C$4=4.5,'1'!AH50,IF($C$4=7,'1'!BF50,IF($C$4=9,'1'!CD50,"FAUX")))) -> 5.77 | P47: =IF($C$4=2.7,'1'!K50,IF($C$4=4.5,'1'!AI50,IF($C$4=7,'1'!BG50,IF($C$4=9,'1'!CE50,"FAUX")))) -> 5.81 | Q47: =IF($C$4=2.7,'1'!L50,IF($C$4=4.5,'1'!AJ50,IF($C$4=7,'1'!BH50,IF($C$4=9,'1'!CF50,"FAUX")))) -> 2.58 | R47: =IF($C$4=2.7,'1'!M50,IF($C$4=4.5,'1'!AK50,IF($C$4=7,'1'!BI50,IF($C$4=9,'1'!CG50,"FAUX")))) -> 2.35 | S47: =IF($C$4=2.7,'1'!N50,IF($C$4=4.5,'1'!AL50,IF($C$4=7,'1'!BJ50,IF($C$4=9,'1'!CH50,"FAUX")))) -> 6.44 | T47: =IF($C$4=2.7,'1'!O50,IF($C$4=4.5,'1'!AM50,IF($C$4=7,'1'!BK50,IF($C$4=9,'1'!CI50,"FAUX")))) -> 6.65 | U47: =IF($C$4=2.7,'1'!P50,IF($C$4=4.5,'1'!AN50,IF($C$4=7,'1'!BL50,IF($C$4=9,'1'!CJ50,"FAUX")))) -> 2.69 | V47: =IF($C$4=2.7,'1'!Q50,IF($C$4=4.5,'1'!AO50,IF($C$4=7,'1'!BM50,IF($C$4=9,'1'!CK50,"FAUX")))) -> 2.29 | W47: =IF($C$4=2.7,'1'!R50,IF($C$4=4.5,'1'!AP50,IF($C$4=7,'1'!BN50,IF($C$4=9,'1'!CL50,"FAUX")))) -> 10.9 | X47: =IF($C$4=2.7,'1'!S50,IF($C$4=4.5,'1'!AQ50,IF($C$4=7,'1'!BO50,IF($C$4=9,'1'!CM50,"FAUX")))) -> 10.1 | Y47: =IF($C$4=2.7,'1'!T50,IF($C$4=4.5,'1'!AR50,IF($C$4=7,'1'!BP50,IF($C$4=9,'1'!CN50,"FAUX")))) -> 2.36 | Z47: =IF($C$4=2.7,'1'!U50,IF($C$4=4.5,'1'!AS50,IF($C$4=7,'1'!BQ50,IF($C$4=9,'1'!CO50,"FAUX")))) -> 2.15 | AA47: =IF($C$4=2.7,'1'!V50,IF($C$4=4.5,'1'!AT50,IF($C$4=7,'1'!BR50,IF($C$4=9,'1'!CP50,"FAUX")))) -> 8.79 | AB47: =IF($C$4=2.7,'1'!W50,IF($C$4=4.5,'1'!AU50,IF($C$4=7,'1'!BS50,IF($C$4=9,'1'!CQ50,"FAUX")))) -> 8.93 | AC47: =IF($C$4=2.7,'1'!X50,IF($C$4=4.5,'1'!AV50,IF($C$4=7,'1'!BT50,IF($C$4=9,'1'!CR50,"FAUX")))) -> 2.34 | AD47: =IF($C$4=2.7,'1'!Y50,IF($C$4=4.5,'1'!AW50,IF($C$4=7,'1'!BU50,IF($C$4=9,'1'!CS50,"FAUX")))) -> 2.1 | AE47: =IF($C$4=2.7,'1'!Z50,IF($C$4=4.5,'1'!AX50,IF($C$4=7,'1'!BV50,IF($C$4=9,'1'!CT50,"FAUX")))) -> 8.79 | AF47: =IF($C$4=2.7,'1'!AA50,IF($C$4=4.5,'1'!AY50,IF($C$4=7,'1'!BW50,IF($C$4=9,'1'!CU50,"FAUX")))) -> 8.66 | AI47: Chlorthalidone | AJ47: -0.008666666667 | AK47: 2.95 | AL47: 0.007666666667 | AM47: 6.49 | AN47: -0.011 | AO47: 2.96 | AP47: 0.001333333333 | AQ47: 5.73 | AR47: -0.007666666667 | AS47: 2.81 | AT47: 0.007 | AU47: 6.23 | AV47: -0.01333333333 | AW47: 3.09 | AX47: -0.02666666667 | AY47: 11.7 | AZ47: -0.007 | BA47: 2.57 | BB47: 0.004666666667 | BC47: 8.65 | BD47: -0.008 | BE47: 2.58 | BF47: -0.004333333333 | BG47: 8.92 | BJ47: Chlorthalidone | BK47: 2.69 | BL47: 2.63 | BM47: 2.58 | BN47: 2.69 | BO47: 2.36 | BP47: 2.34 | BS47: Chlorthalidone | BT47: 6.72 | BU47: 5.77 | BV47: 6.44 | BW47: 10.9 | BX47: 8.79 | BY47: 8.79 | CJ47: Chlorthalidone | CK47: ='1'!D96 -> 0.6830014614 | CL47: ='1'!E96 -> 0.6566614531 | CM47: ='1'!F96 -> 0.4581953543 | CN47: ='1'!G96 -> 0.3447218418 | CO47: ='1'!H96 -> 0.1742122321 | CP47: ='1'!I96 -> 0.06541890328 | CQ47: ='1'!J96 -> 0.03322463711 | CR47: ='1'!K96 -> 0.02591494954 | CS47: ='1'!L96 -> 0.02387494028 | CT47: ='1'!M96 -> 0.008760609055 | CU47: ='1'!N96 -> 0 | CV47: ='1'!O96 -> 0 | CW47: ='1'!P96 -> 0 | CX47: ='1'!Q96 -> 0 | CY47: ='1'!R96 -> 0 | CZ47: ='1'!S96 -> 0 | DC47: Chlorthalidone | DD47: =HLOOKUP($DD$7,$CJ$7:$CZ$48,41,FALSE) -> 0.4581953543 | DG47: Chlorthalidone | DH47: =IF($C$4=2.7,'1'!D164,IF($C$4=4.5,'1'!G164,IF($C$4=7,'1'!J164,IF($C$4=9,'1'!M164,FALSE)))) -> 1 | DI47: =IF($C$4=2.7,'1'!E164,IF($C$4=4.5,'1'!H164,IF($C$4=7,'1'!K164,IF($C$4=9,'1'!N164,FALSE)))) -> 0.99 | DJ47: =IF($C$4=2.7,'1'!F164,IF($C$4=4.5,'1'!I164,IF($C$4=7,'1'!L164,IF($C$4=9,'1'!O164,FALSE)))) -> 1.02 | DM47: Chlorthalidone | DN47: =HLOOKUP($DN$7,$DG$7:$DJ$48,41,FALSE) -> 1 | DQ47: Chlorthalidone | DR47: 8.76 | DT47: 2 | DV47: 100 | DW47: =DW46 -> 7
B48: C | C48: 0.05 | H48: Dexamethasone | I48: =IF($C$4=2.7,'1'!D51,IF($C$4=4.5,'1'!AB51,IF($C$4=7,'1'!AZ51,IF($C$4=9,'1'!BX51,"FAUX")))) -> 3.86 | J48: =IF($C$4=2.7,'1'!E51,IF($C$4=4.5,'1'!AC51,IF($C$4=7,'1'!BA51,IF($C$4=9,'1'!BY51,"FAUX")))) -> 3.67 | K48: =IF($C$4=2.7,'1'!F51,IF($C$4=4.5,'1'!AD51,IF($C$4=7,'1'!BB51,IF($C$4=9,'1'!BZ51,"FAUX")))) -> 6.04 | L48: =IF($C$4=2.7,'1'!G51,IF($C$4=4.5,'1'!AE51,IF($C$4=7,'1'!BC51,IF($C$4=9,'1'!CA51,"FAUX")))) -> 6.26 | M48: =IF($C$4=2.7,'1'!H51,IF($C$4=4.5,'1'!AF51,IF($C$4=7,'1'!BD51,IF($C$4=9,'1'!CB51,"FAUX")))) -> 3.6 | N48: =IF($C$4=2.7,'1'!I51,IF($C$4=4.5,'1'!AG51,IF($C$4=7,'1'!BE51,IF($C$4=9,'1'!CC51,"FAUX")))) -> 3.23 | O48: =IF($C$4=2.7,'1'!J51,IF($C$4=4.5,'1'!AH51,IF($C$4=7,'1'!BF51,IF($C$4=9,'1'!CD51,"FAUX")))) -> 5.45 | P48: =IF($C$4=2.7,'1'!K51,IF($C$4=4.5,'1'!AI51,IF($C$4=7,'1'!BG51,IF($C$4=9,'1'!CE51,"FAUX")))) -> 5.27 | Q48: =IF($C$4=2.7,'1'!L51,IF($C$4=4.5,'1'!AJ51,IF($C$4=7,'1'!BH51,IF($C$4=9,'1'!CF51,"FAUX")))) -> 3.75 | R48: =IF($C$4=2.7,'1'!M51,IF($C$4=4.5,'1'!AK51,IF($C$4=7,'1'!BI51,IF($C$4=9,'1'!CG51,"FAUX")))) -> 3.44 | S48: =IF($C$4=2.7,'1'!N51,IF($C$4=4.5,'1'!AL51,IF($C$4=7,'1'!BJ51,IF($C$4=9,'1'!CH51,"FAUX")))) -> 6.04 | T48: =IF($C$4=2.7,'1'!O51,IF($C$4=4.5,'1'!AM51,IF($C$4=7,'1'!BK51,IF($C$4=9,'1'!CI51,"FAUX")))) -> 5.93 | U48: =IF($C$4=2.7,'1'!P51,IF($C$4=4.5,'1'!AN51,IF($C$4=7,'1'!BL51,IF($C$4=9,'1'!CJ51,"FAUX")))) -> 3.25 | V48: =IF($C$4=2.7,'1'!Q51,IF($C$4=4.5,'1'!AO51,IF($C$4=7,'1'!BM51,IF($C$4=9,'1'!CK51,"FAUX")))) -> 3.13 | W48: =IF($C$4=2.7,'1'!R51,IF($C$4=4.5,'1'!AP51,IF($C$4=7,'1'!BN51,IF($C$4=9,'1'!CL51,"FAUX")))) -> 8.7 | X48: =IF($C$4=2.7,'1'!S51,IF($C$4=4.5,'1'!AQ51,IF($C$4=7,'1'!BO51,IF($C$4=9,'1'!CM51,"FAUX")))) -> 8.69 | Y48: =IF($C$4=2.7,'1'!T51,IF($C$4=4.5,'1'!AR51,IF($C$4=7,'1'!BP51,IF($C$4=9,'1'!CN51,"FAUX")))) -> 2.98 | Z48: =IF($C$4=2.7,'1'!U51,IF($C$4=4.5,'1'!AS51,IF($C$4=7,'1'!BQ51,IF($C$4=9,'1'!CO51,"FAUX")))) -> 2.82 | AA48: =IF($C$4=2.7,'1'!V51,IF($C$4=4.5,'1'!AT51,IF($C$4=7,'1'!BR51,IF($C$4=9,'1'!CP51,"FAUX")))) -> 8.05 | AB48: =IF($C$4=2.7,'1'!W51,IF($C$4=4.5,'1'!AU51,IF($C$4=7,'1'!BS51,IF($C$4=9,'1'!CQ51,"FAUX")))) -> 7.85 | AC48: =IF($C$4=2.7,'1'!X51,IF($C$4=4.5,'1'!AV51,IF($C$4=7,'1'!BT51,IF($C$4=9,'1'!CR51,"FAUX")))) -> 3.01 | AD48: =IF($C$4=2.7,'1'!Y51,IF($C$4=4.5,'1'!AW51,IF($C$4=7,'1'!BU51,IF($C$4=9,'1'!CS51,"FAUX")))) -> 2.81 | AE48: =IF($C$4=2.7,'1'!Z51,IF($C$4=4.5,'1'!AX51,IF($C$4=7,'1'!BV51,IF($C$4=9,'1'!CT51,"FAUX")))) -> 7.86 | AF48: =IF($C$4=2.7,'1'!AA51,IF($C$4=4.5,'1'!AY51,IF($C$4=7,'1'!BW51,IF($C$4=9,'1'!CU51,"FAUX")))) -> 7.49 | AI48: Dexamethasone | AJ48: -0.006333333333 | AK48: 4.05 | AL48: 0.007333333333 | AM48: 5.82 | AN48: -0.01233333333 | AO48: 3.97 | AP48: -0.006 | AQ48: 5.63 | AR48: -0.01033333333 | AS48: 4.06 | AT48: -0.003666666667 | AU48: 6.15 | AV48: -0.004 | AW48: 3.37 | AX48: -0.0003333333333 | AY48: 8.71 | AZ48: -0.005333333333 | BA48: 3.14 | BB48: -0.006666666667 | BC48: 8.25 | BD48: -0.006666666667 | BE48: 3.21 | BF48: -0.01233333333 | BG48: 8.23 | BJ48: Dexamethasone | BK48: 3.86 | BL48: 3.6 | BM48: 3.75 | BN48: 3.25 | BO48: 2.98 | BP48: 3.01 | BS48: Dexamethasone | BT48: 6.04 | BU48: 5.45 | BV48: 6.04 | BW48: 8.7 | BX48: 8.05 | BY48: 7.86 | CJ48: Dexamethasone | CK48: ='1'!D97 -> 0 | CL48: ='1'!E97 -> 0.1062343783 | CM48: ='1'!F97 -> 0.2026063496 | CN48: ='1'!G97 -> 0.223398557 | CO48: ='1'!H97 -> 0.1979485701 | CP48: ='1'!I97 -> 0.1486787225 | CQ48: ='1'!J97 -> 0.09199595482 | CR48: ='1'!K97 -> 0.06048563526 | CS48: ='1'!L97 -> 0.02563510216 | CT48: ='1'!M97 -> 0.005085730649 | CU48: ='1'!N97 -> 0.0005660935453 | CV48: ='1'!O97 -> 7.90478174e-05 | CW48: ='1'!P97 -> -0.0001987443345 | CX48: ='1'!Q97 -> -0.0004365092548 | CY48: ='1'!R97 -> 0 | CZ48: ='1'!S97 -> 0 | DC48: Dexamethasone | DD48: =HLOOKUP($DD$7,$CJ$7:$CZ$48,42,FALSE) -> 0.2026063496 | DG48: Dexamethasone | DH48: =IF($C$4=2.7,'1'!D165,IF($C$4=4.5,'1'!G165,IF($C$4=7,'1'!J165,IF($C$4=9,'1'!M165,FALSE)))) -> 1.09 | DI48: =IF($C$4=2.7,'1'!E165,IF($C$4=4.5,'1'!H165,IF($C$4=7,'1'!K165,IF($C$4=9,'1'!N165,FALSE)))) -> 0.92 | DJ48: =IF($C$4=2.7,'1'!F165,IF($C$4=4.5,'1'!I165,IF($C$4=7,'1'!L165,IF($C$4=9,'1'!O165,FALSE)))) -> 1.02 | DM48: Dexamethasone | DN48: =HLOOKUP($DN$7,$DG$7:$DJ$48,42,FALSE) -> 1.09 | DQ48: Dexamethasone | DR48: 12.4 | DT48: 2
B49: N theoretical | C49: =VLOOKUP(C3,G77:H1033,2,TRUE) -> 14461.16988
B50: σ²col moyen isocratique | C50: =(C39*(1+C62))^2/C49 -> 1819.488652 | D50: µL² | CJ50: Wavelength | CK50: 200 | CL50: 210 | CM50: 220 | CN50: 230 | CO50: 240 | CP50: 250 | CQ50: 260 | CR50: 270 | CS50: 280 | CT50: 290 | CU50: 300 | CV50: 310 | CW50: 320 | CX50: 330 | CY50: 340 | CZ50: 350 | DC50: Noise | DD50: =(HLOOKUP($DD$7,$CJ$50:$CZ$52,2,FALSE))*(POWER('HPLC simulator'!I16,0.35)) -> 0.07647363764
B51: σ²cte temps | C51: =C11/1000*C11/1000*C3*1000*C3*1000/60/60 -> 277.7777778 | D51: µl² | E51: =C51/C55 -> 0.3059202307 | F51: UV time constant | AK51: =IF($C$25=1,H8,IF($C$25=2,H13,IF($C$25=3,H19,IF($C$25=4,H23,IF($C$25=5,H29,IF($C$25=6,H37,IF($C$25=7,H42,H49))))))) -> Uracil | AL51: =IF($C$25=1,H9,IF($C$25=2,H14,IF($C$25=3,H20,IF($C$25=4,H24,IF($C$25=5,H30,IF($C$25=6,H38,IF($C$25=7,H43,H49))))))) -> Methylparaben | AM51: =IF($C$25=1,H10,IF($C$25=2,H15,IF($C$25=3,H21,IF($C$25=4,H25,IF($C$25=5,H31,IF($C$25=6,H39,IF($C$25=7,H44,H49))))))) -> Ethylparaben | AN51: =IF($C$25=1,H11,IF($C$25=2,H16,IF($C$25=3,H22,IF($C$25=4,H26,IF($C$25=5,H32,IF($C$25=6,H40,IF($C$25=7,H45,H49))))))) -> Propylparaben | AO51: =IF($C$25=1,H12,IF($C$25=2,H17,IF($C$25=3,"",IF($C$25=4,H27,IF($C$25=5,H33,IF($C$25=6,H41,IF($C$25=7,H46,H49))))))) -> Butylparaben | AP51: =IF($C$25=1,"",IF($C$25=2,H18,IF($C$25=3,"",IF($C$25=4,H28,IF($C$25=5,H34,IF($C$25=6,"",IF($C$25=7,H47,H49))))))) ->  | AQ51: =IF($C$25=1,"",IF($C$25=2,"",IF($C$25=3,"",IF($C$25=4,"",IF($C$25=5,H35,IF($C$25=6,"",IF($C$25=7,H48,H49))))))) ->  | AR51: =IF($C$25=1,"",IF($C$25=2,"",IF($C$25=3,"",IF($C$25=4,"",IF($C$25=5,H36,IF($C$25=6,"",IF($C$25=7,"",H49))))))) ->  | CJ51: Noise | CK51: =IF($C$33="methanol2.7",'1'!D102,IF($C$33="methanol4.5",'1'!D106,IF($C$33="methanol7",'1'!D110,IF($C$33="methanol9",'1'!D114,IF($C$33="acetonitrile2.7",'1'!D104,IF($C$33="acetonitrile4.5",'1'!D108,IF($C$33="acetonitrile7",'1'!D112,IF($C$33="acetonitrile9",'1'!D116,FALSE)))))))) -> 0.52 | CL51: =IF($C$33="methanol2.7",'1'!E102,IF($C$33="methanol4.5",'1'!E106,IF($C$33="methanol7",'1'!E110,IF($C$33="methanol9",'1'!E114,IF($C$33="acetonitrile2.7",'1'!E104,IF($C$33="acetonitrile4.5",'1'!E108,IF($C$33="acetonitrile7",'1'!E112,IF($C$33="acetonitrile9",'1'!E116,FALSE)))))))) -> 0.29 | CM51: =IF($C$33="methanol2.7",'1'!F102,IF($C$33="methanol4.5",'1'!F106,IF($C$33="methanol7",'1'!F110,IF($C$33="methanol9",'1'!F114,IF($C$33="acetonitrile2.7",'1'!F104,IF($C$33="acetonitrile4.5",'1'!F108,IF($C$33="acetonitrile7",'1'!F112,IF($C$33="acetonitrile9",'1'!F116,FALSE)))))))) -> 0.06 | CN51: =IF($C$33="methanol2.7",'1'!G102,IF($C$33="methanol4.5",'1'!G106,IF($C$33="methanol7",'1'!G110,IF($C$33="methanol9",'1'!G114,IF($C$33="acetonitrile2.7",'1'!G104,IF($C$33="acetonitrile4.5",'1'!G108,IF($C$33="acetonitrile7",'1'!G112,IF($C$33="acetonitrile9",'1'!G116,FALSE)))))))) -> 0.04 | CO51: =IF($C$33="methanol2.7",'1'!H102,IF($C$33="methanol4.5",'1'!H106,IF($C$33="methanol7",'1'!H110,IF($C$33="methanol9",'1'!H114,IF($C$33="acetonitrile2.7",'1'!H104,IF($C$33="acetonitrile4.5",'1'!H108,IF($C$33="acetonitrile7",'1'!H112,IF($C$33="acetonitrile9",'1'!H116,FALSE)))))))) -> 0.02 | CP51: =IF($C$33="methanol2.7",'1'!I102,IF($C$33="methanol4.5",'1'!I106,IF($C$33="methanol7",'1'!I110,IF($C$33="methanol9",'1'!I114,IF($C$33="acetonitrile2.7",'1'!I104,IF($C$33="acetonitrile4.5",'1'!I108,IF($C$33="acetonitrile7",'1'!I112,IF($C$33="acetonitrile9",'1'!I116,FALSE)))))))) -> 0.02 | CQ51: =IF($C$33="methanol2.7",'1'!J102,IF($C$33="methanol4.5",'1'!J106,IF($C$33="methanol7",'1'!J110,IF($C$33="methanol9",'1'!J114,IF($C$33="acetonitrile2.7",'1'!J104,IF($C$33="acetonitrile4.5",'1'!J108,IF($C$33="acetonitrile7",'1'!J112,IF($C$33="acetonitrile9",'1'!J116,FALSE)))))))) -> 0.02 | CR51: =IF($C$33="methanol2.7",'1'!K102,IF($C$33="methanol4.5",'1'!K106,IF($C$33="methanol7",'1'!K110,IF($C$33="methanol9",'1'!K114,IF($C$33="acetonitrile2.7",'1'!K104,IF($C$33="acetonitrile4.5",'1'!K108,IF($C$33="acetonitrile7",'1'!K112,IF($C$33="acetonitrile9",'1'!K116,FALSE)))))))) -> 0.015 | CS51: =IF($C$33="methanol2.7",'1'!L102,IF($C$33="methanol4.5",'1'!L106,IF($C$33="methanol7",'1'!L110,IF($C$33="methanol9",'1'!L114,IF($C$33="acetonitrile2.7",'1'!L104,IF($C$33="acetonitrile4.5",'1'!L108,IF($C$33="acetonitrile7",'1'!L112,IF($C$33="acetonitrile9",'1'!L116,FALSE)))))))) -> 0.01 | CT51: =IF($C$33="methanol2.7",'1'!M102,IF($C$33="methanol4.5",'1'!M106,IF($C$33="methanol7",'1'!M110,IF($C$33="methanol9",'1'!M114,IF($C$33="acetonitrile2.7",'1'!M104,IF($C$33="acetonitrile4.5",'1'!M108,IF($C$33="acetonitrile7",'1'!M112,IF($C$33="acetonitrile9",'1'!M116,FALSE)))))))) -> 0.01 | CU51: =IF($C$33="methanol2.7",'1'!N102,IF($C$33="methanol4.5",'1'!N106,IF($C$33="methanol7",'1'!N110,IF($C$33="methanol9",'1'!N114,IF($C$33="acetonitrile2.7",'1'!N104,IF($C$33="acetonitrile4.5",'1'!N108,IF($C$33="acetonitrile7",'1'!N112,IF($C$33="acetonitrile9",'1'!N116,FALSE)))))))) -> 0.01 | CV51: =IF($C$33="methanol2.7",'1'!O102,IF($C$33="methanol4.5",'1'!O106,IF($C$33="methanol7",'1'!O110,IF($C$33="methanol9",'1'!O114,IF($C$33="acetonitrile2.7",'1'!O104,IF($C$33="acetonitrile4.5",'1'!O108,IF($C$33="acetonitrile7",'1'!O112,IF($C$33="acetonitrile9",'1'!O116,FALSE)))))))) -> 0.01 | CW51: =IF($C$33="methanol2.7",'1'!P102,IF($C$33="methanol4.5",'1'!P106,IF($C$33="methanol7",'1'!P110,IF($C$33="methanol9",'1'!P114,IF($C$33="acetonitrile2.7",'1'!P104,IF($C$33="acetonitrile4.5",'1'!P108,IF($C$33="acetonitrile7",'1'!P112,IF($C$33="acetonitrile9",'1'!P116,FALSE)))))))) -> 0.01 | CX51: =IF($C$33="methanol2.7",'1'!Q102,IF($C$33="methanol4.5",'1'!Q106,IF($C$33="methanol7",'1'!Q110,IF($C$33="methanol9",'1'!Q114,IF($C$33="acetonitrile2.7",'1'!Q104,IF($C$33="acetonitrile4.5",'1'!Q108,IF($C$33="acetonitrile7",'1'!Q112,IF($C$33="acetonitrile9",'1'!Q116,FALSE)))))))) -> 0.01 | CY51: =IF($C$33="methanol2.7",'1'!R102,IF($C$33="methanol4.5",'1'!R106,IF($C$33="methanol7",'1'!R110,IF($C$33="methanol9",'1'!R114,IF($C$33="acetonitrile2.7",'1'!R104,IF($C$33="acetonitrile4.5",'1'!R108,IF($C$33="acetonitrile7",'1'!R112,IF($C$33="acetonitrile9",'1'!R116,FALSE)))))))) -> 0.01 | CZ51: =IF($C$33="methanol2.7",'1'!S102,IF($C$33="methanol4.5",'1'!S106,IF($C$33="methanol7",'1'!S110,IF($C$33="methanol9",'1'!S114,IF($C$33="acetonitrile2.7",'1'!S104,IF($C$33="acetonitrile4.5",'1'!S108,IF($C$33="acetonitrile7",'1'!S112,IF($C$33="acetonitrile9",'1'!S116,FALSE)))))))) -> 0.01 | DC51: Baseline drift | DD51: =HLOOKUP($DD$7,$CJ$50:$CZ$52,3,FALSE) -> 0.001
B52: σ²injection | C52: =2*C22*C22/12 -> 66.66666667 | D52: µl² | E52: =C52/C55 -> 0.07342085537 | F52: Injection volume | AB52: 1 | AC52: =EXP(AB52/1000) -> 1.0010005 | AJ52: log kw | AK52: =IF(AK$51="","",Q57) -> -0.36 | AL52: 1.76 | AM52: 2.1 | AN52: 2.49 | AO52: 2.72 | CJ52: Baseline drift | CK52: =IF($C$33="methanol2.7",'1'!D103,IF($C$33="methanol4.5",'1'!D107,IF($C$33="methanol7",'1'!D111,IF($C$33="methanol9",'1'!D115,IF($C$33="acetonitrile2.7",'1'!D105,IF($C$33="acetonitrile4.5",'1'!D109,IF($C$33="acetonitrile7",'1'!D113,IF($C$33="acetonitrile9",'1'!D117,FALSE)))))))) -> -0.038 | CL52: =IF($C$33="methanol2.7",'1'!E103,IF($C$33="methanol4.5",'1'!E107,IF($C$33="methanol7",'1'!E111,IF($C$33="methanol9",'1'!E115,IF($C$33="acetonitrile2.7",'1'!E105,IF($C$33="acetonitrile4.5",'1'!E109,IF($C$33="acetonitrile7",'1'!E113,IF($C$33="acetonitrile9",'1'!E117,FALSE)))))))) -> -0.0185 | CM52: =IF($C$33="methanol2.7",'1'!F103,IF($C$33="methanol4.5",'1'!F107,IF($C$33="methanol7",'1'!F111,IF($C$33="methanol9",'1'!F115,IF($C$33="acetonitrile2.7",'1'!F105,IF($C$33="acetonitrile4.5",'1'!F109,IF($C$33="acetonitrile7",'1'!F113,IF($C$33="acetonitrile9",'1'!F117,FALSE)))))))) -> 0.001 | CN52: =IF($C$33="methanol2.7",'1'!G103,IF($C$33="methanol4.5",'1'!G107,IF($C$33="methanol7",'1'!G111,IF($C$33="methanol9",'1'!G115,IF($C$33="acetonitrile2.7",'1'!G105,IF($C$33="acetonitrile4.5",'1'!G109,IF($C$33="acetonitrile7",'1'!G113,IF($C$33="acetonitrile9",'1'!G117,FALSE)))))))) -> 0.0005 | CO52: =IF($C$33="methanol2.7",'1'!H103,IF($C$33="methanol4.5",'1'!H107,IF($C$33="methanol7",'1'!H111,IF($C$33="methanol9",'1'!H115,IF($C$33="acetonitrile2.7",'1'!H105,IF($C$33="acetonitrile4.5",'1'!H109,IF($C$33="acetonitrile7",'1'!H113,IF($C$33="acetonitrile9",'1'!H117,FALSE)))))))) -> 0 | CP52: =IF($C$33="methanol2.7",'1'!I103,IF($C$33="methanol4.5",'1'!I107,IF($C$33="methanol7",'1'!I111,IF($C$33="methanol9",'1'!I115,IF($C$33="acetonitrile2.7",'1'!I105,IF($C$33="acetonitrile4.5",'1'!I109,IF($C$33="acetonitrile7",'1'!I113,IF($C$33="acetonitrile9",'1'!I117,FALSE)))))))) -> 0 | CQ52: =IF($C$33="methanol2.7",'1'!J103,IF($C$33="methanol4.5",'1'!J107,IF($C$33="methanol7",'1'!J111,IF($C$33="methanol9",'1'!J115,IF($C$33="acetonitrile2.7",'1'!J105,IF($C$33="acetonitrile4.5",'1'!J109,IF($C$33="acetonitrile7",'1'!J113,IF($C$33="acetonitrile9",'1'!J117,FALSE)))))))) -> 0 | CR52: =IF($C$33="methanol2.7",'1'!K103,IF($C$33="methanol4.5",'1'!K107,IF($C$33="methanol7",'1'!K111,IF($C$33="methanol9",'1'!K115,IF($C$33="acetonitrile2.7",'1'!K105,IF($C$33="acetonitrile4.5",'1'!K109,IF($C$33="acetonitrile7",'1'!K113,IF($C$33="acetonitrile9",'1'!K117,FALSE)))))))) -> 0 | CS52: =IF($C$33="methanol2.7",'1'!L103,IF($C$33="methanol4.5",'1'!L107,IF($C$33="methanol7",'1'!L111,IF($C$33="methanol9",'1'!L115,IF($C$33="acetonitrile2.7",'1'!L105,IF($C$33="acetonitrile4.5",'1'!L109,IF($C$33="acetonitrile7",'1'!L113,IF($C$33="acetonitrile9",'1'!L117,FALSE)))))))) -> 0 | CT52: =IF($C$33="methanol2.7",'1'!M103,IF($C$33="methanol4.5",'1'!M107,IF($C$33="methanol7",'1'!M111,IF($C$33="methanol9",'1'!M115,IF($C$33="acetonitrile2.7",'1'!M105,IF($C$33="acetonitrile4.5",'1'!M109,IF($C$33="acetonitrile7",'1'!M113,IF($C$33="acetonitrile9",'1'!M117,FALSE)))))))) -> 0 | CU52: =IF($C$33="methanol2.7",'1'!N103,IF($C$33="methanol4.5",'1'!N107,IF($C$33="methanol7",'1'!N111,IF($C$33="methanol9",'1'!N115,IF($C$33="acetonitrile2.7",'1'!N105,IF($C$33="acetonitrile4.5",'1'!N109,IF($C$33="acetonitrile7",'1'!N113,IF($C$33="acetonitrile9",'1'!N117,FALSE)))))))) -> 0 | CV52: =IF($C$33="methanol2.7",'1'!O103,IF($C$33="methanol4.5",'1'!O107,IF($C$33="methanol7",'1'!O111,IF($C$33="methanol9",'1'!O115,IF($C$33="acetonitrile2.7",'1'!O105,IF($C$33="acetonitrile4.5",'1'!O109,IF($C$33="acetonitrile7",'1'!O113,IF($C$33="acetonitrile9",'1'!O117,FALSE)))))))) -> 0 | CW52: =IF($C$33="methanol2.7",'1'!P103,IF($C$33="methanol4.5",'1'!P107,IF($C$33="methanol7",'1'!P111,IF($C$33="methanol9",'1'!P115,IF($C$33="acetonitrile2.7",'1'!P105,IF($C$33="acetonitrile4.5",'1'!P109,IF($C$33="acetonitrile7",'1'!P113,IF($C$33="acetonitrile9",'1'!P117,FALSE)))))))) -> 0 | CX52: =IF($C$33="methanol2.7",'1'!Q103,IF($C$33="methanol4.5",'1'!Q107,IF($C$33="methanol7",'1'!Q111,IF($C$33="methanol9",'1'!Q115,IF($C$33="acetonitrile2.7",'1'!Q105,IF($C$33="acetonitrile4.5",'1'!Q109,IF($C$33="acetonitrile7",'1'!Q113,IF($C$33="acetonitrile9",'1'!Q117,FALSE)))))))) -> 0 | CY52: =IF($C$33="methanol2.7",'1'!R103,IF($C$33="methanol4.5",'1'!R107,IF($C$33="methanol7",'1'!R111,IF($C$33="methanol9",'1'!R115,IF($C$33="acetonitrile2.7",'1'!R105,IF($C$33="acetonitrile4.5",'1'!R109,IF($C$33="acetonitrile7",'1'!R113,IF($C$33="acetonitrile9",'1'!R117,FALSE)))))))) -> 0 | CZ52: =IF($C$33="methanol2.7",'1'!S103,IF($C$33="methanol4.5",'1'!S107,IF($C$33="methanol7",'1'!S111,IF($C$33="methanol9",'1'!S115,IF($C$33="acetonitrile2.7",'1'!S105,IF($C$33="acetonitrile4.5",'1'!S109,IF($C$33="acetonitrile7",'1'!S113,IF($C$33="acetonitrile9",'1'!S117,FALSE)))))))) -> 0
B53: σ²cellule | C53: =2*C9*C9/12 -> 28.16666667 | D53: µl² | E53: =C53/C55 -> 0.03102031139 | F53: UV cell | AB53: 10 | AC53: =EXP(AB53/1000) -> 1.010050167 | AJ53: S | AK53: 5.26 | AL53: 5.4 | AM53: 5.17 | AN53: 5.2 | AO53: 4.92
B54: σ²tube | C54: =(((C19/1000/2)^4*C18*10*C3*1000/60)/(7.6*(0.000000001*1000000)))+(((C21/1000/2)^4*C20*10*C3*1000/60)/(7.6*(0.000000001*1000000))) -> 535.3961075 | D54: µl² | E54: =C54/C55 -> 0.5896386025 | F54: tubing | AB54: 100 | AC54: =EXP(AB54/1000) -> 1.105170918 | AJ54: b value | AK54: =IF(AK$51="","",$C$40*($C$30-$C$29)/100*AK53/$C$28) -> 0.1376803138 | AL54: 0.1413448088 | AM54: 0.1353245669 | AN54: 0.1361098159 | AO54: 0.1287808258 | CI54: Graphique | CJ54: =calculation2!E86 -> Uracil | CK54: =VLOOKUP($CJ$54,$CJ$7:$CZ$48,2,FALSE) -> 0.08872035038 | CL54: =VLOOKUP($CJ$54,$CJ$7:$CZ$48,3,FALSE) -> 0.04819681922 | CM54: =VLOOKUP($CJ$54,$CJ$7:$CZ$48,4,FALSE) -> 0 | CN54: =VLOOKUP($CJ$54,$CJ$7:$CZ$48,5,FALSE) -> 0.007657944705 | CO54: =VLOOKUP($CJ$54,$CJ$7:$CZ$48,6,FALSE) -> 0.07963742178 | CP54: =VLOOKUP($CJ$54,$CJ$7:$CZ$48,7,FALSE) -> 0.1551369768 | CQ54: =VLOOKUP($CJ$54,$CJ$7:$CZ$48,8,FALSE) -> 0.1895275232 | CR54: =VLOOKUP($CJ$54,$CJ$7:$CZ$48,9,FALSE) -> 0.1250227384 | CS54: =VLOOKUP($CJ$54,$CJ$7:$CZ$48,10,FALSE) -> 0.03332250442 | CT54: =VLOOKUP($CJ$54,$CJ$7:$CZ$48,11,FALSE) -> 0.001351067666 | CU54: =VLOOKUP($CJ$54,$CJ$7:$CZ$48,12,FALSE) -> -2.412693289e-05 | CV54: =VLOOKUP($CJ$54,$CJ$7:$CZ$48,13,FALSE) -> -4.709599027e-05 | CW54: =VLOOKUP($CJ$54,$CJ$7:$CZ$48,14,FALSE) -> -4.606675947e-05 | CX54: =VLOOKUP($CJ$54,$CJ$7:$CZ$48,15,FALSE) -> -8.076332146e-05 | CY54: =VLOOKUP($CJ$54,$CJ$7:$CZ$48,16,FALSE) -> -6.294555483e-06 | CZ54: =VLOOKUP($CJ$54,$CJ$7:$CZ$48,17,FALSE) -> -1.274784953e-05
B55: σ²ext | C55: =SUM(C51:C54) -> 908.0072186 | D55: µl² | AB55: 1000 | AC55: 2.718281828 | AJ55: k0 | AK55: =IF(AK$51="","",10^(AK52-AK53*($C$29/100))) -> 0.2382319469 | AL55: 30.90295433 | AM55: 69.42246017 | AN55: 169.8243652 | AO55: 297.8516429
B56: inlet tube | C56: =(((C19/1000/2)^4*C18*10*C3*1000/60)/(7.6*(0.000000001*1000000))) -> 267.6980537 | D56: µl² | E56: =C56/C55 -> 0.2948193013 | F56: inlet tube | Q56: =IF($C$25=1,H8,IF($C$25=2,H13,IF($C$25=3,H19,IF($C$25=4,H23,IF($C$25=5,H29,IF($C$25=6,H37,IF($C$25=7,H42,H49))))))) -> Uracil | R56: =IF($C$25=1,H9,IF($C$25=2,H14,IF($C$25=3,H20,IF($C$25=4,H24,IF($C$25=5,H30,IF($C$25=6,H38,IF($C$25=7,H43,H49))))))) -> Methylparaben | S56: =IF($C$25=1,H10,IF($C$25=2,H15,IF($C$25=3,H21,IF($C$25=4,H25,IF($C$25=5,H31,IF($C$25=6,H39,IF($C$25=7,H44,H49))))))) -> Ethylparaben | T56: =IF($C$25=1,H11,IF($C$25=2,H16,IF($C$25=3,H22,IF($C$25=4,H26,IF($C$25=5,H32,IF($C$25=6,H40,IF($C$25=7,H45,H49))))))) -> Propylparaben | U56: =IF($C$25=1,H12,IF($C$25=2,H17,IF($C$25=3,"",IF($C$25=4,H27,IF($C$25=5,H33,IF($C$25=6,H41,IF($C$25=7,H46,H49))))))) -> Butylparaben | V56: =IF($C$25=1,"",IF($C$25=2,H18,IF($C$25=3,"",IF($C$25=4,H28,IF($C$25=5,H34,IF($C$25=6,"",IF($C$25=7,H47,H49))))))) ->  | W56: =IF($C$25=1,"",IF($C$25=2,"",IF($C$25=3,"",IF($C$25=4,"",IF($C$25=5,H35,IF($C$25=6,"",IF($C$25=7,H48,H49))))))) ->  | X56: =IF($C$25=1,"",IF($C$25=2,"",IF($C$25=3,"",IF($C$25=4,"",IF($C$25=5,H36,IF($C$25=6,"",IF($C$25=7,"",H49))))))) ->  | AB56: 10000 | AC56: =EXP(AB56/1000) -> 22026.46579 | AJ56: tr pics non élué | AK56: =IF(AK$51="",0,IF(($C$40/AK54)*LOG(2.3*AK55*AK54+1)+$C$40+($C$6/($C$3*1000))>($C$28+$C$7),"NOT ELUTED","")) ->  | AL56: =IF(AL$51="",0,IF(($C$40/AL54)*LOG(2.3*AL55*AL54+1)+$C$40+($C$6/($C$3*1000))>($C$28+$C$7),"NOT ELUTED","")) ->  | AP56: 0 | AQ56: =IF(AQ$51="","",IF(($C$40/AQ54)*LOG(2.3*AQ55*AQ54+1)+$C$40+($C$6/($C$3*1000))>($C$28+$C$7),"NOT ELUTED","")) ->  | AR56: =IF(AR$51="","",IF(($C$40/AR54)*LOG(2.3*AR55*AR54+1)+$C$40+($C$6/($C$3*1000))>($C$28+$C$7),"NOT ELUTED","")) ->  | CJ56: =DD7 -> 220 | CK56: 0
B57: outlet tube | C57: =(((C21/1000/2)^4*C20*10*C3*1000/60)/(7.6*(0.000000001*1000000))) -> 267.6980537 | D57: µl² | E57: =C57/C55 -> 0.2948193013 | F57: outlet tube | P57: log kw | Q57: =IF(Q$56="","",HLOOKUP($C$32,$CB$8:$CG$16,2,FALSE)) -> -0.36 | R57: =IF(R$56="","",HLOOKUP($C$32,$CB$8:$CG$16,3,FALSE)) -> 1.76 | S57: =IF(S$56="","",HLOOKUP($C$32,$CB$8:$CG$16,4,FALSE)) -> 2.1 | T57: =IF(T$56="","",HLOOKUP($C$32,$CB$8:$CG$16,5,FALSE)) -> 2.49 | U57: =IF(U$56="","",HLOOKUP($C$32,$CB$8:$CG$16,6,FALSE)) -> 2.72 | V57: =IF(V$56="","",HLOOKUP($C$32,$CB$8:$CG$16,7,FALSE)) ->  | W57: =IF(W$56="","",HLOOKUP($C$32,$CB$8:$CG$16,8,FALSE)) ->  | X57: =IF(X$56="","",HLOOKUP($C$32,$CB$8:$CG$16,9,FALSE)) ->  | AJ57: tr sans effet pH (min) | AK57: =IF(AK56="NOT ELUTED","",IF(AK$51="","",($C$40/AK54)*LOG(2.3*AK55*AK54+1)+$C$40+($C$6/($C$3*1000)))) -> 3.645327748 | AL57: =IF(AL56="NOT ELUTED","",IF(AL$51="","",($C$40/AL54)*LOG(2.3*AL55*AL54+1)+$C$40+($C$6/($C$3*1000)))) -> 16.12423528 | AM57: 20.70795704 | AN57: 25.47205366 | AO57: 29.67418562 | CJ57: =DD7 -> 220 | CK57: =MAX(CK54:CZ54) -> 0.1895275232
B58: σ²sample diluent | C58: =(2*AVERAGE(Q70:X70)*AVERAGE(Q70:X70)/12)-C52 -> -59.71856795 | D58: µl² | E58: =C58/C55 -> -0.0657688251 | F58: sample diluent | P58: S | Q58: =IF(Q$56="","",HLOOKUP($C$32,$CB$20:$CG$28,2,FALSE)) -> 5.26 | R58: =IF(R$56="","",HLOOKUP($C$32,$CB$20:$CG$28,3,FALSE)) -> 5.4 | S58: =IF(S$56="","",HLOOKUP($C$32,$CB$20:$CG$28,4,FALSE)) -> 5.17 | T58: =IF(T$56="","",HLOOKUP($C$32,$CB$20:$CG$28,5,FALSE)) -> 5.2 | U58: =IF(U$56="","",HLOOKUP($C$32,$CB$20:$CG$28,6,FALSE)) -> 4.92 | V58: =IF(V$56="","",HLOOKUP($C$32,$CB$20:$CG$28,7,FALSE)) ->  | W58: =IF(W$56="","",HLOOKUP($C$32,$CB$20:$CG$28,8,FALSE)) ->  | X58: =IF(X$56="","",HLOOKUP($C$32,$CB$20:$CG$28,9,FALSE)) ->  | AJ58: k elution | AK58: =IF(AK$51="","",1/(2.3*AK54)) -> 3.157914133 | AL58: 3.076042286 | AM58: 3.212887494 | AN58: 3.194351604 | AO58: 3.376143972
B59: N real without sample diluent | C59: =IF(C8="isocratic",AVERAGE(Calculation!Q65:X65),AVERAGE(AK63:AR63)) -> 7692.004458 | P59: k | Q59: =IF(Q$56="","",10^(Q57-Q58*($C$26/100))) -> 0.003435579479 | R59: 0.3981071706 | S59: 1.076465214 | T59: 2.570395783 | U59: 5.649369748 | AJ59: σ²col (µL²) | AK59: =IF(AK$51="","",($C$39*(1+AK58))^2/$C$49) -> 3640.300977 | AL59: =IF(AL$51="","",($C$39*(1+AL58))^2/$C$49) -> 3498.352932 | AM59: 3737.19692 | AN59: 3704.38338 | AO59: 4032.454378
B60: N real with sample diluent | C60: =AVERAGE(Calculation!Q72:X72) -> 7850.11543 | P60: tr sans effet pH | Q60: =IF(Q$56="","",$C$40*(1+Q59)) -> 1.750992718 | R60: 2.439693712 | S60: 3.623426896 | T60: 6.230332213 | U60: 11.60313451 | AJ60: σ²tot (µL²) | AK60: =IF(AK$51="","",AK59+$C$55) -> 4548.308195 | AL60: 4406.36015 | AM60: 4645.204138 | AN60: 4612.390598 | AO60: 4940.461597
B61: N loss (%) | C61: =(C49-C60)/C49 -> 0.4571590339 | F61: =E53 -> 0.03102031139 | G61: =F53 -> UV cell | P61: σ²col (µL²) | Q61: =IF(Q$56="","",($C$39*(1+Q59))^2/$C$49) -> 212.0143475 | R61: 411.5922472 | S61: 907.894906 | T61: 2684.225398 | U61: 9309.947373 | AJ61: height (mAU) | AK61: =IF(AK$51="","",VLOOKUP(AK$51,$DC$8:$DD$48,2,FALSE)) -> 0 | AL61: 0.1625005423 | AM61: 0.1787730178 | AN61: 0.1892171151 | AO61: 0.1891214783
B62: k moyen isocratique | C62: =AVERAGE(Q59:X59) -> 1.939554699 | F62: =E51 -> 0.3059202307 | G62: =F51 -> UV time constant | P62: σ²tot (µL²) | Q62: =IF(Q$56="","",Q61+$C$55) -> 1120.021566 | R62: 1319.599466 | S62: 1815.902125 | T62: 3592.232616 | U62: 10217.95459 | AJ62: peak height | AK62: =IF(AK56="NOT ELUTED","",IF(AK51="","",AK61*(SQRT(AK63)*$C$22)/($C$13*$C$14*$C$14*(1+AK58))*$C$31*100000/5)) -> 0 | AL62: 53.83475387 | AM62: 57.68295254 | AN62: 61.2696346 | AO62: 59.17046781
B63: temps d'analyse isocratique | C63: =MAX(Q60:X60)*1.1 -> 12.76344797 | D63: min | F63: =E52 -> 0.07342085537 | G63: Injection volume | P63: height (mAU) | Q63: =IF(Q$56="","",VLOOKUP(Q$56,$DC$8:$DD$48,2,FALSE)) -> 0 | R63: 0.1625005423 | S63: 0.1787730178 | T63: 0.1892171151 | U63: 0.1891214783 | AJ63: Nreal | AK63: =IF(AK$51="","",$C$49*(1/(1+$C$55/AK59))) -> 11574.19607 | AL63: =IF(AL$51="","",$C$49*(1/(1+$C$55/AL59))) -> 11481.19408 | AM63: 11634.41647 | AN63: 11614.30634 | AO63: 11803.35211
B64: gradient slope | C64: =(C30-C29)/C28 -> 1.5 | D64: %/min | F64: =E54 -> 0.5896386025 | G64: =F54 -> tubing | P64: peak height | Q64: =IF(Q56="","",Q63*(SQRT(Q65)*$C$22)/($C$13*$C$14*$C$14*(1+Q59))*$C$31*100000/5) -> 0 | R64: 98.37430151 | S64: 92.25792141 | T64: 69.42663297 | U64: 41.1440257 | AJ64: width baseline (min) | AK64: =IF(AK56="NOT ELUTED","",IF(AK$51="","",$C$40*(1+AK58)/SQRT(AK63))) -> 0.06744114616 | AL64: =IF(AL56="NOT ELUTED","",IF(AL$51="","",$C$40*(1+AL58)/SQRT(AL63))) -> 0.06638041993 | AM64: 0.06815573445 | AN64: 0.0679145831 | AO64: 0.07028841723
B65: linear velocity (u) | C65: =C3/60/(PI()*(C14/10)^2/4*0.7) -> 0.1432666694 | D65: mm/s | P65: Nreal | Q65: =IF(Q$56="","",$C$49*(1/(1+$C$55/Q61))) -> 2737.425412 | R65: 4510.53942 | S65: 7230.137734 | T65: 10805.82569 | U65: 13176.09404 | AJ65: width half height (min) | AK65: =IF(AK57="NOT ELUTED","",IF(AK$51="","",AK64*2.35)) -> 0.1584866935 | AL65: =IF(AL57="NOT ELUTED","",IF(AL$51="","",AL64*2.35)) -> 0.1559939868 | AM65: =IF(AM57="NOT ELUTED","",IF(AM$51="","",AM64*2.35)) -> 0.160165976 | AN65: 0.1595992703 | AO65: 0.1651777805
B66: OTHERS | P66: Width 50% | Q66: =IF(Q$56="","",SQRT((5.54*Q60*Q60)/Q65)) -> 0.07877131125 | R66: 0.08550193589 | S66: 0.1003000387 | T66: 0.1410707932 | U66: 0.2379232406 | AJ66: Asymmetry | AK66: =IF(AK56="NOT ELUTED","",IF(AK$51="","",VLOOKUP(AK$51,$DM$8:$DN$48,2,FALSE))) -> 1.38 | AL66: 1.07 | AM66: 1.08 | AN66: 1.05 | AO66: 1.03
B67: Height shift | C67: 2 | P67: Asymmetry | Q67: =IF(Q$56="","",VLOOKUP(Q$56,$DM$8:$DN$48,2,FALSE)) -> 1.38 | R67: 1.07 | S67: 1.08 | T67: 1.05 | U67: 1.03 | AJ67: peak area | AK67: =IF(AK56="NOT ELUTED","",IF(AK51="","",SUM(AX77:AX3077)/($AM3077-$AM78)*1000)) -> 0 | AL67: 286.557919 | AM67: 314.7440397 | AN67: 332.0351119 | AO67: 331.6281544
B68: noise | C68: =DD50*6 -> 0.4588418258 | P68: peak area | Q68: =IF(Q$56="","",(SUM(AD77:AD3077)/($K3077-$K77)*1000)) -> 0 | R68: =IF(R$56="","",(SUM(AE77:AE3077)/($K3077-$K77)*1000)) -> 720.5375116 | S68: 797.8070109 | T68: 848.6199018 | U68: 851.8003743 | AJ68: k injection solvent | AK68: =IF(AK$51="","",10^(AK52-AK53*($C$23/100))) -> 0.03872576449 | AL68: 4.786300923 | AM68: 11.64126029 | AN68: 28.18382931 | AO68: 54.45026528
B69: noise avec time constant | C69: =calculation2!H15 -> 0.1658324572 | D69: =$C$69*EXP(-$C$11/1000) -> 0.06100635168 | P69: k injection solvent | Q69: =IF(Q$56="","",10^(Q57-Q58*($C$23/100))) -> 0.03872576449 | R69: 4.786300923 | S69: 11.64126029 | T69: 28.18382931 | U69: 54.45026528 | AJ69: Volume Inj eq | AK69: =IF(AK$54="","",((1+AK58)/(1+AK68))*$C$22) -> 80.05797633 | AL69: 14.08859421 | AM69: 6.665296649 | AN69: 2.8744354 | AO69: 1.578403259
B70: baseline drift | C70: =DD51 -> 0.001 | P70: Volume Inj eq | Q70: =IF(Q$56="","",((1+Q59)/(1+Q69))*$C$22) -> 19.32051007 | R70: 4.832473074 | S70: 3.285218665 | T70: 2.446831596 | U70: 2.398318462 | AJ70: σ²ext | AK70: =IF(AK$54="","",(2*AK69*AK69/12)+$C$54+$C$53+$C$51) -> 1909.553814 | AL70: 874.4219664 | AM70: 848.7449151 | AN70: 842.717615 | AO70: 841.755778
B71: pas en gradient | C71: =C28/1000 -> 0.03 | P71: σ²ext | Q71: =IF(Q$56="","",(2*Q70*Q70/12)+$C$54+$C$53+$C$51) -> 903.5542368 | R71: =IF(R$56="","",(2*R70*R70/12)+$C$54+$C$53+$C$51) -> 845.2326846 | S71: 843.1393288 | T71: 842.3383827 | U71: 842.2992071 | W71: =IF(W$56="","",(2*W70*W70/12)+$C$54+$C$53+$C$51) ->  | AJ71: Nreal with sample diluent | AK71: =IF(AK$51="","",$C$49*(1/(1+AK70/AK59))) -> 9485.475356 | AL71: 11569.37579 | AM71: 11784.76341 | AN71: 11781.07049 | AO71: 11963.78612
A72: t0 graph | B72: =C39/(C3*1000) -> 1.744997639 | C72: =IF(C8="isocratic",0.5*MAX(AB78:AB3077),0.5*MAX(BH78:BH3077)) -> 50.20850223 | P72: Nreal with sample diluent | Q72: =IF(Q$56="","",$C$49*(1/(1+Q71/Q61))) -> 2748.352311 | R72: =IF(R$56="","",$C$49*(1/(1+R71/R61))) -> 4735.826971 | S72: 7497.981599 | T72: =IF(T$56="","",$C$49*(1/(1+T71/T61))) -> 11007.04309 | U72: 13261.37318 | AJ72: width baseline with sample diluent | AK72: =IF(AK56="NOT ELUTED","",IF(AK$51="","",$C$40*(1+AK58)/SQRT(AK71))) -> 0.07449734754 | AL72: =IF(AL56="NOT ELUTED","",IF(AL$51="","",$C$40*(1+AL58)/SQRT(AL71))) -> 0.06612696045 | AM72: 0.06771958236 | AN72: 0.06743219553 | AO72: 0.0698155438
A73: t0 graph | B73: =C39/(C3*1000) -> 1.744997639 | C73: =IF(C8="isocratic",MAX(AB78:AB3077),MAX(BH78:BH3077)) -> 100.4170045 | P73: Width 50% with sample diluent | Q73: =IF(Q$56="","",SQRT((5.54*Q60*Q60)/Q72)) -> 0.07861456581 | R73: =IF(R$56="","",SQRT((5.54*R60*R60)/R72)) -> 0.08344345464 | S73: 0.09849228224 | T73: 0.1397754032 | U73: 0.2371570072 | AJ73: width half height (min) | AK73: =IF(AK57="NOT ELUTED","",IF(AK$51="","",AK72*2.35)) -> 0.1750687667 | AL73: =IF(AL57="NOT ELUTED","",IF(AL$51="","",AL72*2.35)) -> 0.1553983571 | AM73: 0.1591410185 | AN73: 0.1584656595 | AO73: 0.1640665279
B74: frequence | C74: =3000/60/MAX(Q60:X60)/1.2 -> 3.590983679 | D74: pts/s
C75: EFFICIENCY | K75: RETENTION IN ISOCRATIC MODE | AD75: PEAK AREA IN ISOCRATIC MODE | AM75: RETENTION IN GRADIENT MODE | AX75: aire des pics en gradient
C76: v | D76: u | E76: h | F76: H | G76: D (mL/min) | H76: theoretical N | K76: time | L76: sigma 1 | M76: sigma 2 | N76: sigma 3 | O76: sigma 4 | P76: sigma 5 | Q76: sigma 6 | R76: sigma 7 | S76: sigma 8 | T76: peak 1 | U76: peak 2 | V76: peak 3 | W76: peak 4 | X76: peak 5 | Y76: peak 6 | Z76: peak 7 | AA76: peak 8 | AB76: sum | AD76: peak 1 | AE76: peak 2 | AF76: peak 3 | AG76: peak 4 | AH76: peak 5 | AI76: peak 6 | AJ76: peak 7 | AK76: peak 8 | AM76: Peak construction | AX76: peak 1 | AY76: peak 2 | AZ76: peak 3 | BA76: peak 4 | BB76: peak 5 | BC76: peak 6 | BD76: peak 7 | BE76: peak 8 | BG76: FINAL RESULTS
C77: 0.3 | D77: =(2*$C$43*$C77)/($C$15/1000000)*1000 -> 0.1183263448 | E77: =$C$46+$C$47/C77+$C$48*C77 -> 14.34833333 | F77: =E77*$C$15 -> 71.74166667 | G77: =D77*PI()*$C$14*$C$37/4*60/1000 -> 0.01795471238 | H77: =($C$13*1000)/F77 -> 2090.835172 | K77: 0 | L77: =IF(Q$56="","",SQRT(($K77*$K77)/$Q$72)) -> 0 | M77: =IF(R$56="","",SQRT(($K77*$K77)/$R$72)) -> 0 | N77: =IF(S$56="","",SQRT(($K77*$K77)/$S$72)) -> 0 | O77: =IF(T$56="","",SQRT(($K77*$K77)/$T$72)) -> 0 | P77: =IF(U$56="","",SQRT(($K77*$K77)/$U$72)) -> 0 | Q77: =IF(V$56="","",SQRT(($K77*$K77)/$V$72)) ->  | R77: =IF(W$56="","",SQRT(($K77*$K77)/$W$72)) ->  | S77: =IF(X$56="","",SQRT(($K77*$K77)/$X$72)) ->  | AB77: =SUM(T77:AA77)+RAND()*$C$69+$C$67 -> 2.099126132 | AD77: 0 | AE77: 0 | AF77: 0 | AG77: 0 | AH77: 0 | AI77: 0 | AJ77: 0 | AK77: 0 | AM77: time | AN77: peak 1 | AO77: peak 2 | AP77: peak 3 | AQ77: peak 4 | AR77: peak 5 | AS77: peak 6 | AT77: peak 7 | AU77: peak 8 | AV77: sum | AX77: 0 | AY77: 0 | AZ77: 0 | BA77: 0 | BB77: 0 | BC77: 0 | BD77: 0 | BE77: 0 | BG77: time | BH77: peak
C78: 0.4 | D78: 0.1577684597 | E78: 11.02 | F78: 55.1 | G78: 0.0239396165 | H78: 2722.323049 | K78: =K77+1/($C$74*60) -> 0.004641253806 | L78: =IF(Q$56="","",SQRT(($K78*$K78)/$Q$72)) -> 8.853176372e-05 | M78: =IF(R$56="","",SQRT(($K78*$K78)/$R$72)) -> 6.744308149e-05 | N78: =IF(S$56="","",SQRT(($K78*$K78)/$S$72)) -> 5.359979556e-05 | O78: =IF(T$56="","",SQRT(($K78*$K78)/$T$72)) -> 4.423845846e-05 | P78: =IF(U$56="","",SQRT(($K78*$K78)/$U$72)) -> 4.030334295e-05 | Q78: =IF(V$56="","",SQRT(($K78*$K78)/$V$72)) ->  | R78: =IF(W$56="","",SQRT(($K78*$K78)/$W$72)) ->  | S78: =IF(X$56="","",SQRT(($K78*$K78)/$X$72)) ->  | T78: =IF(Q$56="","",IF(ABS(($K78-Q$60) / ( L78 / 2.2))>20,0,IF(Q$60<>"",Q$64 * ( POWER(POWER(Q$67, 2),0.5) + POWER(POWER(Q$67, 2),-0.5) ) / ( POWER(POWER(Q$67, 2),0.5) * EXP( POWER(1 + POWER(Q$67, 2),-1) * ($K78-Q$60)/ ( L78 / 2.2) ) + POWER(POWER(Q$67, 2),-0.5) * EXP(- POWER(Q$67, 2) * POWER(1 + POWER(Q$67, 2),-1) * ($K78-Q$60) / ( L78 / 2.2) ) ),""))) -> 0 | U78: =IF(R$56="","",IF(ABS(($K78-R$60) / ( M78 / 2.2))>20,0,IF(R$60<>"",R$64 * ( POWER(POWER(R$67, 2),0.5) + POWER(POWER(R$67, 2),-0.5) ) / ( POWER(POWER(R$67, 2),0.5) * EXP( POWER(1 + POWER(R$67, 2),-1) * ($K78-R$60)/ ( M78 / 2.2) ) + POWER(POWER(R$67, 2),-0.5) * EXP(- POWER(R$67, 2) * POWER(1 + POWER(R$67, 2),-1) * ($K78-R$60) / ( M78 / 2.2) ) ),""))) -> 0 | V78: =IF(S$56="","",IF(ABS(($K78-S$60) / ( N78 / 2.2))>20,0,IF(S$60<>"",S$64 * ( POWER(POWER(S$67, 2),0.5) + POWER(POWER(S$67, 2),-0.5) ) / ( POWER(POWER(S$67, 2),0.5) * EXP( POWER(1 + POWER(S$67, 2),-1) * ($K78-S$60)/ ( N78 / 2.2) ) + POWER(POWER(S$67, 2),-0.5) * EXP(- POWER(S$67, 2) * POWER(1 + POWER(S$67, 2),-1) * ($K78-S$60) / ( N78 / 2.2) ) ),""))) -> 0 | W78: =IF(T$56="","",IF(ABS(($K78-T$60) / ( O78 / 2.2))>20,0,IF(T$60<>"",T$64 * ( POWER(POWER(T$67, 2),0.5) + POWER(POWER(T$67, 2),-0.5) ) / ( POWER(POWER(T$67, 2),0.5) * EXP( POWER(1 + POWER(T$67, 2),-1) * ($K78-T$60)/ ( O78 / 2.2) ) + POWER(POWER(T$67, 2),-0.5) * EXP(- POWER(T$67, 2) * POWER(1 + POWER(T$67, 2),-1) * ($K78-T$60) / ( O78 / 2.2) ) ),""))) -> 0 | X78: =IF(U$56="","",IF(ABS(($K78-U$60) / ( P78 / 2.2))>20,0,IF(U$60<>"",U$64 * ( POWER(POWER(U$67, 2),0.5) + POWER(POWER(U$67, 2),-0.5) ) / ( POWER(POWER(U$67, 2),0.5) * EXP( POWER(1 + POWER(U$67, 2),-1) * ($K78-U$60)/ ( P78 / 2.2) ) + POWER(POWER(U$67, 2),-0.5) * EXP(- POWER(U$67, 2) * POWER(1 + POWER(U$67, 2),-1) * ($K78-U$60) / ( P78 / 2.2) ) ),""))) -> 0 | Y78: =IF(V$56="","",IF(ABS(($K78-V$60) / ( Q78 / 2.2))>20,0,IF(V$60<>"",V$64 * ( POWER(POWER(V$67, 2),0.5) + POWER(POWER(V$67, 2),-0.5) ) / ( POWER(POWER(V$67, 2),0.5) * EXP( POWER(1 + POWER(V$67, 2),-1) * ($K78-V$60)/ ( Q78 / 2.2) ) + POWER(POWER(V$67, 2),-0.5) * EXP(- POWER(V$67, 2) * POWER(1 + POWER(V$67, 2),-1) * ($K78-V$60) / ( Q78 / 2.2) ) ),""))) ->  | Z78: =IF(W$56="","",IF(ABS(($K78-W$60) / ( R78 / 2.2))>20,0,IF(W$60<>"",W$64 * ( POWER(POWER(W$67, 2),0.5) + POWER(POWER(W$67, 2),-0.5) ) / ( POWER(POWER(W$67, 2),0.5) * EXP( POWER(1 + POWER(W$67, 2),-1) * ($K78-W$60)/ ( R78 / 2.2) ) + POWER(POWER(W$67, 2),-0.5) * EXP(- POWER(W$67, 2) * POWER(1 + POWER(W$67, 2),-1) * ($K78-W$60) / ( R78 / 2.2) ) ),""))) ->  | AA78: =IF(X$56="","",IF(ABS(($K78-X$60) / ( S78 / 2.2))>20,0,IF(X$60<>"",X$64 * ( POWER(POWER(X$67, 2),0.5) + POWER(POWER(X$67, 2),-0.5) ) / ( POWER(POWER(X$67, 2),0.5) * EXP( POWER(1 + POWER(X$67, 2),-1) * ($K78-X$60)/ ( S78 / 2.2) ) + POWER(POWER(X$67, 2),-0.5) * EXP(- POWER(X$67, 2) * POWER(1 + POWER(X$67, 2),-1) * ($K78-X$60) / ( S78 / 2.2) ) ),""))) ->  | AB78: =SUM(T78:AA78)+RAND()*$C$69+$C$67 -> 2.117695582 | AD78: =IF(Q$56="","",($K78-$K77)*T78) -> 0 | AE78: =IF(R$56="","",($K78-$K77)*U78) -> 0 | AF78: =IF(S$56="","",($K78-$K77)*V78) -> 0 | AG78: =IF(T$56="","",($K78-$K77)*W78) -> 0 | AH78: =IF(U$56="","",($K78-$K77)*X78) -> 0 | AI78: =IF(V$56="","",($K78-$K77)*Y78) ->  | AJ78: =IF(W$56="","",($K78-$K77)*Z78) ->  | AK78: =IF(X$56="","",($K78-$K77)*AA78) ->  | AM78: 0 | AN78: 0 | AO78: 0 | AP78: 0 | AQ78: 0 | AR78: 0 | AS78: 0 | AT78: 0 | AU78: 0 | AV78: =SUM(AN78:AU78)+RAND()*$C$69+K78*$C$70+$C$67 -> 2.014390708 | AX78: =IF(AN78="","",($AM79-$AM78)*AN78) -> 0 | AY78: =IF(AO78="","",($AM79-$AM78)*AO78) -> 0 | AZ78: =IF(AP78="","",($AM79-$AM78)*AP78) -> 0 | BA78: 0 | BB78: 0 | BC78: 0 | BD78: 0 | BE78: 0 | BG78: =IF($C$8="isocratic",K77,AM78) -> 0 | BH78: =IF($C$8="isocratic",AB77,AV78) -> 2.099126132
C79: 0.5 | D79: 0.1972105746 | E79: 9.025 | F79: 45.125 | G79: 0.02992452063 | H79: 3324.099723 | K79: 0.009282507611 | L79: 0.0001770635274 | M79: 0.000134886163 | N79: =IF(S$56="","",SQRT(($K79*$K79)/$S$72)) -> 0.0001071995911 | O79: 8.847691692e-05 | P79: =IF(U$56="","",SQRT(($K79*$K79)/$U$72)) -> 8.06066859e-05 | T79: =IF(Q$56="","",IF(ABS(($K79-Q$60) / ( L79 / 2.2))>20,0,IF(Q$60<>"",Q$64 * ( POWER(POWER(Q$67, 2),0.5) + POWER(POWER(Q$67, 2),-0.5) ) / ( POWER(POWER(Q$67, 2),0.5) * EXP( POWER(1 + POWER(Q$67, 2),-1) * ($K79-Q$60)/ ( L79 / 2.2) ) + POWER(POWER(Q$67, 2),-0.5) * EXP(- POWER(Q$67, 2) * POWER(1 + POWER(Q$67, 2),-1) * ($K79-Q$60) / ( L79 / 2.2) ) ),""))) -> 0 | U79: 0 | V79: 0 | W79: 0 | X79: 0 | AB79: 2.060651141 | AD79: =IF(Q$56="","",($K79-$K78)*T79) -> 0 | AE79: 0 | AF79: 0 | AG79: 0 | AH79: 0 | AM79: =AM78+MAX($AK$57:$AR$57)*1.2/3000 -> 0.01186967425 | AN79: =IF(AK$56="NOT ELUTED","",IF(AK$51="","",IF(ABS(($AM79-AK$57)/(AK$72/2.2))>20,0,AK$62*(POWER(POWER(AK$66,2),0.5)+POWER(POWER(AK$66,2),-0.5))/(POWER(POWER(AK$66,2),0.5)*EXP(POWER(1+POWER(AK$66,2),-1)*($AM79-AK$57)/(AK$72/2.2))+POWER(POWER(AK$66,2),-0.5)*EXP(-POWER(AK$66,2)*POWER(1+POWER(AK$66,2),-1)*($AM79-AK$57)/(AK$72/2.2)))))) -> 0 | AO79: =IF(AL$56="NOT ELUTED","",IF(AL$51="","",IF(ABS(($AM79-AL$57)/(AL$72/2.2))>20,0,AL$62*(POWER(POWER(AL$66,2),0.5)+POWER(POWER(AL$66,2),-0.5))/(POWER(POWER(AL$66,2),0.5)*EXP(POWER(1+POWER(AL$66,2),-1)*($AM79-AL$57)/(AL$72/2.2))+POWER(POWER(AL$66,2),-0.5)*EXP(-POWER(AL$66,2)*POWER(1+POWER(AL$66,2),-1)*($AM79-AL$57)/(AL$72/2.2)))))) -> 0 | AP79: 0 | AQ79: =IF(AN$56="NOT ELUTED","",IF(AN$51="","",IF(ABS(($AM79-AN$57)/(AN$72/2.2))>20,0,AN$62*(POWER(POWER(AN$66,2),0.5)+POWER(POWER(AN$66,2),-0.5))/(POWER(POWER(AN$66,2),0.5)*EXP(POWER(1+POWER(AN$66,2),-1)*($AM79-AN$57)/(AN$72/2.2))+POWER(POWER(AN$66,2),-0.5)*EXP(-POWER(AN$66,2)*POWER(1+POWER(AN$66,2),-1)*($AM79-AN$57)/(AN$72/2.2)))))) -> 0 | AR79: 0 | AV79: =SUM(AN79:AU79)+RAND()*$C$69+K79*$C$70+$C$67 -> 2.004422462 | AX79: =IF(AN79="","",($AM80-$AM79)*AN79) -> 0 | AY79: =IF(AO79="","",($AM80-$AM79)*AO79) -> 0 | AZ79: =IF(AP79="","",($AM80-$AM79)*AP79) -> 0 | BA79: =IF(AQ79="","",($AM80-$AM79)*AQ79) -> 0 | BB79: =IF(AR79="","",($AM80-$AM79)*AR79) -> 0 | BC79: =IF(AS79="","",($AM80-$AM79)*AS79) ->  | BD79: =IF(AT79="","",($AM80-$AM79)*AT79) ->  | BE79: =IF(AU79="","",($AM80-$AM79)*AU79) ->  | BG79: 0.004641253806 | BH79: 2.117695582
C80: 0.6 | D80: 0.2366526896 | E80: 7.696666667 | F80: 38.48333333 | G80: 0.03590942475 | H80: 3897.791252 | K80: 0.01392376142 | L80: 0.0002655952912 | M80: 0.0002023292445 | N80: 0.0001607993867 | O80: 0.0001327153754 | P80: 0.0001209100288 | T80: 0 | U80: 0 | V80: 0 | W80: 0 | X80: 0 | AB80: 2.142837904 | AD80: 0 | AE80: =IF(R$56="","",($K80-$K79)*U80) -> 0 | AF80: 0 | AG80: 0 | AH80: 0 | AM80: 0.02373934849 | AN80: =IF(AK$56="NOT ELUTED","",IF(AK$51="","",IF(ABS(($AM80-AK$57)/(AK$72/2.2))>20,0,AK$62*(POWER(POWER(AK$66,2),0.5)+POWER(POWER(AK$66,2),-0.5))/(POWER(POWER(AK$66,2),0.5)*EXP(POWER(1+POWER(AK$66,2),-1)*($AM80-AK$57)/(AK$72/2.2))+POWER(POWER(AK$66,2),-0.5)*EXP(-POWER(AK$66,2)*POWER(1+POWER(AK$66,2),-1)*($AM80-AK$57)/(AK$72/2.2)))))) -> 0 | AO80: =IF(AL$56="NOT ELUTED","",IF(AL$51="","",IF(ABS(($AM80-AL$57)/(AL$72/2.2))>20,0,AL$62*(POWER(POWER(AL$66,2),0.5)+POWER(POWER(AL$66,2),-0.5))/(POWER(POWER(AL$66,2),0.5)*EXP(POWER(1+POWER(AL$66,2),-1)*($AM80-AL$57)/(AL$72/2.2))+POWER(POWER(AL$66,2),-0.5)*EXP(-POWER(AL$66,2)*POWER(1+POWER(AL$66,2),-1)*($AM80-AL$57)/(AL$72/2.2)))))) -> 0 | AP80: =IF(AM$56="NOT ELUTED","",IF(AM$51="","",IF(ABS(($AM80-AM$57)/(AM$72/2.2))>20,0,AM$62*(POWER(POWER(AM$66,2),0.5)+POWER(POWER(AM$66,2),-0.5))/(POWER(POWER(AM$66,2),0.5)*EXP(POWER(1+POWER(AM$66,2),-1)*($AM80-AM$57)/(AM$72/2.2))+POWER(POWER(AM$66,2),-0.5)*EXP(-POWER(AM$66,2)*POWER(1+POWER(AM$66,2),-1)*($AM80-AM$57)/(AM$72/2.2)))))) -> 0 | AQ80: =IF(AN$56="NOT ELUTED","",IF(AN$51="","",IF(ABS(($AM80-AN$57)/(AN$72/2.2))>20,0,AN$62*(POWER(POWER(AN$66,2),0.5)+POWER(POWER(AN$66,2),-0.5))/(POWER(POWER(AN$66,2),0.5)*EXP(POWER(1+POWER(AN$66,2),-1)*($AM80-AN$57)/(AN$72/2.2))+POWER(POWER(AN$66,2),-0.5)*EXP(-POWER(AN$66,2)*POWER(1+POWER(AN$66,2),-1)*($AM80-AN$57)/(AN$72/2.2)))))) -> 0 | AR80: =IF(AO$56="NOT ELUTED","",IF(AO$51="","",IF(ABS(($AM80-AO$57)/(AO$72/2.2))>20,0,AO$62*(POWER(POWER(AO$66,2),0.5)+POWER(POWER(AO$66,2),-0.5))/(POWER(POWER(AO$66,2),0.5)*EXP(POWER(1+POWER(AO$66,2),-1)*($AM80-AO$57)/(AO$72/2.2))+POWER(POWER(AO$66,2),-0.5)*EXP(-POWER(AO$66,2)*POWER(1+POWER(AO$66,2),-1)*($AM80-AO$57)/(AO$72/2.2)))))) -> 0 | AS80: =IF(AP$56="NOT ELUTED","",IF(AP$51="","",IF(ABS(($AM80-AP$57)/(AP$72/2.2))>20,0,AP$62*(POWER(POWER(AP$66,2),0.5)+POWER(POWER(AP$66,2),-0.5))/(POWER(POWER(AP$66,2),0.5)*EXP(POWER(1+POWER(AP$66,2),-1)*($AM80-AP$57)/(AP$72/2.2))+POWER(POWER(AP$66,2),-0.5)*EXP(-POWER(AP$66,2)*POWER(1+POWER(AP$66,2),-1)*($AM80-AP$57)/(AP$72/2.2)))))) ->  | AT80: =IF(AQ$56="NOT ELUTED","",IF(AQ$51="","",IF(ABS(($AM80-AQ$57)/(AQ$72/2.2))>20,0,AQ$62*(POWER(POWER(AQ$66,2),0.5)+POWER(POWER(AQ$66,2),-0.5))/(POWER(POWER(AQ$66,2),0.5)*EXP(POWER(1+POWER(AQ$66,2),-1)*($AM80-AQ$57)/(AQ$72/2.2))+POWER(POWER(AQ$66,2),-0.5)*EXP(-POWER(AQ$66,2)*POWER(1+POWER(AQ$66,2),-1)*($AM80-AQ$57)/(AQ$72/2.2)))))) ->  | AU80: =IF(AR$56="NOT ELUTED","",IF(AR$51="","",IF(ABS(($AM80-AR$57)/(AR$72/2.2))>20,0,AR$62*(POWER(POWER(AR$66,2),0.5)+POWER(POWER(AR$66,2),-0.5))/(POWER(POWER(AR$66,2),0.5)*EXP(POWER(1+POWER(AR$66,2),-1)*($AM80-AR$57)/(AR$72/2.2))+POWER(POWER(AR$66,2),-0.5)*EXP(-POWER(AR$66,2)*POWER(1+POWER(AR$66,2),-1)*($AM80-AR$57)/(AR$72/2.2)))))) ->  | AV80: 2.13592009 | AX80: =IF(AN80="","",($AM81-$AM80)*AN80) -> 0 | AY80: =IF(AO80="","",($AM81-$AM80)*AO80) -> 0 | AZ80: 0 | BA80: =IF(AQ80="","",($AM81-$AM80)*AQ80) -> 0 | BB80: 0 | BG80: 0.009282507611 | BH80: 2.060651141
C81: 0.7 | D81: 0.2760948045 | E81: 6.749285714 | F81: 33.74642857 | G81: 0.04189432888 | H81: 4444.914806 | K81: 0.01856501522 | L81: 0.0003541270549 | M81: 0.000269772326 | N81: 0.0002143991822 | O81: 0.0001769538338 | P81: 0.0001612133718 | T81: 0 | U81: =IF(R$56="","",IF(ABS(($K81-R$60) / ( M81 / 2.2))>20,0,IF(R$60<>"",R$64 * ( POWER(POWER(R$67, 2),0.5) + POWER(POWER(R$67, 2),-0.5) ) / ( POWER(POWER(R$67, 2),0.5) * EXP( POWER(1 + POWER(R$67, 2),-1) * ($K81-R$60)/ ( M81 / 2.2) ) + POWER(POWER(R$67, 2),-0.5) * EXP(- POWER(R$67, 2) * POWER(1 + POWER(R$67, 2),-1) * ($K81-R$60) / ( M81 / 2.2) ) ),""))) -> 0 | V81: 0 | W81: =IF(T$56="","",IF(ABS(($K81-T$60) / ( O81 / 2.2))>20,0,IF(T$60<>"",T$64 * ( POWER(POWER(T$67, 2),0.5) + POWER(POWER(T$67, 2),-0.5) ) / ( POWER(POWER(T$67, 2),0.5) * EXP( POWER(1 + POWER(T$67, 2),-1) * ($K81-T$60)/ ( O81 / 2.2) ) + POWER(POWER(T$67, 2),-0.5) * EXP(- POWER(T$67, 2) * POWER(1 + POWER(T$67, 2),-1) * ($K81-T$60) / ( O81 / 2.2) ) ),""))) -> 0 | X81: 0 | AB81: 2.130252388 | AD81: 0 | AE81: 0 | AF81: 0 | AG81: 0 | AH81: 0 | AM81: 0.03560902274 | AN81: 0 | AO81: 0 | AP81: 0 | AQ81: 0 | AR81: 0 | AV81: 2.004279618 | AX81: 0 | AY81: 0 | AZ81: =IF(AP81="","",($AM82-$AM81)*AP81) -> 0 | BA81: 0 | BB81: 0 | BG81: 0.01392376142 | BH81: 2.142837904
C82: 0.8 | D82: 0.3155369194 | E82: 6.04 | F82: 30.2 | G82: 0.047879233 | H82: 4966.887417 | K82: 0.02320626903 | L82: 0.0004426588186 | M82: 0.0003372154074 | N82: 0.0002679989778 | O82: 0.0002211922923 | P82: 0.0002015167147 | T82: 0 | U82: 0 | V82: 0 | W82: 0 | X82: 0 | AB82: 2.043063739 | AD82: 0 | AE82: 0 | AF82: 0 | AG82: 0 | AH82: 0 | AM82: 0.04747869699 | AN82: 0 | AO82: 0 | AP82: =IF(AM$56="NOT ELUTED","",IF(AM$51="","",IF(ABS(($AM82-AM$57)/(AM$72/2.2))>20,0,AM$62*(POWER(POWER(AM$66,2),0.5)+POWER(POWER(AM$66,2),-0.5))/(POWER(POWER(AM$66,2),0.5)*EXP(POWER(1+POWER(AM$66,2),-1)*($AM82-AM$57)/(AM$72/2.2))+POWER(POWER(AM$66,2),-0.5)*EXP(-POWER(AM$66,2)*POWER(1+POWER(AM$66,2),-1)*($AM82-AM$57)/(AM$72/2.2)))))) -> 0 | AQ82: 0 | AR82: 0 | AV82: 2.097184605 | AX82: 0 | AY82: 0 | AZ82: 0 | BA82: 0 | BB82: 0 | BG82: 0.01856501522 | BH82: 2.130252388
C83: 0.9 | D83: 0.3549790343 | E83: 5.489444444 | F83: 27.44722222 | G83: 0.05386413713 | H83: 5465.033903 | K83: 0.02784752283 | L83: 0.0005311905823 | M83: 0.0004046584889 | N83: 0.0003215987734 | O83: 0.0002654307508 | P83: 0.0002418200577 | T83: 0 | U83: 0 | V83: 0 | W83: 0 | X83: 0 | AB83: 2.101106781 | AD83: 0 | AE83: 0 | AF83: 0 | AG83: 0 | AH83: 0 | AM83: 0.05934837123 | AN83: 0 | AO83: 0 | AP83: 0 | AQ83: 0 | AR83: 0 | AV83: 2.037522552 | AX83: 0 | AY83: 0 | AZ83: 0 | BA83: 0 | BB83: 0 | BG83: 0.02320626903 | BH83: 2.043063739
C84: 1 | D84: 0.3944211493 | E84: 5.05 | F84: 25.25 | G84: 0.05984904125 | H84: 5940.594059 | K84: 0.03248877664 | L84: 0.000619722346 | M84: 0.0004721015704 | N84: 0.0003751985689 | O84: 0.0003096692092 | P84: 0.0002821234006 | T84: 0 | U84: 0 | V84: 0 | W84: 0 | X84: 0 | AB84: 2.005574879 | AD84: 0 | AE84: 0 | AF84: 0 | AG84: 0 | AH84: 0 | AM84: 0.07121804548 | AN84: 0 | AO84: 0 | AP84: 0 | AQ84: 0 | AR84: 0 | AV84: 2.135400439 | AX84: =IF(AN84="","",($AM85-$AM84)*AN84) -> 0 | AY84: =IF(AO84="","",($AM85-$AM84)*AO84) -> 0 | AZ84: =IF(AP84="","",($AM85-$AM84)*AP84) -> 0 | BA84: =IF(AQ84="","",($AM85-$AM84)*AQ84) -> 0 | BB84: =IF(AR84="","",($AM85-$AM84)*AR84) -> 0 | BC84: =IF(AS84="","",($AM85-$AM84)*AS84) ->  | BD84: =IF(AT84="","",($AM85-$AM84)*AT84) ->  | BE84: =IF(AU84="","",($AM85-$AM84)*AU84) ->  | BG84: 0.02784752283 | BH84: 2.101106781
C85: 1.1 | D85: 0.4338632642 | E85: 4.691363636 | F85: 23.45681818 | G85: 0.06583394538 | H85: 6394.729193 | K85: 0.03713003045 | L85: 0.0007082541098 | M85: 0.0005395446519 | N85: 0.0004287983645 | O85: 0.0003539076677 | P85: 0.0003224267436 | T85: 0 | U85: 0 | V85: 0 | W85: 0 | X85: 0 | AB85: 2.062305384 | AD85: 0 | AE85: 0 | AF85: 0 | AG85: 0 | AH85: 0 | AM85: 0.08308771973 | AN85: 0 | AO85: 0 | AP85: 0 | AQ85: 0 | AR85: 0 | AV85: 2.157076778 | AX85: 0 | AY85: 0 | AZ85: 0 | BA85: 0 | BB85: 0 | BG85: 0.03248877664 | BH85: 2.005574879
C86: 1.2 | D86: 0.4733053791 | E86: 4.393333333 | F86: 21.96666667 | G86: 0.0718188495 | H86: 6828.528073 | K86: 0.04177128425 | L86: 0.0007967858735 | M86: 0.0006069877334 | N86: 0.00048239816 | O86: 0.0003981461262 | P86: 0.0003627300865 | T86: 0 | U86: 0 | V86: 0 | W86: 0 | X86: 0 | AB86: 2.080536852 | AD86: 0 | AE86: 0 | AF86: 0 | AG86: 0 | AH86: 0 | AM86: 0.09495739397 | AN86: 0 | AO86: 0 | AP86: 0 | AQ86: 0 | AR86: 0 | AV86: 2.153191386 | AX86: 0 | AY86: 0 | AZ86: 0 | BA86: 0 | BB86: 0 | BG86: 0.03713003045 | BH86: 2.062305384
C87: 1.3 | D87: 0.512747494 | E87: 4.141923077 | F87: 20.70961538 | G87: 0.07780375363 | H87: 7243.01235 | K87: 0.04641253806 | L87: 0.0008853176372 | M87: 0.0006744308149 | N87: 0.0005359979556 | O87: 0.0004423845846 | P87: 0.0004030334295 | T87: 0 | U87: 0 | V87: 0 | W87: 0 | X87: 0 | AB87: 2.056638382 | AD87: 0 | AE87: 0 | AF87: 0 | AG87: 0 | AH87: 0 | AM87: 0.1068270682 | AN87: 0 | AO87: 0 | AP87: 0 | AQ87: 0 | AR87: 0 | AV87: 2.09622629 | AX87: 0 | AY87: 0 | AZ87: 0 | BA87: 0 | BB87: 0 | BG87: 0.04177128425 | BH87: 2.080536852
C88: 1.4 | D88: 0.552189609 | E88: 3.927142857 | F88: 19.63571429 | G88: 0.08378865776 | H88: 7639.141506 | K88: 0.05105379186 | L88: 0.0009738494009 | M88: 0.0007418738964 | N88: 0.0005895977512 | O88: 0.0004866230431 | P88: 0.0004433367724 | T88: 0 | U88: 0 | V88: 0 | W88: 0 | X88: 0 | AB88: 2.11130066 | AD88: 0 | AE88: 0 | AF88: 0 | AG88: 0 | AH88: 0 | AM88: 0.1186967425 | AN88: 0 | AO88: 0 | AP88: 0 | AQ88: 0 | AR88: 0 | AV88: 2.025587992 | AX88: 0 | AY88: 0 | AZ88: 0 | BA88: 0 | BB88: 0 | BG88: 0.04641253806 | BH88: 2.056638382
C89: 1.5 | D89: 0.5916317239 | E89: 3.741666667 | F89: 18.70833333 | G89: 0.08977356188 | H89: 8017.817372 | K89: 0.05569504567 | L89: 0.001062381165 | M89: 0.0008093169779 | N89: 0.0006431975467 | O89: 0.0005308615015 | P89: 0.0004836401154 | T89: 0 | U89: 0 | V89: 0 | W89: 0 | X89: 0 | AB89: 2.165427263 | AD89: 0 | AE89: 0 | AF89: 0 | AG89: 0 | AH89: 0 | AM89: 0.1305664167 | AN89: 0 | AO89: 0 | AP89: 0 | AQ89: 0 | AR89: 0 | AV89: 2.114468382 | AX89: 0 | AY89: 0 | AZ89: 0 | BA89: 0 | BB89: 0 | BG89: 0.05105379186 | BH89: 2.11130066
C90: 1.6 | D90: 0.6310738388 | E90: 3.58 | F90: 17.9 | G90: 0.09575846601 | H90: 8379.888268 | K90: 0.06033629947 | L90: 0.001150912928 | M90: 0.0008767600593 | N90: 0.0006967973423 | O90: 0.00057509996 | P90: 0.0005239434583 | T90: 0 | U90: 0 | V90: 0 | W90: 0 | X90: 0 | AB90: 2.003266427 | AD90: 0 | AE90: 0 | AF90: 0 | AG90: 0 | AH90: 0 | AM90: 0.142436091 | AN90: 0 | AO90: 0 | AP90: 0 | AQ90: 0 | AR90: 0 | AV90: 2.12758804 | AX90: 0 | AY90: 0 | AZ90: 0 | BA90: 0 | BB90: 0 | BG90: 0.05569504567 | BH90: 2.165427263
C91: 1.7 | D91: 0.6705159538 | E91: 3.437941176 | F91: 17.18970588 | G91: 0.1017433701 | H91: 8726.152793 | K91: 0.06497755328 | L91: 0.001239444692 | M91: 0.0009442031408 | N91: 0.0007503971378 | O91: 0.0006193384185 | P91: 0.0005642468013 | T91: 0 | U91: 0 | V91: 0 | W91: 0 | X91: 0 | AB91: 2.118114529 | AD91: 0 | AE91: 0 | AF91: 0 | AG91: 0 | AH91: 0 | AM91: 0.1543057652 | AN91: 0 | AO91: 0 | AP91: 0 | AQ91: 0 | AR91: 0 | AV91: 2.033220795 | AX91: 0 | AY91: 0 | AZ91: 0 | BA91: 0 | BB91: 0 | BG91: 0.06033629947 | BH91: 2.003266427
C92: 1.8 | D92: 0.7099580687 | E92: 3.312222222 | F92: 16.56111111 | G92: 0.1077282743 | H92: 9057.363301 | K92: 0.06961880709 | L92: 0.001327976456 | M92: 0.001011646222 | N92: 0.0008039969334 | O92: 0.0006635768769 | P92: 0.0006045501442 | T92: 0 | U92: 0 | V92: 0 | W92: 0 | X92: 0 | AB92: 2.011580154 | AD92: 0 | AE92: 0 | AF92: 0 | AG92: 0 | AH92: 0 | AM92: 0.1661754395 | AN92: 0 | AO92: 0 | AP92: 0 | AQ92: 0 | AR92: 0 | AV92: 2.140602662 | AX92: 0 | AY92: 0 | AZ92: 0 | BA92: 0 | BB92: 0 | BG92: 0.06497755328 | BH92: 2.118114529
C93: 1.9 | D93: 0.7494001836 | E93: 3.200263158 | F93: 16.00131579 | G93: 0.1137131784 | H93: 9374.229093 | K93: 0.07426006089 | L93: 0.00141650822 | M93: 0.001079089304 | N93: 0.000857596729 | O93: 0.0007078153354 | P93: 0.0006448534872 | T93: 0 | U93: 0 | V93: 0 | W93: 0 | X93: 0 | AB93: 2.120546873 | AD93: 0 | AE93: 0 | AF93: 0 | AG93: 0 | AH93: 0 | AM93: 0.1780451137 | AN93: 0 | AO93: 0 | AP93: 0 | AQ93: 0 | AR93: 0 | AV93: 2.061616507 | AX93: 0 | AY93: 0 | AZ93: 0 | BA93: 0 | BB93: 0 | BG93: 0.06961880709 | BH93: 2.011580154
C94: 2 | D94: 0.7888422985 | E94: 3.1 | F94: 15.5 | G94: 0.1196980825 | H94: 9677.419355 | K94: 0.0789013147 | L94: 0.001505039983 | M94: 0.001146532385 | N94: 0.0009111965245 | O94: 0.0007520537938 | P94: 0.0006851568301 | T94: 0 | U94: 0 | V94: 0 | W94: 0 | X94: 0 | AB94: 2.147066854 | AD94: 0 | AE94: 0 | AF94: 0 | AG94: 0 | AH94: 0 | AM94: 0.1899147879 | AN94: 0 | AO94: 0 | AP94: 0 | AQ94: 0 | AR94: 0 | AV94: 2.117200476 | AX94: 0 | AY94: 0 | AZ94: 0 | BA94: 0 | BB94: 0 | BG94: 0.07426006089 | BH94: 2.120546873
C95: 2.1 | D95: 0.8282844135 | E95: 3.009761905 | F95: 15.04880952 | G95: 0.1256829866 | H95: 9967.565857 | K95: 0.0835425685 | L95: 0.001593571747 | M95: 0.001213975467 | N95: 0.0009647963201 | O95: 0.0007962922523 | P95: 0.0007254601731 | T95: 0 | U95: 0 | V95: 0 | W95: 0 | X95: 0 | AB95: 2.125620015 | AD95: 0 | AE95: 0 | AF95: 0 | AG95: 0 | AH95: 0 | AM95: 0.2017844622 | AN95: 0 | AO95: 0 | AP95: 0 | AQ95: 0 | AR95: 0 | AV95: 2.145259326 | AX95: 0 | AY95: 0 | AZ95: 0 | BA95: 0 | BB95: 0 | BG95: 0.0789013147 | BH95: 2.147066854
C96: 2.2 | D96: 0.8677265284 | E96: 2.928181818 | F96: 14.64090909 | G96: 0.1316678908 | H96: 10245.26545 | K96: 0.08818382231 | L96: 0.001682103511 | M96: 0.001281418548 | N96: 0.001018396116 | O96: 0.0008405307108 | P96: 0.000765763516 | T96: 0 | U96: 0 | V96: 0 | W96: 0 | X96: 0 | AB96: 2.118269615 | AD96: 0 | AE96: 0 | AF96: 0 | AG96: 0 | AH96: 0 | AM96: 0.2136541364 | AN96: 0 | AO96: 0 | AP96: 0 | AQ96: 0 | AR96: 0 | AV96: 2.130864802 | AX96: 0 | AY96: 0 | AZ96: 0 | BA96: 0 | BB96: 0 | BG96: 0.0835425685 | BH96: 2.125620015
C97: 2.3 | D97: 0.9071686433 | E97: 2.854130435 | F97: 14.27065217 | G97: 0.1376527949 | H97: 10511.08234 | K97: 0.09282507611 | L97: 0.001770635274 | M97: 0.00134886163 | N97: 0.001071995911 | O97: 0.0008847691692 | P97: 0.000806066859 | T97: 0 | U97: 0 | V97: 0 | W97: 0 | X97: 0 | AB97: 2.163963419 | AD97: 0 | AE97: 0 | AF97: 0 | AG97: 0 | AH97: 0 | AM97: 0.2255238107 | AN97: 0 | AO97: 0 | AP97: 0 | AQ97: 0 | AR97: 0 | AV97: 2.113686332 | AX97: 0 | AY97: 0 | AZ97: 0 | BA97: 0 | BB97: 0 | BG97: 0.08818382231 | BH97: 2.118269615
C98: 2.4 | D98: 0.9466107582 | E98: 2.786666667 | F98: 13.93333333 | G98: 0.143637699 | H98: 10765.55024 | K98: 0.09746632992 | L98: 0.001859167038 | M98: 0.001416304711 | N98: 0.001125595707 | O98: 0.0009290076277 | P98: 0.0008463702019 | T98: 0 | U98: 0 | V98: 0 | W98: 0 | X98: 0 | AB98: 2.04263634 | AD98: 0 | AE98: 0 | AF98: 0 | AG98: 0 | AH98: 0 | AM98: 0.2373934849 | AN98: 0 | AO98: 0 | AP98: 0 | AQ98: 0 | AR98: 0 | AV98: 2.160771098 | AX98: 0 | AY98: 0 | AZ98: 0 | BA98: 0 | BB98: 0 | BG98: 0.09282507611 | BH98: 2.163963419
C99: 2.5 | D99: 0.9860528732 | E99: 2.725 | F99: 13.625 | G99: 0.1496226031 | H99: 11009.17431 | K99: 0.1021075837 | L99: 0.001947698802 | M99: 0.001483747793 | N99: 0.001179195502 | O99: 0.0009732460861 | P99: 0.0008866735449 | T99: 0 | U99: 0 | V99: 0 | W99: 0 | X99: 0 | AB99: 2.059855463 | AD99: 0 | AE99: 0 | AF99: 0 | AG99: 0 | AH99: 0 | AM99: 0.2492631592 | AN99: 0 | AO99: 0 | AP99: 0 | AQ99: 0 | AR99: 0 | AV99: 2.090379335 | AX99: 0 | AY99: 0 | AZ99: 0 | BA99: 0 | BB99: 0 | BG99: 0.09746632992 | BH99: 2.04263634
C100: 2.6 | D100: 1.025494988 | E100: 2.668461538 | F100: 13.34230769 | G100: 0.1556075073 | H100: 11242.43298 | K100: 0.1067488375 | L100: 0.002036230566 | M100: 0.001551190874 | N100: 0.001232795298 | O100: 0.001017484545 | P100: 0.0009269768878 | T100: 0 | U100: 0 | V100: 0 | W100: 0 | X100: 0 | AB100: 2.15666571 | AD100: 0 | AE100: 0 | AF100: 0 | AG100: 0 | AH100: 0 | AM100: 0.2611328334 | AN100: 0 | AO100: 0 | AP100: 0 | AQ100: 0 | AR100: 0 | AV100: 2.165613334 | AX100: 0 | AY100: 0 | AZ100: 0 | BA100: 0 | BB100: 0 | BG100: 0.1021075837 | BH100: 2.059855463
C101: 2.7 | D101: 1.064937103 | E101: 2.616481481 | F101: 13.08240741 | G101: 0.1615924114 | H101: 11465.7796 | K101: 0.1113900913 | L101: 0.002124762329 | M101: 0.001618633956 | N101: 0.001286395093 | O101: 0.001061723003 | P101: 0.0009672802307 | T101: 0 | U101: 0 | V101: 0 | W101: 0 | X101: 0 | AB101: 2.10160501 | AD101: 0 | AE101: 0 | AF101: 0 | AG101: 0 | AH101: 0 | AM101: 0.2730025077 | AN101: 0 | AO101: 0 | AP101: 0 | AQ101: 0 | AR101: 0 | AV101: 2.028378241 | AX101: 0 | AY101: 0 | AZ101: 0 | BA101: 0 | BB101: 0 | BG101: 0.1067488375 | BH101: 2.15666571
C102: 2.8 | D102: 1.104379218 | E102: 2.568571429 | F102: 12.84285714 | G102: 0.1675773155 | H102: 11679.64405 | K102: 0.1160313451 | L102: 0.002213294093 | M102: 0.001686077037 | N102: 0.001339994889 | O102: 0.001105961462 | P102: 0.001007583574 | T102: 0 | U102: 0 | V102: 0 | W102: 0 | X102: 0 | AB102: 2.16088329 | AD102: 0 | AE102: 0 | AF102: 0 | AG102: 0 | AH102: 0 | AM102: 0.2848721819 | AN102: 0 | AO102: 0 | AP102: 0 | AQ102: 0 | AR102: 0 | AV102: 2.017625728 | AX102: 0 | AY102: 0 | AZ102: 0 | BA102: 0 | BB102: 0 | BG102: 0.1113900913 | BH102: 2.10160501
C103: 2.9 | D103: 1.143821333 | E103: 2.524310345 | F103: 12.62155172 | G103: 0.1735622196 | H103: 11884.43412 | K103: 0.1206725989 | L103: 0.002301825857 | M103: 0.001753520119 | N103: 0.001393594685 | O103: 0.00115019992 | P103: 0.001047886917 | T103: 0 | U103: 0 | V103: 0 | W103: 0 | X103: 0 | AB103: 2.075923241 | AD103: 0 | AE103: 0 | AF103: 0 | AG103: 0 | AH103: 0 | AM103: 0.2967418562 | AN103: 0 | AO103: 0 | AP103: 0 | AQ103: 0 | AR103: 0 | AV103: 2.143214624 | AX103: 0 | AY103: 0 | AZ103: 0 | BA103: 0 | BB103: 0 | BG103: 0.1160313451 | BH103: 2.16088329
C104: 3 | D104: 1.183263448 | E104: 2.483333333 | F104: 12.41666667 | G104: 0.1795471238 | H104: 12080.53691 | K104: 0.1253138528 | L104: 0.00239035762 | M104: 0.0018209632 | N104: 0.00144719448 | O104: 0.001194438378 | P104: 0.00108819026 | T104: 0 | U104: 0 | V104: 0 | W104: 0 | X104: 0 | AB104: 2.113692236 | AD104: 0 | AE104: 0 | AF104: 0 | AG104: 0 | AH104: 0 | AM104: 0.3086115304 | AN104: 0 | AO104: 0 | AP104: 0 | AQ104: 0 | AR104: 0 | AV104: 2.13222718 | AX104: 0 | AY104: 0 | AZ104: 0 | BA104: 0 | BB104: 0 | BG104: 0.1206725989 | BH104: 2.075923241
C105: 3.1 | D105: 1.222705563 | E105: 2.445322581 | F105: 12.2266129 | G105: 0.1855320279 | H105: 12268.32003 | K105: 0.1299551066 | L105: 0.002478889384 | M105: 0.001888406282 | N105: 0.001500794276 | O105: 0.001238676837 | P105: 0.001128493603 | T105: 0 | U105: 0 | V105: 0 | W105: 0 | X105: 0 | AB105: 2.013965065 | AD105: 0 | AE105: 0 | AF105: 0 | AG105: 0 | AH105: 0 | AM105: 0.3204812047 | AN105: 0 | AO105: 0 | AP105: 0 | AQ105: 0 | AR105: 0 | AV105: 2.120032879 | AX105: 0 | AY105: 0 | AZ105: 0 | BA105: 0 | BB105: 0 | BG105: 0.1253138528 | BH105: 2.113692236
C106: 3.2 | D106: 1.262147678 | E106: 2.41 | F106: 12.05 | G106: 0.191516932 | H106: 12448.13278 | K106: 0.1345963604 | L106: 0.002567421148 | M106: 0.001955849363 | N106: 0.001554394071 | O106: 0.001282915295 | P106: 0.001168796945 | T106: 0 | U106: 0 | V106: 0 | W106: 0 | X106: 0 | AB106: 2.001228203 | AD106: 0 | AE106: 0 | AF106: 0 | AG106: 0 | AH106: 0 | AM106: 0.3323508789 | AN106: 0 | AO106: 0 | AP106: 0 | AQ106: 0 | AR106: 0 | AV106: 2.140457913 | AX106: 0 | AY106: 0 | AZ106: 0 | BA106: 0 | BB106: 0 | BG106: 0.1299551066 | BH106: 2.013965065
C107: 3.3 | D107: 1.301589793 | E107: 2.377121212 | F107: 11.88560606 | G107: 0.1975018361 | H107: 12620.30722 | K107: 0.1392376142 | L107: 0.002655952912 | M107: 0.002023292445 | N107: 0.001607993867 | O107: 0.001327153754 | P107: 0.001209100288 | T107: 0 | U107: 0 | V107: 0 | W107: 0 | X107: 0 | AB107: 2.097543477 | AD107: 0 | AE107: 0 | AF107: 0 | AG107: 0 | AH107: 0 | AM107: 0.3442205532 | AN107: 0 | AO107: 0 | AP107: 0 | AQ107: 0 | AR107: 0 | AV107: 2.054936948 | AX107: 0 | AY107: 0 | AZ107: 0 | BA107: 0 | BB107: 0 | BG107: 0.1345963604 | BH107: 2.001228203
C108: 3.4 | D108: 1.341031908 | E108: 2.346470588 | F108: 11.73235294 | G108: 0.2034867403 | H108: 12785.15919 | K108: 0.143878868 | L108: 0.002744484675 | M108: 0.002090735526 | N108: 0.001661593662 | O108: 0.001371392212 | P108: 0.001249403631 | T108: 0 | U108: 0 | V108: 0 | W108: 0 | X108: 0 | AB108: 2.126219736 | AD108: 0 | AE108: 0 | AF108: 0 | AG108: 0 | AH108: 0 | AM108: 0.3560902274 | AN108: 0 | AO108: 0 | AP108: 0 | AQ108: 0 | AR108: 0 | AV108: 2.09786862 | AX108: 0 | AY108: 0 | AZ108: 0 | BA108: 0 | BB108: 0 | BG108: 0.1392376142 | BH108: 2.097543477
C109: 3.5 | D109: 1.380474022 | E109: 2.317857143 | F109: 11.58928571 | G109: 0.2094716444 | H109: 12942.98921 | K109: 0.1485201218 | L109: 0.002833016439 | M109: 0.002158178608 | N109: 0.001715193458 | O109: 0.001415630671 | P109: 0.001289706974 | T109: 0 | U109: 0 | V109: 0 | W109: 0 | X109: 0 | AB109: 2.141234455 | AD109: 0 | AE109: 0 | AF109: 0 | AG109: 0 | AH109: 0 | AM109: 0.3679599016 | AN109: 0 | AO109: 0 | AP109: 0 | AQ109: 0 | AR109: 0 | AV109: 2.139948188 | AX109: 0 | AY109: 0 | AZ109: 0 | BA109: 0 | BB109: 0 | BG109: 0.143878868 | BH109: 2.126219736
C110: 3.6 | D110: 1.419916137 | E110: 2.291111111 | F110: 11.45555556 | G110: 0.2154565485 | H110: 13094.08341 | K110: 0.1531613756 | L110: 0.002921548203 | M110: 0.002225621689 | N110: 0.001768793253 | O110: 0.001459869129 | P110: 0.001330010317 | T110: 0 | U110: 0 | V110: 0 | W110: 0 | X110: 0 | AB110: 2.014163959 | AD110: 0 | AE110: 0 | AF110: 0 | AG110: 0 | AH110: 0 | AM110: 0.3798295759 | AN110: 0 | AO110: 0 | AP110: 0 | AQ110: 0 | AR110: 0 | AV110: 2.105630339 | AX110: 0 | AY110: 0 | AZ110: 0 | BA110: 0 | BB110: 0 | BG110: 0.1485201218 | BH110: 2.141234455
C111: 3.7 | D111: 1.459358252 | E111: 2.266081081 | F111: 11.33040541 | G111: 0.2214414526 | H111: 13238.71429 | K111: 0.1578026294 | L111: 0.003010079966 | M111: 0.002293064771 | N111: 0.001822393049 | O111: 0.001504107588 | P111: 0.00137031366 | T111: 0 | U111: 0 | V111: 0 | W111: 0 | X111: 0 | AB111: 2.011135895 | AD111: 0 | AE111: 0 | AF111: 0 | AG111: 0 | AH111: 0 | AM111: 0.3916992501 | AN111: 0 | AO111: 0 | AP111: 0 | AQ111: 0 | AR111: 0 | AV111: 2.06331305 | AX111: 0 | AY111: 0 | AZ111: 0 | BA111: 0 | BB111: 0 | BG111: 0.1531613756 | BH111: 2.014163959
C112: 3.8 | D112: 1.498800367 | E112: 2.242631579 | F112: 11.21315789 | G112: 0.2274263568 | H112: 13377.14152 | K112: 0.1624438832 | L112: 0.00309861173 | M112: 0.002360507852 | N112: 0.001875992845 | O112: 0.001548346046 | P112: 0.001410617003 | T112: 0 | U112: 0 | V112: 0 | W112: 0 | X112: 0 | AB112: 2.163208141 | AD112: 0 | AE112: 0 | AF112: 0 | AG112: 0 | AH112: 0 | AM112: 0.4035689244 | AN112: 0 | AO112: 0 | AP112: 0 | AQ112: 0 | AR112: 0 | AV112: 2.149478348 | AX112: 0 | AY112: 0 | AZ112: 0 | BA112: 0 | BB112: 0 | BG112: 0.1578026294 | BH112: 2.011135895
C113: 3.9 | D113: 1.538242482 | E113: 2.220641026 | F113: 11.10320513 | G113: 0.2334112609 | H113: 13509.61261 | K113: 0.167085137 | L113: 0.003187143494 | M113: 0.002427950934 | N113: 0.00192959264 | O113: 0.001592584505 | P113: 0.001450920346 | T113: 0 | U113: 0 | V113: 0 | W113: 0 | X113: 0 | AB113: 2.102299104 | AD113: 0 | AE113: 0 | AF113: 0 | AG113: 0 | AH113: 0 | AM113: 0.4154385986 | AN113: 0 | AO113: 0 | AP113: 0 | AQ113: 0 | AR113: 0 | AV113: 2.01967854 | AX113: 0 | AY113: 0 | AZ113: 0 | BA113: 0 | BB113: 0 | BG113: 0.1624438832 | BH113: 2.163208141
C114: 4 | D114: 1.577684597 | E114: 2.2 | F114: 11 | G114: 0.239396165 | H114: 13636.36364 | K114: 0.1717263908 | L114: 0.003275675258 | M114: 0.002495394015 | N114: 0.001983192436 | O114: 0.001636822963 | P114: 0.001491223689 | T114: 0 | U114: 0 | V114: 0 | W114: 0 | X114: 0 | AB114: 2.020828289 | AD114: 0 | AE114: 0 | AF114: 0 | AG114: 0 | AH114: 0 | AM114: 0.4273082729 | AN114: 0 | AO114: 0 | AP114: 0 | AQ114: 0 | AR114: 0 | AV114: 2.011901267 | AX114: 0 | AY114: 0 | AZ114: 0 | BA114: 0 | BB114: 0 | BG114: 0.167085137 | BH114: 2.102299104
C115: 4.1 | D115: 1.617126712 | E115: 2.180609756 | F115: 10.90304878 | G115: 0.2453810691 | H115: 13757.61982 | K115: 0.1763676446 | L115: 0.003364207021 | M115: 0.002562837097 | N115: 0.002036792231 | O115: 0.001681061422 | P115: 0.001531527032 | T115: 0 | U115: 0 | V115: 0 | W115: 0 | X115: 0 | AB115: 2.125119813 | AD115: 0 | AE115: 0 | AF115: 0 | AG115: 0 | AH115: 0 | AM115: 0.4391779471 | AN115: 0 | AO115: 0 | AP115: 0 | AQ115: 0 | AR115: 0 | AV115: 2.10956783 | AX115: 0 | AY115: 0 | AZ115: 0 | BA115: 0 | BB115: 0 | BG115: 0.1717263908 | BH115: 2.020828289
C116: 4.2 | D116: 1.656568827 | E116: 2.162380952 | F116: 10.81190476 | G116: 0.2513659733 | H116: 13873.59612 | K116: 0.1810088984 | L116: 0.003452738785 | M116: 0.002630280178 | N116: 0.002090392027 | O116: 0.00172529988 | P116: 0.001571830375 | T116: 0 | U116: 0 | V116: 0 | W116: 0 | X116: 0 | AB116: 2.009758873 | AD116: 0 | AE116: 0 | AF116: 0 | AG116: 0 | AH116: 0 | AM116: 0.4510476214 | AN116: 0 | AO116: 0 | AP116: 0 | AQ116: 0 | AR116: 0 | AV116: 2.097549817 | AX116: 0 | AY116: 0 | AZ116: 0 | BA116: 0 | BB116: 0 | BG116: 0.1763676446 | BH116: 2.125119813
C117: 4.3 | D117: 1.696010942 | E117: 2.145232558 | F117: 10.72616279 | G117: 0.2573508774 | H117: 13984.4978 | K117: 0.1856501522 | L117: 0.003541270549 | M117: 0.00269772326 | N117: 0.002143991822 | O117: 0.001769538338 | P117: 0.001612133718 | T117: 0 | U117: 0 | V117: 0 | W117: 0 | X117: 0 | AB117: 2.132981202 | AD117: 0 | AE117: 0 | AF117: 0 | AG117: 0 | AH117: 0 | AM117: 0.4629172956 | AN117: 0 | AO117: 0 | AP117: 0 | AQ117: 0 | AR117: 0 | AV117: 2.043486819 | AX117: 0 | AY117: 0 | AZ117: 0 | BA117: 0 | BB117: 0 | BG117: 0.1810088984 | BH117: 2.009758873
C118: 4.4 | D118: 1.735453057 | E118: 2.129090909 | F118: 10.64545455 | G118: 0.2633357815 | H118: 14090.52092 | K118: 0.190291406 | L118: 0.003629802313 | M118: 0.002765166341 | N118: 0.002197591618 | O118: 0.001813776797 | P118: 0.001652437061 | T118: 0 | U118: 0 | V118: 0 | W118: 0 | X118: 0 | AB118: 2.165614963 | AD118: 0 | AE118: 0 | AF118: 0 | AG118: 0 | AH118: 0 | AM118: 0.4747869699 | AN118: 0 | AO118: 0 | AP118: 0 | AQ118: 0 | AR118: 0 | AV118: 2.162804834 | AX118: 0 | AY118: 0 | AZ118: 0 | BA118: 0 | BB118: 0 | BG118: 0.1856501522 | BH118: 2.132981202
C119: 4.5 | D119: 1.774895172 | E119: 2.113888889 | F119: 10.56944444 | G119: 0.2693206856 | H119: 14191.85283 | K119: 0.1949326598 | L119: 0.003718334076 | M119: 0.002832609423 | N119: 0.002251191414 | O119: 0.001858015255 | P119: 0.001692740404 | T119: 0 | U119: 0 | V119: 0 | W119: 0 | X119: 0 | AB119: 2.005394613 | AD119: 0 | AE119: 0 | AF119: 0 | AG119: 0 | AH119: 0 | AM119: 0.4866566441 | AN119: 0 | AO119: 0 | AP119: 0 | AQ119: 0 | AR119: 0 | AV119: 2.135288954 | AX119: 0 | AY119: 0 | AZ119: 0 | BA119: 0 | BB119: 0 | BG119: 0.190291406 | BH119: 2.165614963
C120: 4.6 | D120: 1.814337287 | E120: 2.099565217 | F120: 10.49782609 | G120: 0.2753055898 | H120: 14288.6726 | K120: 0.1995739136 | L120: 0.00380686584 | M120: 0.002900052504 | N120: 0.002304791209 | O120: 0.001902253714 | P120: 0.001733043747 | T120: 0 | U120: 0 | V120: 0 | W120: 0 | X120: 0 | AB120: 2.119686408 | AD120: 0 | AE120: 0 | AF120: 0 | AG120: 0 | AH120: 0 | AM120: 0.4985263184 | AN120: 0 | AO120: 0 | AP120: 0 | AQ120: 0 | AR120: 0 | AV120: 2.00845247 | AX120: 0 | AY120: 0 | AZ120: 0 | BA120: 0 | BB120: 0 | BG120: 0.1949326598 | BH120: 2.005394613
C121: 4.7 | D121: 1.853779402 | E121: 2.08606383 | F121: 10.43031915 | G121: 0.2812904939 | H121: 14381.15151 | K121: 0.2042151675 | L121: 0.003895397604 | M121: 0.002967495585 | N121: 0.002358391005 | O121: 0.001946492172 | P121: 0.00177334709 | T121: 0 | U121: 0 | V121: 0 | W121: 0 | X121: 0 | AB121: 2.152265079 | AD121: 0 | AE121: 0 | AF121: 0 | AG121: 0 | AH121: 0 | AM121: 0.5103959926 | AN121: 0 | AO121: 0 | AP121: 0 | AQ121: 0 | AR121: 0 | AV121: 2.065259927 | AX121: 0 | AY121: 0 | AZ121: 0 | BA121: 0 | BB121: 0 | BG121: 0.1995739136 | BH121: 2.119686408
C122: 4.8 | D122: 1.893221516 | E122: 2.073333333 | F122: 10.36666667 | G122: 0.287275398 | H122: 14469.45338 | K122: 0.2088564213 | L122: 0.003983929367 | M122: 0.003034938667 | N122: 0.0024119908 | O122: 0.001990730631 | P122: 0.001813650433 | T122: 0 | U122: 0 | V122: 0 | W122: 0 | X122: 0 | AB122: 2.132391832 | AD122: 0 | AE122: 0 | AF122: 0 | AG122: 0 | AH122: 0 | AM122: 0.5222656669 | AN122: 0 | AO122: 0 | AP122: 0 | AQ122: 0 | AR122: 0 | AV122: 2.095535595 | AX122: 0 | AY122: 0 | AZ122: 0 | BA122: 0 | BB122: 0 | BG122: 0.2042151675 | BH122: 2.152265079
C123: 4.9 | D123: 1.932663631 | E123: 2.061326531 | F123: 10.30663265 | G123: 0.2932603021 | H123: 14553.73496 | K123: 0.2134976751 | L123: 0.004072461131 | M123: 0.003102381748 | N123: 0.002465590596 | O123: 0.002034969089 | P123: 0.001853953776 | T123: 0 | U123: 0 | V123: 0 | W123: 0 | X123: 0 | AB123: 2.110292769 | AD123: 0 | AE123: 0 | AF123: 0 | AG123: 0 | AH123: 0 | AM123: 0.5341353411 | AN123: 0 | AO123: 0 | AP123: 0 | AQ123: 0 | AR123: 0 | AV123: 2.148164421 | AX123: 0 | AY123: 0 | AZ123: 0 | BA123: 0 | BB123: 0 | BG123: 0.2088564213 | BH123: 2.132391832
C124: 5 | D124: 1.972105746 | E124: 2.05 | F124: 10.25 | G124: 0.2992452063 | H124: 14634.14634 | K124: 0.2181389289 | L124: 0.004160992895 | M124: 0.00316982483 | N124: 0.002519190391 | O124: 0.002079207548 | P124: 0.001894257119 | T124: 0 | U124: 0 | V124: 0 | W124: 0 | X124: 0 | AB124: 2.084601784 | AD124: 0 | AE124: 0 | AF124: 0 | AG124: 0 | AH124: 0 | AM124: 0.5460050154 | AN124: 0 | AO124: 0 | AP124: 0 | AQ124: 0 | AR124: 0 | AV124: 2.066818605 | AX124: 0 | AY124: 0 | AZ124: 0 | BA124: 0 | BB124: 0 | BG124: 0.2134976751 | BH124: 2.110292769
C125: 5.1 | D125: 2.011547861 | E125: 2.039313725 | F125: 10.19656863 | G125: 0.3052301104 | H125: 14710.83121 | K125: 0.2227801827 | L125: 0.004249524659 | M125: 0.003237267911 | N125: 0.002572790187 | O125: 0.002123446006 | P125: 0.001934560461 | T125: 0 | U125: 0 | V125: 0 | W125: 0 | X125: 0 | AB125: 2.15184528 | AD125: 0 | AE125: 0 | AF125: 0 | AG125: 0 | AH125: 0 | AM125: 0.5578746896 | AN125: 0 | AO125: 0 | AP125: 0 | AQ125: 0 | AR125: 0 | AV125: 2.144274242 | AX125: 0 | AY125: 0 | AZ125: 0 | BA125: 0 | BB125: 0 | BG125: 0.2181389289 | BH125: 2.084601784
C126: 5.2 | D126: 2.050989976 | E126: 2.029230769 | F126: 10.14615385 | G126: 0.3112150145 | H126: 14783.92722 | K126: 0.2274214365 | L126: 0.004338056422 | M126: 0.003304710993 | N126: 0.002626389982 | O126: 0.002167684465 | P126: 0.001974863804 | T126: 0 | U126: 0 | V126: 0 | W126: 0 | X126: 0 | AB126: 2.037586844 | AD126: 0 | AE126: 0 | AF126: 0 | AG126: 0 | AH126: 0 | AM126: 0.5697443638 | AN126: 0 | AO126: 0 | AP126: 0 | AQ126: 0 | AR126: 0 | AV126: 2.061725335 | AX126: 0 | AY126: 0 | AZ126: 0 | BA126: 0 | BB126: 0 | BG126: 0.2227801827 | BH126: 2.15184528
C127: 5.3 | D127: 2.090432091 | E127: 2.019716981 | F127: 10.09858491 | G127: 0.3171999186 | H127: 14853.56626 | K127: 0.2320626903 | L127: 0.004426588186 | M127: 0.003372154074 | N127: 0.002679989778 | O127: 0.002211922923 | P127: 0.002015167147 | T127: 0 | U127: 0 | V127: 0 | W127: 0 | X127: 0 | AB127: 2.033541416 | AD127: 0 | AE127: 0 | AF127: 0 | AG127: 0 | AH127: 0 | AM127: 0.5816140381 | AN127: 0 | AO127: 0 | AP127: 0 | AQ127: 0 | AR127: 0 | AV127: 2.131197892 | AX127: 0 | AY127: 0 | AZ127: 0 | BA127: 0 | BB127: 0 | BG127: 0.2274214365 | BH127: 2.037586844
C128: 5.4 | D128: 2.129874206 | E128: 2.010740741 | F128: 10.0537037 | G128: 0.3231848228 | H128: 14919.87475 | K128: 0.2367039441 | L128: 0.00451511995 | M128: 0.003439597156 | N128: 0.002733589574 | O128: 0.002256161382 | P128: 0.00205547049 | T128: 0 | U128: 0 | V128: 0 | W128: 0 | X128: 0 | AB128: 2.093171877 | AD128: 0 | AE128: 0 | AF128: 0 | AG128: 0 | AH128: 0 | AM128: 0.5934837123 | AN128: 0 | AO128: 0 | AP128: 0 | AQ128: 0 | AR128: 0 | AV128: 2.079638365 | AX128: 0 | AY128: 0 | AZ128: 0 | BA128: 0 | BB128: 0 | BG128: 0.2320626903 | BH128: 2.033541416
C129: 5.5 | D129: 2.169316321 | E129: 2.002272727 | F129: 10.01136364 | G129: 0.3291697269 | H129: 14982.97389 | K129: 0.2413451979 | L129: 0.004603651713 | M129: 0.003507040237 | N129: 0.002787189369 | O129: 0.00230039984 | P129: 0.002095773833 | T129: 0 | U129: 0 | V129: 0 | W129: 0 | X129: 0 | AB129: 2.081006405 | AD129: 0 | AE129: 0 | AF129: 0 | AG129: 0 | AH129: 0 | AM129: 0.6053533866 | AN129: 0 | AO129: 0 | AP129: 0 | AQ129: 0 | AR129: 0 | AV129: 2.072588985 | AX129: 0 | AY129: 0 | AZ129: 0 | BA129: 0 | BB129: 0 | BG129: 0.2367039441 | BH129: 2.093171877
C130: 5.6 | D130: 2.208758436 | E130: 1.994285714 | F130: 9.971428571 | G130: 0.335154631 | H130: 15042.97994 | K130: 0.2459864517 | L130: 0.004692183477 | M130: 0.003574483319 | N130: 0.002840789165 | O130: 0.002344638298 | P130: 0.002136077176 | T130: 0 | U130: 0 | V130: 0 | W130: 0 | X130: 0 | AB130: 2.030819427 | AD130: 0 | AE130: 0 | AF130: 0 | AG130: 0 | AH130: 0 | AM130: 0.6172230608 | AN130: 0 | AO130: 0 | AP130: 0 | AQ130: 0 | AR130: 0 | AV130: 2.13050634 | AX130: 0 | AY130: 0 | AZ130: 0 | BA130: 0 | BB130: 0 | BG130: 0.2413451979 | BH130: 2.081006405
C131: 5.7 | D131: 2.248200551 | E131: 1.986754386 | F131: 9.93377193 | G131: 0.3411395351 | H131: 15100.00442 | K131: 0.2506277055 | L131: 0.004780715241 | M131: 0.0036419264 | N131: 0.00289438896 | O131: 0.002388876757 | P131: 0.002176380519 | T131: 0 | U131: 0 | V131: 0 | W131: 0 | X131: 0 | AB131: 2.030388878 | AD131: 0 | AE131: 0 | AF131: 0 | AG131: 0 | AH131: 0 | AM131: 0.6290927351 | AN131: 0 | AO131: 0 | AP131: 0 | AQ131: 0 | AR131: 0 | AV131: 2.102142862 | AX131: 0 | AY131: 0 | AZ131: 0 | BA131: 0 | BB131: 0 | BG131: 0.2459864517 | BH131: 2.030819427
C132: 5.8 | D132: 2.287642666 | E132: 1.979655172 | F132: 9.898275862 | G132: 0.3471244393 | H132: 15154.15433 | K132: 0.2552689593 | L132: 0.004869247005 | M132: 0.003709369482 | N132: 0.002947988756 | O132: 0.002433115215 | P132: 0.002216683862 | T132: 0 | U132: 0 | V132: 0 | W132: 0 | X132: 0 | AB132: 2.061566332 | AD132: 0 | AE132: 0 | AF132: 0 | AG132: 0 | AH132: 0 | AM132: 0.6409624093 | AN132: 0 | AO132: 0 | AP132: 0 | AQ132: 0 | AR132: 0 | AV132: 2.036824724 | AX132: 0 | AY132: 0 | AZ132: 0 | BA132: 0 | BB132: 0 | BG132: 0.2506277055 | BH132: 2.030388878
C133: 5.9 | D133: 2.327084781 | E133: 1.972966102 | F133: 9.864830508 | G133: 0.3531093434 | H133: 15205.53241 | K133: 0.2599102131 | L133: 0.004957778768 | M133: 0.003776812563 | N133: 0.003001588551 | O133: 0.002477353674 | P133: 0.002256987205 | T133: 0 | U133: 0 | V133: 0 | W133: 0 | X133: 0 | AB133: 2.051200677 | AD133: 0 | AE133: 0 | AF133: 0 | AG133: 0 | AH133: 0 | AM133: 0.6528320836 | AN133: 0 | AO133: 0 | AP133: 0 | AQ133: 0 | AR133: 0 | AV133: 2.143033877 | AX133: 0 | AY133: 0 | AZ133: 0 | BA133: 0 | BB133: 0 | BG133: 0.2552689593 | BH133: 2.061566332
C134: 6 | D134: 2.366526896 | E134: 1.966666667 | F134: 9.833333333 | G134: 0.3590942475 | H134: 15254.23729 | K134: 0.2645514669 | L134: 0.005046310532 | M134: 0.003844255645 | N134: 0.003055188347 | O134: 0.002521592132 | P134: 0.002297290548 | T134: 0 | U134: 0 | V134: 0 | W134: 0 | X134: 0 | AB134: 2.025809819 | AD134: 0 | AE134: 0 | AF134: 0 | AG134: 0 | AH134: 0 | AM134: 0.6647017578 | AN134: 0 | AO134: 0 | AP134: 0 | AQ134: 0 | AR134: 0 | AV134: 2.096938417 | AX134: 0 | AY134: 0 | AZ134: 0 | BA134: 0 | BB134: 0 | BG134: 0.2599102131 | BH134: 2.051200677
C135: 6.1 | D135: 2.405969011 | E135: 1.960737705 | F135: 9.803688525 | G135: 0.3650791516 | H135: 15300.3637 | K135: 0.2691927207 | L135: 0.005134842296 | M135: 0.003911698726 | N135: 0.003108788143 | O135: 0.002565830591 | P135: 0.002337593891 | T135: 0 | U135: 0 | V135: 0 | W135: 0 | X135: 0 | AB135: 2.081649459 | AD135: 0 | AE135: 0 | AF135: 0 | AG135: 0 | AH135: 0 | AM135: 0.6765714321 | AN135: 0 | AO135: 0 | AP135: 0 | AQ135: 0 | AR135: 0 | AV135: 2.134513082 | AX135: 0 | AY135: 0 | AZ135: 0 | BA135: 0 | BB135: 0 | BG135: 0.2645514669 | BH135: 2.025809819
C136: 6.2 | D136: 2.445411125 | E136: 1.95516129 | F136: 9.775806452 | G136: 0.3710640558 | H136: 15344.00264 | K136: 0.2738339745 | L136: 0.005223374059 | M136: 0.003979141808 | N136: 0.003162387938 | O136: 0.002610069049 | P136: 0.002377897234 | T136: 0 | U136: 0 | V136: 0 | W136: 0 | X136: 0 | AB136: 2.123102097 | AD136: 0 | AE136: 0 | AF136: 0 | AG136: 0 | AH136: 0 | AM136: 0.6884411063 | AN136: 0 | AO136: 0 | AP136: 0 | AQ136: 0 | AR136: 0 | AV136: 2.071217442 | AX136: 0 | AY136: 0 | AZ136: 0 | BA136: 0 | BB136: 0 | BG136: 0.2691927207 | BH136: 2.081649459
C137: 6.3 | D137: 2.48485324 | E137: 1.949920635 | F137: 9.749603175 | G137: 0.3770489599 | H137: 15385.24156 | K137: 0.2784752283 | L137: 0.005311905823 | M137: 0.004046584889 | N137: 0.003215987734 | O137: 0.002654307508 | P137: 0.002418200577 | T137: 0 | U137: 0 | V137: 0 | W137: 0 | X137: 0 | AB137: 2.079855864 | AD137: 0 | AE137: 0 | AF137: 0 | AG137: 0 | AH137: 0 | AM137: 0.7003107806 | AN137: 0 | AO137: 0 | AP137: 0 | AQ137: 0 | AR137: 0 | AV137: 2.003892612 | AX137: 0 | AY137: 0 | AZ137: 0 | BA137: 0 | BB137: 0 | BG137: 0.2738339745 | BH137: 2.123102097
C138: 6.4 | D138: 2.524295355 | E138: 1.945 | F138: 9.725 | G138: 0.383033864 | H138: 15424.16452 | K138: 0.2831164821 | L138: 0.005400437587 | M138: 0.004114027971 | N138: 0.003269587529 | O138: 0.002698545966 | P138: 0.00245850392 | T138: 0 | U138: 0 | V138: 0 | W138: 0 | X138: 0 | AB138: 2.086210204 | AD138: 0 | AE138: 0 | AF138: 0 | AG138: 0 | AH138: 0 | AM138: 0.7121804548 | AN138: 0 | AO138: 0 | AP138: 0 | AQ138: 0 | AR138: 0 | AV138: 2.086410165 | AX138: 0 | AY138: 0 | AZ138: 0 | BA138: 0 | BB138: 0 | BG138: 0.2784752283 | BH138: 2.079855864
C139: 6.5 | D139: 2.56373747 | E139: 1.940384615 | F139: 9.701923077 | G139: 0.3890187681 | H139: 15460.85233 | K139: 0.287757736 | L139: 0.005488969351 | M139: 0.004181471052 | N139: 0.003323187325 | O139: 0.002742784425 | P139: 0.002498807263 | T139: 0 | U139: 0 | V139: 0 | W139: 0 | X139: 0 | AB139: 2.13317162 | AD139: 0 | AE139: 0 | AF139: 0 | AG139: 0 | AH139: 0 | AM139: 0.7240501291 | AN139: 0 | AO139: 0 | AP139: 0 | AQ139: 0 | AR139: 0 | AV139: 2.150347944 | AX139: 0 | AY139: 0 | AZ139: 0 | BA139: 0 | BB139: 0 | BG139: 0.2831164821 | BH139: 2.086210204
C140: 6.6 | D140: 2.603179585 | E140: 1.936060606 | F140: 9.68030303 | G140: 0.3950036723 | H140: 15495.38269 | K140: 0.2923989898 | L140: 0.005577501114 | M140: 0.004248914134 | N140: 0.00337678712 | O140: 0.002787022883 | P140: 0.002539110606 | T140: 0 | U140: 0 | V140: 0 | W140: 0 | X140: 0 | AB140: 2.156236241 | AD140: 0 | AE140: 0 | AF140: 0 | AG140: 0 | AH140: 0 | AM140: 0.7359198033 | AN140: 0 | AO140: 0 | AP140: 0 | AQ140: 0 | AR140: 0 | AV140: 2.120431314 | AX140: 0 | AY140: 0 | AZ140: 0 | BA140: 0 | BB140: 0 | BG140: 0.287757736 | BH140: 2.13317162
C141: 6.7 | D141: =(2*$C$43*$C141)/($C$15/1000000)*1000 -> 2.6426217 | E141: =$C$46+$C$47/C141+$C$48*C141 -> 1.932014925 | F141: =E141*$C$15 -> 9.660074627 | G141: =D141*PI()*$C$14*$C$37/4*60/1000 -> 0.4009885764 | H141: =($C$13*1000)/F141 -> 15527.83035 | K141: 0.2970402436 | L141: 0.005666032878 | M141: 0.004316357215 | N141: 0.003430386916 | O141: 0.002831261342 | P141: 0.002579413949 | T141: 0 | U141: 0 | V141: 0 | W141: 0 | X141: 0 | AB141: 2.16581661 | AD141: 0 | AE141: 0 | AF141: 0 | AG141: 0 | AH141: 0 | AM141: 0.7477894775 | AN141: 0 | AO141: 0 | AP141: 0 | AQ141: 0 | AR141: 0 | AV141: 2.019472385 | AX141: 0 | AY141: 0 | AZ141: 0 | BA141: 0 | BB141: 0 | BG141: 0.2923989898 | BH141: 2.156236241
C142: 6.8 | D142: 2.682063815 | E142: 1.928235294 | F142: 9.641176471 | G142: 0.4069734805 | H142: 15558.26724 | K142: =K141+1/($C$74*60) -> 0.3016814974 | L142: =IF(Q$56="","",SQRT(($K142*$K142)/$Q$72)) -> 0.005754564642 | M142: =IF(R$56="","",SQRT(($K142*$K142)/$R$72)) -> 0.004383800297 | N142: =IF(S$56="","",SQRT(($K142*$K142)/$S$72)) -> 0.003483986711 | O142: =IF(T$56="","",SQRT(($K142*$K142)/$T$72)) -> 0.0028754998 | P142: =IF(U$56="","",SQRT(($K142*$K142)/$U$72)) -> 0.002619717292 | Q142: =IF(V$56="","",SQRT(($K142*$K142)/$V$72)) ->  | R142: =IF(W$56="","",SQRT(($K142*$K142)/$W$72)) ->  | S142: =IF(X$56="","",SQRT(($K142*$K142)/$X$72)) ->  | T142: =IF(Q$56="","",IF(ABS(($K142-Q$60) / ( L142 / 2.2))>20,0,IF(Q$60<>"",Q$64 * ( POWER(POWER(Q$67, 2),0.5) + POWER(POWER(Q$67, 2),-0.5) ) / ( POWER(POWER(Q$67, 2),0.5) * EXP( POWER(1 + POWER(Q$67, 2),-1) * ($K142-Q$60)/ ( L142 / 2.2) ) + POWER(POWER(Q$67, 2),-0.5) * EXP(- POWER(Q$67, 2) * POWER(1 + POWER(Q$67, 2),-1) * ($K142-Q$60) / ( L142 / 2.2) ) ),""))) -> 0 | U142: =IF(R$56="","",IF(ABS(($K142-R$60) / ( M142 / 2.2))>20,0,IF(R$60<>"",R$64 * ( POWER(POWER(R$67, 2),0.5) + POWER(POWER(R$67, 2),-0.5) ) / ( POWER(POWER(R$67, 2),0.5) * EXP( POWER(1 + POWER(R$67, 2),-1) * ($K142-R$60)/ ( M142 / 2.2) ) + POWER(POWER(R$67, 2),-0.5) * EXP(- POWER(R$67, 2) * POWER(1 + POWER(R$67, 2),-1) * ($K142-R$60) / ( M142 / 2.2) ) ),""))) -> 0 | V142: =IF(S$56="","",IF(ABS(($K142-S$60) / ( N142 / 2.2))>20,0,IF(S$60<>"",S$64 * ( POWER(POWER(S$67, 2),0.5) + POWER(POWER(S$67, 2),-0.5) ) / ( POWER(POWER(S$67, 2),0.5) * EXP( POWER(1 + POWER(S$67, 2),-1) * ($K142-S$60)/ ( N142 / 2.2) ) + POWER(POWER(S$67, 2),-0.5) * EXP(- POWER(S$67, 2) * POWER(1 + POWER(S$67, 2),-1) * ($K142-S$60) / ( N142 / 2.2) ) ),""))) -> 0 | W142: =IF(T$56="","",IF(ABS(($K142-T$60) / ( O142 / 2.2))>20,0,IF(T$60<>"",T$64 * ( POWER(POWER(T$67, 2),0.5) + POWER(POWER(T$67, 2),-0.5) ) / ( POWER(POWER(T$67, 2),0.5) * EXP( POWER(1 + POWER(T$67, 2),-1) * ($K142-T$60)/ ( O142 / 2.2) ) + POWER(POWER(T$67, 2),-0.5) * EXP(- POWER(T$67, 2) * POWER(1 + POWER(T$67, 2),-1) * ($K142-T$60) / ( O142 / 2.2) ) ),""))) -> 0 | X142: =IF(U$56="","",IF(ABS(($K142-U$60) / ( P142 / 2.2))>20,0,IF(U$60<>"",U$64 * ( POWER(POWER(U$67, 2),0.5) + POWER(POWER(U$67, 2),-0.5) ) / ( POWER(POWER(U$67, 2),0.5) * EXP( POWER(1 + POWER(U$67, 2),-1) * ($K142-U$60)/ ( P142 / 2.2) ) + POWER(POWER(U$67, 2),-0.5) * EXP(- POWER(U$67, 2) * POWER(1 + POWER(U$67, 2),-1) * ($K142-U$60) / ( P142 / 2.2) ) ),""))) -> 0 | Y142: =IF(V$56="","",IF(ABS(($K142-V$60) / ( Q142 / 2.2))>20,0,IF(V$60<>"",V$64 * ( POWER(POWER(V$67, 2),0.5) + POWER(POWER(V$67, 2),-0.5) ) / ( POWER(POWER(V$67, 2),0.5) * EXP( POWER(1 + POWER(V$67, 2),-1) * ($K142-V$60)/ ( Q142 / 2.2) ) + POWER(POWER(V$67, 2),-0.5) * EXP(- POWER(V$67, 2) * POWER(1 + POWER(V$67, 2),-1) * ($K142-V$60) / ( Q142 / 2.2) ) ),""))) ->  | Z142: =IF(W$56="","",IF(ABS(($K142-W$60) / ( R142 / 2.2))>20,0,IF(W$60<>"",W$64 * ( POWER(POWER(W$67, 2),0.5) + POWER(POWER(W$67, 2),-0.5) ) / ( POWER(POWER(W$67, 2),0.5) * EXP( POWER(1 + POWER(W$67, 2),-1) * ($K142-W$60)/ ( R142 / 2.2) ) + POWER(POWER(W$67, 2),-0.5) * EXP(- POWER(W$67, 2) * POWER(1 + POWER(W$67, 2),-1) * ($K142-W$60) / ( R142 / 2.2) ) ),""))) ->  | AA142: =IF(X$56="","",IF(ABS(($K142-X$60) / ( S142 / 2.2))>20,0,IF(X$60<>"",X$64 * ( POWER(POWER(X$67, 2),0.5) + POWER(POWER(X$67, 2),-0.5) ) / ( POWER(POWER(X$67, 2),0.5) * EXP( POWER(1 + POWER(X$67, 2),-1) * ($K142-X$60)/ ( S142 / 2.2) ) + POWER(POWER(X$67, 2),-0.5) * EXP(- POWER(X$67, 2) * POWER(1 + POWER(X$67, 2),-1) * ($K142-X$60) / ( S142 / 2.2) ) ),""))) ->  | AB142: =SUM(T142:AA142)+RAND()*$C$69+$C$67 -> 2.109596613 | AD142: =IF(Q$56="","",($K142-$K141)*T142) -> 0 | AE142: =IF(R$56="","",($K142-$K141)*U142) -> 0 | AF142: =IF(S$56="","",($K142-$K141)*V142) -> 0 | AG142: =IF(T$56="","",($K142-$K141)*W142) -> 0 | AH142: =IF(U$56="","",($K142-$K141)*X142) -> 0 | AI142: =IF(V$56="","",($K142-$K141)*Y142) ->  | AJ142: =IF(W$56="","",($K142-$K141)*Z142) ->  | AK142: =IF(X$56="","",($K142-$K141)*AA142) ->  | AM142: 0.7596591518 | AN142: 0 | AO142: 0 | AP142: 0 | AQ142: 0 | AR142: 0 | AV142: 2.127013812 | AX142: 0 | AY142: 0 | AZ142: 0 | BA142: 0 | BB142: 0 | BG142: =IF($C$8="isocratic",K141,AM142) -> 0.2970402436 | BH142: =IF($C$8="isocratic",AB141,AV142) -> 2.16581661
C143: 6.9 | D143: 2.72150593 | E143: 1.924710145 | F143: 9.623550725 | G143: 0.4129583847 | H143: 15586.76255 | K143: 0.3063227512 | L143: 0.005843096406 | M143: 0.004451243378 | N143: 0.003537586507 | O143: 0.002919738258 | P143: 0.002660020635 | T143: 0 | U143: 0 | V143: 0 | W143: 0 | X143: 0 | AB143: 2.006028337 | AD143: 0 | AE143: 0 | AF143: 0 | AG143: 0 | AH143: 0 | AM143: =AM142+MAX($AK$57:$AR$57)*1.2/3000 -> 0.771528826 | AN143: 0 | AO143: 0 | AP143: 0 | AQ143: 0 | AR143: 0 | AV143: =SUM(AN143:AU143)+RAND()*$C$69+K143*$C$70+$C$67 -> 2.078510495 | AX143: 0 | AY143: 0 | AZ143: 0 | BA143: 0 | BB143: 0 | BG143: 0.3016814974 | BH143: 2.109596613
C144: 7 | D144: 2.760948045 | E144: 1.921428571 | F144: 9.607142857 | G144: 0.4189432888 | H144: 15613.3829 | K144: 0.310964005 | L144: 0.005931628169 | M144: 0.00451868646 | N144: 0.003591186303 | O144: 0.002963976717 | P144: 0.002700323978 | T144: 0 | U144: 0 | V144: 0 | W144: 0 | X144: 0 | AB144: 2.146385542 | AD144: 0 | AE144: 0 | AF144: 0 | AG144: 0 | AH144: 0 | AM144: 0.7833985003 | AN144: =IF(AK$56="NOT ELUTED","",IF(AK$51="","",IF(ABS(($AM144-AK$57)/(AK$72/2.2))>20,0,AK$62*(POWER(POWER(AK$66,2),0.5)+POWER(POWER(AK$66,2),-0.5))/(POWER(POWER(AK$66,2),0.5)*EXP(POWER(1+POWER(AK$66,2),-1)*($AM144-AK$57)/(AK$72/2.2))+POWER(POWER(AK$66,2),-0.5)*EXP(-POWER(AK$66,2)*POWER(1+POWER(AK$66,2),-1)*($AM144-AK$57)/(AK$72/2.2)))))) -> 0 | AO144: =IF(AL$56="NOT ELUTED","",IF(AL$51="","",IF(ABS(($AM144-AL$57)/(AL$72/2.2))>20,0,AL$62*(POWER(POWER(AL$66,2),0.5)+POWER(POWER(AL$66,2),-0.5))/(POWER(POWER(AL$66,2),0.5)*EXP(POWER(1+POWER(AL$66,2),-1)*($AM144-AL$57)/(AL$72/2.2))+POWER(POWER(AL$66,2),-0.5)*EXP(-POWER(AL$66,2)*POWER(1+POWER(AL$66,2),-1)*($AM144-AL$57)/(AL$72/2.2)))))) -> 0 | AP144: =IF(AM$56="NOT ELUTED","",IF(AM$51="","",IF(ABS(($AM144-AM$57)/(AM$72/2.2))>20,0,AM$62*(POWER(POWER(AM$66,2),0.5)+POWER(POWER(AM$66,2),-0.5))/(POWER(POWER(AM$66,2),0.5)*EXP(POWER(1+POWER(AM$66,2),-1)*($AM144-AM$57)/(AM$72/2.2))+POWER(POWER(AM$66,2),-0.5)*EXP(-POWER(AM$66,2)*POWER(1+POWER(AM$66,2),-1)*($AM144-AM$57)/(AM$72/2.2)))))) -> 0 | AQ144: =IF(AN$56="NOT ELUTED","",IF(AN$51="","",IF(ABS(($AM144-AN$57)/(AN$72/2.2))>20,0,AN$62*(POWER(POWER(AN$66,2),0.5)+POWER(POWER(AN$66,2),-0.5))/(POWER(POWER(AN$66,2),0.5)*EXP(POWER(1+POWER(AN$66,2),-1)*($AM144-AN$57)/(AN$72/2.2))+POWER(POWER(AN$66,2),-0.5)*EXP(-POWER(AN$66,2)*POWER(1+POWER(AN$66,2),-1)*($AM144-AN$57)/(AN$72/2.2)))))) -> 0 | AR144: =IF(AO$56="NOT ELUTED","",IF(AO$51="","",IF(ABS(($AM144-AO$57)/(AO$72/2.2))>20,0,AO$62*(POWER(POWER(AO$66,2),0.5)+POWER(POWER(AO$66,2),-0.5))/(POWER(POWER(AO$66,2),0.5)*EXP(POWER(1+POWER(AO$66,2),-1)*($AM144-AO$57)/(AO$72/2.2))+POWER(POWER(AO$66,2),-0.5)*EXP(-POWER(AO$66,2)*POWER(1+POWER(AO$66,2),-1)*($AM144-AO$57)/(AO$72/2.2)))))) -> 0 | AS144: =IF(AP$56="NOT ELUTED","",IF(AP$51="","",IF(ABS(($AM144-AP$57)/(AP$72/2.2))>20,0,AP$62*(POWER(POWER(AP$66,2),0.5)+POWER(POWER(AP$66,2),-0.5))/(POWER(POWER(AP$66,2),0.5)*EXP(POWER(1+POWER(AP$66,2),-1)*($AM144-AP$57)/(AP$72/2.2))+POWER(POWER(AP$66,2),-0.5)*EXP(-POWER(AP$66,2)*POWER(1+POWER(AP$66,2),-1)*($AM144-AP$57)/(AP$72/2.2)))))) ->  | AT144: =IF(AQ$56="NOT ELUTED","",IF(AQ$51="","",IF(ABS(($AM144-AQ$57)/(AQ$72/2.2))>20,0,AQ$62*(POWER(POWER(AQ$66,2),0.5)+POWER(POWER(AQ$66,2),-0.5))/(POWER(POWER(AQ$66,2),0.5)*EXP(POWER(1+POWER(AQ$66,2),-1)*($AM144-AQ$57)/(AQ$72/2.2))+POWER(POWER(AQ$66,2),-0.5)*EXP(-POWER(AQ$66,2)*POWER(1+POWER(AQ$66,2),-1)*($AM144-AQ$57)/(AQ$72/2.2)))))) ->  | AU144: =IF(AR$56="NOT ELUTED","",IF(AR$51="","",IF(ABS(($AM144-AR$57)/(AR$72/2.2))>20,0,AR$62*(POWER(POWER(AR$66,2),0.5)+POWER(POWER(AR$66,2),-0.5))/(POWER(POWER(AR$66,2),0.5)*EXP(POWER(1+POWER(AR$66,2),-1)*($AM144-AR$57)/(AR$72/2.2))+POWER(POWER(AR$66,2),-0.5)*EXP(-POWER(AR$66,2)*POWER(1+POWER(AR$66,2),-1)*($AM144-AR$57)/(AR$72/2.2)))))) ->  | AV144: 2.137162746 | AX144: 0 | AY144: 0 | AZ144: 0 | BA144: 0 | BB144: 0 | BG144: 0.3063227512 | BH144: 2.006028337
C145: 7.1 | D145: 2.80039016 | E145: 1.918380282 | F145: 9.591901408 | G145: 0.4249281929 | H145: 15638.19243 | K145: 0.3156052588 | L145: 0.006020159933 | M145: 0.004586129541 | N145: 0.003644786098 | O145: 0.003008215175 | P145: 0.00274062732 | T145: 0 | U145: 0 | V145: 0 | W145: 0 | X145: 0 | AB145: 2.163074105 | AD145: 0 | AE145: 0 | AF145: 0 | AG145: 0 | AH145: 0 | AM145: 0.7952681745 | AN145: 0 | AO145: 0 | AP145: 0 | AQ145: 0 | AR145: 0 | AV145: 2.117375059 | AX145: 0 | AY145: 0 | AZ145: 0 | BA145: 0 | BB145: 0 | BG145: 0.310964005 | BH145: 2.146385542
C146: 7.2 | D146: 2.839832275 | E146: 1.915555556 | F146: 9.577777778 | G146: 0.430913097 | H146: 15661.2529 | K146: 0.3202465126 | L146: 0.006108691697 | M146: 0.004653572623 | N146: 0.003698385894 | O146: 0.003052453634 | P146: 0.002780930663 | T146: 0 | U146: 0 | V146: 0 | W146: 0 | X146: 0 | AB146: 2.091738237 | AD146: 0 | AE146: 0 | AF146: 0 | AG146: 0 | AH146: 0 | AM146: 0.8071378488 | AN146: 0 | AO146: 0 | AP146: 0 | AQ146: 0 | AR146: 0 | AV146: 2.116056499 | AX146: 0 | AY146: 0 | AZ146: 0 | BA146: 0 | BB146: 0 | BG146: 0.3156052588 | BH146: 2.163074105
C147: 7.3 | D147: 2.87927439 | E147: 1.912945205 | F147: 9.564726027 | G147: 0.4368980012 | H147: 15682.6238 | K147: 0.3248877664 | L147: 0.00619722346 | M147: 0.004721015704 | N147: 0.003751985689 | O147: 0.003096692092 | P147: 0.002821234006 | T147: 0 | U147: 0 | V147: 0 | W147: 0 | X147: 0 | AB147: 2.054461311 | AD147: 0 | AE147: 0 | AF147: 0 | AG147: 0 | AH147: 0 | AM147: 0.819007523 | AN147: 0 | AO147: 0 | AP147: 0 | AQ147: 0 | AR147: 0 | AV147: 2.092453348 | AX147: 0 | AY147: 0 | AZ147: 0 | BA147: 0 | BB147: 0 | BG147: 0.3202465126 | BH147: 2.091738237
C148: 7.4 | D148: 2.918716505 | E148: 1.910540541 | F148: 9.552702703 | G148: 0.4428829053 | H148: 15702.36243 | K148: 0.3295290202 | L148: 0.006285755224 | M148: 0.004788458786 | N148: 0.003805585485 | O148: 0.003140930551 | P148: 0.002861537349 | T148: 0 | U148: 0 | V148: 0 | W148: 0 | X148: 0 | AB148: 2.049664546 | AD148: 0 | AE148: 0 | AF148: 0 | AG148: 0 | AH148: 0 | AM148: 0.8308771973 | AN148: 0 | AO148: 0 | AP148: 0 | AQ148: 0 | AR148: 0 | AV148: 2.03057022 | AX148: =IF(AN148="","",($AM149-$AM148)*AN148) -> 0 | AY148: =IF(AO148="","",($AM149-$AM148)*AO148) -> 0 | AZ148: =IF(AP148="","",($AM149-$AM148)*AP148) -> 0 | BA148: =IF(AQ148="","",($AM149-$AM148)*AQ148) -> 0 | BB148: =IF(AR148="","",($AM149-$AM148)*AR148) -> 0 | BC148: =IF(AS148="","",($AM149-$AM148)*AS148) ->  | BD148: =IF(AT148="","",($AM149-$AM148)*AT148) ->  | BE148: =IF(AU148="","",($AM149-$AM148)*AU148) ->  | BG148: 0.3248877664 | BH148: 2.054461311
C149: 7.5 | D149: 2.95815862 | E149: 1.908333333 | F149: 9.541666667 | G149: 0.4488678094 | H149: 15720.52402 | K149: 0.334170274 | L149: 0.006374286988 | M149: 0.004855901867 | N149: 0.00385918528 | O149: 0.003185169009 | P149: 0.002901840692 | T149: 0 | U149: 0 | V149: 0 | W149: 0 | X149: 0 | AB149: 2.076637625 | AD149: 0 | AE149: 0 | AF149: 0 | AG149: 0 | AH149: 0 | AM149: 0.8427468715 | AN149: 0 | AO149: 0 | AP149: 0 | AQ149: 0 | AR149: 0 | AV149: 2.132704232 | AX149: 0 | AY149: 0 | AZ149: 0 | BA149: 0 | BB149: 0 | BG149: 0.3295290202 | BH149: 2.049664546
C150: 7.6 | D150: 2.997600734 | E150: 1.906315789 | F150: 9.531578947 | G150: 0.4548527135 | H150: 15737.16179 | K150: 0.3388115278 | L150: 0.006462818752 | M150: 0.004923344949 | N150: 0.003912785076 | O150: 0.003229407468 | P150: 0.002942144035 | T150: 0 | U150: 0 | V150: 0 | W150: 0 | X150: 0 | AB150: 2.141379536 | AD150: 0 | AE150: 0 | AF150: 0 | AG150: 0 | AH150: 0 | AM150: 0.8546165458 | AN150: 0 | AO150: 0 | AP150: 0 | AQ150: 0 | AR150: 0 | AV150: 2.032270167 | AX150: 0 | AY150: 0 | AZ150: 0 | BA150: 0 | BB150: 0 | BG150: 0.334170274 | BH150: 2.076637625
C151: 7.7 | D151: 3.037042849 | E151: 1.904480519 | F151: 9.522402597 | G151: 0.4608376177 | H151: 15752.32705 | K151: 0.3434527816 | L151: 0.006551350515 | M151: 0.00499078803 | N151: 0.003966384871 | O151: 0.003273645926 | P151: 0.002982447378 | T151: 0 | U151: 0 | V151: 0 | W151: 0 | X151: 0 | AB151: 2.023915697 | AD151: 0 | AE151: 0 | AF151: 0 | AG151: 0 | AH151: 0 | AM151: 0.86648622 | AN151: 0 | AO151: 0 | AP151: 0 | AQ151: 0 | AR151: 0 | AV151: 2.16315213 | AX151: 0 | AY151: 0 | AZ151: 0 | BA151: 0 | BB151: 0 | BG151: 0.3388115278 | BH151: 2.141379536
C152: 7.8 | D152: 3.076484964 | E152: 1.902820513 | F152: 9.514102564 | G152: 0.4668225218 | H152: 15766.06926 | K152: 0.3480940354 | L152: 0.006639882279 | M152: 0.005058231112 | N152: 0.004019984667 | O152: 0.003317884385 | P152: 0.003022750721 | T152: 0 | U152: 0 | V152: 0 | W152: 0 | X152: 0 | AB152: 2.046648343 | AD152: 0 | AE152: 0 | AF152: 0 | AG152: 0 | AH152: 0 | AM152: 0.8783558943 | AN152: 0 | AO152: 0 | AP152: 0 | AQ152: 0 | AR152: 0 | AV152: 2.150985444 | AX152: 0 | AY152: 0 | AZ152: 0 | BA152: 0 | BB152: 0 | BG152: 0.3434527816 | BH152: 2.023915697
C153: 7.9 | D153: 3.115927079 | E153: 1.901329114 | F153: 9.50664557 | G153: 0.4728074259 | H153: 15778.43614 | K153: 0.3527352892 | L153: 0.006728414043 | M153: 0.005125674193 | N153: 0.004073584463 | O153: 0.003362122843 | P153: 0.003063054064 | T153: 0 | U153: 0 | V153: 0 | W153: 0 | X153: 0 | AB153: 2.002111632 | AD153: 0 | AE153: 0 | AF153: 0 | AG153: 0 | AH153: 0 | AM153: 0.8902255685 | AN153: 0 | AO153: 0 | AP153: 0 | AQ153: 0 | AR153: 0 | AV153: 2.070074855 | AX153: 0 | AY153: 0 | AZ153: 0 | BA153: 0 | BB153: 0 | BG153: 0.3480940354 | BH153: 2.046648343
C154: 8 | D154: 3.155369194 | E154: 1.9 | F154: 9.5 | G154: 0.47879233 | H154: 15789.47368 | K154: 0.357376543 | L154: 0.006816945806 | M154: 0.005193117275 | N154: 0.004127184258 | O154: 0.003406361302 | P154: 0.003103357407 | T154: 0 | U154: 0 | V154: 0 | W154: 0 | X154: 0 | AB154: 2.138129435 | AD154: 0 | AE154: 0 | AF154: 0 | AG154: 0 | AH154: 0 | AM154: 0.9020952428 | AN154: 0 | AO154: 0 | AP154: 0 | AQ154: 0 | AR154: 0 | AV154: 2.085099912 | AX154: 0 | AY154: 0 | AZ154: 0 | BA154: 0 | BB154: 0 | BG154: 0.3527352892 | BH154: 2.002111632
C155: 8.1 | D155: 3.194811309 | E155: 1.89882716 | F155: 9.494135802 | G155: 0.4847772342 | H155: 15799.22629 | K155: 0.3620177968 | L155: 0.00690547757 | M155: 0.005260560356 | N155: 0.004180784054 | O155: 0.00345059976 | P155: 0.00314366075 | T155: 0 | U155: 0 | V155: 0 | W155: 0 | X155: 0 | AB155: 2.136323245 | AD155: 0 | AE155: 0 | AF155: 0 | AG155: 0 | AH155: 0 | AM155: 0.913964917 | AN155: 0 | AO155: 0 | AP155: 0 | AQ155: 0 | AR155: 0 | AV155: 2.031300535 | AX155: 0 | AY155: 0 | AZ155: 0 | BA155: 0 | BB155: 0 | BG155: 0.357376543 | BH155: 2.138129435
C156: 8.2 | D156: 3.234253424 | E156: 1.897804878 | F156: 9.48902439 | G156: 0.4907621383 | H156: 15807.73679 | K156: 0.3666590506 | L156: 0.006994009334 | M156: 0.005328003438 | N156: 0.004234383849 | O156: 0.003494838218 | P156: 0.003183964093 | T156: 0 | U156: 0 | V156: 0 | W156: 0 | X156: 0 | AB156: 2.091411797 | AD156: 0 | AE156: 0 | AF156: 0 | AG156: 0 | AH156: 0 | AM156: 0.9258345912 | AN156: 0 | AO156: 0 | AP156: 0 | AQ156: 0 | AR156: 0 | AV156: 2.121949794 | AX156: 0 | AY156: 0 | AZ156: 0 | BA156: 0 | BB156: 0 | BG156: 0.3620177968 | BH156: 2.136323245
C157: 8.3 | D157: 3.273695539 | E157: 1.896927711 | F157: 9.484638554 | G157: 0.4967470424 | H157: 15815.04652 | K157: 0.3713003045 | L157: 0.007082541098 | M157: 0.005395446519 | N157: 0.004287983645 | O157: 0.003539076677 | P157: 0.003224267436 | T157: 0 | U157: 0 | V157: 0 | W157: 0 | X157: 0 | AB157: 2.052992928 | AD157: 0 | AE157: 0 | AF157: 0 | AG157: 0 | AH157: 0 | AM157: 0.9377042655 | AN157: 0 | AO157: 0 | AP157: 0 | AQ157: 0 | AR157: 0 | AV157: 2.161799954 | AX157: 0 | AY157: 0 | AZ157: 0 | BA157: 0 | BB157: 0 | BG157: 0.3666590506 | BH157: 2.091411797
C158: 8.4 | D158: 3.313137654 | E158: 1.896190476 | F158: 9.480952381 | G158: 0.5027319465 | H158: 15821.19538 | K158: 0.3759415583 | L158: 0.007171072861 | M158: 0.005462889601 | N158: 0.00434158344 | O158: 0.003583315135 | P158: 0.003264570779 | T158: 0 | U158: 0 | V158: 0 | W158: 0 | X158: 0 | AB158: 2.031428649 | AD158: 0 | AE158: 0 | AF158: 0 | AG158: 0 | AH158: 0 | AM158: 0.9495739397 | AN158: 0 | AO158: 0 | AP158: 0 | AQ158: 0 | AR158: 0 | AV158: 2.012314636 | AX158: 0 | AY158: 0 | AZ158: 0 | BA158: 0 | BB158: 0 | BG158: 0.3713003045 | BH158: 2.052992928
C159: 8.5 | D159: 3.352579769 | E159: 1.895588235 | F159: 9.477941176 | G159: 0.5087168507 | H159: 15826.22188 | K159: 0.3805828121 | L159: 0.007259604625 | M159: 0.005530332682 | N159: 0.004395183236 | O159: 0.003627553594 | P159: 0.003304874122 | T159: 0 | U159: 0 | V159: 0 | W159: 0 | X159: 0 | AB159: 2.061722681 | AD159: 0 | AE159: 0 | AF159: 0 | AG159: 0 | AH159: 0 | AM159: 0.961443614 | AN159: 0 | AO159: 0 | AP159: 0 | AQ159: 0 | AR159: 0 | AV159: 2.060754591 | AX159: 0 | AY159: 0 | AZ159: 0 | BA159: 0 | BB159: 0 | BG159: 0.3759415583 | BH159: 2.031428649
C160: 8.6 | D160: 3.392021884 | E160: 1.895116279 | F160: 9.475581395 | G160: 0.5147017548 | H160: 15830.16321 | K160: 0.3852240659 | L160: 0.007348136389 | M160: 0.005597775764 | N160: 0.004448783032 | O160: 0.003671792052 | P160: 0.003345177465 | T160: 0 | U160: 0 | V160: 0 | W160: 0 | X160: 0 | AB160: 2.001588828 | AD160: 0 | AE160: 0 | AF160: 0 | AG160: 0 | AH160: 0 | AM160: 0.9733132882 | AN160: 0 | AO160: 0 | AP160: 0 | AQ160: 0 | AR160: 0 | AV160: 2.045896413 | AX160: 0 | AY160: 0 | AZ160: 0 | BA160: 0 | BB160: 0 | BG160: 0.3805828121 | BH160: 2.061722681
C161: 8.7 | D161: 3.431463999 | E161: 1.894770115 | F161: 9.473850575 | G161: 0.5206866589 | H161: 15833.05529 | K161: 0.3898653197 | L161: 0.007436668152 | M161: 0.005665218845 | N161: 0.004502382827 | O161: 0.003716030511 | P161: 0.003385480808 | T161: 0 | U161: 0 | V161: 0 | W161: 0 | X161: 0 | AB161: 2.106843964 | AD161: 0 | AE161: 0 | AF161: 0 | AG161: 0 | AH161: 0 | AM161: 0.9851829625 | AN161: 0 | AO161: 0 | AP161: 0 | AQ161: 0 | AR161: 0 | AV161: 2.153099604 | AX161: 0 | AY161: 0 | AZ161: 0 | BA161: 0 | BB161: 0 | BG161: 0.3852240659 | BH161: 2.001588828
C162: 8.8 | D162: 3.470906114 | E162: 1.894545455 | F162: 9.472727273 | G162: 0.526671563 | H162: 15834.93282 | K162: 0.3945065735 | L162: 0.007525199916 | M162: 0.005732661926 | N162: 0.004555982623 | O162: 0.003760268969 | P162: 0.003425784151 | T162: 0 | U162: 0 | V162: 0 | W162: 0 | X162: 0 | AB162: 2.004001664 | AD162: 0 | AE162: 0 | AF162: 0 | AG162: 0 | AH162: 0 | AM162: 0.9970526367 | AN162: 0 | AO162: 0 | AP162: 0 | AQ162: 0 | AR162: 0 | AV162: 2.113024005 | AX162: 0 | AY162: 0 | AZ162: 0 | BA162: 0 | BB162: 0 | BG162: 0.3898653197 | BH162: 2.106843964
C163: 8.9 | D163: 3.510348228 | E163: 1.894438202 | F163: 9.472191011 | G163: 0.5326564672 | H163: 15835.82931 | K163: 0.3991478273 | L163: 0.00761373168 | M163: 0.005800105008 | N163: 0.004609582418 | O163: 0.003804507428 | P163: 0.003466087494 | T163: 0 | U163: 0 | V163: 0 | W163: 0 | X163: 0 | AB163: 2.015788123 | AD163: 0 | AE163: 0 | AF163: 0 | AG163: 0 | AH163: 0 | AM163: 1.008922311 | AN163: 0 | AO163: 0 | AP163: 0 | AQ163: 0 | AR163: 0 | AV163: 2.122496251 | AX163: 0 | AY163: 0 | AZ163: 0 | BA163: 0 | BB163: 0 | BG163: 0.3945065735 | BH163: 2.004001664
C164: 9 | D164: 3.549790343 | E164: 1.894444444 | F164: 9.472222222 | G164: 0.5386413713 | H164: 15835.77713 | K164: 0.4037890811 | L164: 0.007702263444 | M164: 0.005867548089 | N164: 0.004663182214 | O164: 0.003848745886 | P164: 0.003506390836 | T164: 0 | U164: 0 | V164: 0 | W164: 0 | X164: 0 | AB164: 2.058109615 | AD164: 0 | AE164: 0 | AF164: 0 | AG164: 0 | AH164: 0 | AM164: 1.020791985 | AN164: 0 | AO164: 0 | AP164: 0 | AQ164: 0 | AR164: 0 | AV164: 2.109464105 | AX164: 0 | AY164: 0 | AZ164: 0 | BA164: 0 | BB164: 0 | BG164: 0.3991478273 | BH164: 2.015788123
C165: 9.1 | D165: 3.589232458 | E165: 1.89456044 | F165: 9.472802198 | G165: 0.5446262754 | H165: 15834.80758 | K165: 0.4084303349 | L165: 0.007790795207 | M165: 0.005934991171 | N165: 0.004716782009 | O165: 0.003892984345 | P165: 0.003546694179 | T165: 0 | U165: 0 | V165: 0 | W165: 0 | X165: 0 | AB165: 2.078498339 | AD165: 0 | AE165: 0 | AF165: 0 | AG165: 0 | AH165: 0 | AM165: 1.032661659 | AN165: 0 | AO165: 0 | AP165: 0 | AQ165: 0 | AR165: 0 | AV165: 2.007442216 | AX165: 0 | AY165: 0 | AZ165: 0 | BA165: 0 | BB165: 0 | BG165: 0.4037890811 | BH165: 2.058109615
C166: 9.2 | D166: 3.628674573 | E166: 1.894782609 | F166: 9.473913043 | G166: 0.5506111795 | H166: 15832.95089 | K166: 0.4130715887 | L166: 0.007879326971 | M166: 0.006002434252 | N166: 0.004770381805 | O166: 0.003937222803 | P166: 0.003586997522 | T166: 0 | U166: 0 | V166: 0 | W166: 0 | X166: 0 | AB166: 2.018306247 | AD166: 0 | AE166: 0 | AF166: 0 | AG166: 0 | AH166: 0 | AM166: 1.044531334 | AN166: 0 | AO166: 0 | AP166: 0 | AQ166: 0 | AR166: 0 | AV166: 2.140669604 | AX166: 0 | AY166: 0 | AZ166: 0 | BA166: 0 | BB166: 0 | BG166: 0.4084303349 | BH166: 2.078498339
C167: 9.3 | D167: 3.668116688 | E167: 1.895107527 | F167: 9.475537634 | G167: 0.5565960837 | H167: 15830.23632 | K167: 0.4177128425 | L167: 0.007967858735 | M167: 0.006069877334 | N167: 0.0048239816 | O167: 0.003981461262 | P167: 0.003627300865 | T167: 0 | U167: 0 | V167: 0 | W167: 0 | X167: 0 | AB167: 2.090644949 | AD167: 0 | AE167: 0 | AF167: 0 | AG167: 0 | AH167: 0 | AM167: 1.056401008 | AN167: 0 | AO167: 0 | AP167: 0 | AQ167: 0 | AR167: 0 | AV167: 2.096032917 | AX167: 0 | AY167: 0 | AZ167: 0 | BA167: 0 | BB167: 0 | BG167: 0.4130715887 | BH167: 2.018306247
C168: 9.4 | D168: 3.707558803 | E168: 1.895531915 | F168: 9.477659574 | G168: 0.5625809878 | H168: 15826.69211 | K168: 0.4223540963 | L168: 0.008056390499 | M168: 0.006137320415 | N168: 0.004877581396 | O168: 0.00402569972 | P168: 0.003667604208 | T168: 0 | U168: 0 | V168: 0 | W168: 0 | X168: 0 | AB168: 2.100601571 | AD168: 0 | AE168: 0 | AF168: 0 | AG168: 0 | AH168: 0 | AM168: 1.068270682 | AN168: 0 | AO168: 0 | AP168: 0 | AQ168: 0 | AR168: 0 | AV168: 2.125957281 | AX168: 0 | AY168: 0 | AZ168: 0 | BA168: 0 | BB168: 0 | BG168: 0.4177128425 | BH168: 2.090644949
